Workbook

Sheet AllModes
A1: Read instructions! | B1: Inches | D1: Feet | E1: All Modes | R1: BANDWIDTH
A2: Length = | B2: =B6/2.54 -> 252.3622047 | C2: Lx = | D2: =+B2/12 -> 21.03018373 | E2: nx | F2: ny | G2: nz | H2: f | I2: Type | J2: Weight | K2: SPACING | L2: Δf | M2: Octave Band | N2: Δmax | O2: Δavg | P2: Δ² | Q2: 1/3 Octave Band | R2: low | S2: center | T2: hi | U2: # of modes
A3: Width = | B3: =B7/2.54 -> 188.5826772 | C3: Ly = | D3: =+B3/12 -> 15.7152231 | E3: 1 | F3: 0 | G3: 0 | H3: =$D$5*SQRT((($E3/$D$2)^2)+(($F3/$D$3)^2)+(($G3/$D$4)^2)) -> 26.82953261 | I3: =+IF(+AND(E3=0,F3=0)+OR(+AND(E3=0,G3=0))+OR(+AND(F3=0,G3=0)),"Axial",(+IF(+OR(E3=0,F3=0,G3=0),"Tangential","Oblique"))) -> Axial | J3: =IF(I3="Axial",1,IF(I3="Tangential",0.5,IF(I3="Oblique",0.25,""))) -> 1 | L3: - | M3: =IF(H3<17.8,1,IF(H3<=22.4,2,IF(H3<=28.2,3,IF(H3<=35.5,4,IF(H3<=44.7,5,IF(H3<=56.2,6,IF(H3<=70.8,7,IF(H3<=89.1,8,IF(H3<=112,9,IF(H3<=141,10,IF(H3<=178,11,IF(H3<=224,12,IF(H3<=282,13,IF(H3<=355,14,IF(H3<=447,15,IF(H3<=562,16,IF(H3<=708,17,IF(H3<=891,18,IF(H3<=1122,19,IF(H3<=1413,20,IF(H3<=1778,21,IF(H3<=2239,22,IF(H3<=2818,23,IF(H3<=3548,24,IF(H3<=4467,25,IF(H3<=5623,26,IF(H3<=7079,27,IF(H3<=8913,28,IF(H3<=11220,29,IF(H3<=14130,30,IF(H3<=17780,31,IF(H3<=22390,32,)))))))))))))))))))))))))))))))) -> 3 | Q3: 1 | R3: 14.1 | S3: 16 | T3: 17.8 | U3: =COUNTIF($M$3:$M$1001,Q3) -> 0 | V3: =IF((U3)<5,"INACCURATE","CAN TEST") -> INACCURATE
A4: Height = | B4: =B8/2.54 -> 132.6771654 | C4: Lz = | D4: =+B4/12 -> 11.05643045 | E4: 0 | F4: 1 | G4: 0 | H4: 35.90340376 | I4: Axial | J4: =IF(I4="Axial",1,IF(I4="Tangential",0.5,IF(I4="Oblique",0.25,""))) -> 1 | K4: =IF((H4-H3)<1,"RED","OK") -> OK | L4: =H4-H3 -> 9.073871153 | M4: =IF(H4<17.8,1,IF(H4<=22.4,2,IF(H4<=28.2,3,IF(H4<=35.5,4,IF(H4<=44.7,5,IF(H4<=56.2,6,IF(H4<=70.8,7,IF(H4<=89.1,8,IF(H4<=112,9,IF(H4<=141,10,IF(H4<=178,11,IF(H4<=224,12,IF(H4<=282,13,IF(H4<=355,14,IF(H4<=447,15,IF(H4<=562,16,IF(H4<=708,17,IF(H4<=891,18,IF(H4<=1122,19,IF(H4<=1413,20,IF(H4<=1778,21,IF(H4<=2239,22,IF(H4<=2818,23,IF(H4<=3548,24,IF(H4<=4467,25,IF(H4<=5623,26,IF(H4<=7079,27,IF(H4<=8913,28,IF(H4<=11220,29,IF(H4<=14130,30,IF(H4<=17780,31,IF(H4<=22390,32,)))))))))))))))))))))))))))))))) -> 5 | Q4: =Q3+1 -> 2 | R4: 17.8 | S4: 20 | T4: 22.4 | U4: =COUNTIF($M$3:$M$1001,Q4) -> 0 | V4: =IF((U4)<5,"INACCURATE","CAN TEST") -> INACCURATE
A5: sea level, 21˚C | B5: Cm | C5: c/2 = | D5: =1128.46/2 -> 564.23 | E5: 1 | F5: 1 | G5: 0 | H5: 44.82051117 | I5: Tangential | J5: 0.5 | K5: =IF((H5-H4)<1,"RED","OK") -> OK | L5: =H5-H4 -> 8.917107409 | M5: 6 | P5: =O5*N5 -> 0 | Q5: 3 | R5: 22.4 | S5: 25 | T5: 28.2 | U5: 1 | V5: INACCURATE
A6: Length = | B6: 641 | C6: =IF(D7>1500,"PERFECT","TOO SMALL") -> PERFECT | D6: VOLUME | E6: 0 | F6: 0 | G6: 1 | H6: 51.03184095 | I6: Axial | J6: 1 | K6: OK | L6: 6.211329783 | M6: 6 | P6: 0 | Q6: 4 | R6: 28.2 | S6: 31.5 | T6: 35.5 | U6: 0 | V6: INACCURATE
A7: Width = | B7: 479 | D7: =+D2*D3*D4 -> 3654.084245 | E7: 2 | F7: 0 | G7: 0 | H7: 53.65906521 | I7: Axial | J7: 1 | K7: OK | L7: 2.627224261 | M7: 6 | P7: 0 | Q7: 5 | R7: 35.5 | S7: 40 | T7: 44.7 | U7: 1 | V7: INACCURATE
A8: Height = | B8: 337 | D8: =(B6*B7*B8)/1000000 -> 103.472143 | E8: 1 | F8: 0 | G8: 1 | H8: 57.65477093 | I8: Tangential | J8: 0.5 | K8: OK | L8: 3.995705715 | M8: 7 | P8: 0 | Q8: 6 | R8: 44.7 | S8: 50 | T8: 56.2 | U8: 3 | V8: INACCURATE
A9: If you found this spreadsheet helpful, please send a donation via PayPal to erika@jhbrandt.net | E9: 0 | F9: 1 | G9: 1 | H9: 62.39633957 | I9: Tangential | J9: 0.5 | K9: OK | L9: 4.741568647 | M9: 7 | P9: 0 | Q9: 7 | R9: 56.2 | S9: 63 | T9: 70.8 | U9: 4 | V9: INACCURATE
E10: 2 | F10: 1 | G10: 0 | H10: 64.56275769 | I10: Tangential | J10: 0.5 | K10: OK | L10: 2.166418118 | M10: 7 | P10: 0 | Q10: 8 | R10: 70.8 | S10: 80 | T10: 89.1 | U10: 7 | V10: CAN TEST
E11: 1 | F11: 1 | G11: 1 | H11: 67.9200045 | I11: Oblique | J11: 0.25 | K11: OK | L11: 3.357246814 | M11: 7 | P11: 0 | Q11: 9 | R11: 89.1 | S11: 100 | T11: 112 | U11: 13 | V11: CAN TEST
A12: F/B walls | B12: =(B7/100)*(B8/100) -> 16.1423 | E12: 0 | F12: 2 | G12: 0 | H12: 71.80680752 | I12: Axial | J12: 1 | K12: OK | L12: 3.886803011 | M12: 8 | P12: 0 | Q12: 10 | R12: 112 | S12: 125 | T12: 141 | U12: 20 | V12: CAN TEST
A13: Ceiling/Floor | B13: =(B6/100)*(B7/100) -> 30.7039 | E13: 2 | F13: 0 | G13: 1 | H13: 74.0509559 | I13: Tangential | J13: 0.5 | K13: OK | L13: 2.244148386 | M13: 8 | P13: 0 | Q13: 11 | R13: 141 | S13: 160 | T13: 178 | U13: 43 | V13: CAN TEST
A14: Side Walls | B14: =(B6/100)*(B8/100) -> 21.6017 | D14: Position % | E14: 1 | F14: 2 | G14: 0 | H14: 76.65534179 | I14: Tangential | J14: 0.5 | K14: OK | L14: 2.604385891 | M14: 8 | P14: 0 | Q14: 12 | R14: 178 | S14: 200 | T14: 224 | U14: 82 | V14: CAN TEST
A15: Mix position | B15: =B6*D15 -> 240.375 | C15: to front wall | D15: =0.375 -> 0.375 | E15: 3 | F15: 0 | G15: 0 | H15: 80.48859782 | I15: Axial | J15: 1 | K15: OK | L15: 3.833256023 | M15: 8 | P15: 0 | Q15: 13 | R15: 224 | S15: 250 | T15: 282 | U15: 137 | V15: CAN TEST
E16: 2 | F16: 1 | G16: 1 | H16: 82.29579863 | I16: Oblique | J16: 0.25 | K16: OK | L16: 1.807200809 | M16: 8 | P16: 0 | Q16: 14 | R16: 282 | S16: 315 | T16: 355 | U16: 215 | V16: CAN TEST
E17: 0 | F17: 2 | G17: 1 | H17: 88.09350939 | I17: Tangential | J17: 0.5 | K17: OK | L17: 5.797710763 | M17: 8 | P17: 0 | Q17: 15 | R17: 355 | S17: 400 | T17: 447 | U17: 255 | V17: CAN TEST
A18: see the Ideal Rooms tab | E18: 3 | F18: 1 | G18: 0 | H18: 88.13324446 | I18: Tangential | J18: 0.5 | K18: RED | L18: 0.03973507612 | M18: 8 | P18: 0 | Q18: 16 | R18: 447 | S18: 500 | T18: 562 | U18: 201 | V18: CAN TEST
B19: Height | C19: Width | D19: Length | E19: 2 | F19: 2 | G19: 0 | H19: 89.64102233 | I19: Tangential | J19: 0.5 | K19: OK | L19: 1.507777869 | M19: 9 | Q19: 17 | R19: 562 | S19: 630 | T19: 708
A20: Ratio: | B20: 1 | C20: =B3/B4 -> 1.421364985 | D20: =B2/B4 -> 1.902077151 | E20: 1 | F20: 2 | G20: 1 | H20: 92.08849123 | I20: Oblique | J20: 0.25 | K20: OK | L20: 2.447468892 | M20: 9 | Q20: 18 | R20: 708 | S20: 800 | T20: 891
E21: 3 | F21: 0 | G21: 1 | H21: 95.30300714 | I21: Tangential | J21: 0.5 | K21: OK | L21: 3.21451591 | M21: 9 | Q21: 19 | R21: 891 | S21: 1000 | T21: 1122
A22: Instructions: | E22: 3 | F22: 1 | G22: 1 | H22: 101.8416298 | I22: Oblique | J22: 0.25 | K22: OK | L22: 6.538622714 | M22: 9 | Q22: 20 | R22: 1122 | S22: 1250 | T22: 1413
A23: 1. Enter Dimensions in Yellow Area (centimeters). | E23: 0 | F23: 0 | G23: 2 | H23: 102.0636819 | I23: Axial | J23: 1 | K23: RED | L23: 0.2220520493 | M23: 9 | Q23: 21 | R23: 1413 | S23: 1600 | T23: 1778
A24: 2. Press Ctrl+Shift+S to Sort. | E24: 2 | F24: 2 | G24: 1 | H24: 103.1492204 | I24: Oblique | J24: 0.25 | K24: OK | L24: 1.085538532 | M24: 9 | Q24: 22 | R24: 1778 | S24: 2000 | T24: 2239
A25: 3. Press Ctrl+Shift+C to Copy Mode Strength Data. | E25: 1 | F25: 0 | G25: 2 | H25: 105.531128 | I25: Tangential | J25: 0.5 | K25: OK | L25: 2.381907596 | M25: 9 | Q25: 23 | R25: 2239 | S25: 2500 | T25: 2818
E26: 4 | F26: 0 | G26: 0 | H26: 107.3181304 | I26: Axial | J26: 1 | K26: OK | L26: 1.787002394 | M26: 9 | Q26: 24 | R26: 2818 | S26: 3150 | T26: 3548
A27: INSTRUCTIONS: | E27: 0 | F27: 3 | G27: 0 | H27: 107.7102113 | I27: Axial | J27: 1 | K27: RED | L27: 0.3920808523 | M27: 9 | Q27: 25 | R27: 3548 | S27: 4000 | T27: 4467
A28: 1. Enter Dimensions in Yellow Area (inches). | E28: 3 | F28: 2 | G28: 0 | H28: 107.8639513 | I28: Tangential | J28: 0.5 | K28: RED | L28: 0.1537399983 | M28: 9 | Q28: 26 | R28: 4467 | S28: 5000 | T28: 5623
A29: 2. Press Ctrl+Shift+S to Sort. | E29: 0 | F29: 1 | G29: 2 | H29: 108.1944988 | I29: Tangential | J29: 0.5 | K29: RED | L29: 0.3305474987 | M29: 9 | Q29: 27 | R29: 5623 | S29: 6300 | T29: 7079
A30: 3. Press Ctrl+Shift+C to Copy Mode Strength Data. | E30: 1 | F30: 3 | G30: 0 | H30: 111.0014118 | I30: Tangential | J30: 0.5 | K30: OK | L30: 2.806913078 | M30: 9 | Q30: 28 | R30: 7079 | S30: 8000 | T30: 8913
E31: 1 | F31: 1 | G31: 2 | H31: 111.4714016 | I31: Oblique | J31: 0.25 | K31: RED | L31: 0.4699897933 | M31: 9 | Q31: 29 | R31: 8913 | S31: 10000 | T31: 11220
A32: Analysis Note for Bonello Graph: | E32: 4 | F32: 1 | G32: 0 | H32: 113.164639 | I32: Tangential | J32: 0.5 | K32: OK | L32: 1.693237351 | M32: 10 | Q32: 30 | R32: 11220 | S32: 12500 | T32: 14130
E33: 2 | F33: 0 | G33: 2 | H33: 115.3095419 | I33: Tangential | J33: 0.5 | K33: OK | L33: 2.144902858 | M33: 10 | Q33: 31 | R33: 14130 | S33: 16000 | T33: 17780
A34: If the "Ideal" bar (red) in any 1/3 Octave exceeds the "Actual" bar (blue) in the same 1/3 octave, the room is "non-ideal". If this is the case, alternate room dimensions are usually the best course of action. Since in many cases altering the room dimensions is not doable, bass traps should be considered. Consider each of the following when recommending bass traps: | E34: 4 | F34: 0 | G34: 1 | H34: 118.8336228 | I34: Tangential | J34: 0.5 | K34: OK | L34: 3.524080948 | M34: 10 | Q34: 32 | R34: 17780 | S34: 20000 | T34: 22390
E35: 0 | F35: 3 | G35: 1 | H35: 119.1878283 | I35: Tangential | J35: 0.5 | K35: RED | L35: 0.3542054512 | M35: 10
E36: 3 | F36: 2 | G36: 1 | H36: 119.3267815 | I36: Oblique | J36: 0.25 | K36: RED | L36: 0.1389532131 | M36: 10
E37: 2 | F37: 3 | G37: 0 | H37: 120.3361329 | I37: Tangential | J37: 0.5 | K37: OK | L37: 1.009351479 | M37: 10
E38: 2 | F38: 1 | G38: 2 | H38: 120.769801 | I38: Oblique | J38: 0.25 | K38: RED | L38: 0.4336680972 | M38: 10
E39: 1 | F39: 3 | G39: 1 | H39: 122.1702182 | I39: Oblique | J39: 0.25 | K39: OK | L39: 1.400417192 | M39: 10
E40: 4 | F40: 1 | G40: 1 | H40: 124.1389718 | I40: Oblique | J40: 0.25 | K40: OK | L40: 1.968753525 | M40: 10
E41: 0 | F41: 2 | G41: 2 | H41: 124.7926791 | I41: Tangential | J41: 0.5 | K41: RED | L41: 0.6537073875 | M41: 10
A42: (a) For tangential modes above 80 Hz and axial modes above 100 Hz, corner traps should be used in each vertical corner as much as possible. | E42: 1 | F42: 2 | G42: 2 | H42: 127.6441796 | I42: Oblique | J42: 0.25 | K42: OK | L42: 2.851500464 | M42: 10
E43: 4 | F43: 2 | G43: 0 | H43: 129.1255154 | I43: Tangential | J43: 0.5 | K43: OK | L43: 1.481335772 | M43: 10
E44: 3 | F44: 0 | G44: 2 | H44: 129.9823432 | I44: Tangential | J44: 0.5 | K44: RED | L44: 0.8568278079 | M44: 10
E45: 2 | F45: 3 | G45: 1 | H45: 130.7097306 | I45: Oblique | J45: 0.25 | K45: RED | L45: 0.7273874445 | M45: 10
A46: (b) For axial modes below 100 Hz, either broadband absorbers, properly designed diaphragmatic absorbers should be used, in general, at the center of the wall*. | E46: 5 | F46: 0 | G46: 0 | H46: 134.147663 | I46: Axial | J46: 1 | K46: OK | L46: 3.437932392 | M46: 10
E47: 3 | F47: 3 | G47: 0 | H47: 134.4615335 | I47: Tangential | J47: 0.5 | K47: RED | L47: 0.3138704727 | M47: 10
E48: 3 | F48: 1 | G48: 2 | H48: 134.8497829 | I48: Oblique | J48: 0.25 | K48: RED | L48: 0.38824938 | M48: 10
E49: 2 | F49: 2 | G49: 2 | H49: 135.840009 | I49: Oblique | J49: 0.25 | K49: RED | L49: 0.9902261302 | M49: 10
A50: (c) For tangential modes below 80 Hz, broadband traps, diaphragmatic absorbers can also be used, but placement is dependent on the distribution of the mode. | E50: 4 | F50: 2 | G50: 1 | H50: 138.8439682 | I50: Oblique | J50: 0.25 | K50: OK | L50: 3.003959219 | M50: 10
E51: 5 | F51: 1 | G51: 0 | H51: 138.8691827 | I51: Tangential | J51: 0.5 | K51: RED | L51: 0.02521444683 | M51: 10
E52: 5 | F52: 0 | G52: 1 | H52: 143.5264585 | I52: Tangential | J52: 0.5 | K52: OK | L52: 4.657275813 | M52: 11
E53: 0 | F53: 4 | G53: 0 | H53: 143.613615 | I53: Axial | J53: 1 | K53: RED | L53: 0.08715654307 | M53: 11
A54: *The important wall for treatment is the opposite wall to the wall indicated by the mode number. For example, an absorber for the (x,0,0) mode should be most effective when placed at the center of the "y" wall. | E54: 3 | F54: 3 | G54: 1 | H54: 143.8198623 | I54: Oblique | J54: 0.25 | K54: RED | L54: 0.2062472327 | M54: 11
E55: 1 | F55: 4 | G55: 0 | H55: 146.0982349 | I55: Tangential | J55: 0.5 | K55: OK | L55: 2.27837264 | M55: 11
E56: 5 | F56: 1 | G56: 1 | H56: 147.9489733 | I56: Oblique | J56: 0.25 | K56: OK | L56: 1.850738352 | M56: 11
E57: 4 | F57: 0 | G57: 2 | H57: 148.1019118 | I57: Tangential | J57: 0.5 | K57: RED | L57: 0.1529385475 | M57: 11
E58: 0 | F58: 3 | G58: 2 | H58: 148.3862688 | I58: Tangential | J58: 0.5 | K58: RED | L58: 0.2843570199 | M58: 11
A59: Other Notes: | E59: 3 | F59: 2 | G59: 2 | H59: 148.4979028 | I59: Oblique | J59: 0.25 | K59: RED | L59: 0.1116340127 | M59: 11
A60: RT60 is not applicable to these small rooms. The mean free time is calculated instead from the mean free path. | E60: 1 | F60: 3 | G60: 2 | H60: 150.7922697 | I60: Oblique | J60: 0.25 | K60: OK | L60: 2.294366844 | M60: 11
E61: 4 | F61: 3 | G61: 0 | H61: 152.0482513 | I61: Tangential | J61: 0.5 | K61: OK | L61: 1.255981641 | M61: 11
E62: 5 | F62: 2 | G62: 0 | H62: 152.1571987 | I62: Tangential | J62: 0.5 | K62: RED | L62: 0.1089473295 | M62: 11
E63: 4 | F63: 1 | G63: 2 | H63: 152.3917015 | I63: Oblique | J63: 0.25 | K63: RED | L63: 0.2345028342 | M63: 11
E64: 0 | F64: 4 | G64: 1 | H64: 152.4110206 | I64: Tangential | J64: 0.5 | K64: RED | L64: 0.01931915738 | M64: 11
E65: 0 | F65: 0 | G65: 3 | H65: 153.0955228 | I65: Axial | J65: 1 | K65: RED | L65: 0.6845022069 | M65: 11 | AK65: =1127/((#REF!/12)*2) -> 
A66: If the "Ideal" bar does exceed the "Actual" bar in any given 1/3-octave band, the problem modes will usually be those occurring in the 1/3 octave bands that are lower than the violating band. I.e., if the "Ideal" bar at 100 Hz exceeds the "Actual" bar, the modes at 80 Hz and below are likely to give very perceptible problems in the room. | E66: 2 | F66: 4 | G66: 0 | H66: 153.3106836 | I66: Tangential | J66: 0.5 | K66: RED | L66: 0.2151607374 | M66: 11 | AK66: =1127/((#REF!/12)*2) -> 
E67: 1 | F67: 4 | G67: 1 | H67: =$D$5*SQRT((($E67/$D$2)^2)+(($F67/$D$3)^2)+(($G67/$D$4)^2)) -> 154.7544605 | I67: =+IF(+AND(E67=0,F67=0)+OR(+AND(E67=0,G67=0))+OR(+AND(F67=0,G67=0)),"Axial",(+IF(+OR(E67=0,F67=0,G67=0),"Tangential","Oblique"))) -> Oblique | J67: 0.25 | K67: OK | L67: 1.443776876 | M67: 11
E68: 1 | F68: 0 | G68: 3 | H68: 155.4286426 | I68: Tangential | J68: =IF(I68="Axial",1,IF(I68="Tangential",0.5,IF(I68="Oblique",0.25,""))) -> 0.5 | K68: RED | L68: 0.674182124 | M68: =IF(H68<17.8,1,IF(H68<=22.4,2,IF(H68<=28.2,3,IF(H68<=35.5,4,IF(H68<=44.7,5,IF(H68<=56.2,6,IF(H68<=70.8,7,IF(H68<=89.1,8,IF(H68<=112,9,IF(H68<=141,10,IF(H68<=178,11,IF(H68<=224,12,IF(H68<=282,13,IF(H68<=355,14,IF(H68<=447,15,IF(H68<=562,16,IF(H68<=708,17,IF(H68<=891,18,IF(H68<=1122,19,IF(H68<=1413,20,IF(H68<=1778,21,IF(H68<=2239,22,IF(H68<=2818,23,IF(H68<=3548,24,IF(H68<=4467,25,IF(H68<=5623,26,IF(H68<=7079,27,IF(H68<=8913,28,IF(H68<=11220,29,IF(H68<=14130,30,IF(H68<=17780,31,IF(H68<=22390,32,)))))))))))))))))))))))))))))))) -> 11
E69: 0 | F69: 1 | G69: 3 | H69: 157.2491447 | I69: Tangential | J69: 0.5 | K69: =IF((H69-H68)<1,"RED","OK") -> OK | L69: =H69-H68 -> 1.820502142 | M69: 11
E70: 2 | F70: 3 | G70: 2 | H70: 157.7903041 | I70: Oblique | J70: 0.25 | K70: RED | L70: 0.5411593298 | M70: 11
E71: 1 | F71: 1 | G71: 3 | H71: 159.5215263 | I71: Oblique | J71: 0.25 | K71: OK | L71: 1.731222193 | M71: 11
E72: 4 | F72: 3 | G72: 1 | H72: 160.3836635 | I72: Oblique | J72: 0.25 | K72: RED | L72: 0.8621372572 | M72: 11
E73: 5 | F73: 2 | G73: 1 | H73: 160.4869524 | I73: Oblique | J73: 0.25 | K73: RED | L73: 0.1032888951 | M73: 11
E74: 6 | F74: 0 | G74: 0 | H74: 160.9771956 | I74: Axial | J74: 1 | K74: RED | L74: 0.4902432283 | M74: 11
E75: 2 | F75: 4 | G75: 1 | H75: 161.5809843 | I75: Oblique | J75: 0.25 | K75: RED | L75: 0.6037886836 | M75: 11 | N75: =0.16*(($D$8/$N$100)^(1/2)) -> 2.735439466
E76: 2 | F76: 0 | G76: 3 | H76: 162.2267993 | I76: Tangential | J76: 0.5 | K76: RED | L76: 0.6458149367 | M76: 11
E77: 4 | F77: 2 | G77: 2 | H77: 164.5915973 | I77: Oblique | J77: 0.25 | K77: OK | L77: 2.364797998 | M77: 11
E78: 3 | F78: 4 | G78: 0 | H78: 164.6307529 | I78: Tangential | J78: 0.5 | K78: RED | L78: 0.03915565037 | M78: 11
E79: 6 | F79: 1 | G79: 0 | H79: 164.9324465 | I79: Tangential | J79: 0.5 | K79: RED | L79: 0.3016936185 | M79: 11
E80: 2 | F80: 1 | G80: 3 | H80: 166.152306 | I80: Oblique | J80: 0.25 | K80: OK | L80: 1.219859504 | M80: 11
E81: 5 | F81: 0 | G81: 2 | H81: 168.5603472 | I81: Tangential | J81: 0.5 | K81: OK | L81: 2.408041206 | M81: 11
E82: 3 | F82: 3 | G82: 2 | H82: 168.810246 | I82: Oblique | J82: 0.25 | K82: RED | L82: 0.2498987676 | M82: 11
E83: 6 | F83: 0 | G83: 1 | H83: 168.8724557 | I83: Tangential | J83: 0.5 | K83: RED | L83: 0.06220973217 | M83: 11
E84: 0 | F84: 2 | G84: 3 | H84: 169.0989554 | I84: Tangential | J84: 0.5 | K84: RED | L84: 0.2264996837 | M84: 11
E85: 1 | F85: 2 | G85: 3 | H85: 171.2141365 | I85: Oblique | J85: 0.25 | K85: OK | L85: 2.115181099 | M85: 11
E86: 5 | F86: 3 | G86: 0 | H86: 172.0380339 | I86: Tangential | J86: 0.5 | K86: RED | L86: 0.8238973872 | M86: 11
E87: 5 | F87: 1 | G87: 2 | H87: 172.3416521 | I87: Oblique | J87: 0.25 | K87: RED | L87: 0.3036182326 | M87: 11
E88: 3 | F88: 4 | G88: 1 | H88: 172.3587352 | I88: Oblique | J88: 0.25 | K88: RED | L88: 0.01708304364 | M88: 11
E89: 6 | F89: 1 | G89: 1 | H89: 172.646925 | I89: Oblique | J89: 0.25 | K89: RED | L89: 0.2881898057 | M89: 11
E90: 3 | F90: 0 | G90: 3 | H90: 172.9643128 | I90: Tangential | J90: 0.5 | K90: RED | L90: 0.3173877962 | M90: 11
A91: If the "Ideal" bar does exceed the "Actual" bar in any given 1/3-octave band, the problem modes will usually be those occurring in the 1/3 octave bands that are lower than the violating band. I.e., if the "Ideal" bar at 100 Hz exceeds the "Actual" bar, the modes at 80 Hz and below are likely to give very perceptible problems in the room. | E91: 0 | F91: 4 | G91: 2 | H91: 176.1870188 | I91: Tangential | J91: 0.5 | K91: OK | L91: 3.222705998 | M91: 11
E92: 6 | F92: 2 | G92: 0 | H92: 176.2664889 | I92: Tangential | J92: 0.5 | K92: RED | L92: 0.07947015223 | M92: 11
E93: 3 | F93: 1 | G93: 3 | H93: 176.6513739 | I93: Oblique | J93: 0.25 | K93: RED | L93: 0.3848849585 | M93: 11 | Q93: Transition/Diffusive ------Region------
E94: 2 | F94: 2 | G94: 3 | H94: 177.4084327 | I94: Oblique | J94: 0.25 | K94: RED | L94: 0.7570588361 | M94: 11 | N94: |----------------- Wave Region -----------------|----------- | R94: |----------- Ray Region ---------|
E95: 1 | F95: 4 | G95: 2 | H95: 178.2180951 | I95: Oblique | J95: 0.25 | K95: RED | L95: 0.809662332 | M95: 12 | N95: F¹ | P95: F² | R95: F³ | T95: Fⁿ
E96: 4 | F96: 4 | G96: 0 | H96: 179.2820447 | I96: Tangential | J96: 0.5 | K96: OK | L96: 1.063949611 | M96: 12 | N96: =565/D2 -> 26.86614665 | P96: =(SQRT(N100/D7))*11885 -> 116.9807777 | R96: =4*P96 -> 467.9231108 | T96: 20,000Hz
E97: 5 | F97: 3 | G97: 1 | H97: 179.4473012 | I97: Oblique | J97: 0.25 | K97: RED | L97: 0.1652565088 | M97: 12 | N97: LF cutoff | P97: (Schroeder Frequency) | T97: HF cutoff
E98: 0 | F98: 5 | G98: 0 | H98: 179.5170188 | I98: Axial | J98: 1 | K98: RED | L98: 0.0697176148 | M98: 12 | N98: =((SQRT(2))*(565/D2)) -> 37.99446896 | O98: <--This should be the LF cut-off of the speaker system if ported speakers are used
E99: 1 | F99: 5 | G99: 0 | H99: 181.5108367 | I99: Tangential | J99: 0.5 | K99: OK | L99: 1.993817953 | M99: 12 | N99: MEAN FREE TIMES | O99: (Maximum) | P99: Permissible rise from 200 Hz @ 63 Hz | R99: =(((344/R96)/4)*100)*2 -> 36.75817587 | S99: Maximum depth for Schroeder 1D diffusor
E100: 4 | F100: 3 | G100: 2 | H100: 183.1274581 | I100: Oblique | J100: 0.25 | K100: OK | L100: 1.61662131 | M100: 12 | N100: =0.35*(($D$8/100)^(1/3)) -> 0.3540048339 | P100: =(N100*0.25)+N100 -> 0.4425060423 | R100: =(SQRT(2))*P96 -> 165.4358024 | S100: We don't want any problematic resonances below this frequency
E101: 5 | F101: 2 | G101: 2 | H101: 183.2179256 | I101: Oblique | J101: 0.25 | K101: RED | L101: 0.09046755565 | M101: 12 | N101: =N100 -> 0.3540048339 | O101: Balance spec. | P101: =P96 -> 116.9807777 | Q101: Schroeder @ spec | R101: =P101/2 -> 58.49038885 | S101: <---- Maximum inner shell MAM resonance
E102: 6 | F102: 2 | G102: 1 | H102: 183.505106 | I102: Oblique | J102: 0.25 | K102: RED | L102: 0.2871803428 | M102: 12 | N102: Critical Distance - Dmin | O102: =N75*1000 -> 2735.439466 | P102: For control rooms, this is the circumference of the 'sweet-spot'
E103: 2 | F103: 4 | G103: 2 | H103: 184.1769825 | I103: Oblique | J103: 0.25 | K103: RED | L103: 0.6718765 | M103: 12
E104: 4 | F104: 4 | G104: 1 | H104: 186.4035953 | I104: Oblique | J104: 0.25 | K104: OK | L104: 2.226612821 | M104: 12
E105: 0 | F105: 5 | G105: 1 | H105: 186.6296033 | I105: Tangential | J105: 0.5 | K105: RED | L105: 0.2260080223 | M105: 12
E106: 4 | F106: 0 | G106: 3 | H106: 186.9636869 | I106: Tangential | J106: 0.5 | K106: RED | L106: 0.334083644 | M106: 12 | N106: see the Ideal Rooms tab for best room ratios + more information
E107: 0 | F107: 3 | G107: 3 | H107: 187.1890187 | I107: Tangential | J107: 0.5 | K107: RED | L107: 0.2253317808 | M107: 12
E108: 3 | F108: 2 | G108: 3 | H108: 187.2775243 | I108: Oblique | J108: 0.25 | K108: RED | L108: 0.08850556079 | M108: 12
E109: 2 | F109: 5 | G109: 0 | H109: 187.3650323 | I109: Tangential | J109: 0.5 | K109: RED | L109: 0.08750798161 | M109: 12
E110: 7 | F110: 0 | G110: 0 | H110: 187.8067282 | I110: Axial | J110: 1 | K110: RED | L110: 0.441695976 | M110: 12
E111: 1 | F111: 5 | G111: 1 | H111: 188.5482237 | I111: Oblique | J111: 0.25 | K111: RED | L111: 0.7414954232 | M111: 12
E112: 1 | F112: 3 | G112: 3 | H112: 189.1019634 | I112: Oblique | J112: 0.25 | K112: RED | L112: 0.5537397052 | M112: 12 | N112: TRACKING ROOM AND BOOTH BROADBAND TRAPPING | Q112: Minimum Trapping required | T112: Mem 3rd | U112: Mem 4th
E113: 4 | F113: 1 | G113: 3 | H113: 190.3798168 | I113: Oblique | J113: 0.25 | K113: OK | L113: 1.277853408 | M113: 12 | N113: Axial mode nx (length) | O113: =$P$123/((B6*2)/100) -> 26.78237129 | Q113: half-power at Fc for oblique incidence trapping | S113: FRONT & REAR WALLS | T113: =O113*3 -> 80.34711388 | U113: =O113*4 -> 107.1294852
E114: 6 | F114: 0 | G114: 2 | H114: 190.6060143 | I114: Tangential | J114: 0.5 | K114: RED | L114: 0.2261974973 | M114: 12 | N114: Trap depth MINIMUM | O114: =((B6/2)*0.271)/2 -> 43.42775
E115: 7 | F115: 1 | G115: 0 | H115: 191.2077968 | I115: Tangential | J115: 0.5 | K115: RED | L115: 0.6017825693 | M115: 12
E116: 6 | F116: 3 | G116: 0 | H116: 193.6882731 | I116: Tangential | J116: 0.5 | K116: OK | L116: 2.480476233 | M116: 12 | N116: Axial mode ny (width) | O116: =$P$123/((B7*2)/100) -> 35.84029228 | Q116: half-power at Fc for oblique incidence trapping | S116: SIDE WALLS | T116: =O116*3 -> 107.5208768 | U116: =O116*4 -> 143.3611691
E117: 3 | F117: 4 | G117: 2 | H117: 193.7015229 | I117: Oblique | J117: 0.25 | K117: RED | L117: 0.01324980039 | M117: 12 | N117: Trap depth MINIMUM | O117: =((B7/2)*0.271)/2 -> 32.45225
E118: 6 | F118: 1 | G118: 2 | H118: 193.9580034 | I118: Oblique | J118: 0.25 | K118: RED | L118: 0.256480513 | M118: 12
E119: 2 | F119: 5 | G119: 1 | H119: 194.1903811 | I119: Oblique | J119: 0.25 | K119: RED | L119: 0.2323776959 | M119: 12 | N119: Axial mode nz (height) | O119: =$P$123/((B8*2)/100) -> 50.9421365 | Q119: half-power at Fc for oblique incidence trapping | S119: CEILING | T119: =O119*3 -> 152.8264095 | U119: =O119*4 -> 203.768546
E120: 7 | F120: 0 | G120: 1 | H120: 194.6165871 | I120: Tangential | J120: 0.5 | K120: RED | L120: 0.4262059852 | M120: 12 | N120: Trap depth MINIMUM | O120: =((B8/2)*0.271)/2 -> 22.83175
E121: 2 | F121: 3 | G121: 3 | H121: 194.7280771 | I121: Oblique | J121: 0.25 | K121: RED | L121: 0.111490025 | M121: 12
E122: 5 | F122: 4 | G122: 0 | H122: 196.5209045 | I122: Tangential | J122: 0.5 | K122: OK | L122: 1.792827439 | M122: 12
E123: 3 | F123: 5 | G123: 0 | H123: 196.7352902 | I123: Tangential | J123: 0.5 | K123: RED | L123: 0.2143856768 | M123: 12 | N123: Temperature Centigrade | O123: 20 | P123: =331.23 + (0.606*O123) -> 343.35
E124: 7 | F124: 1 | G124: 1 | H124: 197.9006578 | I124: Oblique | J124: 0.25 | K124: OK | L124: 1.165367606 | M124: 12 | N124: Temperature Fahrinheit | O124: =(9/5)*(O123)+32 -> 68 | P124: =P123*3.28084 -> 1126.476414
E125: 5 | F125: 3 | G125: 2 | H125: 200.0351976 | I125: Oblique | J125: 0.25 | K125: OK | L125: 2.134539766 | M125: 12
E126: 4 | F126: 2 | G126: 3 | H126: 200.2789001 | I126: Oblique | J126: 0.25 | K126: RED | L126: 0.2437025543 | M126: 12
E127: 6 | F127: 3 | G127: 1 | H127: 200.2982674 | I127: Oblique | J127: 0.25 | K127: RED | L127: 0.01936724904 | M127: 12 | N127: All Modes | S127: Poly Diameter | T127: Poly Radius | U127: Poly Depth
E128: 7 | F128: 2 | G128: 0 | H128: 201.0661204 | I128: Tangential | J128: 0.5 | K128: RED | L128: 0.7678530267 | M128: 12 | N128: nx | O128: ny | P128: nz | Q128: f | R128: Width | S128: DIFFRACTION/SCATTERING @
E129: 5 | F129: 4 | G129: 1 | H129: 203.0387025 | I129: Oblique | J129: 0.25 | K129: OK | L129: 1.972582079 | M129: 12 | N129: 0 | O129: 1 | P129: 0 | Q129: =$D$5*SQRT(((N129/$D$2)^2)+((O129/$D$3)^2)+((P129/$D$4)^2)) -> 35.90340376 | R129: =(((343.96*100))/Q129)/2 -> 479.007509 | S129: =((343.96*100)*2)/Q129 -> 1916.030036 | T129: =S129/2 -> 958.0150181 | U129: =(T129*0.0317224829)*10 -> 303.9061503
E130: 3 | F130: 5 | G130: 1 | H130: 203.2462133 | I130: Oblique | J130: 0.25 | K130: RED | L130: 0.2075107694 | M130: 12
E131: 5 | F131: 0 | G131: 3 | H131: =$D$5*SQRT((($E131/$D$2)^2)+(($F131/$D$3)^2)+(($G131/$D$4)^2)) -> 203.5530265 | I131: =+IF(+AND(E131=0,F131=0)+OR(+AND(E131=0,G131=0))+OR(+AND(F131=0,G131=0)),"Axial",(+IF(+OR(E131=0,F131=0,G131=0),"Tangential","Oblique"))) -> Tangential | J131: 0.5 | K131: RED | L131: 0.3068132768 | M131: 12 | N131: Slat Diffraction Frequency, both width and gap
E132: 6 | F132: 2 | G132: 2 | H132: 203.6832597 | I132: Oblique | J132: =IF(I132="Axial",1,IF(I132="Tangential",0.5,IF(I132="Oblique",0.25,""))) -> 0.25 | K132: RED | L132: 0.1302331641 | M132: =IF(H132<17.8,1,IF(H132<=22.4,2,IF(H132<=28.2,3,IF(H132<=35.5,4,IF(H132<=44.7,5,IF(H132<=56.2,6,IF(H132<=70.8,7,IF(H132<=89.1,8,IF(H132<=112,9,IF(H132<=141,10,IF(H132<=178,11,IF(H132<=224,12,IF(H132<=282,13,IF(H132<=355,14,IF(H132<=447,15,IF(H132<=562,16,IF(H132<=708,17,IF(H132<=891,18,IF(H132<=1122,19,IF(H132<=1413,20,IF(H132<=1778,21,IF(H132<=2239,22,IF(H132<=2818,23,IF(H132<=3548,24,IF(H132<=4467,25,IF(H132<=5623,26,IF(H132<=7079,27,IF(H132<=8913,28,IF(H132<=11220,29,IF(H132<=14130,30,IF(H132<=17780,31,IF(H132<=22390,32,)))))))))))))))))))))))))))))))) -> 12 | O132: Full | P132: 1/2 wave | Q132: 1/4 wave
E133: 3 | F133: 3 | G133: 3 | H133: 203.7600135 | I133: Oblique | J133: 0.25 | K133: =IF((H133-H132)<1,"RED","OK") -> RED | L133: =H133-H132 -> 0.07675381441 | M133: 12 | N133: =0.75*25.4 -> 19.05 | O133: =343.35/(N133*0.001) -> 18023.62205 | P133: =O133/2 -> 9011.811024 | Q133: 4505.905512
E134: 0 | F134: 0 | G134: 4 | H134: 204.1273638 | I134: Axial | J134: 1 | K134: RED | L134: 0.3673502841 | M134: 12 | N134: =N133+19.05 -> 38.1 | O134: 9011.811024 | P134: 4505.905512 | Q134: 2252.952756
E135: 1 | F135: 0 | G135: 4 | H135: 205.8829873 | I135: Tangential | J135: 0.5 | K135: OK | L135: 1.75562353 | M135: 12 | N135: =N134+12.7 -> 50.8 | O135: 6758.858268 | P135: 3379.429134 | Q135: 1689.714567
E136: 4 | F136: 4 | G136: 2 | H136: 206.2984409 | I136: Oblique | J136: 0.25 | K136: RED | L136: 0.4154535346 | M136: 12 | N136: =N135+50.8 -> 101.6 | O136: 3379.429134 | P136: 1689.714567 | Q136: 844.8572835
E137: 0 | F137: 5 | G137: 2 | H137: 206.502676 | I137: Tangential | J137: 0.5 | K137: RED | L137: 0.2042351438 | M137: 12 | N137: 152.4 | O137: 2252.952756 | P137: 1126.476378 | Q137: 563.238189
E138: 5 | F138: 1 | G138: 3 | H138: 206.6951596 | I138: Oblique | J138: 0.25 | K138: RED | L138: 0.1924836206 | M138: 12 | N138: 203.2 | O138: 1689.714567 | P138: 844.8572835 | Q138: 422.4286417
E139: 0 | F139: 1 | G139: 4 | H139: 207.26079 | I139: Tangential | J139: 0.5 | K139: RED | L139: 0.5656303277 | M139: 12 | N139: 254 | O139: 1351.771654 | P139: 675.8858268 | Q139: 337.9429134
E140: 7 | F140: 2 | G140: 1 | H140: 207.4411569 | I140: Oblique | J140: 0.25 | K140: RED | L140: 0.1803669247 | M140: 12 | N140: 304.8 | O140: 1126.476378 | P140: 563.238189 | Q140: 281.6190945
E141: 1 | F141: 5 | G141: 2 | H141: 208.2382746 | I141: Oblique | J141: 0.25 | K141: RED | L141: 0.7971177427 | M141: 12 | N141: 355.6 | O141: 965.5511811 | P141: 482.7755906 | Q141: 241.3877953
E142: 1 | F142: 1 | G142: 4 | H142: 208.9900928 | I142: Oblique | J142: 0.25 | K142: RED | L142: 0.7518181394 | M142: 12 | N142: 406.4 | O142: 844.8572835 | P142: 422.4286417 | Q142: 211.2143209
E143: 4 | F143: 5 | G143: 0 | H143: 209.1495665 | I143: Tangential | J143: 0.5 | K143: RED | L143: 0.1594737025 | M143: 12 | N143: 457.2 | O143: 750.984252 | P143: 375.492126 | Q143: 187.746063
E144: 0 | F144: 4 | G144: 3 | H144: 209.9121472 | I144: Tangential | J144: 0.5 | K144: RED | L144: 0.7625807279 | M144: 12 | N144: 508 | O144: 675.8858268 | P144: 337.9429134 | Q144: 168.9714567
E145: 2 | F145: 0 | G145: 4 | H145: 211.0622561 | I145: Tangential | J145: 0.5 | K145: OK | L145: 1.150108862 | M145: 12 | N145: 558.8 | O145: 614.4416607 | P145: 307.2208304 | Q145: 153.6104152
E146: 1 | F146: 4 | G146: 3 | H146: 211.6197849 | I146: Oblique | J146: 0.25 | K146: RED | L146: 0.5575288401 | M146: 12 | N146: 609.6 | O146: 563.238189 | P146: 281.6190945 | Q146: 140.8095472
E147: 2 | F147: 5 | G147: 2 | H147: 213.360377 | I147: Oblique | J147: 0.25 | K147: OK | L147: 1.740592114 | M147: 12 | N147: 660.4 | O147: 519.9121744 | P147: 259.9560872 | Q147: 129.9780436
E148: 7 | F148: 0 | G148: 2 | H148: 213.7483622 | I148: Tangential | J148: 0.5 | K148: RED | L148: 0.3879851703 | M148: 12 | N148: 711.2 | O148: 482.7755906 | P148: 241.3877953 | Q148: 120.6938976
E149: 2 | F149: 1 | G149: 4 | H149: 214.094209 | I149: Oblique | J149: 0.25 | K149: RED | L149: 0.3458468322 | M149: 12 | N149: 762 | O149: 450.5905512 | P149: 225.2952756 | Q149: 112.6476378
E150: 8 | F150: 0 | G150: 0 | H150: 214.6362608 | I150: Axial | J150: 1 | K150: RED | L150: 0.5420518318 | M150: 12 | N150: 812.8 | O150: 422.4286417 | P150: 211.2143209 | Q150: 105.6071604
E151: 4 | F151: 5 | G151: 1 | H151: 215.2853686 | I151: Oblique | J151: 0.25 | K151: RED | L151: 0.6491077797 | M151: 12 | N151: 863.6 | O151: 397.5798981 | P151: 198.7899491 | Q151: 99.39497453
E152: 0 | F152: 6 | G152: 0 | H152: 215.4204225 | I152: Axial | J152: 1 | K152: RED | L152: 0.1350539249 | M152: 12 | N152: 914.4 | O152: 375.492126 | P152: 187.746063 | Q152: 93.8730315
E153: 6 | F153: 4 | G153: 0 | H153: 215.7279025 | I153: Tangential | J153: 0.5 | K153: RED | L153: 0.3074799966 | M153: 12 | N153: 965.2 | O153: 355.7293825 | P153: 177.8646913 | Q153: 88.93234563
E154: 4 | F154: 3 | G154: 3 | H154: 215.7705027 | I154: Oblique | J154: 0.25 | K154: RED | L154: 0.04260018094 | M154: 12 | N154: 1016 | O154: 337.9429134 | P154: 168.9714567 | Q154: 84.48572835
E155: 5 | F155: 2 | G155: 3 | H155: 215.8472891 | I155: Oblique | J155: 0.25 | K155: RED | L155: 0.07678638835 | M155: 12 | N155: 1066.8 | O155: 321.8503937 | P155: 160.9251969 | Q155: 80.46259843
E156: 0 | F156: 2 | G156: 4 | H156: 216.3889975 | I156: Tangential | J156: 0.5 | K156: RED | L156: 0.5417084281 | M156: 12 | N156: 1117.6 | O156: 307.2208304 | P156: 153.6104152 | Q156: 76.80520759
E157: 7 | F157: 3 | G157: 0 | H157: 216.5014013 | I157: Tangential | J157: 0.5 | K157: RED | L157: 0.1124038025 | M157: 12 | N157: 1168.4 | O157: 293.8634029 | P157: 146.9317015 | Q157: 73.46585074
E158: 2 | F158: 4 | G158: 3 | H158: 216.6619598 | I158: Oblique | J158: 0.25 | K158: RED | L158: 0.1605584416 | M158: 12 | N158: 1219.2 | O158: 281.6190945 | P158: 140.8095472 | Q158: 70.40477362
E159: 7 | F159: 1 | G159: 2 | H159: 216.7427432 | I159: Oblique | J159: 0.25 | K159: RED | L159: 0.08078342747 | M159: 12
E160: 1 | F160: 6 | G160: 0 | H160: 217.0847352 | I160: Tangential | J160: 0.5 | K160: RED | L160: 0.341992018 | M160: 12
E161: 8 | F161: 1 | G161: 0 | H161: 217.6184249 | I161: Tangential | J161: 0.5 | K161: RED | L161: 0.5336897013 | M161: 12
E162: 1 | F162: 2 | G162: 4 | H162: 218.0459174 | I162: Oblique | J162: 0.25 | K162: RED | L162: 0.4274924264 | M162: 12
E163: 6 | F163: 3 | G163: 2 | H163: 218.9341049 | I163: Oblique | J163: 0.25 | K163: RED | L163: 0.8881875429 | M163: 12
E164: 3 | F164: 0 | G164: 4 | H164: 219.4228681 | I164: Tangential | J164: 0.5 | K164: RED | L164: 0.4887631632 | M164: 12
E165: 8 | F165: 0 | G165: 1 | H165: 220.6195215 | I165: Tangential | J165: 0.5 | K165: OK | L165: 1.196653418 | M165: 12
E166: 0 | F166: 6 | G166: 1 | H166: 221.3824908 | I166: Tangential | J166: 0.5 | K166: RED | L166: 0.7629693361 | M166: 12
E167: 5 | F167: 4 | G167: 2 | H167: 221.444036 | I167: Oblique | J167: 0.25 | K167: RED | L167: 0.06154518299 | M167: 12
E168: 3 | F168: 5 | G168: 2 | H168: 221.634315 | I168: Oblique | J168: 0.25 | K168: RED | L168: 0.1902789773 | M168: 12
E169: 6 | F169: 4 | G169: 1 | H169: 221.6817014 | I169: Oblique | J169: 0.25 | K169: RED | L169: 0.0473864008 | M169: 12
E170: 2 | F170: 6 | G170: 0 | H170: 222.0028237 | I170: Tangential | J170: 0.5 | K170: RED | L170: 0.3211223177 | M170: 12
E171: 6 | F171: 0 | G171: 3 | H171: 222.1528677 | I171: Tangential | J171: 0.5 | K171: RED | L171: 0.1500440082 | M171: 12
E172: 3 | F172: 1 | G172: 4 | H172: 222.3408407 | I172: Oblique | J172: 0.25 | K172: RED | L172: 0.187972967 | M172: 12
E173: 7 | F173: 3 | G173: 1 | H173: 222.4344973 | I173: Oblique | J173: 0.25 | K173: RED | L173: 0.09365659442 | M173: 12
E174: 2 | F174: 2 | G174: 4 | H174: 222.9428033 | I174: Oblique | J174: 0.25 | K174: RED | L174: 0.5083060169 | M174: 12
E175: 1 | F175: 6 | G175: 1 | H175: 223.0023118 | I175: Oblique | J175: 0.25 | K175: RED | L175: 0.05950849973 | M175: 12
E176: 8 | F176: 1 | G176: 1 | H176: 223.5218729 | I176: Oblique | J176: 0.25 | K176: RED | L176: 0.519561107 | M176: 12
E177: 5 | F177: 5 | G177: 0 | H177: 224.1025558 | I177: Tangential | J177: 0.5 | K177: RED | L177: 0.5806829414 | M177: 13
E178: 3 | F178: 4 | G178: 3 | H178: 224.8144211 | I178: Oblique | J178: 0.25 | K178: RED | L178: 0.7118652291 | M178: 13
E179: 6 | F179: 1 | G179: 3 | H179: 225.0354439 | I179: Oblique | J179: 0.25 | K179: RED | L179: 0.2210228832 | M179: 13
E180: 7 | F180: 2 | G180: 2 | H180: 225.4874275 | I180: Oblique | J180: 0.25 | K180: RED | L180: 0.4519835091 | M180: 13
E181: 8 | F181: 2 | G181: 0 | H181: 226.329278 | I181: Tangential | J181: 0.5 | K181: RED | L181: 0.8418505334 | M181: 13
E182: 2 | F182: 6 | G182: 1 | H182: 227.7926744 | I182: Oblique | J182: 0.25 | K182: OK | L182: 1.463396435 | M182: 13
E183: 5 | F183: 5 | G183: 1 | H183: 229.8395186 | I183: Oblique | J183: 0.25 | K183: OK | L183: 2.046844202 | M183: 13
E184: 3 | F184: 6 | G184: 0 | H184: 229.9660254 | I184: Tangential | J184: 0.5 | K184: RED | L184: 0.1265067556 | M184: 13
E185: 5 | F185: 3 | G185: 3 | H185: 230.2939952 | I185: Oblique | J185: 0.25 | K185: RED | L185: 0.3279698191 | M185: 13
E186: 4 | F186: 0 | G186: 4 | H186: 230.6190837 | I186: Tangential | J186: 0.5 | K186: RED | L186: 0.3250885054 | M186: 13
E187: 0 | F187: 3 | G187: 4 | H187: 230.8017987 | I187: Tangential | J187: 0.5 | K187: RED | L187: 0.1827149544 | M187: 13
E188: 3 | F188: 2 | G188: 4 | H188: 230.8735858 | I188: Oblique | J188: 0.25 | K188: RED | L188: 0.07178717449 | M188: 13
E189: 8 | F189: 2 | G189: 1 | H189: 232.0111869 | I189: Oblique | J189: 0.25 | K189: OK | L189: 1.137601106 | M189: 13
E190: 1 | F190: 3 | G190: 4 | H190: 232.3559642 | I190: Oblique | J190: 0.25 | K190: RED | L190: 0.3447772275 | M190: 13
E191: 4 | F191: 5 | G191: 2 | H191: 232.7241636 | I191: Oblique | J191: 0.25 | K191: RED | L191: 0.3681994156 | M191: 13
E192: 4 | F192: 1 | G192: 4 | H192: 233.3971212 | I192: Oblique | J192: 0.25 | K192: RED | L192: 0.6729575866 | M192: 13
E193: 6 | F193: 2 | G193: 3 | H193: 233.4697287 | I193: Oblique | J193: 0.25 | K193: RED | L193: 0.07260756611 | M193: 13
E194: 3 | F194: 6 | G194: 1 | H194: 235.5602293 | I194: Oblique | J194: 0.25 | K194: OK | L194: 2.090500547 | M194: 13
E195: 4 | F195: 4 | G195: 3 | H195: =$D$5*SQRT((($E195/$D$2)^2)+(($F195/$D$3)^2)+(($G195/$D$4)^2)) -> 235.7547256 | I195: =+IF(+AND(E195=0,F195=0)+OR(+AND(E195=0,G195=0))+OR(+AND(F195=0,G195=0)),"Axial",(+IF(+OR(E195=0,F195=0,G195=0),"Tangential","Oblique"))) -> Oblique | J195: 0.25 | K195: RED | L195: 0.1944963457 | M195: 13
E196: 0 | F196: 5 | G196: 3 | H196: 235.9334634 | I196: Tangential | J196: =IF(I196="Axial",1,IF(I196="Tangential",0.5,IF(I196="Oblique",0.25,""))) -> 0.5 | K196: RED | L196: 0.1787377709 | M196: =IF(H196<17.8,1,IF(H196<=22.4,2,IF(H196<=28.2,3,IF(H196<=35.5,4,IF(H196<=44.7,5,IF(H196<=56.2,6,IF(H196<=70.8,7,IF(H196<=89.1,8,IF(H196<=112,9,IF(H196<=141,10,IF(H196<=178,11,IF(H196<=224,12,IF(H196<=282,13,IF(H196<=355,14,IF(H196<=447,15,IF(H196<=562,16,IF(H196<=708,17,IF(H196<=891,18,IF(H196<=1122,19,IF(H196<=1413,20,IF(H196<=1778,21,IF(H196<=2239,22,IF(H196<=2818,23,IF(H196<=3548,24,IF(H196<=4467,25,IF(H196<=5623,26,IF(H196<=7079,27,IF(H196<=8913,28,IF(H196<=11220,29,IF(H196<=14130,30,IF(H196<=17780,31,IF(H196<=22390,32,)))))))))))))))))))))))))))))))) -> 13
E197: 7 | F197: 4 | G197: 0 | H197: 236.4238516 | I197: Tangential | J197: 0.5 | K197: =IF((H197-H196)<1,"RED","OK") -> RED | L197: =H197-H196 -> 0.4903881763 | M197: 13
E198: 2 | F198: 3 | G198: 4 | H198: 236.9573074 | I198: Oblique | J198: 0.25 | K198: RED | L198: 0.5334558522 | M198: 13
E199: 1 | F199: 5 | G199: 3 | H199: 237.4540439 | I199: Oblique | J199: 0.25 | K199: RED | L199: 0.4967364869 | M199: 13
E200: 8 | F200: 0 | G200: 2 | H200: 237.6672456 | I200: Tangential | J200: 0.5 | K200: RED | L200: 0.2132016864 | M200: 13
... 801 more rows

Sheet Mode Strength
A1: f | B1: Strength | C1: Interval ** | D1: No Support Alerts | E1: 0.5% Near Co-Incidence | H1: ** NOTE:
A2: 26.82953261 | B2: 1 | H2: IDEAL Interval should not be greater than 5.611807 | I2: 5.611807 | J2: 1 | K2: 0 | L2: =I2/50 -> 0.11223614
A3: 35.90340376 | B3: =IF(A3=A2,B2+1,1) -> 1 | C3: =((A3-A2)/A3)*100 -> 25.27301092 | D3: =IF(C3>I2,J2,K2) -> 1 | E3: =IF(C3<(A2*1.005)-(A2),J2,K2) -> 0 | I3: 5.611807 | J3: 1 | K3: 0 | L3: =I3/50 -> 0.11223614
A4: 44.82051117 | B4: =IF(A4=A3,B3+1,1) -> 1 | C4: =((A4-A3)/A4)*100 -> 19.89514884 | D4: 1 | E4: =IF(C4<(A3*1.005)-(A3),J3,K3) -> 0 | I4: 5.611807 | J4: 1 | K4: 0 | L4: 0.11223614
A5: 51.03184095 | B5: 1 | C5: 12.17147896 | D5: 1 | E5: 0 | I5: 5.611807 | J5: 1 | K5: 0 | L5: 0.11223614
A6: 53.65906521 | B6: 1 | C6: 4.896142433 | D6: 0 | E6: 0 | I6: 5.611807 | J6: 1 | K6: 0 | L6: 0.11223614
A7: 57.65477093 | B7: 1 | C7: 6.930399083 | D7: 1 | E7: 0 | I7: 5.611807 | J7: 1 | K7: 0 | L7: 0.11223614
A8: 62.39633957 | B8: 1 | C8: 7.599113473 | D8: 1 | E8: 0 | I8: 5.611807 | J8: 1 | K8: 0 | L8: 0.11223614
A9: 64.56275769 | B9: 1 | C9: 3.355522898 | D9: 0 | E9: 0 | I9: 5.611807 | J9: 1 | K9: 0 | L9: 0.11223614
A10: 67.9200045 | B10: 1 | C10: 4.942942566 | D10: 0 | E10: 0 | I10: 5.611807 | J10: 1 | K10: 0 | L10: 0.11223614
A11: 71.80680752 | B11: 1 | C11: 5.412861462 | D11: 0 | E11: 0 | I11: 5.611807 | J11: 1 | K11: 0 | L11: 0.11223614
A12: 74.0509559 | B12: 1 | C12: 3.030546141 | D12: 0 | E12: 0 | I12: 5.611807 | J12: 1 | K12: 0 | L12: 0.11223614
A13: 76.65534179 | B13: 1 | C13: 3.397526944 | D13: 0 | E13: 0 | I13: 5.611807 | J13: 1 | K13: 0 | L13: 0.11223614
A14: 80.48859782 | B14: 1 | C14: 4.762483292 | D14: 0 | E14: 0 | I14: 5.611807 | J14: 1 | K14: 0 | L14: 0.11223614
A15: 82.29579863 | B15: 1 | C15: 2.19598186 | D15: 0 | E15: 0 | I15: 5.611807 | J15: 1 | K15: 0 | L15: 0.11223614
A16: 88.09350939 | B16: 1 | C16: 6.581314336 | D16: 1 | E16: 0 | I16: 5.611807 | J16: 1 | K16: 0 | L16: 0.11223614
A17: 88.13324446 | B17: 1 | C17: 0.04508523016 | D17: 0 | E17: 1 | I17: 5.611807 | J17: 1 | K17: 0 | L17: 0.11223614
A18: 89.64102233 | B18: 1 | C18: 1.682017707 | D18: 0 | E18: 0 | I18: 5.611807 | J18: 1 | K18: 0 | L18: 0.11223614
A19: 92.08849123 | B19: 1 | C19: 2.657735901 | D19: 0 | E19: 0 | I19: 5.611807 | J19: 1 | K19: 0 | L19: 0.11223614
A20: 95.30300714 | B20: 1 | C20: 3.372942793 | D20: 0 | E20: 0 | I20: 5.611807 | J20: 1 | K20: 0 | L20: 0.11223614
A21: 101.8416298 | B21: 1 | C21: 6.420383024 | D21: 1 | E21: 0 | I21: 5.611807 | J21: 1 | K21: 0 | L21: 0.11223614
A22: 102.0636819 | B22: 1 | C22: 0.2175622564 | D22: 0 | E22: 1 | I22: 5.611807 | J22: 1 | K22: 0 | L22: 0.11223614
A23: 103.1492204 | B23: 1 | C23: 1.052396254 | D23: 0 | E23: 0 | I23: 5.611807 | J23: 1 | K23: 0 | L23: 0.11223614
A24: 105.531128 | B24: 1 | C24: 2.257066365 | D24: 0 | E24: 0 | I24: 5.611807 | J24: 1 | K24: 0 | L24: 0.11223614
A25: 107.3181304 | B25: 1 | C25: 1.665144918 | D25: 0 | E25: 0 | I25: 5.611807 | J25: 1 | K25: 0 | L25: 0.11223614
A26: 107.7102113 | B26: 1 | C26: 0.3640145606 | D26: 0 | E26: 1 | I26: 5.611807 | J26: 1 | K26: 0 | L26: 0.11223614
A27: 107.8639513 | B27: 1 | C27: 0.1425313986 | D27: 0 | E27: 1 | I27: 5.611807 | J27: 1 | K27: 0 | L27: 0.11223614
A28: 108.1944988 | B28: 1 | C28: 0.3055122973 | D28: 0 | E28: 1 | I28: 5.611807 | J28: 1 | K28: 0 | L28: 0.11223614
A29: 111.0014118 | B29: 1 | C29: 2.528718357 | D29: 0 | E29: 0 | I29: 5.611807 | J29: 1 | K29: 0 | L29: 0.11223614
A30: 111.4714016 | B30: 1 | C30: 0.4216236509 | D30: 0 | E30: 1 | I30: 5.611807 | J30: 1 | K30: 0 | L30: 0.11223614
A31: 113.164639 | B31: 1 | C31: 1.49626011 | D31: 0 | E31: 0 | I31: 5.611807 | J31: 1 | K31: 0 | L31: 0.11223614
A32: 115.3095419 | B32: 1 | C32: 1.860126078 | D32: 0 | E32: 0 | I32: 5.611807 | J32: 1 | K32: 0 | L32: 0.11223614
A33: 118.8336228 | B33: 1 | C33: 2.965558792 | D33: 0 | E33: 0 | I33: 5.611807 | J33: 1 | K33: 0 | L33: 0.11223614
A34: 119.1878283 | B34: 1 | C34: 0.2971825701 | D34: 0 | E34: 1 | I34: 5.611807 | J34: 1 | K34: 0 | L34: 0.11223614
A35: 119.3267815 | B35: 1 | C35: 0.1164476334 | D35: 0 | E35: 1 | I35: 5.611807 | J35: 1 | K35: 0 | L35: 0.11223614
A36: 120.3361329 | B36: 1 | C36: 0.8387767287 | D36: 0 | E36: 0 | I36: 5.611807 | J36: 1 | K36: 0 | L36: 0.11223614
A37: 120.769801 | B37: 1 | C37: 0.3590865378 | D37: 0 | E37: 1 | I37: 5.611807 | J37: 1 | K37: 0 | L37: 0.11223614
A38: 122.1702182 | B38: 1 | C38: 1.146283613 | D38: 0 | E38: 0 | I38: 5.611807 | J38: 1 | K38: 0 | L38: 0.11223614
A39: 124.1389718 | B39: 1 | C39: 1.585927044 | D39: 0 | E39: 0 | I39: 5.611807 | J39: 1 | K39: 0 | L39: 0.11223614
A40: 124.7926791 | B40: 1 | C40: 0.5238347249 | D40: 0 | E40: 1 | I40: 5.611807 | J40: 1 | K40: 0 | L40: 0.11223614
A41: 127.6441796 | B41: 1 | C41: 2.233944762 | D41: 0 | E41: 0 | I41: 5.611807 | J41: 1 | K41: 0 | L41: 0.11223614
A42: 129.1255154 | B42: 1 | C42: 1.147206087 | D42: 0 | E42: 0 | I42: 5.611807 | J42: 1 | K42: 0 | L42: 0.11223614
A43: 129.9823432 | B43: 1 | C43: 0.6591878458 | D43: 0 | E43: 0 | I43: 5.611807 | J43: 1 | K43: 0 | L43: 0.11223614 | Q43: If you found this spreadsheet helpful, please send a donation via PayPal to erika@jhbrandt.net
A44: 130.7097306 | B44: 1 | C44: 0.5564906614 | D44: 0 | E44: 1 | I44: 5.611807 | J44: 1 | K44: 0 | L44: 0.11223614
A45: 134.147663 | B45: 1 | C45: 2.562797081 | D45: 0 | E45: 0 | I45: 5.611807 | J45: 1 | K45: 0 | L45: 0.11223614
A46: 134.4615335 | B46: 1 | C46: 0.2334277057 | D46: 0 | E46: 1 | I46: 5.611807 | J46: 1 | K46: 0 | L46: 0.11223614
A47: 134.8497829 | B47: 1 | C47: 0.2879124992 | D47: 0 | E47: 1 | I47: 5.611807 | J47: 1 | K47: 0 | L47: 0.11223614
A48: 135.840009 | B48: 1 | C48: 0.7289650063 | D48: 0 | E48: 0 | I48: 5.611807 | J48: 1 | K48: 0 | L48: 0.11223614
A49: 138.8439682 | B49: 1 | C49: 2.163550392 | D49: 0 | E49: 0 | I49: 5.611807 | J49: 1 | K49: 0 | L49: 0.11223614
A50: 138.8691827 | B50: 1 | C50: 0.01815697792 | D50: 0 | E50: 1 | I50: 5.611807 | J50: 1 | K50: 0 | L50: 0.11223614
A51: 143.5264585 | B51: 1 | C51: 3.24489008 | D51: 0 | E51: 0 | I51: 5.611807 | J51: 1 | K51: 0 | L51: 0.11223614
A52: 143.613615 | B52: 1 | C52: 0.06068821751 | D52: 0 | E52: 1 | I52: 5.611807 | J52: 1 | K52: 0 | L52: 0.11223614
A53: 143.8198623 | B53: 1 | C53: 0.1434066404 | D53: 0 | E53: 1 | I53: 5.611807 | J53: 1 | K53: 0 | L53: 0.11223614
A54: 146.0982349 | B54: 1 | C54: 1.559479922 | D54: 0 | E54: 0 | I54: 5.611807 | J54: 1 | K54: 0 | L54: 0.11223614
A55: 147.9489733 | B55: 1 | C55: 1.250930176 | D55: 0 | E55: 0 | I55: 5.611807 | J55: 1 | K55: 0 | L55: 0.11223614
A56: 148.1019118 | B56: 1 | C56: 0.1032657483 | D56: 0 | E56: 1 | I56: 5.611807 | J56: 1 | K56: 0 | L56: 0.11223614
A57: 148.3862688 | B57: 1 | C57: 0.191632974 | D57: 0 | E57: 1 | I57: 5.611807 | J57: 1 | K57: 0 | L57: 0.11223614
A58: 148.4979028 | B58: 1 | C58: 0.07517548096 | D58: 0 | E58: 1 | I58: 5.611807 | J58: 1 | K58: 0 | L58: 0.11223614
A59: 150.7922697 | B59: 1 | C59: 1.521541421 | D59: 0 | E59: 0 | I59: 5.611807 | J59: 1 | K59: 0 | L59: 0.11223614
A60: 152.0482513 | B60: 1 | C60: 0.8260414901 | D60: 0 | E60: 0 | I60: 5.611807 | J60: 1 | K60: 0 | L60: 0.11223614
A61: 152.1571987 | B61: 1 | C61: 0.07160182392 | D61: 0 | E61: 1 | I61: 5.611807 | J61: 1 | K61: 0 | L61: 0.11223614
A62: 152.3917015 | B62: 1 | C62: 0.15388163 | D62: 0 | E62: 1 | I62: 5.611807 | J62: 1 | K62: 0 | L62: 0.11223614
A63: 152.4110206 | B63: 1 | C63: 0.01267569582 | D63: 0 | E63: 1 | I63: 5.611807 | J63: 1 | K63: 0 | L63: 0.11223614
A64: 153.0955228 | B64: 1 | C64: 0.4471079194 | D64: 0 | E64: 1 | I64: 5.611807 | J64: 1 | K64: 0 | L64: 0.11223614
A65: 153.3106836 | B65: 1 | C65: 0.1403429509 | D65: 0 | E65: 1 | I65: 5.611807 | J65: 1 | K65: 0 | L65: 0.11223614
A66: 154.7544605 | B66: 1 | C66: 0.9329468576 | D66: 0 | E66: 0 | I66: 5.611807 | J66: 1 | K66: 0 | L66: 0.11223614
A67: 155.4286426 | B67: 1 | C67: 0.4337566827 | D67: =IF(C67>I66,J66,K66) -> 0 | E67: 1 | I67: 5.611807 | J67: 1 | K67: 0 | L67: =I67/50 -> 0.11223614
A68: 157.2491447 | B68: =IF(A68=A67,B67+1,1) -> 1 | C68: =((A68-A67)/A68)*100 -> 1.157718311 | D68: 0 | E68: =IF(C68<(A67*1.005)-(A67),J67,K67) -> 0 | I68: 5.611807 | J68: 1 | K68: 0 | L68: 0.11223614
A69: 157.7903041 | B69: 1 | C69: 0.3429610793 | D69: 0 | E69: 1 | I69: 5.611807 | J69: 1 | K69: 0 | L69: 0.11223614
A70: 159.5215263 | B70: 1 | C70: 1.085259296 | D70: 0 | E70: 0 | I70: 5.611807 | J70: 1 | K70: 0 | L70: 0.11223614
A71: 160.3836635 | B71: 1 | C71: 0.5375468039 | D71: 0 | E71: 1 | I71: 5.611807 | J71: 1 | K71: 0 | L71: 0.11223614
A72: 160.4869524 | B72: 1 | C72: 0.06435968379 | D72: 0 | E72: 1 | I72: 5.611807 | J72: 1 | K72: 0 | L72: 0.11223614
A73: 160.9771956 | B73: 1 | C73: 0.3045420355 | D73: 0 | E73: 1 | I73: 5.611807 | J73: 1 | K73: 0 | L73: 0.11223614
A74: 161.5809843 | B74: 1 | C74: 0.373675582 | D74: 0 | E74: 1 | I74: 5.611807 | J74: 1 | K74: 0 | L74: 0.11223614
A75: 162.2267993 | B75: 1 | C75: 0.3980938659 | D75: 0 | E75: 1 | I75: 5.611807 | J75: 1 | K75: 0 | L75: 0.11223614
A76: 164.5915973 | B76: 1 | C76: 1.436767148 | D76: 0 | E76: 0 | I76: 5.611807 | J76: 1 | K76: 0 | L76: 0.11223614
A77: 164.6307529 | B77: 1 | C77: 0.02378392231 | D77: 0 | E77: 1 | I77: 5.611807 | J77: 1 | K77: 0 | L77: 0.11223614
A78: 164.9324465 | B78: 1 | C78: 0.1829195073 | D78: 0 | E78: 1 | I78: 5.611807 | J78: 1 | K78: 0 | L78: 0.11223614
A79: 166.152306 | B79: 1 | C79: 0.734181507 | D79: 0 | E79: 1 | I79: 5.611807 | J79: 1 | K79: 0 | L79: 0.11223614
A80: 168.5603472 | B80: 1 | C80: 1.428592932 | D80: 0 | E80: 0 | I80: 5.611807 | J80: 1 | K80: 0 | L80: 0.11223614
A81: 168.810246 | B81: 1 | C81: 0.148035308 | D81: 0 | E81: 1 | I81: 5.611807 | J81: 1 | K81: 0 | L81: 0.11223614
A82: 168.8724557 | B82: 1 | C82: 0.03683829426 | D82: 0 | E82: 1 | I82: 5.611807 | J82: 1 | K82: 0 | L82: 0.11223614
A83: 169.0989554 | B83: 1 | C83: 0.1339450519 | D83: 0 | E83: 1 | I83: 5.611807 | J83: 1 | K83: 0 | L83: 0.11223614
A84: 171.2141365 | B84: 1 | C84: 1.235400968 | D84: 0 | E84: 0 | I84: 5.611807 | J84: 1 | K84: 0 | L84: 0.11223614
A85: 172.0380339 | B85: 1 | C85: 0.47890421 | D85: 0 | E85: 1 | I85: 5.611807 | J85: 1 | K85: 0 | L85: 0.11223614
A86: 172.3416521 | B86: 1 | C86: 0.1761722885 | D86: 0 | E86: 1 | I86: 5.611807 | J86: 1 | K86: 0 | L86: 0.11223614
A87: 172.3587352 | B87: 1 | C87: 0.009911330353 | D87: 0 | E87: 1 | I87: 5.611807 | J87: 1 | K87: 0 | L87: 0.11223614
A88: 172.646925 | B88: 1 | C88: 0.166924378 | D88: 0 | E88: 1 | I88: 5.611807 | J88: 1 | K88: 0 | L88: 0.11223614
A89: 172.9643128 | B89: 1 | C89: 0.1834990069 | D89: 0 | E89: 1 | I89: 5.611807 | J89: 1 | K89: 0 | L89: 0.11223614
A90: 176.1870188 | B90: 1 | C90: 1.829139298 | D90: 0 | E90: 0 | I90: 5.611807 | J90: 1 | K90: 0 | L90: 0.11223614
A91: 176.2664889 | B91: 1 | C91: 0.04508523016 | D91: 0 | E91: 1 | I91: 5.611807 | J91: 1 | K91: 0 | L91: 0.11223614
A92: 176.6513739 | B92: 1 | C92: 0.2178782707 | D92: 0 | E92: 1 | I92: 5.611807 | J92: 1 | K92: 0 | L92: 0.11223614
A93: 177.4084327 | B93: 1 | C93: 0.4267321595 | D93: 0 | E93: 1 | I93: 5.611807 | J93: 1 | K93: 0 | L93: 0.11223614
A94: 178.2180951 | B94: 1 | C94: 0.4543098341 | D94: 0 | E94: 1 | I94: 5.611807 | J94: 1 | K94: 0 | L94: 0.11223614
A95: 179.2820447 | B95: 1 | C95: 0.5934501766 | D95: 0 | E95: 1 | I95: 5.611807 | J95: 1 | K95: 0 | L95: 0.11223614
A96: 179.4473012 | B96: 1 | C96: 0.09209194437 | D96: 0 | E96: 1 | I96: 5.611807 | J96: 1 | K96: 0 | L96: 0.11223614
A97: 179.5170188 | B97: 1 | C97: 0.03883621468 | D97: 0 | E97: 1 | I97: 5.611807 | J97: 1 | K97: 0 | L97: 0.11223614
A98: 181.5108367 | B98: 1 | C98: 1.098456703 | D98: 0 | E98: 0 | I98: 5.611807 | J98: 1 | K98: 0 | L98: 0.11223614
A99: 183.1274581 | B99: 1 | C99: 0.8827847702 | D99: 0 | E99: 1 | I99: 5.611807 | J99: 1 | K99: 0 | L99: 0.11223614
A100: 183.2179256 | B100: 1 | C100: 0.04937702212 | D100: 0 | E100: 1 | I100: 5.611807 | J100: 1 | K100: 0 | L100: 0.11223614
A101: 183.505106 | B101: 1 | C101: 0.1564971946 | D101: 0 | E101: 1 | I101: 5.611807 | J101: 1 | K101: 0 | L101: 0.11223614
A102: 184.1769825 | B102: 1 | C102: 0.3647993854 | D102: 0 | E102: 1 | I102: 5.611807 | J102: 1 | K102: 0 | L102: 0.11223614
A103: 186.4035953 | B103: 1 | C103: 1.194511736 | D103: 0 | E103: 0 | I103: 5.611807 | J103: 1 | K103: 0 | L103: 0.11223614
A104: 186.6296033 | B104: 1 | C104: 0.1210997711 | D104: 0 | E104: 1 | I104: 5.611807 | J104: 1 | K104: 0 | L104: 0.11223614
A105: 186.9636869 | B105: 1 | C105: 0.1786890543 | D105: 0 | E105: 1 | I105: 5.611807 | J105: 1 | K105: 0 | L105: 0.11223614
A106: 187.1890187 | B106: 1 | C106: 0.1203766024 | D106: 0 | E106: 1 | I106: 5.611807 | J106: 1 | K106: 0 | L106: 0.11223614
A107: 187.2775243 | B107: 1 | C107: 0.04725904036 | D107: 0 | E107: 1 | I107: 5.611807 | J107: 1 | K107: 0 | L107: 0.11223614
A108: 187.3650323 | B108: 1 | C108: 0.04670454276 | D108: 0 | E108: 1 | I108: 5.611807 | J108: 1 | K108: 0 | L108: 0.11223614
A109: 187.8067282 | B109: 1 | C109: 0.2351864495 | D109: 0 | E109: 1 | I109: 5.611807 | J109: 1 | K109: 0 | L109: 0.11223614
A110: 188.5482237 | B110: 1 | C110: 0.3932656637 | D110: 0 | E110: 1 | I110: 5.611807 | J110: 1 | K110: 0 | L110: 0.11223614
A111: 189.1019634 | B111: 1 | C111: 0.2928259947 | D111: 0 | E111: 1 | I111: 5.611807 | J111: 1 | K111: 0 | L111: 0.11223614
A112: 190.3798168 | B112: 1 | C112: 0.6712126474 | D112: 0 | E112: 1 | I112: 5.611807 | J112: 1 | K112: 0 | L112: 0.11223614
A113: 190.6060143 | B113: 1 | C113: 0.1186728017 | D113: 0 | E113: 1 | I113: 5.611807 | J113: 1 | K113: 0 | L113: 0.11223614
A114: 191.2077968 | B114: 1 | C114: 0.3147270034 | D114: 0 | E114: 1 | I114: 5.611807 | J114: 1 | K114: 0 | L114: 0.11223614
A115: 193.6882731 | B115: 1 | C115: 1.280653802 | D115: 0 | E115: 0 | I115: 5.611807 | J115: 1 | K115: 0 | L115: 0.11223614
A116: 193.7015229 | B116: 1 | C116: 0.006840318134 | D116: 0 | E116: 1 | I116: 5.611807 | J116: 1 | K116: 0 | L116: 0.11223614
A117: 193.9580034 | B117: 1 | C117: 0.1322350759 | D117: 0 | E117: 1 | I117: 5.611807 | J117: 1 | K117: 0 | L117: 0.11223614
A118: 194.1903811 | B118: 1 | C118: 0.1196648848 | D118: 0 | E118: 1 | I118: 5.611807 | J118: 1 | K118: 0 | L118: 0.11223614
A119: 194.6165871 | B119: 1 | C119: 0.2189977697 | D119: 0 | E119: 1 | I119: 5.611807 | J119: 1 | K119: 0 | L119: 0.11223614
A120: 194.7280771 | B120: 1 | C120: 0.05725421142 | D120: 0 | E120: 1 | I120: 5.611807 | J120: 1 | K120: 0 | L120: 0.11223614
A121: 196.5209045 | B121: 1 | C121: 0.9122833233 | D121: 0 | E121: 1 | I121: 5.611807 | J121: 1 | K121: 0 | L121: 0.11223614
A122: 196.7352902 | B122: 1 | C122: 0.1089716424 | D122: 0 | E122: 1 | I122: 5.611807 | J122: 1 | K122: 0 | L122: 0.11223614
A123: 197.9006578 | B123: 1 | C123: 0.588864948 | D123: 0 | E123: 1 | I123: 5.611807 | J123: 1 | K123: 0 | L123: 0.11223614
A124: 200.0351976 | B124: 1 | C124: 1.067082089 | D124: 0 | E124: 0 | I124: 5.611807 | J124: 1 | K124: 0 | L124: 0.11223614
A125: 200.2789001 | B125: 1 | C125: 0.1216815921 | D125: 0 | E125: 1 | I125: 5.611807 | J125: 1 | K125: 0 | L125: 0.11223614
A126: 200.2982674 | B126: 1 | C126: 0.00966920448 | D126: 0 | E126: 1 | I126: 5.611807 | J126: 1 | K126: 0 | L126: 0.11223614
A127: 201.0661204 | B127: 1 | C127: 0.3818908054 | D127: 0 | E127: 1 | I127: 5.611807 | J127: 1 | K127: 0 | L127: 0.11223614
A128: 203.0387025 | B128: 1 | C128: 0.9715300852 | D128: 0 | E128: 1 | I128: 5.611807 | J128: 1 | K128: 0 | L128: 0.11223614
A129: 203.2462133 | B129: 1 | C129: 0.1020982217 | D129: 0 | E129: 1 | I129: 5.611807 | J129: 1 | K129: 0 | L129: 0.11223614
A130: 203.5530265 | B130: 1 | C130: 0.1507289192 | D130: 0 | E130: 1 | I130: 5.611807 | J130: 1 | K130: 0 | L130: 0.11223614
A131: 203.6832597 | B131: 1 | C131: 0.06393906122 | D131: =IF(C131>I130,J130,K130) -> 0 | E131: 1 | I131: 5.611807 | J131: 1 | K131: 0 | L131: =I131/50 -> 0.11223614
A132: 203.7600135 | B132: =IF(A132=A131,B131+1,1) -> 1 | C132: =((A132-A131)/A132)*100 -> 0.03766873249 | D132: 0 | E132: =IF(C132<(A131*1.005)-(A131),J131,K131) -> 1 | I132: 5.611807 | J132: 1 | K132: 0 | L132: 0.11223614
A133: 204.1273638 | B133: 1 | C133: 0.179961313 | D133: 0 | E133: 1 | I133: 5.611807 | J133: 1 | K133: 0 | L133: 0.11223614
A134: 205.8829873 | B134: 1 | C134: 0.8527288011 | D134: 0 | E134: 1 | I134: 5.611807 | J134: 1 | K134: 0 | L134: 0.11223614
A135: 206.2984409 | B135: 1 | C135: 0.2013847186 | D135: 0 | E135: 1 | I135: 5.611807 | J135: 1 | K135: 0 | L135: 0.11223614
A136: 206.502676 | B136: 1 | C136: 0.09890193569 | D136: 0 | E136: 1 | I136: 5.611807 | J136: 1 | K136: 0 | L136: 0.11223614
A137: 206.6951596 | B137: 1 | C137: 0.0931243968 | D137: 0 | E137: 1 | I137: 5.611807 | J137: 1 | K137: 0 | L137: 0.11223614
A138: 207.26079 | B138: 1 | C138: 0.2729075422 | D138: 0 | E138: 1 | I138: 5.611807 | J138: 1 | K138: 0 | L138: 0.11223614
A139: 207.4411569 | B139: 1 | C139: 0.0869484761 | D139: 0 | E139: 1 | I139: 5.611807 | J139: 1 | K139: 0 | L139: 0.11223614
A140: 208.2382746 | B140: 1 | C140: 0.3827911772 | D140: 0 | E140: 1 | I140: 5.611807 | J140: 1 | K140: 0 | L140: 0.11223614
A141: 208.9900928 | B141: 1 | C141: 0.3597386505 | D141: 0 | E141: 1 | I141: 5.611807 | J141: 1 | K141: 0 | L141: 0.11223614
A142: 209.1495665 | B142: 1 | C142: 0.0762486412 | D142: 0 | E142: 1 | I142: 5.611807 | J142: 1 | K142: 0 | L142: 0.11223614
A143: 209.9121472 | B143: 1 | C143: 0.3632856593 | D143: 0 | E143: 1 | I143: 5.611807 | J143: 1 | K143: 0 | L143: 0.11223614
A144: 211.0622561 | B144: 1 | C144: 0.5449145117 | D144: 0 | E144: 1 | I144: 5.611807 | J144: 1 | K144: 0 | L144: 0.11223614
A145: 211.6197849 | B145: 1 | C145: 0.2634578049 | D145: 0 | E145: 1 | I145: 5.611807 | J145: 1 | K145: 0 | L145: 0.11223614
A146: 213.360377 | B146: 1 | C146: 0.815799137 | D146: 0 | E146: 1 | I146: 5.611807 | J146: 1 | K146: 0 | L146: 0.11223614
A147: 213.7483622 | B147: 1 | C147: 0.1815149208 | D147: 0 | E147: 1 | I147: 5.611807 | J147: 1 | K147: 0 | L147: 0.11223614
A148: 214.094209 | B148: 1 | C148: 0.1615395549 | D148: 0 | E148: 1 | I148: 5.611807 | J148: 1 | K148: 0 | L148: 0.11223614
A149: 214.6362608 | B149: 1 | C149: 0.2525443882 | D149: 0 | E149: 1 | I149: 5.611807 | J149: 1 | K149: 0 | L149: 0.11223614
A150: 215.2853686 | B150: 1 | C150: 0.3015104017 | D150: 0 | E150: 1 | I150: 5.611807 | J150: 1 | K150: 0 | L150: 0.11223614
A151: 215.4204225 | B151: 1 | C151: 0.06269318539 | D151: 0 | E151: 1 | I151: 5.611807 | J151: 1 | K151: 0 | L151: 0.11223614
A152: 215.7279025 | B152: 1 | C152: 0.1425313986 | D152: 0 | E152: 1 | I152: 5.611807 | J152: 1 | K152: 0 | L152: 0.11223614
A153: 215.7705027 | B153: 1 | C153: 0.01974328298 | D153: 0 | E153: 1 | I153: 5.611807 | J153: 1 | K153: 0 | L153: 0.11223614
A154: 215.8472891 | B154: 1 | C154: 0.03557440479 | D154: 0 | E154: 1 | I154: 5.611807 | J154: 1 | K154: 0 | L154: 0.11223614
A155: 216.3889975 | B155: 1 | C155: 0.2503400978 | D155: 0 | E155: 1 | I155: 5.611807 | J155: 1 | K155: 0 | L155: 0.11223614
A156: 216.5014013 | B156: 1 | C156: 0.05191827943 | D156: 0 | E156: 1 | I156: 5.611807 | J156: 1 | K156: 0 | L156: 0.11223614
A157: 216.6619598 | B157: 1 | C157: 0.07410550601 | D157: 0 | E157: 1 | I157: 5.611807 | J157: 1 | K157: 0 | L157: 0.11223614
A158: 216.7427432 | B158: 1 | C158: 0.03727157194 | D158: 0 | E158: 1 | I158: 5.611807 | J158: 1 | K158: 0 | L158: 0.11223614
A159: 217.0847352 | B159: 1 | C159: 0.1575384919 | D159: 0 | E159: 1 | I159: 5.611807 | J159: 1 | K159: 0 | L159: 0.11223614
A160: 217.6184249 | B160: 1 | C160: 0.2452410458 | D160: 0 | E160: 1 | I160: 5.611807 | J160: 1 | K160: 0 | L160: 0.11223614
A161: 218.0459174 | B161: 1 | C161: 0.196056148 | D161: 0 | E161: 1 | I161: 5.611807 | J161: 1 | K161: 0 | L161: 0.11223614
A162: 218.9341049 | B162: 1 | C162: 0.4056871556 | D162: 0 | E162: 1 | I162: 5.611807 | J162: 1 | K162: 0 | L162: 0.11223614
A163: 219.4228681 | B163: 1 | C163: 0.2227494187 | D163: 0 | E163: 1 | I163: 5.611807 | J163: 1 | K163: 0 | L163: 0.11223614
A164: 220.6195215 | B164: 1 | C164: 0.542405953 | D164: 0 | E164: 1 | I164: 5.611807 | J164: 1 | K164: 0 | L164: 0.11223614
A165: 221.3824908 | B165: 1 | C165: 0.3446385183 | D165: 0 | E165: 1 | I165: 5.611807 | J165: 1 | K165: 0 | L165: 0.11223614
A166: 221.444036 | B166: 1 | C166: 0.02779265773 | D166: 0 | E166: 1 | I166: 5.611807 | J166: 1 | K166: 0 | L166: 0.11223614
A167: 221.634315 | B167: 1 | C167: 0.0858526701 | D167: 0 | E167: 1 | I167: 5.611807 | J167: 1 | K167: 0 | L167: 0.11223614
A168: 221.6817014 | B168: 1 | C168: 0.02137587384 | D168: 0 | E168: 1 | I168: 5.611807 | J168: 1 | K168: 0 | L168: 0.11223614
A169: 222.0028237 | B169: 1 | C169: 0.1446478529 | D169: 0 | E169: 1 | I169: 5.611807 | J169: 1 | K169: 0 | L169: 0.11223614
A170: 222.1528677 | B170: 1 | C170: 0.06754088288 | D170: 0 | E170: 1 | I170: 5.611807 | J170: 1 | K170: 0 | L170: 0.11223614
A171: 222.3408407 | B171: 1 | C171: 0.0845427077 | D171: 0 | E171: 1 | I171: 5.611807 | J171: 1 | K171: 0 | L171: 0.11223614
A172: 222.4344973 | B172: 1 | C172: 0.04210524697 | D172: 0 | E172: 1 | I172: 5.611807 | J172: 1 | K172: 0 | L172: 0.11223614
A173: 222.9428033 | B173: 1 | C173: 0.2279983966 | D173: 0 | E173: 1 | I173: 5.611807 | J173: 1 | K173: 0 | L173: 0.11223614
A174: 223.0023118 | B174: 1 | C174: 0.02668514925 | D174: 0 | E174: 1 | I174: 5.611807 | J174: 1 | K174: 0 | L174: 0.11223614
A175: 223.5218729 | B175: 1 | C175: 0.2324430716 | D175: 0 | E175: 1 | I175: 5.611807 | J175: 1 | K175: 0 | L175: 0.11223614
A176: 224.1025558 | B176: 1 | C176: 0.2591148232 | D176: 0 | E176: 1 | I176: 5.611807 | J176: 1 | K176: 0 | L176: 0.11223614
A177: 224.8144211 | B177: 1 | C177: 0.3166457142 | D177: 0 | E177: 1 | I177: 5.611807 | J177: 1 | K177: 0 | L177: 0.11223614
A178: 225.0354439 | B178: 1 | C178: 0.09821692053 | D178: 0 | E178: 1 | I178: 5.611807 | J178: 1 | K178: 0 | L178: 0.11223614
A179: 225.4874275 | B179: 1 | C179: 0.2004473217 | D179: 0 | E179: 1 | I179: 5.611807 | J179: 1 | K179: 0 | L179: 0.11223614
A180: 226.329278 | B180: 1 | C180: 0.3719582994 | D180: 0 | E180: 1 | I180: 5.611807 | J180: 1 | K180: 0 | L180: 0.11223614
A181: 227.7926744 | B181: 1 | C181: 0.6424247131 | D181: 0 | E181: 1 | I181: 5.611807 | J181: 1 | K181: 0 | L181: 0.11223614
A182: 229.8395186 | B182: 1 | C182: 0.890553641 | D182: 0 | E182: 1 | I182: 5.611807 | J182: 1 | K182: 0 | L182: 0.11223614
A183: 229.9660254 | B183: 1 | C183: 0.05501106321 | D183: 0 | E183: 1 | I183: 5.611807 | J183: 1 | K183: 0 | L183: 0.11223614
A184: 230.2939952 | B184: 1 | C184: 0.1424135348 | D184: 0 | E184: 1 | I184: 5.611807 | J184: 1 | K184: 0 | L184: 0.11223614
A185: 230.6190837 | B185: 1 | C185: 0.1409634017 | D185: 0 | E185: 1 | I185: 5.611807 | J185: 1 | K185: 0 | L185: 0.11223614
A186: 230.8017987 | B186: 1 | C186: 0.07916530783 | D186: 0 | E186: 1 | I186: 5.611807 | J186: 1 | K186: 0 | L186: 0.11223614
A187: 230.8735858 | B187: 1 | C187: 0.03109371487 | D187: 0 | E187: 1 | I187: 5.611807 | J187: 1 | K187: 0 | L187: 0.11223614
A188: 232.0111869 | B188: 1 | C188: 0.4903216613 | D188: 0 | E188: 1 | I188: 5.611807 | J188: 1 | K188: 0 | L188: 0.11223614
A189: 232.3559642 | B189: 1 | C189: 0.1483832054 | D189: 0 | E189: 1 | I189: 5.611807 | J189: 1 | K189: 0 | L189: 0.11223614
A190: 232.7241636 | B190: 1 | C190: 0.1582128 | D190: 0 | E190: 1 | I190: 5.611807 | J190: 1 | K190: 0 | L190: 0.11223614
A191: 233.3971212 | B191: 1 | C191: 0.2883315712 | D191: 0 | E191: 1 | I191: 5.611807 | J191: 1 | K191: 0 | L191: 0.11223614
A192: 233.4697287 | B192: 1 | C192: 0.03109934916 | D192: 0 | E192: 1 | I192: 5.611807 | J192: 1 | K192: 0 | L192: 0.11223614
A193: 235.5602293 | B193: 1 | C193: 0.8874590392 | D193: 0 | E193: 1 | I193: 5.611807 | J193: 1 | K193: 0 | L193: 0.11223614
A194: 235.7547256 | B194: 1 | C194: 0.08249944731 | D194: 0 | E194: 1 | I194: 5.611807 | J194: 1 | K194: 0 | L194: 0.11223614
A195: 235.9334634 | B195: 1 | C195: 0.07575770234 | D195: =IF(C195>I194,J194,K194) -> 0 | E195: 1 | I195: 5.611807 | J195: 1 | K195: 0 | L195: =I195/50 -> 0.11223614
A196: 236.4238516 | B196: =IF(A196=A195,B195+1,1) -> 1 | C196: =((A196-A195)/A196)*100 -> 0.2074190793 | D196: 0 | E196: =IF(C196<(A195*1.005)-(A195),J195,K195) -> 1 | I196: 5.611807 | J196: 1 | K196: 0 | L196: 0.11223614
A197: 236.9573074 | B197: 1 | C197: 0.2251274113 | D197: 0 | E197: 1 | I197: 5.611807 | J197: 1 | K197: 0 | L197: 0.11223614
A198: 237.4540439 | B198: 1 | C198: 0.2091926836 | D198: 0 | E198: 1 | I198: 5.611807 | J198: 1 | K198: 0 | L198: 0.11223614
A199: 237.6672456 | B199: 1 | C199: 0.08970596088 | D199: 0 | E199: 1 | I199: 5.611807 | J199: 1 | K199: 0 | L199: 0.11223614
A200: 238.3756565 | B200: 1 | C200: 0.2971825701 | D200: 0 | E200: 1 | I200: 5.611807 | J200: 1 | K200: 0 | L200: 0.11223614
... 800 more rows

Sheet Axial
C1: Axial Modes
A2: Lx = | B2: =+AllModes!D2 -> 21.03018373 | C2: nx | D2: ny | E2: nz | F2: f | G2: Type | H2: Spacing | J2: If you found this spreadsheet helpful, please send a donation via PayPal to erika@jhbrandt.net
A3: Ly = | B3: =+AllModes!D3 -> 15.7152231 | C3: 1 | D3: 0 | E3: 0 | F3: =$B$5*SQRT((($C3/$B$2)^2)+(($D3/$B$3)^2)+(($E3/$B$4)^2)) -> 26.86614665 | G3: =+IF(+AND(C3=0,D3=0)+OR(+AND(C3=0,E3=0))+OR(+AND(D3=0,E3=0)),"Axial",(+IF(+OR(C3=0,D3=0,E3=0),"Tangential","Oblique"))) -> Axial
A4: Lz = | B4: =+AllModes!D4 -> 11.05643045 | C4: 0 | D4: 1 | E4: 0 | F4: 35.95240084 | G4: Axial | H4: =F4-F3 -> 9.086254189
A5: c/2 = | B5: =1130/2 -> 565 | C5: 0 | D5: 0 | E5: 1 | F5: 51.10148368 | G5: Axial | H5: =F5-F4 -> 15.14908284
C6: 2 | D6: 0 | E6: 0 | F6: 53.73229329 | G6: Axial | H6: 2.630809612
A7: V = | B7: =B2*B3*B4 -> 3654.084245 | C7: 0 | D7: 2 | E7: 0 | F7: 71.90480167 | G7: Axial | H7: 18.17250838
C8: 3 | D8: 0 | E8: 0 | F8: 80.59843994 | G8: Axial | H8: 8.693638267
C9: 0 | D9: 0 | E9: 2 | F9: 102.2029674 | G9: Axial | H9: 21.60452742
C10: 4 | D10: 0 | E10: 0 | F10: 107.4645866 | G10: Axial | H10: 5.261619224
C11: 0 | D11: 3 | E11: 0 | F11: 107.8572025 | G11: Axial | H11: 0.3926159218
C12: 5 | D12: 0 | E12: 0 | F12: 134.3307332 | G12: Axial | H12: 26.47353072
C13: 0 | D13: 4 | E13: 0 | F13: 143.8096033 | G13: Axial | H13: 9.478870111
C14: 0 | D14: 0 | E14: 3 | F14: 153.304451 | G14: Axial | H14: 9.494847698
C15: 6 | D15: 0 | E15: 0 | F15: 161.1968799 | G15: Axial | H15: 7.892428837
C16: 0 | D16: 5 | E16: 0 | F16: 179.7620042 | G16: Axial | H16: 18.5651243
C17: 7 | D17: 0 | E17: 0 | F17: 188.0630265 | G17: Axial | H17: 8.301022346
C18: 0 | D18: 0 | E18: 4 | F18: 204.4059347 | G18: Axial | H18: 16.3429082
C19: 8 | D19: 0 | E19: 0 | F19: 214.9291732 | G19: Axial | H19: 10.52323845
C20: 0 | D20: 6 | E20: 0 | F20: 215.714405 | G20: Axial | H20: 0.7852318435
C21: 9 | D21: 0 | E21: 0 | F21: 241.7953198 | G21: Axial | H21: 26.0809148
C22: 0 | D22: 7 | E22: 0 | F22: 251.6668058 | G22: Axial | H22: 9.871486033
C23: 0 | D23: 0 | E23: 5 | F23: 255.5074184 | G23: Axial | H23: 3.840612552
C24: 0 | D24: 8 | E24: 0 | F24: 287.6192067 | G24: Axial | H24: 32.11178828
C25: 0 | D25: 0 | E25: 6 | F25: 306.6089021 | G25: Axial | H25: 18.9896954
C26: 0 | D26: 9 | E26: 0 | F26: 323.5716075 | G26: Axial | H26: 16.96270544
C27: 0 | D27: 0 | E27: 7 | F27: 357.7103858 | G27: Axial | H27: 34.13877824
C28: 0 | D28: 0 | E28: 8 | F28: 408.8118694 | G28: Axial | H28: 51.10148368
C29: 0 | D29: 0 | E29: 9 | F29: 459.9133531 | G29: Axial | H29: 51.10148368

Sheet Tangential
C1: Tangential Modes
A2: Lx = | B2: =+AllModes!D2 -> 21.03018373 | C2: nx | D2: ny | E2: nz | F2: f | G2: Type | H2: Spacing | J2: If you found this spreadsheet helpful, please send a donation via PayPal to erika@jhbrandt.net
A3: Ly = | B3: =+AllModes!D3 -> 15.7152231 | C3: 1 | D3: 1 | E3: 0 | F3: =$B$5*SQRT((($C3/$B$2)^2)+(($D3/$B$3)^2)+(($E3/$B$4)^2)) -> 44.88167735 | G3: =+IF(+AND(C3=0,D3=0)+OR(+AND(C3=0,E3=0))+OR(+AND(D3=0,E3=0)),"Axial",(+IF(+OR(C3=0,D3=0,E3=0),"Tangential","Oblique"))) -> Tangential
A4: Lz = | B4: =+AllModes!D4 -> 11.05643045 | C4: 1 | D4: 0 | E4: 1 | F4: 57.73345191 | G4: Tangential | H4: =F4-F3 -> 12.85177457
A5: c/2 = | B5: =1130/2 -> 565 | C5: 0 | D5: 1 | E5: 1 | F5: 62.48149134 | G5: Tangential | H5: =F5-F4 -> 4.748039426
C6: 2 | D6: 1 | E6: 0 | F6: 64.65086595 | G6: Tangential | H6: 2.169374611
A7: V = | B7: =B2*B3*B4 -> 3654.084245 | C7: 2 | D7: 0 | E7: 1 | F7: 74.15201263 | G7: Tangential | H7: 9.501146676
C8: 1 | D8: 2 | E8: 0 | F8: 76.7599527 | G8: Tangential | H8: 2.607940075
C9: 0 | D9: 2 | E9: 1 | F9: 88.21372987 | G9: Tangential | H9: 11.45377717
C10: 3 | D10: 1 | E10: 0 | F10: 88.25351917 | G10: Tangential | H10: 0.03978930224
C11: 2 | D11: 2 | E11: 0 | F11: 89.76335469 | G11: Tangential | H11: 1.509835521
C12: 3 | D12: 0 | E12: 1 | F12: 95.43306636 | G12: Tangential | H12: 5.669711666
C13: 1 | D13: 0 | E13: 2 | F13: 105.6751455 | G13: Tangential | H13: 10.24207912
C14: 3 | D14: 2 | E14: 0 | F14: 108.0111523 | G14: Tangential | H14: 2.336006829
C15: 0 | D15: 1 | E15: 2 | F15: 108.3421509 | G15: Tangential | H15: 0.3309985941
C16: 1 | D16: 3 | E16: 0 | F16: 111.1528946 | G16: Tangential | H16: 2.810743649
C17: 4 | D17: 1 | E17: 0 | F17: 113.3190738 | G17: Tangential | H17: 2.166179283
C18: 2 | D18: 0 | E18: 2 | F18: 115.4669038 | G18: Tangential | H18: 2.14782999
C19: 4 | D19: 0 | E19: 1 | F19: 118.9957941 | G19: Tangential | H19: 3.528890232
C20: 0 | D20: 3 | E20: 1 | F20: 119.3504829 | G20: Tangential | H20: 0.3546888325
C21: 2 | D21: 3 | E21: 0 | F21: 120.5003547 | G21: Tangential | H21: 1.149871774
C22: 0 | D22: 2 | E22: 2 | F22: 124.9629827 | G22: Tangential | H22: 4.462628014
C23: 4 | D23: 2 | E23: 0 | F23: 129.3017319 | G23: Tangential | H23: 4.338749222
C24: 3 | D24: 0 | E24: 2 | F24: 130.159729 | G24: Tangential | H24: 0.8579971137
C25: 3 | D25: 3 | E25: 0 | F25: 134.645032 | G25: Tangential | H25: 4.485303023
C26: 5 | D26: 1 | E26: 0 | F26: 139.0586963 | G26: Tangential | H26: 4.413664258
C27: 5 | D27: 0 | E27: 1 | F27: 143.7223279 | G27: Tangential | H27: 4.663631559
C28: 1 | D28: 4 | E28: 0 | F28: 146.297614 | G28: Tangential | H28: 2.575286098
C29: 4 | D29: 0 | E29: 2 | F29: 148.3040253 | G29: Tangential | H29: 2.006411301
C30: 0 | D30: 3 | E30: 2 | F30: 148.5887703 | G30: Tangential | H30: 0.2847450795
C31: 4 | D31: 3 | E31: 0 | F31: 152.2557503 | G31: Tangential | H31: 3.666979974
C32: 5 | D32: 2 | E32: 0 | F32: 152.3648463 | G32: Tangential | H32: 0.109096009
C33: 0 | D33: 4 | E33: 1 | F33: 152.6190147 | G33: Tangential | H33: 0.2541683804
C34: 2 | D34: 4 | E34: 0 | F34: 153.5199054 | G34: Tangential | H34: 0.9008907069
C35: 1 | D35: 0 | E35: 3 | F35: 155.6407548 | G35: Tangential | H35: 2.120849361
C36: 0 | D36: 1 | E36: 3 | F36: 157.4637413 | G36: Tangential | H36: 1.822986566
C37: 2 | D37: 0 | E37: 3 | F37: 162.4481888 | G37: Tangential | H37: 4.984447488
C38: 3 | D38: 4 | E38: 0 | F38: 164.8554231 | G38: Tangential | H38: 2.407234304
C39: 6 | D39: 1 | E39: 0 | F39: 165.1575285 | G39: Tangential | H39: 0.3021053373
C40: 5 | D40: 0 | E40: 2 | F40: 168.7903801 | G40: Tangential | H40: 3.632851677
C41: 6 | D41: 0 | E41: 1 | F41: 169.1029146 | G41: Tangential | H41: 0.3125344317
C42: 0 | D42: 2 | E42: 3 | F42: 169.3297234 | G42: Tangential | H42: 0.2268087859
C43: 5 | D43: 3 | E43: 0 | F43: 172.2728128 | G43: Tangential | H43: 2.943089422
C44: 3 | D44: 0 | E44: 3 | F44: 173.2003557 | G44: Tangential | H44: 0.9275429632
C45: 0 | D45: 4 | E45: 2 | F45: 176.4274597 | G45: Tangential | H45: 3.227103998
C46: 6 | D46: 2 | E46: 0 | F46: 176.5070383 | G46: Tangential | H46: 0.07957860449
C47: 4 | D47: 4 | E47: 0 | F47: 179.5267094 | G47: Tangential | H47: 3.019671041
C48: 1 | D48: 5 | E48: 0 | F48: 181.7585431 | G48: Tangential | H48: 2.23183369
C49: 0 | D49: 5 | E49: 1 | F49: 186.8842952 | G49: Tangential | H49: 5.12575209
C50: 4 | D50: 0 | E50: 3 | F50: 187.2188347 | G50: Tangential | H50: 0.3345395652
C51: 0 | D51: 3 | E51: 3 | F51: 187.444474 | G51: Tangential | H51: 0.2256392893
C52: 2 | D52: 5 | E52: 0 | F52: 187.6207278 | G52: Tangential | H52: 0.1762537466
C53: 6 | D53: 0 | E53: 2 | F53: 190.8661327 | G53: Tangential | H53: 3.245404951
C54: 7 | D54: 1 | E54: 0 | F54: 191.4687365 | G54: Tangential | H54: 0.602603817
C55: 6 | D55: 3 | E55: 0 | F55: 193.9525979 | G55: Tangential | H55: 2.483861318
C56: 7 | D56: 0 | E56: 1 | F56: 194.8821787 | G56: Tangential | H56: 0.9295808568
C57: 5 | D57: 4 | E57: 0 | F57: 196.789095 | G57: Tangential | H57: 1.90691627
C58: 3 | D58: 5 | E58: 0 | F58: 197.0037732 | G58: Tangential | H58: 0.2146782472
C59: 7 | D59: 2 | E59: 0 | F59: 201.3405137 | G59: Tangential | H59: 4.33674045
C60: 5 | D60: 0 | E60: 3 | F60: 203.8308137 | G60: Tangential | H60: 2.490299986
C61: 1 | D61: 0 | E61: 4 | F61: 206.1639541 | G61: Tangential | H61: 2.33314047
C62: 0 | D62: 5 | E62: 2 | F62: 206.7844885 | G62: Tangential | H62: 0.6205343624
C63: 0 | D63: 1 | E63: 4 | F63: 207.543637 | G63: Tangential | H63: 0.7591485402
C64: 4 | D64: 5 | E64: 0 | F64: 209.4349911 | G64: Tangential | H64: 1.891354107
C65: 0 | D65: 4 | E65: 3 | F65: 210.1986126 | G65: Tangential | H65: 0.7636214155
C66: 2 | D66: 0 | E66: 4 | F66: 211.350291 | G66: Tangential | H66: 1.151678406
C67: 7 | D67: 0 | E67: 2 | F67: =$B$5*SQRT((($C67/$B$2)^2)+(($D67/$B$3)^2)+(($E67/$B$4)^2)) -> 214.0400628 | G67: =+IF(+AND(C67=0,D67=0)+OR(+AND(C67=0,E67=0))+OR(+AND(D67=0,E67=0)),"Axial",(+IF(+OR(C67=0,D67=0,E67=0),"Tangential","Oblique"))) -> Tangential | H67: 2.689771831
C68: 6 | D68: 4 | E68: 0 | F68: 216.0223046 | G68: Tangential | H68: 1.982241828
C69: 0 | D69: 2 | E69: 4 | F69: 216.6843018 | G69: Tangential | H69: =F69-F68 -> 0.6619971883
C70: 7 | D70: 3 | E70: 0 | F70: 216.796859 | G70: Tangential | H70: 0.1125571991
C71: 1 | D71: 6 | E71: 0 | F71: 217.380989 | G71: Tangential | H71: 0.584129958
C72: 8 | D72: 1 | E72: 0 | F72: 217.915407 | G72: Tangential | H72: 0.5344180232
C73: 3 | D73: 0 | E73: 4 | F73: 219.7223126 | G73: Tangential | H73: 1.806905641
C74: 8 | D74: 0 | E74: 1 | F74: 220.9205991 | G74: Tangential | H74: 1.198286481
C75: 0 | D75: 6 | E75: 1 | F75: 221.6846097 | G75: Tangential | H75: 0.7640105541
C76: 2 | D76: 6 | E76: 0 | F76: 222.3057891 | G76: Tangential | H76: 0.6211794419
C77: 6 | D77: 0 | E77: 3 | F77: 222.4560379 | G77: Tangential | H77: 0.150248772
C78: 5 | D78: 5 | E78: 0 | F78: 224.4083867 | G78: Tangential | H78: 1.95234885
C79: 8 | D79: 2 | E79: 0 | F79: 226.6381477 | G79: Tangential | H79: 2.229760944
C80: 3 | D80: 6 | E80: 0 | F80: 230.2798581 | G80: Tangential | H80: 3.641710431
C81: 4 | D81: 0 | E81: 4 | F81: 230.9338077 | G81: Tangential | H81: 0.6539495478
C82: 0 | D82: 3 | E82: 4 | F82: 231.116772 | G82: Tangential | H82: 0.182964304
C83: 0 | D83: 5 | E83: 3 | F83: 236.2554398 | G83: Tangential | H83: 5.138667881
C84: 7 | D84: 4 | E84: 0 | F84: 236.7464972 | G84: Tangential | H84: 0.491057405
C85: 8 | D85: 0 | E85: 2 | F85: 237.9915881 | G85: Tangential | H85: 1.245090875
C86: 0 | D86: 6 | E86: 2 | F86: 238.7009658 | G86: Tangential | H86: 0.709377665
C87: 8 | D87: 3 | E87: 0 | F87: 240.4739604 | G87: Tangential | H87: 1.772994575
C88: 4 | D88: 6 | E88: 0 | F88: 241.0007093 | G88: Tangential | H88: 0.5267489736
C89: 6 | D89: 5 | E89: 0 | F89: 241.4514697 | G89: Tangential | H89: 0.4507603811
C90: 7 | D90: 0 | E90: 3 | F90: 242.6313184 | G90: Tangential | H90: 1.179848654
C91: 9 | D91: 1 | E91: 0 | F91: 244.453578 | G91: Tangential | H91: 1.822259658
C92: 5 | D92: 0 | E92: 4 | F92: 244.594628 | G92: Tangential | H92: 0.1410499576
C93: 9 | D93: 0 | E93: 1 | F93: 247.1362748 | G93: Tangential | H93: 2.541646809
C94: 0 | D94: 4 | E94: 4 | F94: 249.9259654 | G94: Tangential | H94: 2.789690568
C95: 9 | D95: 2 | E95: 0 | F95: 252.2603361 | G95: Tangential | H95: 2.334370775
C96: 1 | D96: 7 | E96: 0 | F96: 253.0967621 | G96: Tangential | H96: 0.8364259945
C97: 5 | D97: 6 | E97: 0 | F97: 254.1209366 | G97: Tangential | H97: 1.024174472
C98: 0 | D98: 7 | E98: 1 | F98: 256.8025366 | G98: Tangential | H98: 2.681599988
C99: 1 | D99: 0 | E99: 5 | F99: 256.9159993 | G99: Tangential | H99: 0.1134627019
C100: 2 | D100: 7 | E100: 0 | F100: 257.3389603 | G100: Tangential | H100: 0.4229610449
C101: 0 | D101: 1 | E101: 5 | F101: 258.0244484 | G101: Tangential | H101: 0.6854880831
C102: 8 | D102: 4 | E102: 0 | F102: 258.6034638 | G102: Tangential | H102: 0.5790153842
C103: 7 | D103: 5 | E103: 0 | F103: 260.1577984 | G103: Tangential | H103: 1.554334637
C104: 6 | D104: 0 | E104: 4 | F104: 260.319458 | G104: Tangential | H104: 0.1616595904
C105: 2 | D105: 0 | E105: 5 | F105: 261.0961513 | G105: Tangential | H105: 0.7766932211
C106: 9 | D106: 0 | E106: 2 | F106: 262.5079489 | G106: Tangential | H106: 1.411797619
C107: 8 | D107: 0 | E107: 3 | F107: 264.0015231 | G107: Tangential | H107: 1.493574205
C108: 3 | D108: 7 | E108: 0 | F108: 264.2579983 | G108: Tangential | H108: 0.2564752606
C109: 0 | D109: 6 | E109: 3 | F109: 264.6411896 | G109: Tangential | H109: 0.3831912716
C110: 9 | D110: 3 | E110: 0 | F110: 264.7605575 | G110: Tangential | H110: 0.1193679067
C111: 0 | D111: 2 | E111: 5 | F111: 265.4323668 | G111: Tangential | H111: 0.6718093122
C112: 3 | D112: 0 | E112: 5 | F112: 267.9181766 | G112: Tangential | H112: 2.485809818
C113: 6 | D113: 6 | E113: 0 | F113: 269.2900641 | G113: Tangential | H113: 1.371887432
C114: 0 | D114: 7 | E114: 2 | F114: 271.6277374 | G114: Tangential | H114: 2.33767328
C115: 0 | D115: 5 | E115: 4 | F115: 272.2061063 | G115: Tangential | H115: 0.5783689179
C116: 4 | D116: 7 | E116: 0 | F116: 273.6509063 | G116: Tangential | H116: 1.444800053
C117: 4 | D117: 0 | E117: 5 | F117: 277.1870816 | G117: Tangential | H117: 3.536175308
C118: 0 | D118: 3 | E118: 5 | F118: 277.3395338 | G118: Tangential | H118: 0.1524521283
C119: 7 | D119: 0 | E119: 4 | F119: 277.7579667 | G119: Tangential | H119: 0.4184329844
C120: 8 | D120: 5 | E120: 0 | F120: 280.1944461 | G120: Tangential | H120: 2.436479348
C121: 9 | D121: 4 | E121: 0 | F121: 281.3293065 | G121: Tangential | H121: 1.134860404
C122: 5 | D122: 7 | E122: 0 | F122: 285.2734251 | G122: Tangential | H122: 3.944118575
C123: 7 | D123: 6 | E123: 0 | F123: 286.1824706 | G123: Tangential | H123: 0.9090455148
C124: 9 | D124: 0 | E124: 3 | F124: 286.2991991 | G124: Tangential | H124: 0.1167284856
C125: 5 | D125: 0 | E125: 5 | F125: 288.6672596 | G125: Tangential | H125: 2.368060491
C126: 1 | D126: 8 | E126: 0 | F126: 288.8712479 | G126: Tangential | H126: 0.2039883739
C127: 0 | D127: 8 | E127: 1 | F127: 292.1235521 | G127: Tangential | H127: 3.252304149
C128: 2 | D128: 8 | E128: 0 | F128: 292.5952279 | G128: Tangential | H128: 0.4716758168
C129: 0 | D129: 4 | E129: 5 | F129: 293.1982996 | G129: Tangential | H129: 0.6030716602
C130: 0 | D130: 7 | E130: 3 | F130: 294.68362 | G130: Tangential | H130: 1.485320393
C131: 8 | D131: 0 | E131: 4 | F131: =$B$5*SQRT((($C131/$B$2)^2)+(($D131/$B$3)^2)+(($E131/$B$4)^2)) -> 296.6080505 | G131: =+IF(+AND(C131=0,D131=0)+OR(+AND(C131=0,E131=0))+OR(+AND(D131=0,E131=0)),"Axial",(+IF(+OR(C131=0,D131=0,E131=0),"Tangential","Oblique"))) -> Tangential | H131: 1.924430548
C132: 0 | D132: 6 | E132: 4 | F132: 297.1775407 | G132: Tangential | H132: 0.5694901591
C133: 3 | D133: 8 | E133: 0 | F133: 298.6987053 | G133: Tangential | H133: =F133-F132 -> 1.521164673
C134: 6 | D134: 7 | E134: 0 | F134: 298.8655471 | G134: Tangential | H134: 0.1668417641
C135: 9 | D135: 5 | E135: 0 | F135: 301.2961248 | G135: Tangential | H135: 2.430577711
C136: 6 | D136: 0 | E136: 5 | F136: 302.1067277 | G136: Tangential | H136: 0.8106029117
C137: 8 | D137: 6 | E137: 0 | F137: 304.5115006 | G137: Tangential | H137: 2.404772889
C138: 0 | D138: 8 | E138: 2 | F138: 305.2380294 | G138: Tangential | H138: 0.7265287787
C139: 4 | D139: 8 | E139: 0 | F139: 307.0398108 | G139: Tangential | H139: 1.801781414
C140: 1 | D140: 0 | E140: 6 | F140: 307.7837044 | G140: Tangential | H140: 0.7438935502
C141: 0 | D141: 1 | E141: 6 | F141: 308.7095625 | G141: Tangential | H141: 0.925858109
C142: 2 | D142: 0 | E142: 6 | F142: 311.2815095 | G142: Tangential | H142: 2.571947063
C143: 0 | D143: 5 | E143: 5 | F143: 312.4074567 | G143: Tangential | H143: 1.125947169
C144: 7 | D144: 7 | E144: 0 | F144: 314.1717414 | G144: Tangential | H144: 1.764284724
C145: 0 | D145: 2 | E145: 6 | F145: 314.9274827 | G145: Tangential | H145: 0.7557412396
C146: 9 | D146: 0 | E146: 4 | F146: 316.6176919 | G146: Tangential | H146: 1.690209249
C147: 3 | D147: 0 | E147: 6 | F147: 317.0254364 | G147: Tangential | H147: 0.4077445338
C148: 7 | D148: 0 | E148: 5 | F148: 317.2565883 | G148: Tangential | H148: 0.2311518243
C149: 5 | D149: 8 | E149: 0 | F149: 317.4422057 | G149: Tangential | H149: 0.1856174017
C150: 9 | D150: 6 | E150: 0 | F150: 324.0334569 | G150: Tangential | H150: 6.591251262
C151: 0 | D151: 7 | E151: 4 | F151: 324.2190113 | G151: Tangential | H151: 0.1855544035
C152: 1 | D152: 9 | E152: 0 | F152: 324.6850397 | G152: Tangential | H152: 0.466028395
C153: 4 | D153: 0 | E153: 6 | F153: 324.8963776 | G153: Tangential | H153: 0.2113379062
C154: 0 | D154: 3 | E154: 6 | F154: 325.0264527 | G154: Tangential | H154: 0.1300750778
C155: 0 | D155: 8 | E155: 3 | F155: 325.9249342 | G155: Tangential | H155: 0.8984815246
C156: 0 | D156: 9 | E156: 1 | F156: 327.5819696 | G156: Tangential | H156: 1.657035386
C157: 2 | D157: 9 | E157: 0 | F157: 328.0026593 | G157: Tangential | H157: 0.4206897111
C158: 6 | D158: 8 | E158: 0 | F158: 329.7108462 | G158: Tangential | H158: 1.708186909
C159: 8 | D159: 7 | E159: 0 | F159: 330.9542727 | G159: Tangential | H159: 1.24342649
C160: 3 | D160: 9 | E160: 0 | F160: 333.4586837 | G160: Tangential | H160: 2.504410927
C161: 8 | D161: 0 | E161: 5 | F161: 333.8840972 | G161: Tangential | H161: 0.4254134936
C162: 0 | D162: 6 | E162: 5 | F162: 334.3901096 | G162: Tangential | H162: 0.5060124233
C163: 5 | D163: 0 | E163: 6 | F163: 334.7443274 | G163: Tangential | H163: 0.3542178142
C164: 0 | D164: 4 | E164: 6 | F164: 338.6594467 | G164: Tangential | H164: 3.915119315
C165: 0 | D165: 9 | E165: 2 | F165: 339.3287959 | G165: Tangential | H165: 0.6693491906
C166: 4 | D166: 9 | E166: 0 | F166: 340.9504694 | G166: Tangential | H166: 1.621673464
C167: 7 | D167: 8 | E167: 0 | F167: 343.6459079 | G167: Tangential
C168: 6 | D168: 0 | E168: 6 | F168: 346.4007115 | G168: Tangential
C169: 9 | D169: 7 | E169: 0 | F169: 349.0002261 | G169: Tangential
C170: 5 | D170: 9 | E170: 0 | F170: 350.3474434 | G170: Tangential
C171: 9 | D171: 0 | E171: 5 | F171: 351.7797856 | G171: Tangential
C172: 0 | D172: 8 | E172: 4 | F172: 352.8549195 | G172: Tangential
C173: 0 | D173: 5 | E173: 6 | F173: 355.4200289 | G173: Tangential
C174: 0 | D174: 9 | E174: 3 | F174: 358.0514487 | G174: Tangential
C175: 0 | D175: 7 | E175: 5 | F175: 358.6366156 | G175: Tangential
C176: 1 | D176: 0 | E176: 7 | F176: 358.7178695 | G176: Tangential
C177: 8 | D177: 8 | E177: 0 | F177: 359.0534188 | G177: Tangential
C178: 0 | D178: 1 | E178: 7 | F178: 359.51258 | G178: Tangential
C179: 7 | D179: 0 | E179: 6 | F179: 359.6897563 | G179: Tangential
C180: 6 | D180: 9 | E180: 0 | F180: 361.501064 | G180: Tangential
C181: 2 | D181: 0 | E181: 7 | F181: 361.7234848 | G181: Tangential
C182: 0 | D182: 2 | E182: 7 | F182: 364.8657569 | G182: Tangential
C183: 3 | D183: 0 | E183: 7 | F183: 366.6780994 | G183: Tangential
C184: 4 | D184: 0 | E184: 7 | F184: 373.5041599 | G184: Tangential
C185: 0 | D185: 3 | E185: 7 | F185: 373.6173125 | G185: Tangential
C186: 7 | D186: 9 | E186: 0 | F186: 374.2543081 | G186: Tangential
C187: 8 | D187: 0 | E187: 6 | F187: 374.4376695 | G187: Tangential
C188: 0 | D188: 6 | E188: 6 | F188: 374.888948 | G188: Tangential
C189: 9 | D189: 8 | E189: 0 | F189: 375.7522917 | G189: Tangential
C190: 5 | D190: 0 | E190: 7 | F190: 382.1013818 | G190: Tangential
C191: 0 | D191: 9 | E191: 4 | F191: 382.7275419 | G191: Tangential
C192: 0 | D192: 8 | E192: 5 | F192: 384.7191819 | G192: Tangential
C193: 0 | D193: 4 | E193: 7 | F193: 385.5358895 | G193: Tangential
C194: 8 | D194: 9 | E194: 0 | F194: 388.4496553 | G194: Tangential
C195: 9 | D195: 0 | E195: 6 | F195: =$B$5*SQRT((($C195/$B$2)^2)+(($D195/$B$3)^2)+(($E195/$B$4)^2)) -> 390.479187 | G195: =+IF(+AND(C195=0,D195=0)+OR(+AND(C195=0,E195=0))+OR(+AND(D195=0,E195=0)),"Axial",(+IF(+OR(C195=0,D195=0,E195=0),"Tangential","Oblique"))) -> Tangential
C196: 6 | D196: 0 | E196: 7 | F196: 392.3533537 | G196: Tangential
C197: 0 | D197: 7 | E197: 6 | F197: 396.667619 | G197: Tangential
C198: 0 | D198: 5 | E198: 7 | F198: 400.3387294 | G198: Tangential
C199: 9 | D199: 9 | E199: 0 | F199: 403.9350961 | G199: Tangential
C200: 7 | D200: 0 | E200: 7 | F200: 404.1341634 | G200: Tangential
... 45 more rows

Sheet Oblique
C1: Oblique Modes
A2: Lx = | B2: =+AllModes!D2 -> 21.03018373 | C2: nx | D2: ny | E2: nz | F2: f | G2: Type | H2: Spacing | J2: If you found this spreadsheet helpful, please send a donation via PayPal to erika@jhbrandt.net
A3: Ly = | B3: =+AllModes!D3 -> 15.7152231 | C3: 1 | D3: 1 | E3: 1 | F3: =$B$5*SQRT((($C3/$B$2)^2)+(($D3/$B$3)^2)+(($E3/$B$4)^2)) -> 68.01269437 | G3: =+IF(+AND(C3=0,D3=0)+OR(+AND(C3=0,E3=0))+OR(+AND(D3=0,E3=0)),"Axial",(+IF(+OR(C3=0,D3=0,E3=0),"Tangential","Oblique"))) -> Oblique
A4: Lz = | B4: =+AllModes!D4 -> 11.05643045 | C4: 2 | D4: 1 | E4: 1 | F4: 82.40810702 | G4: Oblique | H4: =F4-F3 -> 14.39541265
A5: c/2 = | B5: =1130/2 -> 565 | C5: 1 | D5: 2 | E5: 1 | F5: 92.21416363 | G5: Oblique | H5: =F5-F4 -> 9.806056606
C6: 3 | D6: 1 | E6: 1 | F6: 101.9806123 | G6: Oblique | H6: 9.766448652
A7: V = | B7: =B2*B3*B4 -> 3654.084245 | C7: 2 | D7: 2 | E7: 1 | F7: 103.2899873 | G7: Oblique | H7: 1.309375039
C8: 1 | D8: 1 | E8: 2 | F8: 111.6235257 | G8: Oblique | H8: 8.333538422
C9: 3 | D9: 2 | E9: 1 | F9: 119.4896257 | G9: Oblique | H9: 7.866099994
C10: 2 | D10: 1 | E10: 2 | F10: 120.9346146 | G10: Oblique | H10: 1.444988853
C11: 1 | D11: 3 | E11: 1 | F11: 122.3369429 | G11: Oblique | H11: 1.40232833
C12: 4 | D12: 1 | E12: 1 | F12: 124.3083832 | G12: Oblique | H12: 1.971440267
C13: 1 | D13: 2 | E13: 2 | F13: 127.8183746 | G13: Oblique | H13: 3.509991379
C14: 2 | D14: 3 | E14: 1 | F14: 130.8881091 | G14: Oblique | H14: 3.069734557
C15: 3 | D15: 1 | E15: 2 | F15: 135.0338113 | G15: Oblique | H15: 4.14570214
C16: 2 | D16: 2 | E16: 2 | F16: 136.0253887 | G16: Oblique | H16: 0.9915774836
C17: 4 | D17: 2 | E17: 1 | F17: 139.0334474 | G17: Oblique | H17: 3.008058697
C18: 3 | D18: 3 | E18: 1 | F18: 144.016132 | G18: Oblique | H18: 4.982684597
C19: 5 | D19: 1 | E19: 1 | F19: 148.150878 | G19: Oblique | H19: 4.134745956
C20: 3 | D20: 2 | E20: 2 | F20: 148.7005567 | G20: Oblique | H20: 0.5496786997
C21: 1 | D21: 3 | E21: 2 | F21: 150.9980546 | G21: Oblique | H21: 2.297497947
C22: 4 | D22: 1 | E22: 2 | F22: 152.5996692 | G22: Oblique | H22: 1.601614536
C23: 1 | D23: 4 | E23: 1 | F23: 154.9656526 | G23: Oblique | H23: 2.365983415
C24: 2 | D24: 3 | E24: 2 | F24: 158.0056392 | G24: Oblique | H24: 3.039986586
C25: 1 | D25: 1 | E25: 3 | F25: 159.739224 | G25: Oblique | H25: 1.733584778
C26: 4 | D26: 3 | E26: 1 | F26: 160.6025378 | G26: Oblique | H26: 0.8633138088
C27: 5 | D27: 2 | E27: 1 | F27: 160.7059676 | G27: Oblique | H27: 0.1034298526
C28: 2 | D28: 4 | E28: 1 | F28: 161.8014925 | G28: Oblique | H28: 1.095524928
C29: 4 | D29: 2 | E29: 2 | F29: 164.816214 | G29: Oblique | H29: 3.014721494
C30: 2 | D30: 1 | E30: 3 | F30: 166.3790527 | G30: Oblique | H30: 1.562838659
C31: 3 | D31: 3 | E31: 2 | F31: 169.0406199 | G31: Oblique | H31: 2.661567243
C32: 1 | D32: 2 | E32: 3 | F32: 171.447791 | G32: Oblique | H32: 2.407171084
C33: 5 | D33: 1 | E33: 2 | F33: 172.5768454 | G33: Oblique | H33: 1.129054331
C34: 3 | D34: 4 | E34: 1 | F34: 172.5939517 | G34: Oblique | H34: 0.01710635672
C35: 6 | D35: 1 | E35: 1 | F35: 172.8825348 | G35: Oblique | H35: 0.2885830959
C36: 3 | D36: 1 | E36: 3 | F36: 176.8924486 | G36: Oblique | H36: 4.009913743
C37: 2 | D37: 2 | E37: 3 | F37: 177.6505405 | G37: Oblique | H37: 0.758091988
C38: 1 | D38: 4 | E38: 2 | F38: 178.4613078 | G38: Oblique | H38: 0.8107672715
C39: 5 | D39: 3 | E39: 1 | F39: 179.6921914 | G39: Oblique | H39: 1.230883607
C40: 4 | D40: 3 | E40: 2 | F40: 183.3773706 | G40: Oblique | H40: 3.685179157
C41: 5 | D41: 2 | E41: 2 | F41: 183.4679616 | G41: Oblique | H41: 0.09059101597
C42: 6 | D42: 2 | E42: 1 | F42: 183.7555338 | G42: Oblique | H42: 0.2875722554
C43: 2 | D43: 4 | E43: 2 | F43: 184.4283273 | G43: Oblique | H43: 0.6727934043
C44: 4 | D44: 4 | E44: 1 | F44: 186.6579787 | G44: Oblique | H44: 2.229651461
C45: 3 | D45: 2 | E45: 3 | F45: 187.5331004 | G45: Oblique | H45: 0.8751216516
C46: 1 | D46: 5 | E46: 1 | F46: 188.8055339 | G46: Oblique | H46: 1.272433494
C47: 1 | D47: 3 | E47: 3 | F47: 189.3600292 | G47: Oblique | H47: 0.5544953892
C48: 4 | D48: 1 | E48: 3 | F48: 190.6396265 | G48: Oblique | H48: 1.279597284
C49: 3 | D49: 4 | E49: 2 | F49: 193.9658657 | G49: Oblique | H49: 3.326239205
C50: 6 | D50: 1 | E50: 2 | F50: 194.2226963 | G50: Oblique | H50: 0.2568305298
C51: 2 | D51: 5 | E51: 1 | F51: 194.4553911 | G51: Oblique | H51: 0.2326948198
C52: 2 | D52: 3 | E52: 3 | F52: 194.9938209 | G52: Oblique | H52: 0.5384297995
C53: 7 | D53: 1 | E53: 1 | F53: 198.1707312 | G53: Oblique | H53: 3.176910316
C54: 5 | D54: 3 | E54: 2 | F54: 200.308184 | G54: Oblique | H54: 2.137452755
C55: 4 | D55: 2 | E55: 3 | F55: 200.5522191 | G55: Oblique | H55: 0.2440351332
C56: 6 | D56: 3 | E56: 1 | F56: 200.5716128 | G56: Oblique | H56: 0.01939367937
C57: 5 | D57: 4 | E57: 1 | F57: 203.3157877 | G57: Oblique | H57: 2.744174955
C58: 3 | D58: 5 | E58: 1 | F58: 203.5235817 | G58: Oblique | H58: 0.2077939577
C59: 6 | D59: 2 | E59: 2 | F59: 203.9612246 | G59: Oblique | H59: 0.4376428746
C60: 3 | D60: 3 | E60: 3 | F60: 204.0380831 | G60: Oblique | H60: 0.07685855971
C61: 4 | D61: 4 | E61: 2 | F61: 206.5799746 | G61: Oblique | H61: 2.541891519
C62: 5 | D62: 1 | E62: 3 | F62: 206.9772348 | G62: Oblique | H62: 0.3972601633
C63: 7 | D63: 2 | E63: 1 | F63: 207.7242501 | G63: Oblique | H63: 0.7470153087
C64: 1 | D64: 5 | E64: 2 | F64: 208.5224557 | G64: Oblique | H64: 0.7982055627
C65: 1 | D65: 1 | E65: 4 | F65: 209.2752998 | G65: Oblique | H65: 0.7528441394
C66: 1 | D66: 4 | E66: 3 | F66: 211.9085807 | G66: Oblique | H66: 2.633280851
C67: 2 | D67: 5 | E67: 2 | F67: =$B$5*SQRT((($C67/$B$2)^2)+(($D67/$B$3)^2)+(($E67/$B$4)^2)) -> 213.6515481 | G67: =+IF(+AND(C67=0,D67=0)+OR(+AND(C67=0,E67=0))+OR(+AND(D67=0,E67=0)),"Axial",(+IF(+OR(C67=0,D67=0,E67=0),"Tangential","Oblique"))) -> Oblique | H67: 1.742967486
C68: 2 | D68: 1 | E68: 4 | F68: 214.3863816 | G68: Oblique | H68: 0.734833457
C69: 4 | D69: 5 | E69: 1 | F69: 215.5791668 | G69: Oblique | H69: =F69-F68 -> 1.192785177
C70: 4 | D70: 3 | E70: 3 | F70: 216.0649629 | G70: Oblique | H70: 0.4857961609
C71: 5 | D71: 2 | E71: 3 | F71: 216.1418541 | G71: Oblique | H71: 0.0768911781
C72: 2 | D72: 4 | E72: 3 | F72: 216.9576366 | G72: Oblique | H72: 0.8157824466
C73: 7 | D73: 1 | E73: 2 | F73: 217.0385302 | G73: Oblique | H73: 0.08089367194
C74: 1 | D74: 2 | E74: 4 | F74: 218.3434828 | G74: Oblique | H74: 1.304952577
C75: 6 | D75: 3 | E75: 2 | F75: 219.2328825 | G75: Oblique | H75: 0.889399645
C76: 5 | D76: 4 | E76: 2 | F76: 221.7462388 | G76: Oblique | H76: 2.513356383
C77: 3 | D77: 5 | E77: 2 | F77: 221.9367775 | G77: Oblique | H77: 0.1905386494
C78: 6 | D78: 4 | E78: 1 | F78: 221.9842286 | G78: Oblique | H78: 0.04745106863
C79: 3 | D79: 1 | E79: 4 | F79: 222.6442674 | G79: Oblique | H79: 0.6600388149
C80: 7 | D80: 3 | E80: 1 | F80: 222.7380518 | G80: Oblique | H80: 0.0937844068
C81: 2 | D81: 2 | E81: 4 | F81: 223.2470515 | G81: Oblique | H81: 0.5089996979
C82: 1 | D82: 6 | E82: 1 | F82: 223.3066412 | G82: Oblique | H82: 0.05958971048
C83: 8 | D83: 1 | E83: 1 | F83: 223.8269113 | G83: Oblique | H83: 0.5202701477
C84: 3 | D84: 4 | E84: 3 | F84: 225.1212234 | G84: Oblique | H84: 1.2943121
C85: 6 | D85: 1 | E85: 3 | F85: 225.3425479 | G85: Oblique | H85: 0.2213245112
C86: 7 | D86: 2 | E86: 2 | F86: 225.7951483 | G86: Oblique | H86: 0.4526003272
C87: 2 | D87: 6 | E87: 1 | F87: 228.1035412 | G87: Oblique | H87: 2.30839292
C88: 5 | D88: 5 | E88: 1 | F88: 230.1531787 | G88: Oblique | H88: 2.049637513
C89: 5 | D89: 3 | E89: 3 | F89: 230.6082755 | G89: Oblique | H89: 0.4550967951
C90: 3 | D90: 2 | E90: 4 | F90: 231.1886571 | G90: Oblique | H90: 0.5803815968
C91: 8 | D91: 2 | E91: 1 | F91: 232.3278107 | G91: Oblique | H91: 1.139153581
C92: 1 | D92: 3 | E92: 4 | F92: 232.6730584 | G92: Oblique | H92: 0.3452477421
C93: 4 | D93: 5 | E93: 2 | F93: 233.0417603 | G93: Oblique | H93: 0.3687018943
C94: 4 | D94: 1 | E94: 4 | F94: 233.7156363 | G94: Oblique | H94: 0.6738759663
C95: 6 | D95: 2 | E95: 3 | F95: 233.7883429 | G95: Oblique | H95: 0.07270665306
C96: 3 | D96: 6 | E96: 1 | F96: 235.8816964 | G96: Oblique | H96: 2.093353436
C97: 4 | D97: 4 | E97: 3 | F97: 236.0764581 | G97: Oblique | H97: 0.1947617732
C98: 2 | D98: 3 | E98: 4 | F98: 237.2806811 | G98: Oblique | H98: 1.204222953
C99: 1 | D99: 5 | E99: 3 | F99: 237.7780955 | G99: Oblique | H99: 0.497414379
C100: 6 | D100: 4 | E100: 2 | F100: 238.9792515 | G100: Oblique | H100: 1.201155989
C101: 7 | D101: 3 | E101: 2 | F101: 239.6796291 | G101: Oblique | H101: 0.7003776504
C102: 1 | D102: 6 | E102: 2 | F102: 240.20812 | G102: Oblique | H102: 0.5284908576
C103: 8 | D103: 1 | E103: 2 | F103: 240.6918593 | G103: Oblique | H103: 0.4837393417
C104: 4 | D104: 2 | E104: 4 | F104: 241.8692292 | G104: Oblique | H104: 1.177369857
C105: 7 | D105: 4 | E105: 1 | F105: 242.1988142 | G105: Oblique | H105: 0.3295850095
C106: 2 | D106: 5 | E106: 3 | F106: 242.2886547 | G106: Oblique | H106: 0.08984051635
C107: 2 | D107: 6 | E107: 2 | F107: 244.6738858 | G107: Oblique | H107: 2.385231134
C108: 3 | D108: 3 | E108: 4 | F108: 244.767381 | G108: Oblique | H108: 0.09349516544
C109: 7 | D109: 1 | E109: 3 | F109: 245.2805165 | G109: Oblique | H109: 0.5131355098
C110: 8 | D110: 3 | E110: 1 | F110: 245.8436236 | G110: Oblique | H110: 0.5631070515
C111: 4 | D111: 6 | E111: 1 | F111: 246.3588917 | G111: Oblique | H111: 0.5152681675
C112: 5 | D112: 5 | E112: 2 | F112: 246.585828 | G112: Oblique | H112: 0.2269362766
C113: 6 | D113: 5 | E113: 1 | F113: 246.799866 | G113: Oblique | H113: 0.2140380033
C114: 5 | D114: 1 | E114: 4 | F114: 247.2227885 | G114: Oblique | H114: 0.4229225136
C115: 6 | D115: 3 | E115: 3 | F115: 247.2243211 | G115: Oblique | H115: 0.001532536562
C116: 8 | D116: 2 | E116: 2 | F116: 248.6167664 | G116: Oblique | H116: 1.39244531
C117: 5 | D117: 4 | E117: 3 | F117: 249.4558129 | G117: Oblique | H117: 0.8390465767
C118: 3 | D118: 5 | E118: 3 | F118: 249.6252018 | G118: Oblique | H118: 0.1693888571
C119: 9 | D119: 1 | E119: 1 | F119: 249.7376893 | G119: Oblique | H119: 0.1124874729
C120: 1 | D120: 4 | E120: 4 | F120: 251.365825 | G120: Oblique | H120: 1.628135764
C121: 3 | D121: 6 | E121: 2 | F121: 251.9409843 | G121: Oblique | H121: 0.5751592955
C122: 7 | D122: 2 | E122: 3 | F122: 253.0617655 | G122: Oblique | H122: 1.120781163
C123: 4 | D123: 3 | E123: 4 | F123: 254.8795787 | G123: Oblique | H123: 1.817813227
C124: 5 | D124: 2 | E124: 4 | F124: 254.9447637 | G124: Oblique | H124: 0.06518498349
C125: 2 | D125: 4 | E125: 4 | F125: 255.6367491 | G125: Oblique | H125: 0.6919854191
C126: 9 | D126: 2 | E126: 1 | F126: 257.3842241 | G126: Oblique | H126: 1.747474985
C127: 7 | D127: 4 | E127: 2 | F127: 257.864985 | G127: Oblique | H127: 0.4807608996
C128: 1 | D128: 7 | E128: 1 | F128: 258.2040523 | G128: Oblique | H128: 0.3390673098
C129: 5 | D129: 6 | E129: 1 | F129: 259.2080478 | G129: Oblique | H129: 1.003995497
C130: 1 | D130: 1 | E130: 5 | F130: 259.4193628 | G130: Oblique | H130: 0.2113150254
C131: 4 | D131: 5 | E131: 3 | F131: =$B$5*SQRT((($C131/$B$2)^2)+(($D131/$B$3)^2)+(($E131/$B$4)^2)) -> 259.548204 | G131: =+IF(+AND(C131=0,D131=0)+OR(+AND(C131=0,E131=0))+OR(+AND(D131=0,E131=0)),"Axial",(+IF(+OR(C131=0,D131=0,E131=0),"Tangential","Oblique"))) -> Oblique | H131: 0.1288412024
C132: 8 | D132: 3 | E132: 2 | F132: 261.2913549 | G132: Oblique | H132: 1.743150859
C133: 4 | D133: 6 | E133: 2 | F133: 261.7762182 | G133: Oblique | H133: =F133-F132 -> 0.4848633353
C134: 6 | D134: 5 | E134: 2 | F134: 262.1912637 | G134: Oblique | H134: 0.4150454667
C135: 2 | D135: 7 | E135: 1 | F135: 262.363683 | G135: Oblique | H135: 0.1724192633
C136: 3 | D136: 4 | E136: 4 | F136: 262.6006411 | G136: Oblique | H136: 0.2369580835
C137: 6 | D137: 1 | E137: 4 | F137: 262.7904019 | G137: Oblique | H137: 0.189760894
C138: 2 | D138: 1 | E138: 5 | F138: 263.5598136 | G138: Oblique | H138: 0.7694116145
C139: 8 | D139: 4 | E139: 1 | F139: 263.604084 | G139: Oblique | H139: 0.0442704841
C140: 6 | D140: 4 | E140: 3 | F140: 264.8922249 | G140: Oblique | H140: 1.288140836
C141: 9 | D141: 1 | E141: 2 | F141: 264.9584842 | G141: Oblique | H141: 0.06625931218
C142: 7 | D142: 5 | E142: 1 | F142: 265.1291039 | G142: Oblique | H142: 0.1706196853
C143: 7 | D143: 3 | E143: 3 | F143: 265.5242603 | G143: Oblique | H143: 0.3951563775
C144: 1 | D144: 6 | E144: 3 | F144: 266.001408 | G144: Oblique | H144: 0.4771477715
C145: 8 | D145: 1 | E145: 3 | F145: 266.4383218 | G145: Oblique | H145: 0.4369137508
C146: 1 | D146: 2 | E146: 5 | F146: 266.7885515 | G146: Oblique | H146: 0.3502296905
C147: 5 | D147: 3 | E147: 4 | F147: 267.3194871 | G147: Oblique | H147: 0.530935606
C148: 3 | D148: 7 | E148: 1 | F148: 269.1535831 | G148: Oblique | H148: 1.834096068
C149: 9 | D149: 3 | E149: 1 | F149: 269.6470182 | G149: Oblique | H149: 0.493435104
C150: 2 | D150: 6 | E150: 3 | F150: 270.0409572 | G150: Oblique | H150: 0.3939389785
C151: 6 | D151: 2 | E151: 4 | F151: 270.0676225 | G151: Oblique | H151: 0.02666529214
C152: 3 | D152: 1 | E152: 5 | F152: 270.3196709 | G152: Oblique | H152: 0.2520484315
C153: 2 | D153: 2 | E153: 5 | F153: 270.8163597 | G153: Oblique | H153: 0.4966887884
C154: 5 | D154: 5 | E154: 3 | F154: 271.7744998 | G154: Oblique | H154: 0.9581400651
C155: 4 | D155: 4 | E155: 4 | F155: 272.0507775 | G155: Oblique | H155: 0.2762776822
C156: 9 | D156: 2 | E156: 2 | F156: 272.1777429 | G156: Oblique | H156: 0.1269654025
C157: 1 | D157: 7 | E157: 2 | F157: 272.9531417 | G157: Oblique | H157: 0.7753987629
C158: 1 | D158: 5 | E158: 4 | F158: 273.5287081 | G158: Oblique | H158: 0.5755664014
C159: 8 | D159: 2 | E159: 3 | F159: 273.6185386 | G159: Oblique | H159: 0.08983059178
C160: 5 | D160: 6 | E160: 2 | F160: 273.9030795 | G160: Oblique | H160: 0.2845408493
C161: 6 | D161: 6 | E161: 1 | F161: 274.0957866 | G161: Oblique | H161: 0.1927071302
C162: 3 | D162: 6 | E162: 3 | F162: 276.6424909 | G162: Oblique | H162: 2.546704252
C163: 2 | D163: 7 | E163: 2 | F163: 276.891291 | G163: Oblique | H163: 0.2488001469
C164: 3 | D164: 2 | E164: 5 | F164: 277.399441 | G164: Oblique | H164: 0.5081500008
C165: 2 | D165: 5 | E165: 4 | F165: 277.4586882 | G165: Oblique | H165: 0.05924713718
C166: 8 | D166: 4 | E166: 2 | F166: 278.0668949 | G166: Oblique | H166: 0.6082067197
C167: 4 | D167: 7 | E167: 1 | F167: 278.3813574 | G167: Oblique | H167: 0.3144625569
C168: 1 | D168: 3 | E168: 5 | F168: 278.6377699 | G168: Oblique | H168: 0.2564124799
C169: 4 | D169: 1 | E169: 5 | F169: 279.5089504 | G169: Oblique | H169: 0.8711804796
C170: 7 | D170: 5 | E170: 2 | F170: 279.5130169 | G170: Oblique | H170: 0.004066521449
C171: 7 | D171: 1 | E171: 4 | F171: 280.0751028 | G171: Oblique | H171: 0.5620858995
C172: 6 | D172: 3 | E172: 4 | F172: 281.778985 | G172: Oblique | H172: 1.703882137
C173: 7 | D173: 4 | E173: 3 | F173: 282.0481496 | G173: Oblique | H173: 0.2691645974
C174: 2 | D174: 3 | E174: 5 | F174: 282.4966838 | G174: Oblique | H174: 0.4485342005
C175: 3 | D175: 7 | E175: 2 | F175: 283.33326 | G175: Oblique | H175: 0.8365762474
C176: 5 | D176: 4 | E176: 4 | F176: 283.7388483 | G176: Oblique | H176: 0.4055883292
C177: 9 | D177: 3 | E177: 2 | F177: 283.8020425 | G177: Oblique | H177: 0.0631942163
C178: 3 | D178: 5 | E178: 4 | F178: 283.8877821 | G178: Oblique | H178: 0.08573953376
C179: 8 | D179: 5 | E179: 1 | F179: 284.8162377 | G179: Oblique | H179: 0.9284556215
C180: 8 | D180: 3 | E180: 3 | F180: 285.1841165 | G180: Oblique | H180: 0.3678788259
C181: 4 | D181: 6 | E181: 3 | F181: 285.628424 | G181: Oblique | H181: 0.4443074917
C182: 9 | D182: 4 | E182: 1 | F182: 285.9327549 | G182: Oblique | H182: 0.3043308925
C183: 6 | D183: 5 | E183: 3 | F183: 286.0088581 | G183: Oblique | H183: 0.07610323043
C184: 4 | D184: 2 | E184: 5 | F184: 286.3616223 | G184: Oblique | H184: 0.3527641641
C185: 7 | D185: 2 | E185: 4 | F185: 286.914253 | G185: Oblique | H185: 0.5526307317
C186: 6 | D186: 6 | E186: 2 | F186: 288.0322641 | G186: Oblique | H186: 1.118011037
C187: 9 | D187: 1 | E187: 3 | F187: 288.5477543 | G187: Oblique | H187: 0.5154902363
C188: 3 | D188: 3 | E188: 5 | F188: 288.8136519 | G188: Oblique | H188: 0.265897564
C189: 5 | D189: 7 | E189: 1 | F189: 289.8142313 | G189: Oblique | H189: 1.000579468
C190: 7 | D190: 6 | E190: 1 | F190: 290.7090781 | G190: Oblique | H190: 0.894846788
C191: 5 | D191: 1 | E191: 5 | F191: 290.8975109 | G191: Oblique | H191: 0.1884328109
C192: 4 | D192: 7 | E192: 2 | F192: 292.1134455 | G192: Oblique | H192: 1.215934608
C193: 4 | D193: 5 | E193: 4 | F193: 292.6513312 | G193: Oblique | H193: 0.5378856664
C194: 1 | D194: 8 | E194: 1 | F194: 293.3563695 | G194: Oblique | H194: 0.7050382755
C195: 1 | D195: 4 | E195: 5 | F195: =$B$5*SQRT((($C195/$B$2)^2)+(($D195/$B$3)^2)+(($E195/$B$4)^2)) -> 294.4266168 | G195: =+IF(+AND(C195=0,D195=0)+OR(+AND(C195=0,E195=0))+OR(+AND(D195=0,E195=0)),"Axial",(+IF(+OR(C195=0,D195=0,E195=0),"Tangential","Oblique"))) -> Oblique | H195: 1.07024735
C196: 9 | D196: 2 | E196: 3 | F196: 295.1906704 | G196: Oblique | H196: 0.7640535647
C197: 1 | D197: 7 | E197: 3 | F197: 295.9057717 | G197: Oblique | H197: =F197-F196 -> 0.715101265
C198: 5 | D198: 6 | E198: 3 | F198: 296.782252 | G198: Oblique | H198: 0.8764803709
C199: 2 | D199: 8 | E199: 1 | F199: 297.024122 | G199: Oblique | H199: 0.2418699214
C200: 6 | D200: 4 | E200: 4 | F200: 297.4011134 | G200: Oblique | H200: 0.376991421
... 531 more rows

Sheet Bonello
A1: f | B1: 16 | C1: 20 | D1: 25 | E1: 31.5 | F1: 40 | G1: 50 | H1: 63 | I1: 80 | J1: 100 | K1: 125 | L1: 160 | M1: 200 | N1: 250 | P1: 16 | Q1: 20 | R1: 25 | S1: 31.5 | T1: 40 | U1: 50 | V1: 63 | W1: 80 | X1: 100 | Y1: 125 | Z1: 160 | AA1: 200 | AB1: 250
A2: ='Mode Strength'!A2 -> 26.82953261 | B2: =IF((AND($A2>=14.1,$A2<17.8)),1,0) -> 0 | C2: =IF((AND($A2>=17.8,$A2<22.4)),1,0) -> 0 | D2: =IF((AND($A2>=22.4,$A2<28.2)),1,0) -> 1 | E2: =IF((AND($A2>=28.2,$A2<35.5)),1,0) -> 0 | F2: =IF((AND($A2>=35.5,$A2<44.7)),1,0) -> 0 | G2: =IF((AND($A2>=44.7,$A2<56.2)),1,0) -> 0 | H2: =IF((AND($A2>=56.2,$A2<70.8)),1,0) -> 0 | I2: =IF((AND($A2>=70.8,$A2<89.1)),1,0) -> 0 | J2: =IF((AND($A2>=89.1,$A2<112)),1,0) -> 0 | K2: =IF((AND($A2>=112,$A2<141)),1,0) -> 0 | L2: =IF((AND($A2>=141,$A2<178)),1,0) -> 0 | M2: =IF((AND($A2>=178,$A2<224)),1,0) -> 0 | N2: =IF((AND($A2>=224,$A2<282)),1,0) -> 0 | O2: Actual | P2: =SUM(B2:B1000) -> 0 | Q2: 0 | R2: 1 | S2: 0 | T2: 1 | U2: 3 | V2: 4 | W2: 7 | X2: 13 | Y2: 20 | Z2: 43 | AA2: 82 | AB2: 137
A3: ='Mode Strength'!A3 -> 35.90340376 | B3: =IF((AND($A3>=14.1,$A3<17.8)),1,0) -> 0 | C3: =IF((AND($A3>=17.8,$A3<22.4)),1,0) -> 0 | D3: =IF((AND($A3>=22.4,$A3<28.2)),1,0) -> 0 | E3: =IF((AND($A3>=28.2,$A3<35.5)),1,0) -> 0 | F3: =IF((AND($A3>=35.5,$A3<44.7)),1,0) -> 1 | G3: =IF((AND($A3>=44.7,$A3<56.2)),1,0) -> 0 | H3: =IF((AND($A3>=56.2,$A3<70.8)),1,0) -> 0 | I3: =IF((AND($A3>=70.8,$A3<89.1)),1,0) -> 0 | J3: =IF((AND($A3>=89.1,$A3<112)),1,0) -> 0 | K3: =IF((AND($A3>=112,$A3<141)),1,0) -> 0 | L3: =IF((AND($A3>=141,$A3<178)),1,0) -> 0 | M3: =IF((AND($A3>=178,$A3<224)),1,0) -> 0 | N3: =IF((AND($A3>=224,$A3<282)),1,0) -> 0 | O3: Ideal | Q3: =P2 -> 0 | R3: =IF(Q2>=Q3,Q2,Q3) -> 0 | S3: =IF(R2>=R3,R2,R3) -> 1 | T3: 1 | U3: 1 | V3: 3 | W3: 4 | X3: 7 | Y3: 13 | Z3: 20 | AA3: 43 | AB3: 82
A4: ='Mode Strength'!A4 -> 44.82051117 | B4: 0 | C4: 0 | D4: 0 | E4: 0 | F4: 0 | G4: 1 | H4: 0 | I4: 0 | J4: 0 | K4: 0 | L4: 0 | M4: 0 | N4: 0
A5: ='Mode Strength'!A5 -> 51.03184095 | B5: 0 | C5: 0 | D5: 0 | E5: 0 | F5: 0 | G5: 1 | H5: 0 | I5: 0 | J5: 0 | K5: 0 | L5: 0 | M5: 0 | N5: 0
A6: ='Mode Strength'!A6 -> 53.65906521 | B6: 0 | C6: 0 | D6: 0 | E6: 0 | F6: 0 | G6: 1 | H6: 0 | I6: 0 | J6: 0 | K6: 0 | L6: 0 | M6: 0 | N6: 0
A7: ='Mode Strength'!A7 -> 57.65477093 | B7: 0 | C7: 0 | D7: 0 | E7: 0 | F7: 0 | G7: 0 | H7: 1 | I7: 0 | J7: 0 | K7: 0 | L7: 0 | M7: 0 | N7: 0
A8: ='Mode Strength'!A8 -> 62.39633957 | B8: 0 | C8: 0 | D8: 0 | E8: 0 | F8: 0 | G8: 0 | H8: 1 | I8: 0 | J8: 0 | K8: 0 | L8: 0 | M8: 0 | N8: 0
A9: ='Mode Strength'!A9 -> 64.56275769 | B9: 0 | C9: 0 | D9: 0 | E9: 0 | F9: 0 | G9: 0 | H9: 1 | I9: 0 | J9: 0 | K9: 0 | L9: 0 | M9: 0 | N9: 0
A10: ='Mode Strength'!A10 -> 67.9200045 | B10: 0 | C10: 0 | D10: 0 | E10: 0 | F10: 0 | G10: 0 | H10: 1 | I10: 0 | J10: 0 | K10: 0 | L10: 0 | M10: 0 | N10: 0
A11: ='Mode Strength'!A11 -> 71.80680752 | B11: 0 | C11: 0 | D11: 0 | E11: 0 | F11: 0 | G11: 0 | H11: 0 | I11: 1 | J11: 0 | K11: 0 | L11: 0 | M11: 0 | N11: 0
A12: ='Mode Strength'!A12 -> 74.0509559 | B12: 0 | C12: 0 | D12: 0 | E12: 0 | F12: 0 | G12: 0 | H12: 0 | I12: 1 | J12: 0 | K12: 0 | L12: 0 | M12: 0 | N12: 0
A13: ='Mode Strength'!A13 -> 76.65534179 | B13: 0 | C13: 0 | D13: 0 | E13: 0 | F13: 0 | G13: 0 | H13: 0 | I13: 1 | J13: 0 | K13: 0 | L13: 0 | M13: 0 | N13: 0
A14: ='Mode Strength'!A14 -> 80.48859782 | B14: 0 | C14: 0 | D14: 0 | E14: 0 | F14: 0 | G14: 0 | H14: 0 | I14: 1 | J14: 0 | K14: 0 | L14: 0 | M14: 0 | N14: 0
A15: ='Mode Strength'!A15 -> 82.29579863 | B15: 0 | C15: 0 | D15: 0 | E15: 0 | F15: 0 | G15: 0 | H15: 0 | I15: 1 | J15: 0 | K15: 0 | L15: 0 | M15: 0 | N15: 0
A16: ='Mode Strength'!A16 -> 88.09350939 | B16: 0 | C16: 0 | D16: 0 | E16: 0 | F16: 0 | G16: 0 | H16: 0 | I16: 1 | J16: 0 | K16: 0 | L16: 0 | M16: 0 | N16: 0
A17: ='Mode Strength'!A17 -> 88.13324446 | B17: 0 | C17: 0 | D17: 0 | E17: 0 | F17: 0 | G17: 0 | H17: 0 | I17: 1 | J17: 0 | K17: 0 | L17: 0 | M17: 0 | N17: 0
A18: ='Mode Strength'!A18 -> 89.64102233 | B18: 0 | C18: 0 | D18: 0 | E18: 0 | F18: 0 | G18: 0 | H18: 0 | I18: 0 | J18: 1 | K18: 0 | L18: 0 | M18: 0 | N18: 0
A19: ='Mode Strength'!A19 -> 92.08849123 | B19: 0 | C19: 0 | D19: 0 | E19: 0 | F19: 0 | G19: 0 | H19: 0 | I19: 0 | J19: 1 | K19: 0 | L19: 0 | M19: 0 | N19: 0
A20: ='Mode Strength'!A20 -> 95.30300714 | B20: 0 | C20: 0 | D20: 0 | E20: 0 | F20: 0 | G20: 0 | H20: 0 | I20: 0 | J20: 1 | K20: 0 | L20: 0 | M20: 0 | N20: 0
A21: ='Mode Strength'!A21 -> 101.8416298 | B21: 0 | C21: 0 | D21: 0 | E21: 0 | F21: 0 | G21: 0 | H21: 0 | I21: 0 | J21: 1 | K21: 0 | L21: 0 | M21: 0 | N21: 0
A22: ='Mode Strength'!A22 -> 102.0636819 | B22: 0 | C22: 0 | D22: 0 | E22: 0 | F22: 0 | G22: 0 | H22: 0 | I22: 0 | J22: 1 | K22: 0 | L22: 0 | M22: 0 | N22: 0
A23: ='Mode Strength'!A23 -> 103.1492204 | B23: 0 | C23: 0 | D23: 0 | E23: 0 | F23: 0 | G23: 0 | H23: 0 | I23: 0 | J23: 1 | K23: 0 | L23: 0 | M23: 0 | N23: 0
A24: ='Mode Strength'!A24 -> 105.531128 | B24: 0 | C24: 0 | D24: 0 | E24: 0 | F24: 0 | G24: 0 | H24: 0 | I24: 0 | J24: 1 | K24: 0 | L24: 0 | M24: 0 | N24: 0
A25: ='Mode Strength'!A25 -> 107.3181304 | B25: 0 | C25: 0 | D25: 0 | E25: 0 | F25: 0 | G25: 0 | H25: 0 | I25: 0 | J25: 1 | K25: 0 | L25: 0 | M25: 0 | N25: 0
A26: ='Mode Strength'!A26 -> 107.7102113 | B26: 0 | C26: 0 | D26: 0 | E26: 0 | F26: 0 | G26: 0 | H26: 0 | I26: 0 | J26: 1 | K26: 0 | L26: 0 | M26: 0 | N26: 0
A27: ='Mode Strength'!A27 -> 107.8639513 | B27: 0 | C27: 0 | D27: 0 | E27: 0 | F27: 0 | G27: 0 | H27: 0 | I27: 0 | J27: 1 | K27: 0 | L27: 0 | M27: 0 | N27: 0
A28: ='Mode Strength'!A28 -> 108.1944988 | B28: 0 | C28: 0 | D28: 0 | E28: 0 | F28: 0 | G28: 0 | H28: 0 | I28: 0 | J28: 1 | K28: 0 | L28: 0 | M28: 0 | N28: 0
A29: ='Mode Strength'!A29 -> 111.0014118 | B29: 0 | C29: 0 | D29: 0 | E29: 0 | F29: 0 | G29: 0 | H29: 0 | I29: 0 | J29: 1 | K29: 0 | L29: 0 | M29: 0 | N29: 0
A30: ='Mode Strength'!A30 -> 111.4714016 | B30: 0 | C30: 0 | D30: 0 | E30: 0 | F30: 0 | G30: 0 | H30: 0 | I30: 0 | J30: 1 | K30: 0 | L30: 0 | M30: 0 | N30: 0
A31: ='Mode Strength'!A31 -> 113.164639 | B31: 0 | C31: 0 | D31: 0 | E31: 0 | F31: 0 | G31: 0 | H31: 0 | I31: 0 | J31: 0 | K31: 1 | L31: 0 | M31: 0 | N31: 0
A32: ='Mode Strength'!A32 -> 115.3095419 | B32: 0 | C32: 0 | D32: 0 | E32: 0 | F32: 0 | G32: 0 | H32: 0 | I32: 0 | J32: 0 | K32: 1 | L32: 0 | M32: 0 | N32: 0
A33: ='Mode Strength'!A33 -> 118.8336228 | B33: 0 | C33: 0 | D33: 0 | E33: 0 | F33: 0 | G33: 0 | H33: 0 | I33: 0 | J33: 0 | K33: 1 | L33: 0 | M33: 0 | N33: 0
A34: ='Mode Strength'!A34 -> 119.1878283 | B34: 0 | C34: 0 | D34: 0 | E34: 0 | F34: 0 | G34: 0 | H34: 0 | I34: 0 | J34: 0 | K34: 1 | L34: 0 | M34: 0 | N34: 0
A35: ='Mode Strength'!A35 -> 119.3267815 | B35: 0 | C35: 0 | D35: 0 | E35: 0 | F35: 0 | G35: 0 | H35: 0 | I35: 0 | J35: 0 | K35: 1 | L35: 0 | M35: 0 | N35: 0
A36: ='Mode Strength'!A36 -> 120.3361329 | B36: 0 | C36: 0 | D36: 0 | E36: 0 | F36: 0 | G36: 0 | H36: 0 | I36: 0 | J36: 0 | K36: 1 | L36: 0 | M36: 0 | N36: 0
A37: ='Mode Strength'!A37 -> 120.769801 | B37: 0 | C37: 0 | D37: 0 | E37: 0 | F37: 0 | G37: 0 | H37: 0 | I37: 0 | J37: 0 | K37: 1 | L37: 0 | M37: 0 | N37: 0
A38: ='Mode Strength'!A38 -> 122.1702182 | B38: 0 | C38: 0 | D38: 0 | E38: 0 | F38: 0 | G38: 0 | H38: 0 | I38: 0 | J38: 0 | K38: 1 | L38: 0 | M38: 0 | N38: 0
A39: ='Mode Strength'!A39 -> 124.1389718 | B39: 0 | C39: 0 | D39: 0 | E39: 0 | F39: 0 | G39: 0 | H39: 0 | I39: 0 | J39: 0 | K39: 1 | L39: 0 | M39: 0 | N39: 0
A40: ='Mode Strength'!A40 -> 124.7926791 | B40: 0 | C40: 0 | D40: 0 | E40: 0 | F40: 0 | G40: 0 | H40: 0 | I40: 0 | J40: 0 | K40: 1 | L40: 0 | M40: 0 | N40: 0
A41: ='Mode Strength'!A41 -> 127.6441796 | B41: 0 | C41: 0 | D41: 0 | E41: 0 | F41: 0 | G41: 0 | H41: 0 | I41: 0 | J41: 0 | K41: 1 | L41: 0 | M41: 0 | N41: 0 | P41: If you found this spreadsheet helpful, please send a donation via PayPal to erika@jhbrandt.net
A42: ='Mode Strength'!A42 -> 129.1255154 | B42: 0 | C42: 0 | D42: 0 | E42: 0 | F42: 0 | G42: 0 | H42: 0 | I42: 0 | J42: 0 | K42: 1 | L42: 0 | M42: 0 | N42: 0
A43: ='Mode Strength'!A43 -> 129.9823432 | B43: 0 | C43: 0 | D43: 0 | E43: 0 | F43: 0 | G43: 0 | H43: 0 | I43: 0 | J43: 0 | K43: 1 | L43: 0 | M43: 0 | N43: 0
A44: ='Mode Strength'!A44 -> 130.7097306 | B44: 0 | C44: 0 | D44: 0 | E44: 0 | F44: 0 | G44: 0 | H44: 0 | I44: 0 | J44: 0 | K44: 1 | L44: 0 | M44: 0 | N44: 0
A45: ='Mode Strength'!A45 -> 134.147663 | B45: 0 | C45: 0 | D45: 0 | E45: 0 | F45: 0 | G45: 0 | H45: 0 | I45: 0 | J45: 0 | K45: 1 | L45: 0 | M45: 0 | N45: 0
A46: ='Mode Strength'!A46 -> 134.4615335 | B46: 0 | C46: 0 | D46: 0 | E46: 0 | F46: 0 | G46: 0 | H46: 0 | I46: 0 | J46: 0 | K46: 1 | L46: 0 | M46: 0 | N46: 0
A47: ='Mode Strength'!A47 -> 134.8497829 | B47: 0 | C47: 0 | D47: 0 | E47: 0 | F47: 0 | G47: 0 | H47: 0 | I47: 0 | J47: 0 | K47: 1 | L47: 0 | M47: 0 | N47: 0
A48: ='Mode Strength'!A48 -> 135.840009 | B48: 0 | C48: 0 | D48: 0 | E48: 0 | F48: 0 | G48: 0 | H48: 0 | I48: 0 | J48: 0 | K48: 1 | L48: 0 | M48: 0 | N48: 0
A49: ='Mode Strength'!A49 -> 138.8439682 | B49: 0 | C49: 0 | D49: 0 | E49: 0 | F49: 0 | G49: 0 | H49: 0 | I49: 0 | J49: 0 | K49: 1 | L49: 0 | M49: 0 | N49: 0
A50: ='Mode Strength'!A50 -> 138.8691827 | B50: 0 | C50: 0 | D50: 0 | E50: 0 | F50: 0 | G50: 0 | H50: 0 | I50: 0 | J50: 0 | K50: 1 | L50: 0 | M50: 0 | N50: 0
A51: ='Mode Strength'!A51 -> 143.5264585 | B51: 0 | C51: 0 | D51: 0 | E51: 0 | F51: 0 | G51: 0 | H51: 0 | I51: 0 | J51: 0 | K51: 0 | L51: 1 | M51: 0 | N51: 0
A52: ='Mode Strength'!A52 -> 143.613615 | B52: 0 | C52: 0 | D52: 0 | E52: 0 | F52: 0 | G52: 0 | H52: 0 | I52: 0 | J52: 0 | K52: 0 | L52: 1 | M52: 0 | N52: 0
A53: ='Mode Strength'!A53 -> 143.8198623 | B53: 0 | C53: 0 | D53: 0 | E53: 0 | F53: 0 | G53: 0 | H53: 0 | I53: 0 | J53: 0 | K53: 0 | L53: 1 | M53: 0 | N53: 0
A54: ='Mode Strength'!A54 -> 146.0982349 | B54: 0 | C54: 0 | D54: 0 | E54: 0 | F54: 0 | G54: 0 | H54: 0 | I54: 0 | J54: 0 | K54: 0 | L54: 1 | M54: 0 | N54: 0
A55: ='Mode Strength'!A55 -> 147.9489733 | B55: 0 | C55: 0 | D55: 0 | E55: 0 | F55: 0 | G55: 0 | H55: 0 | I55: 0 | J55: 0 | K55: 0 | L55: 1 | M55: 0 | N55: 0
A56: ='Mode Strength'!A56 -> 148.1019118 | B56: 0 | C56: 0 | D56: 0 | E56: 0 | F56: 0 | G56: 0 | H56: 0 | I56: 0 | J56: 0 | K56: 0 | L56: 1 | M56: 0 | N56: 0
A57: ='Mode Strength'!A57 -> 148.3862688 | B57: 0 | C57: 0 | D57: 0 | E57: 0 | F57: 0 | G57: 0 | H57: 0 | I57: 0 | J57: 0 | K57: 0 | L57: 1 | M57: 0 | N57: 0
A58: ='Mode Strength'!A58 -> 148.4979028 | B58: 0 | C58: 0 | D58: 0 | E58: 0 | F58: 0 | G58: 0 | H58: 0 | I58: 0 | J58: 0 | K58: 0 | L58: 1 | M58: 0 | N58: 0
A59: ='Mode Strength'!A59 -> 150.7922697 | B59: 0 | C59: 0 | D59: 0 | E59: 0 | F59: 0 | G59: 0 | H59: 0 | I59: 0 | J59: 0 | K59: 0 | L59: 1 | M59: 0 | N59: 0
A60: ='Mode Strength'!A60 -> 152.0482513 | B60: 0 | C60: 0 | D60: 0 | E60: 0 | F60: 0 | G60: 0 | H60: 0 | I60: 0 | J60: 0 | K60: 0 | L60: 1 | M60: 0 | N60: 0
A61: ='Mode Strength'!A61 -> 152.1571987 | B61: 0 | C61: 0 | D61: 0 | E61: 0 | F61: 0 | G61: 0 | H61: 0 | I61: 0 | J61: 0 | K61: 0 | L61: 1 | M61: 0 | N61: 0
A62: ='Mode Strength'!A62 -> 152.3917015 | B62: 0 | C62: 0 | D62: 0 | E62: 0 | F62: 0 | G62: 0 | H62: 0 | I62: 0 | J62: 0 | K62: 0 | L62: 1 | M62: 0 | N62: 0
A63: ='Mode Strength'!A63 -> 152.4110206 | B63: 0 | C63: 0 | D63: 0 | E63: 0 | F63: 0 | G63: 0 | H63: 0 | I63: 0 | J63: 0 | K63: 0 | L63: 1 | M63: 0 | N63: 0
A64: ='Mode Strength'!A64 -> 153.0955228 | B64: 0 | C64: 0 | D64: 0 | E64: 0 | F64: 0 | G64: 0 | H64: 0 | I64: 0 | J64: 0 | K64: 0 | L64: 1 | M64: 0 | N64: 0
A65: ='Mode Strength'!A65 -> 153.3106836 | B65: 0 | C65: 0 | D65: 0 | E65: 0 | F65: 0 | G65: 0 | H65: 0 | I65: 0 | J65: 0 | K65: 0 | L65: 1 | M65: 0 | N65: 0
A66: ='Mode Strength'!A66 -> 154.7544605 | B66: 0 | C66: 0 | D66: 0 | E66: 0 | F66: 0 | G66: 0 | H66: 0 | I66: 0 | J66: 0 | K66: 0 | L66: 1 | M66: 0 | N66: 0
A67: ='Mode Strength'!A67 -> 155.4286426 | B67: =IF((AND($A67>=14.1,$A67<17.8)),1,0) -> 0 | C67: =IF((AND($A67>=17.8,$A67<22.4)),1,0) -> 0 | D67: =IF((AND($A67>=22.4,$A67<28.2)),1,0) -> 0 | E67: =IF((AND($A67>=28.2,$A67<35.5)),1,0) -> 0 | F67: =IF((AND($A67>=35.5,$A67<44.7)),1,0) -> 0 | G67: =IF((AND($A67>=44.7,$A67<56.2)),1,0) -> 0 | H67: =IF((AND($A67>=56.2,$A67<70.8)),1,0) -> 0 | I67: =IF((AND($A67>=70.8,$A67<89.1)),1,0) -> 0 | J67: =IF((AND($A67>=89.1,$A67<112)),1,0) -> 0 | K67: =IF((AND($A67>=112,$A67<141)),1,0) -> 0 | L67: =IF((AND($A67>=141,$A67<178)),1,0) -> 1 | M67: =IF((AND($A67>=178,$A67<224)),1,0) -> 0 | N67: =IF((AND($A67>=224,$A67<282)),1,0) -> 0
A68: ='Mode Strength'!A68 -> 157.2491447 | B68: 0 | C68: 0 | D68: 0 | E68: 0 | F68: 0 | G68: 0 | H68: 0 | I68: 0 | J68: 0 | K68: 0 | L68: 1 | M68: 0 | N68: 0
A69: ='Mode Strength'!A69 -> 157.7903041 | B69: 0 | C69: 0 | D69: 0 | E69: 0 | F69: 0 | G69: 0 | H69: 0 | I69: 0 | J69: 0 | K69: 0 | L69: 1 | M69: 0 | N69: 0
A70: ='Mode Strength'!A70 -> 159.5215263 | B70: 0 | C70: 0 | D70: 0 | E70: 0 | F70: 0 | G70: 0 | H70: 0 | I70: 0 | J70: 0 | K70: 0 | L70: 1 | M70: 0 | N70: 0
A71: ='Mode Strength'!A71 -> 160.3836635 | B71: 0 | C71: 0 | D71: 0 | E71: 0 | F71: 0 | G71: 0 | H71: 0 | I71: 0 | J71: 0 | K71: 0 | L71: 1 | M71: 0 | N71: 0
A72: ='Mode Strength'!A72 -> 160.4869524 | B72: 0 | C72: 0 | D72: 0 | E72: 0 | F72: 0 | G72: 0 | H72: 0 | I72: 0 | J72: 0 | K72: 0 | L72: 1 | M72: 0 | N72: 0
A73: ='Mode Strength'!A73 -> 160.9771956 | B73: 0 | C73: 0 | D73: 0 | E73: 0 | F73: 0 | G73: 0 | H73: 0 | I73: 0 | J73: 0 | K73: 0 | L73: 1 | M73: 0 | N73: 0
A74: ='Mode Strength'!A74 -> 161.5809843 | B74: 0 | C74: 0 | D74: 0 | E74: 0 | F74: 0 | G74: 0 | H74: 0 | I74: 0 | J74: 0 | K74: 0 | L74: 1 | M74: 0 | N74: 0
A75: ='Mode Strength'!A75 -> 162.2267993 | B75: 0 | C75: 0 | D75: 0 | E75: 0 | F75: 0 | G75: 0 | H75: 0 | I75: 0 | J75: 0 | K75: 0 | L75: 1 | M75: 0 | N75: 0
A76: ='Mode Strength'!A76 -> 164.5915973 | B76: 0 | C76: 0 | D76: 0 | E76: 0 | F76: 0 | G76: 0 | H76: 0 | I76: 0 | J76: 0 | K76: 0 | L76: 1 | M76: 0 | N76: 0
A77: ='Mode Strength'!A77 -> 164.6307529 | B77: 0 | C77: 0 | D77: 0 | E77: 0 | F77: 0 | G77: 0 | H77: 0 | I77: 0 | J77: 0 | K77: 0 | L77: 1 | M77: 0 | N77: 0
A78: ='Mode Strength'!A78 -> 164.9324465 | B78: 0 | C78: 0 | D78: 0 | E78: 0 | F78: 0 | G78: 0 | H78: 0 | I78: 0 | J78: 0 | K78: 0 | L78: 1 | M78: 0 | N78: 0
A79: ='Mode Strength'!A79 -> 166.152306 | B79: 0 | C79: 0 | D79: 0 | E79: 0 | F79: 0 | G79: 0 | H79: 0 | I79: 0 | J79: 0 | K79: 0 | L79: 1 | M79: 0 | N79: 0
A80: ='Mode Strength'!A80 -> 168.5603472 | B80: 0 | C80: 0 | D80: 0 | E80: 0 | F80: 0 | G80: 0 | H80: 0 | I80: 0 | J80: 0 | K80: 0 | L80: 1 | M80: 0 | N80: 0
A81: ='Mode Strength'!A81 -> 168.810246 | B81: 0 | C81: 0 | D81: 0 | E81: 0 | F81: 0 | G81: 0 | H81: 0 | I81: 0 | J81: 0 | K81: 0 | L81: 1 | M81: 0 | N81: 0
A82: ='Mode Strength'!A82 -> 168.8724557 | B82: 0 | C82: 0 | D82: 0 | E82: 0 | F82: 0 | G82: 0 | H82: 0 | I82: 0 | J82: 0 | K82: 0 | L82: 1 | M82: 0 | N82: 0
A83: ='Mode Strength'!A83 -> 169.0989554 | B83: 0 | C83: 0 | D83: 0 | E83: 0 | F83: 0 | G83: 0 | H83: 0 | I83: 0 | J83: 0 | K83: 0 | L83: 1 | M83: 0 | N83: 0
A84: ='Mode Strength'!A84 -> 171.2141365 | B84: 0 | C84: 0 | D84: 0 | E84: 0 | F84: 0 | G84: 0 | H84: 0 | I84: 0 | J84: 0 | K84: 0 | L84: 1 | M84: 0 | N84: 0
A85: ='Mode Strength'!A85 -> 172.0380339 | B85: 0 | C85: 0 | D85: 0 | E85: 0 | F85: 0 | G85: 0 | H85: 0 | I85: 0 | J85: 0 | K85: 0 | L85: 1 | M85: 0 | N85: 0
A86: ='Mode Strength'!A86 -> 172.3416521 | B86: 0 | C86: 0 | D86: 0 | E86: 0 | F86: 0 | G86: 0 | H86: 0 | I86: 0 | J86: 0 | K86: 0 | L86: 1 | M86: 0 | N86: 0
A87: ='Mode Strength'!A87 -> 172.3587352 | B87: 0 | C87: 0 | D87: 0 | E87: 0 | F87: 0 | G87: 0 | H87: 0 | I87: 0 | J87: 0 | K87: 0 | L87: 1 | M87: 0 | N87: 0
A88: ='Mode Strength'!A88 -> 172.646925 | B88: 0 | C88: 0 | D88: 0 | E88: 0 | F88: 0 | G88: 0 | H88: 0 | I88: 0 | J88: 0 | K88: 0 | L88: 1 | M88: 0 | N88: 0
A89: ='Mode Strength'!A89 -> 172.9643128 | B89: 0 | C89: 0 | D89: 0 | E89: 0 | F89: 0 | G89: 0 | H89: 0 | I89: 0 | J89: 0 | K89: 0 | L89: 1 | M89: 0 | N89: 0
A90: ='Mode Strength'!A90 -> 176.1870188 | B90: 0 | C90: 0 | D90: 0 | E90: 0 | F90: 0 | G90: 0 | H90: 0 | I90: 0 | J90: 0 | K90: 0 | L90: 1 | M90: 0 | N90: 0
A91: ='Mode Strength'!A91 -> 176.2664889 | B91: 0 | C91: 0 | D91: 0 | E91: 0 | F91: 0 | G91: 0 | H91: 0 | I91: 0 | J91: 0 | K91: 0 | L91: 1 | M91: 0 | N91: 0
A92: ='Mode Strength'!A92 -> 176.6513739 | B92: 0 | C92: 0 | D92: 0 | E92: 0 | F92: 0 | G92: 0 | H92: 0 | I92: 0 | J92: 0 | K92: 0 | L92: 1 | M92: 0 | N92: 0
A93: ='Mode Strength'!A93 -> 177.4084327 | B93: 0 | C93: 0 | D93: 0 | E93: 0 | F93: 0 | G93: 0 | H93: 0 | I93: 0 | J93: 0 | K93: 0 | L93: 1 | M93: 0 | N93: 0
A94: ='Mode Strength'!A94 -> 178.2180951 | B94: 0 | C94: 0 | D94: 0 | E94: 0 | F94: 0 | G94: 0 | H94: 0 | I94: 0 | J94: 0 | K94: 0 | L94: 0 | M94: 1 | N94: 0
A95: ='Mode Strength'!A95 -> 179.2820447 | B95: 0 | C95: 0 | D95: 0 | E95: 0 | F95: 0 | G95: 0 | H95: 0 | I95: 0 | J95: 0 | K95: 0 | L95: 0 | M95: 1 | N95: 0
A96: ='Mode Strength'!A96 -> 179.4473012 | B96: 0 | C96: 0 | D96: 0 | E96: 0 | F96: 0 | G96: 0 | H96: 0 | I96: 0 | J96: 0 | K96: 0 | L96: 0 | M96: 1 | N96: 0
A97: ='Mode Strength'!A97 -> 179.5170188 | B97: 0 | C97: 0 | D97: 0 | E97: 0 | F97: 0 | G97: 0 | H97: 0 | I97: 0 | J97: 0 | K97: 0 | L97: 0 | M97: 1 | N97: 0
A98: ='Mode Strength'!A98 -> 181.5108367 | B98: 0 | C98: 0 | D98: 0 | E98: 0 | F98: 0 | G98: 0 | H98: 0 | I98: 0 | J98: 0 | K98: 0 | L98: 0 | M98: 1 | N98: 0
A99: ='Mode Strength'!A99 -> 183.1274581 | B99: 0 | C99: 0 | D99: 0 | E99: 0 | F99: 0 | G99: 0 | H99: 0 | I99: 0 | J99: 0 | K99: 0 | L99: 0 | M99: 1 | N99: 0
A100: ='Mode Strength'!A100 -> 183.2179256 | B100: 0 | C100: 0 | D100: 0 | E100: 0 | F100: 0 | G100: 0 | H100: 0 | I100: 0 | J100: 0 | K100: 0 | L100: 0 | M100: 1 | N100: 0
A101: ='Mode Strength'!A101 -> 183.505106 | B101: 0 | C101: 0 | D101: 0 | E101: 0 | F101: 0 | G101: 0 | H101: 0 | I101: 0 | J101: 0 | K101: 0 | L101: 0 | M101: 1 | N101: 0
A102: ='Mode Strength'!A102 -> 184.1769825 | B102: 0 | C102: 0 | D102: 0 | E102: 0 | F102: 0 | G102: 0 | H102: 0 | I102: 0 | J102: 0 | K102: 0 | L102: 0 | M102: 1 | N102: 0
A103: ='Mode Strength'!A103 -> 186.4035953 | B103: 0 | C103: 0 | D103: 0 | E103: 0 | F103: 0 | G103: 0 | H103: 0 | I103: 0 | J103: 0 | K103: 0 | L103: 0 | M103: 1 | N103: 0
A104: ='Mode Strength'!A104 -> 186.6296033 | B104: 0 | C104: 0 | D104: 0 | E104: 0 | F104: 0 | G104: 0 | H104: 0 | I104: 0 | J104: 0 | K104: 0 | L104: 0 | M104: 1 | N104: 0
A105: ='Mode Strength'!A105 -> 186.9636869 | B105: 0 | C105: 0 | D105: 0 | E105: 0 | F105: 0 | G105: 0 | H105: 0 | I105: 0 | J105: 0 | K105: 0 | L105: 0 | M105: 1 | N105: 0
A106: ='Mode Strength'!A106 -> 187.1890187 | B106: 0 | C106: 0 | D106: 0 | E106: 0 | F106: 0 | G106: 0 | H106: 0 | I106: 0 | J106: 0 | K106: 0 | L106: 0 | M106: 1 | N106: 0
A107: ='Mode Strength'!A107 -> 187.2775243 | B107: 0 | C107: 0 | D107: 0 | E107: 0 | F107: 0 | G107: 0 | H107: 0 | I107: 0 | J107: 0 | K107: 0 | L107: 0 | M107: 1 | N107: 0
A108: ='Mode Strength'!A108 -> 187.3650323 | B108: 0 | C108: 0 | D108: 0 | E108: 0 | F108: 0 | G108: 0 | H108: 0 | I108: 0 | J108: 0 | K108: 0 | L108: 0 | M108: 1 | N108: 0
A109: ='Mode Strength'!A109 -> 187.8067282 | B109: 0 | C109: 0 | D109: 0 | E109: 0 | F109: 0 | G109: 0 | H109: 0 | I109: 0 | J109: 0 | K109: 0 | L109: 0 | M109: 1 | N109: 0
A110: ='Mode Strength'!A110 -> 188.5482237 | B110: 0 | C110: 0 | D110: 0 | E110: 0 | F110: 0 | G110: 0 | H110: 0 | I110: 0 | J110: 0 | K110: 0 | L110: 0 | M110: 1 | N110: 0
A111: ='Mode Strength'!A111 -> 189.1019634 | B111: 0 | C111: 0 | D111: 0 | E111: 0 | F111: 0 | G111: 0 | H111: 0 | I111: 0 | J111: 0 | K111: 0 | L111: 0 | M111: 1 | N111: 0
A112: ='Mode Strength'!A112 -> 190.3798168 | B112: 0 | C112: 0 | D112: 0 | E112: 0 | F112: 0 | G112: 0 | H112: 0 | I112: 0 | J112: 0 | K112: 0 | L112: 0 | M112: 1 | N112: 0
A113: ='Mode Strength'!A113 -> 190.6060143 | B113: 0 | C113: 0 | D113: 0 | E113: 0 | F113: 0 | G113: 0 | H113: 0 | I113: 0 | J113: 0 | K113: 0 | L113: 0 | M113: 1 | N113: 0
A114: ='Mode Strength'!A114 -> 191.2077968 | B114: 0 | C114: 0 | D114: 0 | E114: 0 | F114: 0 | G114: 0 | H114: 0 | I114: 0 | J114: 0 | K114: 0 | L114: 0 | M114: 1 | N114: 0
A115: ='Mode Strength'!A115 -> 193.6882731 | B115: 0 | C115: 0 | D115: 0 | E115: 0 | F115: 0 | G115: 0 | H115: 0 | I115: 0 | J115: 0 | K115: 0 | L115: 0 | M115: 1 | N115: 0
A116: ='Mode Strength'!A116 -> 193.7015229 | B116: 0 | C116: 0 | D116: 0 | E116: 0 | F116: 0 | G116: 0 | H116: 0 | I116: 0 | J116: 0 | K116: 0 | L116: 0 | M116: 1 | N116: 0
A117: ='Mode Strength'!A117 -> 193.9580034 | B117: 0 | C117: 0 | D117: 0 | E117: 0 | F117: 0 | G117: 0 | H117: 0 | I117: 0 | J117: 0 | K117: 0 | L117: 0 | M117: 1 | N117: 0
A118: ='Mode Strength'!A118 -> 194.1903811 | B118: 0 | C118: 0 | D118: 0 | E118: 0 | F118: 0 | G118: 0 | H118: 0 | I118: 0 | J118: 0 | K118: 0 | L118: 0 | M118: 1 | N118: 0
A119: ='Mode Strength'!A119 -> 194.6165871 | B119: 0 | C119: 0 | D119: 0 | E119: 0 | F119: 0 | G119: 0 | H119: 0 | I119: 0 | J119: 0 | K119: 0 | L119: 0 | M119: 1 | N119: 0
A120: ='Mode Strength'!A120 -> 194.7280771 | B120: 0 | C120: 0 | D120: 0 | E120: 0 | F120: 0 | G120: 0 | H120: 0 | I120: 0 | J120: 0 | K120: 0 | L120: 0 | M120: 1 | N120: 0
A121: ='Mode Strength'!A121 -> 196.5209045 | B121: 0 | C121: 0 | D121: 0 | E121: 0 | F121: 0 | G121: 0 | H121: 0 | I121: 0 | J121: 0 | K121: 0 | L121: 0 | M121: 1 | N121: 0
A122: ='Mode Strength'!A122 -> 196.7352902 | B122: 0 | C122: 0 | D122: 0 | E122: 0 | F122: 0 | G122: 0 | H122: 0 | I122: 0 | J122: 0 | K122: 0 | L122: 0 | M122: 1 | N122: 0
A123: ='Mode Strength'!A123 -> 197.9006578 | B123: 0 | C123: 0 | D123: 0 | E123: 0 | F123: 0 | G123: 0 | H123: 0 | I123: 0 | J123: 0 | K123: 0 | L123: 0 | M123: 1 | N123: 0
A124: ='Mode Strength'!A124 -> 200.0351976 | B124: 0 | C124: 0 | D124: 0 | E124: 0 | F124: 0 | G124: 0 | H124: 0 | I124: 0 | J124: 0 | K124: 0 | L124: 0 | M124: 1 | N124: 0
A125: ='Mode Strength'!A125 -> 200.2789001 | B125: 0 | C125: 0 | D125: 0 | E125: 0 | F125: 0 | G125: 0 | H125: 0 | I125: 0 | J125: 0 | K125: 0 | L125: 0 | M125: 1 | N125: 0
A126: ='Mode Strength'!A126 -> 200.2982674 | B126: 0 | C126: 0 | D126: 0 | E126: 0 | F126: 0 | G126: 0 | H126: 0 | I126: 0 | J126: 0 | K126: 0 | L126: 0 | M126: 1 | N126: 0
A127: ='Mode Strength'!A127 -> 201.0661204 | B127: 0 | C127: 0 | D127: 0 | E127: 0 | F127: 0 | G127: 0 | H127: 0 | I127: 0 | J127: 0 | K127: 0 | L127: 0 | M127: 1 | N127: 0
A128: ='Mode Strength'!A128 -> 203.0387025 | B128: 0 | C128: 0 | D128: 0 | E128: 0 | F128: 0 | G128: 0 | H128: 0 | I128: 0 | J128: 0 | K128: 0 | L128: 0 | M128: 1 | N128: 0
A129: ='Mode Strength'!A129 -> 203.2462133 | B129: 0 | C129: 0 | D129: 0 | E129: 0 | F129: 0 | G129: 0 | H129: 0 | I129: 0 | J129: 0 | K129: 0 | L129: 0 | M129: 1 | N129: 0
A130: ='Mode Strength'!A130 -> 203.5530265 | B130: 0 | C130: 0 | D130: 0 | E130: 0 | F130: 0 | G130: 0 | H130: 0 | I130: 0 | J130: 0 | K130: 0 | L130: 0 | M130: 1 | N130: 0
A131: ='Mode Strength'!A131 -> 203.6832597 | B131: =IF((AND($A131>=14.1,$A131<17.8)),1,0) -> 0 | C131: =IF((AND($A131>=17.8,$A131<22.4)),1,0) -> 0 | D131: =IF((AND($A131>=22.4,$A131<28.2)),1,0) -> 0 | E131: =IF((AND($A131>=28.2,$A131<35.5)),1,0) -> 0 | F131: =IF((AND($A131>=35.5,$A131<44.7)),1,0) -> 0 | G131: =IF((AND($A131>=44.7,$A131<56.2)),1,0) -> 0 | H131: =IF((AND($A131>=56.2,$A131<70.8)),1,0) -> 0 | I131: =IF((AND($A131>=70.8,$A131<89.1)),1,0) -> 0 | J131: =IF((AND($A131>=89.1,$A131<112)),1,0) -> 0 | K131: =IF((AND($A131>=112,$A131<141)),1,0) -> 0 | L131: =IF((AND($A131>=141,$A131<178)),1,0) -> 0 | M131: =IF((AND($A131>=178,$A131<224)),1,0) -> 1 | N131: =IF((AND($A131>=224,$A131<282)),1,0) -> 0
A132: ='Mode Strength'!A132 -> 203.7600135 | B132: 0 | C132: 0 | D132: 0 | E132: 0 | F132: 0 | G132: 0 | H132: 0 | I132: 0 | J132: 0 | K132: 0 | L132: 0 | M132: 1 | N132: 0
A133: ='Mode Strength'!A133 -> 204.1273638 | B133: 0 | C133: 0 | D133: 0 | E133: 0 | F133: 0 | G133: 0 | H133: 0 | I133: 0 | J133: 0 | K133: 0 | L133: 0 | M133: 1 | N133: 0
A134: ='Mode Strength'!A134 -> 205.8829873 | B134: 0 | C134: 0 | D134: 0 | E134: 0 | F134: 0 | G134: 0 | H134: 0 | I134: 0 | J134: 0 | K134: 0 | L134: 0 | M134: 1 | N134: 0
A135: ='Mode Strength'!A135 -> 206.2984409 | B135: 0 | C135: 0 | D135: 0 | E135: 0 | F135: 0 | G135: 0 | H135: 0 | I135: 0 | J135: 0 | K135: 0 | L135: 0 | M135: 1 | N135: 0
A136: ='Mode Strength'!A136 -> 206.502676 | B136: 0 | C136: 0 | D136: 0 | E136: 0 | F136: 0 | G136: 0 | H136: 0 | I136: 0 | J136: 0 | K136: 0 | L136: 0 | M136: 1 | N136: 0
A137: ='Mode Strength'!A137 -> 206.6951596 | B137: 0 | C137: 0 | D137: 0 | E137: 0 | F137: 0 | G137: 0 | H137: 0 | I137: 0 | J137: 0 | K137: 0 | L137: 0 | M137: 1 | N137: 0
A138: ='Mode Strength'!A138 -> 207.26079 | B138: 0 | C138: 0 | D138: 0 | E138: 0 | F138: 0 | G138: 0 | H138: 0 | I138: 0 | J138: 0 | K138: 0 | L138: 0 | M138: 1 | N138: 0
A139: ='Mode Strength'!A139 -> 207.4411569 | B139: 0 | C139: 0 | D139: 0 | E139: 0 | F139: 0 | G139: 0 | H139: 0 | I139: 0 | J139: 0 | K139: 0 | L139: 0 | M139: 1 | N139: 0
A140: ='Mode Strength'!A140 -> 208.2382746 | B140: 0 | C140: 0 | D140: 0 | E140: 0 | F140: 0 | G140: 0 | H140: 0 | I140: 0 | J140: 0 | K140: 0 | L140: 0 | M140: 1 | N140: 0
A141: ='Mode Strength'!A141 -> 208.9900928 | B141: 0 | C141: 0 | D141: 0 | E141: 0 | F141: 0 | G141: 0 | H141: 0 | I141: 0 | J141: 0 | K141: 0 | L141: 0 | M141: 1 | N141: 0
A142: ='Mode Strength'!A142 -> 209.1495665 | B142: 0 | C142: 0 | D142: 0 | E142: 0 | F142: 0 | G142: 0 | H142: 0 | I142: 0 | J142: 0 | K142: 0 | L142: 0 | M142: 1 | N142: 0
A143: ='Mode Strength'!A143 -> 209.9121472 | B143: 0 | C143: 0 | D143: 0 | E143: 0 | F143: 0 | G143: 0 | H143: 0 | I143: 0 | J143: 0 | K143: 0 | L143: 0 | M143: 1 | N143: 0
A144: ='Mode Strength'!A144 -> 211.0622561 | B144: 0 | C144: 0 | D144: 0 | E144: 0 | F144: 0 | G144: 0 | H144: 0 | I144: 0 | J144: 0 | K144: 0 | L144: 0 | M144: 1 | N144: 0
A145: ='Mode Strength'!A145 -> 211.6197849 | B145: 0 | C145: 0 | D145: 0 | E145: 0 | F145: 0 | G145: 0 | H145: 0 | I145: 0 | J145: 0 | K145: 0 | L145: 0 | M145: 1 | N145: 0
A146: ='Mode Strength'!A146 -> 213.360377 | B146: 0 | C146: 0 | D146: 0 | E146: 0 | F146: 0 | G146: 0 | H146: 0 | I146: 0 | J146: 0 | K146: 0 | L146: 0 | M146: 1 | N146: 0
A147: ='Mode Strength'!A147 -> 213.7483622 | B147: 0 | C147: 0 | D147: 0 | E147: 0 | F147: 0 | G147: 0 | H147: 0 | I147: 0 | J147: 0 | K147: 0 | L147: 0 | M147: 1 | N147: 0
A148: ='Mode Strength'!A148 -> 214.094209 | B148: 0 | C148: 0 | D148: 0 | E148: 0 | F148: 0 | G148: 0 | H148: 0 | I148: 0 | J148: 0 | K148: 0 | L148: 0 | M148: 1 | N148: 0
A149: ='Mode Strength'!A149 -> 214.6362608 | B149: 0 | C149: 0 | D149: 0 | E149: 0 | F149: 0 | G149: 0 | H149: 0 | I149: 0 | J149: 0 | K149: 0 | L149: 0 | M149: 1 | N149: 0
A150: ='Mode Strength'!A150 -> 215.2853686 | B150: 0 | C150: 0 | D150: 0 | E150: 0 | F150: 0 | G150: 0 | H150: 0 | I150: 0 | J150: 0 | K150: 0 | L150: 0 | M150: 1 | N150: 0
A151: ='Mode Strength'!A151 -> 215.4204225 | B151: 0 | C151: 0 | D151: 0 | E151: 0 | F151: 0 | G151: 0 | H151: 0 | I151: 0 | J151: 0 | K151: 0 | L151: 0 | M151: 1 | N151: 0
A152: ='Mode Strength'!A152 -> 215.7279025 | B152: 0 | C152: 0 | D152: 0 | E152: 0 | F152: 0 | G152: 0 | H152: 0 | I152: 0 | J152: 0 | K152: 0 | L152: 0 | M152: 1 | N152: 0
A153: ='Mode Strength'!A153 -> 215.7705027 | B153: 0 | C153: 0 | D153: 0 | E153: 0 | F153: 0 | G153: 0 | H153: 0 | I153: 0 | J153: 0 | K153: 0 | L153: 0 | M153: 1 | N153: 0
A154: ='Mode Strength'!A154 -> 215.8472891 | B154: 0 | C154: 0 | D154: 0 | E154: 0 | F154: 0 | G154: 0 | H154: 0 | I154: 0 | J154: 0 | K154: 0 | L154: 0 | M154: 1 | N154: 0
A155: ='Mode Strength'!A155 -> 216.3889975 | B155: 0 | C155: 0 | D155: 0 | E155: 0 | F155: 0 | G155: 0 | H155: 0 | I155: 0 | J155: 0 | K155: 0 | L155: 0 | M155: 1 | N155: 0
A156: ='Mode Strength'!A156 -> 216.5014013 | B156: 0 | C156: 0 | D156: 0 | E156: 0 | F156: 0 | G156: 0 | H156: 0 | I156: 0 | J156: 0 | K156: 0 | L156: 0 | M156: 1 | N156: 0
A157: ='Mode Strength'!A157 -> 216.6619598 | B157: 0 | C157: 0 | D157: 0 | E157: 0 | F157: 0 | G157: 0 | H157: 0 | I157: 0 | J157: 0 | K157: 0 | L157: 0 | M157: 1 | N157: 0
A158: ='Mode Strength'!A158 -> 216.7427432 | B158: 0 | C158: 0 | D158: 0 | E158: 0 | F158: 0 | G158: 0 | H158: 0 | I158: 0 | J158: 0 | K158: 0 | L158: 0 | M158: 1 | N158: 0
A159: ='Mode Strength'!A159 -> 217.0847352 | B159: 0 | C159: 0 | D159: 0 | E159: 0 | F159: 0 | G159: 0 | H159: 0 | I159: 0 | J159: 0 | K159: 0 | L159: 0 | M159: 1 | N159: 0
A160: ='Mode Strength'!A160 -> 217.6184249 | B160: 0 | C160: 0 | D160: 0 | E160: 0 | F160: 0 | G160: 0 | H160: 0 | I160: 0 | J160: 0 | K160: 0 | L160: 0 | M160: 1 | N160: 0
A161: ='Mode Strength'!A161 -> 218.0459174 | B161: 0 | C161: 0 | D161: 0 | E161: 0 | F161: 0 | G161: 0 | H161: 0 | I161: 0 | J161: 0 | K161: 0 | L161: 0 | M161: 1 | N161: 0
A162: ='Mode Strength'!A162 -> 218.9341049 | B162: 0 | C162: 0 | D162: 0 | E162: 0 | F162: 0 | G162: 0 | H162: 0 | I162: 0 | J162: 0 | K162: 0 | L162: 0 | M162: 1 | N162: 0
A163: ='Mode Strength'!A163 -> 219.4228681 | B163: 0 | C163: 0 | D163: 0 | E163: 0 | F163: 0 | G163: 0 | H163: 0 | I163: 0 | J163: 0 | K163: 0 | L163: 0 | M163: 1 | N163: 0
A164: ='Mode Strength'!A164 -> 220.6195215 | B164: 0 | C164: 0 | D164: 0 | E164: 0 | F164: 0 | G164: 0 | H164: 0 | I164: 0 | J164: 0 | K164: 0 | L164: 0 | M164: 1 | N164: 0
A165: ='Mode Strength'!A165 -> 221.3824908 | B165: 0 | C165: 0 | D165: 0 | E165: 0 | F165: 0 | G165: 0 | H165: 0 | I165: 0 | J165: 0 | K165: 0 | L165: 0 | M165: 1 | N165: 0
A166: ='Mode Strength'!A166 -> 221.444036 | B166: 0 | C166: 0 | D166: 0 | E166: 0 | F166: 0 | G166: 0 | H166: 0 | I166: 0 | J166: 0 | K166: 0 | L166: 0 | M166: 1 | N166: 0
A167: ='Mode Strength'!A167 -> 221.634315 | B167: 0 | C167: 0 | D167: 0 | E167: 0 | F167: 0 | G167: 0 | H167: 0 | I167: 0 | J167: 0 | K167: 0 | L167: 0 | M167: 1 | N167: 0
A168: ='Mode Strength'!A168 -> 221.6817014 | B168: 0 | C168: 0 | D168: 0 | E168: 0 | F168: 0 | G168: 0 | H168: 0 | I168: 0 | J168: 0 | K168: 0 | L168: 0 | M168: 1 | N168: 0
A169: ='Mode Strength'!A169 -> 222.0028237 | B169: 0 | C169: 0 | D169: 0 | E169: 0 | F169: 0 | G169: 0 | H169: 0 | I169: 0 | J169: 0 | K169: 0 | L169: 0 | M169: 1 | N169: 0
A170: ='Mode Strength'!A170 -> 222.1528677 | B170: 0 | C170: 0 | D170: 0 | E170: 0 | F170: 0 | G170: 0 | H170: 0 | I170: 0 | J170: 0 | K170: 0 | L170: 0 | M170: 1 | N170: 0
A171: ='Mode Strength'!A171 -> 222.3408407 | B171: 0 | C171: 0 | D171: 0 | E171: 0 | F171: 0 | G171: 0 | H171: 0 | I171: 0 | J171: 0 | K171: 0 | L171: 0 | M171: 1 | N171: 0
A172: ='Mode Strength'!A172 -> 222.4344973 | B172: 0 | C172: 0 | D172: 0 | E172: 0 | F172: 0 | G172: 0 | H172: 0 | I172: 0 | J172: 0 | K172: 0 | L172: 0 | M172: 1 | N172: 0
A173: ='Mode Strength'!A173 -> 222.9428033 | B173: 0 | C173: 0 | D173: 0 | E173: 0 | F173: 0 | G173: 0 | H173: 0 | I173: 0 | J173: 0 | K173: 0 | L173: 0 | M173: 1 | N173: 0
A174: ='Mode Strength'!A174 -> 223.0023118 | B174: 0 | C174: 0 | D174: 0 | E174: 0 | F174: 0 | G174: 0 | H174: 0 | I174: 0 | J174: 0 | K174: 0 | L174: 0 | M174: 1 | N174: 0
A175: ='Mode Strength'!A175 -> 223.5218729 | B175: 0 | C175: 0 | D175: 0 | E175: 0 | F175: 0 | G175: 0 | H175: 0 | I175: 0 | J175: 0 | K175: 0 | L175: 0 | M175: 1 | N175: 0
A176: ='Mode Strength'!A176 -> 224.1025558 | B176: 0 | C176: 0 | D176: 0 | E176: 0 | F176: 0 | G176: 0 | H176: 0 | I176: 0 | J176: 0 | K176: 0 | L176: 0 | M176: 0 | N176: 1
A177: ='Mode Strength'!A177 -> 224.8144211 | B177: 0 | C177: 0 | D177: 0 | E177: 0 | F177: 0 | G177: 0 | H177: 0 | I177: 0 | J177: 0 | K177: 0 | L177: 0 | M177: 0 | N177: 1
A178: ='Mode Strength'!A178 -> 225.0354439 | B178: 0 | C178: 0 | D178: 0 | E178: 0 | F178: 0 | G178: 0 | H178: 0 | I178: 0 | J178: 0 | K178: 0 | L178: 0 | M178: 0 | N178: 1
A179: ='Mode Strength'!A179 -> 225.4874275 | B179: 0 | C179: 0 | D179: 0 | E179: 0 | F179: 0 | G179: 0 | H179: 0 | I179: 0 | J179: 0 | K179: 0 | L179: 0 | M179: 0 | N179: 1
A180: ='Mode Strength'!A180 -> 226.329278 | B180: 0 | C180: 0 | D180: 0 | E180: 0 | F180: 0 | G180: 0 | H180: 0 | I180: 0 | J180: 0 | K180: 0 | L180: 0 | M180: 0 | N180: 1
A181: ='Mode Strength'!A181 -> 227.7926744 | B181: 0 | C181: 0 | D181: 0 | E181: 0 | F181: 0 | G181: 0 | H181: 0 | I181: 0 | J181: 0 | K181: 0 | L181: 0 | M181: 0 | N181: 1
A182: ='Mode Strength'!A182 -> 229.8395186 | B182: 0 | C182: 0 | D182: 0 | E182: 0 | F182: 0 | G182: 0 | H182: 0 | I182: 0 | J182: 0 | K182: 0 | L182: 0 | M182: 0 | N182: 1
A183: ='Mode Strength'!A183 -> 229.9660254 | B183: 0 | C183: 0 | D183: 0 | E183: 0 | F183: 0 | G183: 0 | H183: 0 | I183: 0 | J183: 0 | K183: 0 | L183: 0 | M183: 0 | N183: 1
A184: ='Mode Strength'!A184 -> 230.2939952 | B184: 0 | C184: 0 | D184: 0 | E184: 0 | F184: 0 | G184: 0 | H184: 0 | I184: 0 | J184: 0 | K184: 0 | L184: 0 | M184: 0 | N184: 1
A185: ='Mode Strength'!A185 -> 230.6190837 | B185: 0 | C185: 0 | D185: 0 | E185: 0 | F185: 0 | G185: 0 | H185: 0 | I185: 0 | J185: 0 | K185: 0 | L185: 0 | M185: 0 | N185: 1
A186: ='Mode Strength'!A186 -> 230.8017987 | B186: 0 | C186: 0 | D186: 0 | E186: 0 | F186: 0 | G186: 0 | H186: 0 | I186: 0 | J186: 0 | K186: 0 | L186: 0 | M186: 0 | N186: 1
A187: ='Mode Strength'!A187 -> 230.8735858 | B187: 0 | C187: 0 | D187: 0 | E187: 0 | F187: 0 | G187: 0 | H187: 0 | I187: 0 | J187: 0 | K187: 0 | L187: 0 | M187: 0 | N187: 1
A188: ='Mode Strength'!A188 -> 232.0111869 | B188: 0 | C188: 0 | D188: 0 | E188: 0 | F188: 0 | G188: 0 | H188: 0 | I188: 0 | J188: 0 | K188: 0 | L188: 0 | M188: 0 | N188: 1
A189: ='Mode Strength'!A189 -> 232.3559642 | B189: 0 | C189: 0 | D189: 0 | E189: 0 | F189: 0 | G189: 0 | H189: 0 | I189: 0 | J189: 0 | K189: 0 | L189: 0 | M189: 0 | N189: 1
A190: ='Mode Strength'!A190 -> 232.7241636 | B190: 0 | C190: 0 | D190: 0 | E190: 0 | F190: 0 | G190: 0 | H190: 0 | I190: 0 | J190: 0 | K190: 0 | L190: 0 | M190: 0 | N190: 1
A191: ='Mode Strength'!A191 -> 233.3971212 | B191: 0 | C191: 0 | D191: 0 | E191: 0 | F191: 0 | G191: 0 | H191: 0 | I191: 0 | J191: 0 | K191: 0 | L191: 0 | M191: 0 | N191: 1
A192: ='Mode Strength'!A192 -> 233.4697287 | B192: 0 | C192: 0 | D192: 0 | E192: 0 | F192: 0 | G192: 0 | H192: 0 | I192: 0 | J192: 0 | K192: 0 | L192: 0 | M192: 0 | N192: 1
A193: ='Mode Strength'!A193 -> 235.5602293 | B193: 0 | C193: 0 | D193: 0 | E193: 0 | F193: 0 | G193: 0 | H193: 0 | I193: 0 | J193: 0 | K193: 0 | L193: 0 | M193: 0 | N193: 1
A194: ='Mode Strength'!A194 -> 235.7547256 | B194: 0 | C194: 0 | D194: 0 | E194: 0 | F194: 0 | G194: 0 | H194: 0 | I194: 0 | J194: 0 | K194: 0 | L194: 0 | M194: 0 | N194: 1
A195: ='Mode Strength'!A195 -> 235.9334634 | B195: =IF((AND($A195>=14.1,$A195<17.8)),1,0) -> 0 | C195: =IF((AND($A195>=17.8,$A195<22.4)),1,0) -> 0 | D195: =IF((AND($A195>=22.4,$A195<28.2)),1,0) -> 0 | E195: =IF((AND($A195>=28.2,$A195<35.5)),1,0) -> 0 | F195: =IF((AND($A195>=35.5,$A195<44.7)),1,0) -> 0 | G195: =IF((AND($A195>=44.7,$A195<56.2)),1,0) -> 0 | H195: =IF((AND($A195>=56.2,$A195<70.8)),1,0) -> 0 | I195: =IF((AND($A195>=70.8,$A195<89.1)),1,0) -> 0 | J195: =IF((AND($A195>=89.1,$A195<112)),1,0) -> 0 | K195: =IF((AND($A195>=112,$A195<141)),1,0) -> 0 | L195: =IF((AND($A195>=141,$A195<178)),1,0) -> 0 | M195: =IF((AND($A195>=178,$A195<224)),1,0) -> 0 | N195: =IF((AND($A195>=224,$A195<282)),1,0) -> 1
A196: ='Mode Strength'!A196 -> 236.4238516 | B196: 0 | C196: 0 | D196: 0 | E196: 0 | F196: 0 | G196: 0 | H196: 0 | I196: 0 | J196: 0 | K196: 0 | L196: 0 | M196: 0 | N196: 1
A197: ='Mode Strength'!A197 -> 236.9573074 | B197: 0 | C197: 0 | D197: 0 | E197: 0 | F197: 0 | G197: 0 | H197: 0 | I197: 0 | J197: 0 | K197: 0 | L197: 0 | M197: 0 | N197: 1
A198: ='Mode Strength'!A198 -> 237.4540439 | B198: 0 | C198: 0 | D198: 0 | E198: 0 | F198: 0 | G198: 0 | H198: 0 | I198: 0 | J198: 0 | K198: 0 | L198: 0 | M198: 0 | N198: 1
A199: ='Mode Strength'!A199 -> 237.6672456 | B199: 0 | C199: 0 | D199: 0 | E199: 0 | F199: 0 | G199: 0 | H199: 0 | I199: 0 | J199: 0 | K199: 0 | L199: 0 | M199: 0 | N199: 1
A200: ='Mode Strength'!A200 -> 238.3756565 | B200: 0 | C200: 0 | D200: 0 | E200: 0 | F200: 0 | G200: 0 | H200: 0 | I200: 0 | J200: 0 | K200: 0 | L200: 0 | M200: 0 | N200: 1
... 800 more rows

Sheet Ideal Rooms - METRIC
A1: Ideal Room Dimensions for Low Frequency Mode Response
A2: In the yellow boxes - Enter the room height in meters & the spreadsheet will automatically calculate ideal widths and depths | Y2: 2
B3: Dimensions | C3: Height | D3: Width | E3: Length | H3: PHI - Golden Ratio | Y3: 3
B4: A | C4: 1 | D4: 1.14 | E4: 1.39 | F4: L. W. Sepmeyer, 1965 | H4: =((SQRT(5)+1)/2) -> 1.618033989 | Y4: 5
B5: B | C5: 1 | D5: 1.28 | E5: 1.54 | F5: L. W. Sepmeyer, 1965 | Y5: 7
B6: C | C6: 1 | D6: 1.6 | E6: 2.33 | F6: L. W. Sepmeyer, 1965 | Y6: 11
B7: D | C7: 1 | D7: 1.4 | E7: 1.9 | F7: M. M. Louden, 1971 | Y7: 13
B8: E | C8: 1 | D8: 1.3 | E8: 1.9 | F8: M. M. Louden, 1971 | Y8: 17
B9: F | C9: 1 | D9: 1.5 | E9: 2.1 | F9: M. M. Louden, 1971 | Y9: 19
B10: G | C10: 1 | D10: 1.5 | E10: 2.5 | F10: Richard H. Bolt, 1946 | Y10: 23
B11: H | C11: 1 | D11: 1.26 | E11: 1.59 | F11: Richard H. Bolt, 1946 | Y11: 29
B12: I | C12: 1 | D12: 1.96 | E12: 2.59 | F12: IEC 60268-13, 1998 | Y12: 31
B13: J | C13: 1 | D13: 1.62 | E13: 2.62 | F13: The Golden Ratio, 1968 | Y13: 37
B14: K | C14: 1 | D14: 1.49 | E14: 2.31 | F14: Dolby Lab Recomendations | M14: Sonic Behavior Characteristics | Y14: 41
B15: L | C15: 1 | D15: 1.07 | E15: 1.87 | F15: Worst ratio (RPG Inc.) | Y15: 43
L16: Wave Region | M16: Transitional region from F² to F³ | O16: Ray Region | Y16: 47
Y17: 53
B18: IT IS HIGHLY RECOMMENDED TO ALWAYS USE PRIME NUMBERS | Y18: 59
Y19: 61
C20: If you found this spreadsheet helpful, please send a donation via PayPal to erika@jhbrandt.net | M20: cubic meters | N20: Useable YES | O20: Useable NO | Y20: 67
K21: Minimum size | M21: Legend -> | N21: 1 | O21: 0 | Y21: 71
K22: 42 | Y22: 73
Y23: 79
A24: **Note: you can change the numbers in the yellow blocks and all the other ratios will change too! | K24: USEABLE? | Q24: USING PRIMES | Y24: 83
A25: HEIGHT m | B25: HEIGHT cm | C25: PRIME height | D25: WIDTH cm | E25: PRIME width | F25: DEPTH cm | G25: PRIME depth | H25: VOLUME | I25: PRIME volume | J25: TABLE | K25: 1=Yes 0=NO | L25: F¹ | M25: F² | N25: F³ | O25: minimum RT60 | P25: Floor area | Q25: F¹ | R25: F² | S25: F³ | T25: minimum RT60 | U25: Floor area | Y25: 89
A26: 2.4 | B26: =A26*100 -> 240 | C26: =INDEX($Y$2:$Y$276,MATCH(MIN(ABS($Y$2:$Y$276-B26)),ABS($Y$2:$Y$276-B26),0)) -> 239 | D26: =B26*$D$4 -> 273.6 | E26: =INDEX($Y$2:$Y$276,MATCH(MIN(ABS($Y$2:$Y$276-D26)),ABS($Y$2:$Y$276-D26),0)) -> 271 | F26: =B26*$E$4 -> 333.6 | G26: =INDEX($Y$2:$Y$276,MATCH(MIN(ABS($Y$2:$Y$276-F26)),ABS($Y$2:$Y$276-F26),0)) -> 331 | H26: =(B26/100)*(D26/100)*(F26/100) -> 21.9055104 | I26: =(C26/100)*(E26/100)*(G26/100) -> 21.438539 | J26: A | K26: =IF(H26>$K$22,$N$21,$O$21) -> 0 | L26: =565/(F26*0.0328083989501312) -> 51.62230216 | M26: =(SQRT(O26/(H26*35.3146667214885))*11250) -> 86.68979844 | N26: =4*M26 -> 346.7591938 | O26: =0.25*(((0.028316846592*H26)/100)^(1/3)) -> 0.0459345462 | P26: =(D26/100)*(F26/100) -> 9.127296 | Q26: =565/(G26*0.0328083989501312) -> 52.02779456 | R26: =(SQRT(T26/(I26*35.3146667214885))*11250) -> 87.31470484 | S26: =4*R26 -> 349.2588194 | T26: =0.25*(((0.028316846592*I26)/100)^(1/3)) -> 0.04560579526 | U26: =(E26/100)*(G26/100) -> 8.9701 | Y26: 97
A27: 2.55 | B27: =A27*100 -> 255 | C27: =INDEX($Y$2:$Y$276,MATCH(MIN(ABS($Y$2:$Y$276-B27)),ABS($Y$2:$Y$276-B27),0)) -> 257 | D27: 290.7 | E27: =INDEX($Y$2:$Y$276,MATCH(MIN(ABS($Y$2:$Y$276-D27)),ABS($Y$2:$Y$276-D27),0)) -> 293 | F27: 354.45 | G27: =INDEX($Y$2:$Y$276,MATCH(MIN(ABS($Y$2:$Y$276-F27)),ABS($Y$2:$Y$276-F27),0)) -> 353 | H27: =(B27/100)*(D27/100)*(F27/100) -> 26.27484682 | I27: =(C27/100)*(E27/100)*(G27/100) -> 26.581253 | J27: A | K27: 0 | L27: 48.58569615 | M27: 81.59039854 | N27: =4*M27 -> 326.3615941 | O27: 0.04880545534 | P27: 10.3038615 | Q27: 48.78526912 | R27: 81.27568449 | S27: =4*R27 -> 325.102738 | T27: 0.04899443883 | U27: 10.3429 | Y27: 101
A28: 2.7 | B28: 270 | C28: =INDEX($Y$2:$Y$276,MATCH(MIN(ABS($Y$2:$Y$276-B28)),ABS($Y$2:$Y$276-B28),0)) -> 269 | D28: 307.8 | E28: =INDEX($Y$2:$Y$276,MATCH(MIN(ABS($Y$2:$Y$276-D28)),ABS($Y$2:$Y$276-D28),0)) -> 307 | F28: 375.3 | G28: =INDEX($Y$2:$Y$276,MATCH(MIN(ABS($Y$2:$Y$276-F28)),ABS($Y$2:$Y$276-F28),0)) -> 373 | H28: 31.1896818 | I28: 30.803459 | J28: A | K28: 0 | L28: 45.88649081 | M28: 77.05759862 | N28: 308.2303945 | O28: 0.05167636448 | P28: 11.551734 | Q28: 46.169437 | R28: 77.37831882 | S28: 309.5132753 | T28: 0.05146217458 | U28: 11.4511 | Y28: 103
A29: 2.85 | B29: 285 | C29: =INDEX($Y$2:$Y$276,MATCH(MIN(ABS($Y$2:$Y$276-B29)),ABS($Y$2:$Y$276-B29),0)) -> 283 | D29: 324.9 | E29: =INDEX($Y$2:$Y$276,MATCH(MIN(ABS($Y$2:$Y$276-D29)),ABS($Y$2:$Y$276-D29),0)) -> 331 | F29: 396.15 | G29: =INDEX($Y$2:$Y$276,MATCH(MIN(ABS($Y$2:$Y$276-F29)),ABS($Y$2:$Y$276-F29),0)) -> 397 | H29: 36.68210347 | I29: 37.188181 | J29: A | K29: 0 | L29: 43.47141234 | M29: 73.00193553 | N29: 292.0077421 | O29: 0.05454727362 | P29: 12.8709135 | Q29: 43.37833753 | R29: 72.66927155 | S29: 290.6770862 | T29: 0.05479697907 | U29: 13.1407 | Y29: 107
A30: 3 | B30: 300 | C30: =INDEX($Y$2:$Y$276,MATCH(MIN(ABS($Y$2:$Y$276-B30)),ABS($Y$2:$Y$276-B30),0)) -> 293 | D30: 342 | E30: =INDEX($Y$2:$Y$276,MATCH(MIN(ABS($Y$2:$Y$276-D30)),ABS($Y$2:$Y$276-D30),0)) -> 337 | F30: 417 | G30: =INDEX($Y$2:$Y$276,MATCH(MIN(ABS($Y$2:$Y$276-F30)),ABS($Y$2:$Y$276-F30),0)) -> 419 | H30: 42.7842 | I30: 41.372479 | J30: A | K30: 1 | L30: 41.29784173 | M30: 69.35183876 | N30: 277.407355 | O30: 0.05741818275 | P30: 14.2614 | Q30: 41.10071599 | R30: 70.13184604 | S30: 280.5273842 | T30: 0.056779577 | U30: 14.1203 | Y30: 109
A31: 3.2 | B31: 320 | C31: =INDEX($Y$2:$Y$276,MATCH(MIN(ABS($Y$2:$Y$276-B31)),ABS($Y$2:$Y$276-B31),0)) -> 317 | D31: 364.8 | E31: =INDEX($Y$2:$Y$276,MATCH(MIN(ABS($Y$2:$Y$276-D31)),ABS($Y$2:$Y$276-D31),0)) -> 367 | F31: 444.8 | G31: =INDEX($Y$2:$Y$276,MATCH(MIN(ABS($Y$2:$Y$276-F31)),ABS($Y$2:$Y$276-F31),0)) -> 443 | H31: 51.9241728 | I31: 51.538177 | J31: A | K31: 1 | L31: 38.71672662 | M31: 65.01734883 | N31: 260.0693953 | O31: 0.0612460616 | P31: 16.226304 | Q31: 38.87404063 | R31: 65.17926136 | S31: 260.7170454 | T31: 0.06109391958 | U31: 16.2581 | Y31: 113
A32: 3.3 | B32: 330 | C32: =INDEX($Y$2:$Y$276,MATCH(MIN(ABS($Y$2:$Y$276-B32)),ABS($Y$2:$Y$276-B32),0)) -> 331 | D32: 376.2 | E32: =INDEX($Y$2:$Y$276,MATCH(MIN(ABS($Y$2:$Y$276-D32)),ABS($Y$2:$Y$276-D32),0)) -> 379 | F32: 458.7 | G32: =INDEX($Y$2:$Y$276,MATCH(MIN(ABS($Y$2:$Y$276-F32)),ABS($Y$2:$Y$276-F32),0)) -> 457 | H32: 56.9457702 | I32: 57.330193 | J32: A | K32: 1 | L32: 37.54349248 | M32: 63.04712614 | N32: 252.1885046 | O32: 0.06316000103 | P32: 17.256294 | Q32: 37.68315098 | R32: 62.90589092 | S32: 251.6235637 | T32: 0.06330180678 | U32: 17.3203 | Y32: 127
A33: 3.4 | B33: 340 | C33: =INDEX($Y$2:$Y$276,MATCH(MIN(ABS($Y$2:$Y$276-B33)),ABS($Y$2:$Y$276-B33),0)) -> 337 | D33: 387.6 | E33: =INDEX($Y$2:$Y$276,MATCH(MIN(ABS($Y$2:$Y$276-D33)),ABS($Y$2:$Y$276-D33),0)) -> 389 | F33: 472.6 | G33: =INDEX($Y$2:$Y$276,MATCH(MIN(ABS($Y$2:$Y$276-F33)),ABS($Y$2:$Y$276-F33),0)) -> 467 | H33: 62.2811184 | I33: 61.220431 | J33: A | K33: 1 | L33: 36.43927211 | M33: 61.1927989 | N33: 244.7711956 | O33: 0.06507394045 | P33: 18.317976 | Q33: 36.87623126 | R33: 61.54418022 | S33: 246.1767209 | T33: 0.06470240626 | U33: 18.1663 | Y33: 131
A34: 3.6 | B34: 360 | C34: =INDEX($Y$2:$Y$276,MATCH(MIN(ABS($Y$2:$Y$276-B34)),ABS($Y$2:$Y$276-B34),0)) -> 359 | D34: 410.4 | E34: =INDEX($Y$2:$Y$276,MATCH(MIN(ABS($Y$2:$Y$276-D34)),ABS($Y$2:$Y$276-D34),0)) -> 409 | F34: 500.4 | G34: =INDEX($Y$2:$Y$276,MATCH(MIN(ABS($Y$2:$Y$276-F34)),ABS($Y$2:$Y$276-F34),0)) -> 499 | H34: 73.9310976 | I34: 73.268669 | J34: A | K34: 1 | L34: 34.41486811 | M34: 57.79319896 | N34: 231.1727959 | O34: 0.0689018193 | P34: 20.536416 | Q34: 34.51142285 | R34: 57.96684785 | S34: 231.8673914 | T34: 0.06869541298 | U34: 20.4091 | Y34: 137
A35: 3.75 | B35: 375 | C35: =INDEX($Y$2:$Y$276,MATCH(MIN(ABS($Y$2:$Y$276-B35)),ABS($Y$2:$Y$276-B35),0)) -> 373 | D35: 427.5 | E35: =INDEX($Y$2:$Y$276,MATCH(MIN(ABS($Y$2:$Y$276-D35)),ABS($Y$2:$Y$276-D35),0)) -> 431 | F35: 521.25 | G35: =INDEX($Y$2:$Y$276,MATCH(MIN(ABS($Y$2:$Y$276-F35)),ABS($Y$2:$Y$276-F35),0)) -> 521 | H35: 83.56289062 | I35: 83.757523 | J35: A | K35: 1 | L35: 33.03827338 | M35: 55.481471 | N35: 221.925884 | O35: 0.07177272844 | P35: 22.2834375 | Q35: 33.05412668 | R35: 55.43846247 | S35: 221.7538499 | T35: 0.07182840892 | U35: 22.4551 | Y35: 139
A36: 3.9 | B36: 390 | C36: =INDEX($Y$2:$Y$276,MATCH(MIN(ABS($Y$2:$Y$276-B36)),ABS($Y$2:$Y$276-B36),0)) -> 389 | D36: 444.6 | E36: =INDEX($Y$2:$Y$276,MATCH(MIN(ABS($Y$2:$Y$276-D36)),ABS($Y$2:$Y$276-D36),0)) -> 443 | F36: 542.1 | G36: =INDEX($Y$2:$Y$276,MATCH(MIN(ABS($Y$2:$Y$276-F36)),ABS($Y$2:$Y$276-F36),0)) -> 541 | H36: 93.9968874 | I36: 93.228907 | J36: A | K36: 1 | L36: 31.76757056 | M36: 53.34756827 | N36: 213.3902731 | O36: 0.07464363758 | P36: 24.101766 | Q36: 31.83216266 | R36: 53.4936528 | S36: 213.9746112 | T36: 0.07443979507 | U36: 23.9663 | Y36: 149
A37: 4.05 | B37: 405 | C37: =INDEX($Y$2:$Y$276,MATCH(MIN(ABS($Y$2:$Y$276-B37)),ABS($Y$2:$Y$276-B37),0)) -> 401 | D37: 461.7 | E37: =INDEX($Y$2:$Y$276,MATCH(MIN(ABS($Y$2:$Y$276-D37)),ABS($Y$2:$Y$276-D37),0)) -> 461 | F37: 562.95 | G37: =INDEX($Y$2:$Y$276,MATCH(MIN(ABS($Y$2:$Y$276-F37)),ABS($Y$2:$Y$276-F37),0)) -> 563 | H37: =(B37/100)*(D37/100)*(F37/100) -> 105.2651761 | I37: 104.076743 | J37: A | K37: 1 | L37: 30.59099387 | M37: 51.37173241 | N37: 205.4869296 | O37: 0.07751454672 | P37: 25.9914015 | Q37: 30.58827709 | R37: 51.56652761 | S37: 206.2661104 | T37: 0.07722173155 | U37: 25.9543 | Y37: 151
A38: 4.2 | B38: 420 | C38: =INDEX($Y$2:$Y$276,MATCH(MIN(ABS($Y$2:$Y$276-B38)),ABS($Y$2:$Y$276-B38),0)) -> 419 | D38: 478.8 | E38: =INDEX($Y$2:$Y$276,MATCH(MIN(ABS($Y$2:$Y$276-D38)),ABS($Y$2:$Y$276-D38),0)) -> 479 | F38: 583.8 | G38: =INDEX($Y$2:$Y$276,MATCH(MIN(ABS($Y$2:$Y$276-F38)),ABS($Y$2:$Y$276-F38),0)) -> 587 | H38: =(B38/100)*(D38/100)*(F38/100) -> 117.3998448 | I38: 117.811487 | J38: A | K38: 1 | L38: 29.49845838 | M38: 49.53702768 | N38: 198.1481107 | O38: 0.08038545586 | P38: 27.952344 | Q38: 29.33764906 | R38: 49.47926499 | S38: 197.9170599 | T38: 0.08047929881 | U38: 28.1173 | Y38: 157
A39: 4.35 | B39: 435 | C39: =INDEX($Y$2:$Y$276,MATCH(MIN(ABS($Y$2:$Y$276-B39)),ABS($Y$2:$Y$276-B39),0)) -> 433 | D39: 495.9 | E39: =INDEX($Y$2:$Y$276,MATCH(MIN(ABS($Y$2:$Y$276-D39)),ABS($Y$2:$Y$276-D39),0)) -> 499 | F39: 604.65 | G39: =INDEX($Y$2:$Y$276,MATCH(MIN(ABS($Y$2:$Y$276-F39)),ABS($Y$2:$Y$276-F39),0)) -> 607 | H39: =(B39/100)*(D39/100)*(F39/100) -> 130.4329817 | I39: 131.152669 | J39: A | K39: 1 | L39: 28.48127016 | M39: 47.82885431 | N39: 191.3154173 | O39: 0.08325636499 | P39: 29.9845935 | Q39: 28.37100494 | R39: 47.74120844 | S39: 190.9648337 | T39: 0.08340921151 | U39: 30.2893 | Y39: 163
A40: 4.5 | B40: 450 | C40: =INDEX($Y$2:$Y$276,MATCH(MIN(ABS($Y$2:$Y$276-B40)),ABS($Y$2:$Y$276-B40),0)) -> 449 | D40: 513 | E40: =INDEX($Y$2:$Y$276,MATCH(MIN(ABS($Y$2:$Y$276-D40)),ABS($Y$2:$Y$276-D40),0)) -> 509 | F40: 625.5 | G40: =INDEX($Y$2:$Y$276,MATCH(MIN(ABS($Y$2:$Y$276-F40)),ABS($Y$2:$Y$276-F40),0)) -> 631 | H40: =(B40/100)*(D40/100)*(F40/100) -> 144.396675 | I40: 144.209371 | J40: A | K40: 1 | L40: 27.53189448 | M40: 46.23455917 | N40: 184.9382367 | O40: 0.08612727413 | P40: 32.08815 | Q40: 27.29191759 | R40: 46.25456751 | S40: 185.0182701 | T40: 0.08609001805 | U40: 32.1179 | Y40: 167
A41: HEIGHT m | B41: HEIGHT cm | C41: PRIME height | D41: WIDTH cm | E41: PRIME width | F41: DEPTH cm | G41: PRIME depth | H41: VOLUME | I41: PRIME volume | J41: TABLE | K41: 1=Yes 0=NO | L41: F¹ | M41: F² | N41: F³ | O41: minimum RT60 | P41: Floor area | Q41: F¹ | R41: F² | S41: F³ | T41: minimum RT60 | U41: Floor area | Y41: 173
A42: =A26 -> 2.4 | B42: 240 | C42: =INDEX($Y$2:$Y$276,MATCH(MIN(ABS($Y$2:$Y$276-B42)),ABS($Y$2:$Y$276-B42),0)) -> 239 | D42: =B42*$D$5 -> 307.2 | E42: =INDEX($Y$2:$Y$276,MATCH(MIN(ABS($Y$2:$Y$276-D42)),ABS($Y$2:$Y$276-D42),0)) -> 307 | F42: =B42*$E$5 -> 369.6 | G42: =INDEX($Y$2:$Y$276,MATCH(MIN(ABS($Y$2:$Y$276-F42)),ABS($Y$2:$Y$276-F42),0)) -> 367 | H42: 27.2498688 | I42: =(C42/100)*(E42/100)*(G42/100) -> 26.927891 | J42: B | K42: =IF(H42>$K$22,$N$21,$O$21) -> 0 | L42: =565/(F42*0.0328083989501312) -> 46.59415584 | M42: =(SQRT(O42/(H42*35.3146667214885))*11250) -> 80.60543268 | N42: 322.4217307 | O42: =0.25*(((0.028316846592*H42)/100)^(1/3)) -> 0.04940183831 | P42: =(D42/100)*(F42/100) -> 11.354112 | Q42: =565/(G42*0.0328083989501312) -> 46.92425068 | R42: =(SQRT(T42/(I42*35.3146667214885))*11250) -> 80.92542804 | S42: =4*R42 -> 323.7017122 | T42: =0.25*(((0.028316846592*I42)/100)^(1/3)) -> 0.04920649354 | U42: =(E42/100)*(G42/100) -> 11.2669 | Y42: 179
A43: 2.55 | B43: 255 | C43: =INDEX($Y$2:$Y$276,MATCH(MIN(ABS($Y$2:$Y$276-B43)),ABS($Y$2:$Y$276-B43),0)) -> 257 | D43: 326.4 | E43: =INDEX($Y$2:$Y$276,MATCH(MIN(ABS($Y$2:$Y$276-D43)),ABS($Y$2:$Y$276-D43),0)) -> 331 | F43: 392.7 | G43: =INDEX($Y$2:$Y$276,MATCH(MIN(ABS($Y$2:$Y$276-F43)),ABS($Y$2:$Y$276-F43),0)) -> 389 | H43: 32.6852064 | I43: 33.091063 | J43: B | K43: 0 | L43: 43.85332315 | M43: 75.86393664 | N43: 303.4557466 | O43: 0.0524894532 | P43: 12.817728 | Q43: 44.27043702 | R43: 75.55250692 | S43: =4*R43 -> 302.2100277 | T43: 0.05270581632 | U43: 12.8759 | Y43: 181
A44: 2.7 | B44: 270 | C44: =INDEX($Y$2:$Y$276,MATCH(MIN(ABS($Y$2:$Y$276-B44)),ABS($Y$2:$Y$276-B44),0)) -> 269 | D44: 345.6 | E44: =INDEX($Y$2:$Y$276,MATCH(MIN(ABS($Y$2:$Y$276-D44)),ABS($Y$2:$Y$276-D44),0)) -> 347 | F44: 415.8 | G44: =INDEX($Y$2:$Y$276,MATCH(MIN(ABS($Y$2:$Y$276-F44)),ABS($Y$2:$Y$276-F44),0)) -> 419 | H44: 38.7991296 | I44: 39.110717 | J44: B | K44: 0 | L44: 41.41702742 | M44: 71.6492735 | N44: 286.597094 | O44: 0.05557706809 | P44: 14.370048 | Q44: 41.10071599 | R44: 71.45849407 | S44: 285.8339763 | T44: 0.0557254474 | U44: 14.5393 | Y44: 191
A45: 2.85 | B45: 285 | C45: =INDEX($Y$2:$Y$276,MATCH(MIN(ABS($Y$2:$Y$276-B45)),ABS($Y$2:$Y$276-B45),0)) -> 283 | D45: 364.8 | E45: =INDEX($Y$2:$Y$276,MATCH(MIN(ABS($Y$2:$Y$276-D45)),ABS($Y$2:$Y$276-D45),0)) -> 367 | F45: 438.9 | G45: =INDEX($Y$2:$Y$276,MATCH(MIN(ABS($Y$2:$Y$276-F45)),ABS($Y$2:$Y$276-F45),0)) -> 439 | H45: 45.6315552 | I45: 45.594979 | J45: B | K45: 1 | L45: 39.23718387 | M45: 67.8782591 | N45: 271.5130364 | O45: 0.05866468299 | P45: 16.011072 | Q45: 39.22824601 | R45: 67.89640485 | S45: 271.5856194 | T45: 0.05864900448 | U45: 16.1113 | Y45: 193
A46: 3 | B46: 300 | C46: =INDEX($Y$2:$Y$276,MATCH(MIN(ABS($Y$2:$Y$276-B46)),ABS($Y$2:$Y$276-B46),0)) -> 293 | D46: 384 | E46: =INDEX($Y$2:$Y$276,MATCH(MIN(ABS($Y$2:$Y$276-D46)),ABS($Y$2:$Y$276-D46),0)) -> 383 | F46: 462 | G46: =INDEX($Y$2:$Y$276,MATCH(MIN(ABS($Y$2:$Y$276-F46)),ABS($Y$2:$Y$276-F46),0)) -> 461 | H46: 53.2224 | I46: 51.732959 | J46: B | K46: 1 | L46: 37.27532468 | M46: 64.48434615 | N46: 257.9373846 | O46: 0.06175229788 | P46: 17.7408 | Q46: 37.35618221 | R46: 65.0973554 | S46: 260.3894216 | T46: 0.0611707884 | U46: 17.6563 | Y46: 197
A47: 3.2 | B47: 320 | C47: =INDEX($Y$2:$Y$276,MATCH(MIN(ABS($Y$2:$Y$276-B47)),ABS($Y$2:$Y$276-B47),0)) -> 317 | D47: 409.6 | E47: =INDEX($Y$2:$Y$276,MATCH(MIN(ABS($Y$2:$Y$276-D47)),ABS($Y$2:$Y$276-D47),0)) -> 409 | F47: 492.8 | G47: =INDEX($Y$2:$Y$276,MATCH(MIN(ABS($Y$2:$Y$276-F47)),ABS($Y$2:$Y$276-F47),0)) -> 491 | H47: 64.5922816 | I47: 63.659623 | J47: B | K47: 1 | L47: 34.94561688 | M47: 60.45407451 | N47: 241.8162981 | O47: 0.06586911774 | P47: 20.185088 | Q47: 35.07372709 | R47: 60.74787603 | S47: 242.9915041 | T47: 0.06555054781 | U47: 20.0819 | Y47: 199
A48: 3.3 | B48: 330 | C48: =INDEX($Y$2:$Y$276,MATCH(MIN(ABS($Y$2:$Y$276-B48)),ABS($Y$2:$Y$276-B48),0)) -> 331 | D48: 422.4 | E48: =INDEX($Y$2:$Y$276,MATCH(MIN(ABS($Y$2:$Y$276-D48)),ABS($Y$2:$Y$276-D48),0)) -> 421 | F48: 508.2 | G48: =INDEX($Y$2:$Y$276,MATCH(MIN(ABS($Y$2:$Y$276-F48)),ABS($Y$2:$Y$276-F48),0)) -> 509 | H48: 70.8390144 | I48: 70.929659 | J48: B | K48: 1 | L48: 33.8866588 | M48: 58.62213286 | N48: 234.4885314 | O48: 0.06792752767 | P48: 21.466368 | Q48: 33.83339882 | R48: 58.59715015 | S48: 234.3886006 | T48: 0.06795648836 | U48: 21.4289 | Y48: 211
A49: 3.4 | B49: 340 | C49: =INDEX($Y$2:$Y$276,MATCH(MIN(ABS($Y$2:$Y$276-B49)),ABS($Y$2:$Y$276-B49),0)) -> 337 | D49: 435.2 | E49: =INDEX($Y$2:$Y$276,MATCH(MIN(ABS($Y$2:$Y$276-D49)),ABS($Y$2:$Y$276-D49),0)) -> 433 | F49: 523.6 | G49: =INDEX($Y$2:$Y$276,MATCH(MIN(ABS($Y$2:$Y$276-F49)),ABS($Y$2:$Y$276-F49),0)) -> 523 | H49: 77.4760448 | I49: 76.316683 | J49: B | K49: 1 | L49: 32.88999236 | M49: 56.89795248 | N49: 227.5918099 | O49: 0.0699859376 | P49: 22.787072 | Q49: 32.92772467 | R49: 57.18462666 | S49: 228.7385066 | T49: 0.06963508874 | U49: 22.6459 | Y49: 223
A50: 3.6 | B50: 360 | C50: =INDEX($Y$2:$Y$276,MATCH(MIN(ABS($Y$2:$Y$276-B50)),ABS($Y$2:$Y$276-B50),0)) -> 359 | D50: 460.8 | E50: =INDEX($Y$2:$Y$276,MATCH(MIN(ABS($Y$2:$Y$276-D50)),ABS($Y$2:$Y$276-D50),0)) -> 461 | F50: 554.4 | G50: =INDEX($Y$2:$Y$276,MATCH(MIN(ABS($Y$2:$Y$276-F50)),ABS($Y$2:$Y$276-F50),0)) -> 557 | H50: 91.9683072 | I50: 92.182943 | J50: B | K50: 1 | L50: 31.06277056 | M50: 53.73695512 | N50: 214.9478205 | O50: 0.07410275746 | P50: 25.546752 | Q50: 30.91777379 | R50: 53.69521625 | S50: 214.780865 | T50: 0.07416035972 | U50: 25.6777 | Y50: 227
A51: 3.75 | B51: 375 | C51: =INDEX($Y$2:$Y$276,MATCH(MIN(ABS($Y$2:$Y$276-B51)),ABS($Y$2:$Y$276-B51),0)) -> 373 | D51: 480 | E51: =INDEX($Y$2:$Y$276,MATCH(MIN(ABS($Y$2:$Y$276-D51)),ABS($Y$2:$Y$276-D51),0)) -> 479 | F51: 577.5 | G51: =INDEX($Y$2:$Y$276,MATCH(MIN(ABS($Y$2:$Y$276-F51)),ABS($Y$2:$Y$276-F51),0)) -> 577 | H51: 103.95 | I51: 103.090859 | J51: B | K51: 1 | L51: 29.82025974 | M51: 51.58747692 | N51: 206.3499077 | O51: 0.07719037235 | P51: 27.72 | Q51: 29.84610052 | R51: 51.73038762 | S51: 206.9215505 | T51: 0.07697712573 | U51: 27.6383 | Y51: 229
A52: 3.9 | B52: 390 | C52: =INDEX($Y$2:$Y$276,MATCH(MIN(ABS($Y$2:$Y$276-B52)),ABS($Y$2:$Y$276-B52),0)) -> 389 | D52: 499.2 | E52: =INDEX($Y$2:$Y$276,MATCH(MIN(ABS($Y$2:$Y$276-D52)),ABS($Y$2:$Y$276-D52),0)) -> 499 | F52: 600.6 | G52: =INDEX($Y$2:$Y$276,MATCH(MIN(ABS($Y$2:$Y$276-F52)),ABS($Y$2:$Y$276-F52),0)) -> 601 | H52: 116.9296128 | I52: 116.660711 | J52: B | K52: 1 | L52: 28.67332667 | M52: 49.60334319 | N52: 198.4133728 | O52: 0.08027798725 | P52: 29.981952 | Q52: 28.65424293 | R52: 49.64142569 | S52: 198.5657027 | T52: 0.08021640187 | U52: 29.9899 | Y52: 233
A53: 4.05 | B53: 405 | C53: =INDEX($Y$2:$Y$276,MATCH(MIN(ABS($Y$2:$Y$276-B53)),ABS($Y$2:$Y$276-B53),0)) -> 401 | D53: 518.4 | E53: =INDEX($Y$2:$Y$276,MATCH(MIN(ABS($Y$2:$Y$276-D53)),ABS($Y$2:$Y$276-D53),0)) -> 521 | F53: 623.7 | G53: =INDEX($Y$2:$Y$276,MATCH(MIN(ABS($Y$2:$Y$276-F53)),ABS($Y$2:$Y$276-F53),0)) -> 619 | H53: 130.9470624 | I53: 129.322099 | J53: B | K53: 1 | L53: 27.61135161 | M53: 47.76618233 | N53: 191.0647293 | O53: 0.08336560214 | P53: 32.332608 | Q53: 27.82100162 | R53: 47.96541472 | S53: 191.8616589 | T53: 0.08301932915 | U53: 32.2499 | Y53: 239
A54: 4.2 | B54: 420 | C54: =INDEX($Y$2:$Y$276,MATCH(MIN(ABS($Y$2:$Y$276-B54)),ABS($Y$2:$Y$276-B54),0)) -> 419 | D54: 537.6 | E54: =INDEX($Y$2:$Y$276,MATCH(MIN(ABS($Y$2:$Y$276-D54)),ABS($Y$2:$Y$276-D54),0)) -> 541 | F54: 646.8 | G54: =INDEX($Y$2:$Y$276,MATCH(MIN(ABS($Y$2:$Y$276-F54)),ABS($Y$2:$Y$276-F54),0)) -> 647 | H54: 146.0422656 | I54: 146.661313 | J54: B | K54: 1 | L54: 26.62523191 | M54: 46.06024725 | N54: 184.240989 | O54: 0.08645321704 | P54: 34.771968 | Q54: 26.61700155 | R54: 45.99535013 | S54: 183.9814005 | T54: 0.08657519816 | U54: 35.0027 | Y54: 241
A55: 4.35 | B55: 435 | C55: =INDEX($Y$2:$Y$276,MATCH(MIN(ABS($Y$2:$Y$276-B55)),ABS($Y$2:$Y$276-B55),0)) -> 433 | D55: 556.8 | E55: =INDEX($Y$2:$Y$276,MATCH(MIN(ABS($Y$2:$Y$276-D55)),ABS($Y$2:$Y$276-D55),0)) -> 557 | F55: 669.9 | G55: =INDEX($Y$2:$Y$276,MATCH(MIN(ABS($Y$2:$Y$276-F55)),ABS($Y$2:$Y$276-F55),0)) -> 673 | H55: 162.2551392 | I55: 162.314813 | J55: B | K55: 1 | L55: 25.70712047 | M55: 44.47196286 | N55: 177.8878514 | O55: 0.08954083193 | P55: 37.300032 | Q55: 25.58870728 | R55: 44.46651227 | S55: 177.8660491 | T55: 0.08955180762 | U55: 37.4861 | Y55: 251
A56: 4.5 | B56: 450 | C56: =INDEX($Y$2:$Y$276,MATCH(MIN(ABS($Y$2:$Y$276-B56)),ABS($Y$2:$Y$276-B56),0)) -> 449 | D56: 576 | E56: =INDEX($Y$2:$Y$276,MATCH(MIN(ABS($Y$2:$Y$276-D56)),ABS($Y$2:$Y$276-D56),0)) -> 577 | F56: 693 | G56: =INDEX($Y$2:$Y$276,MATCH(MIN(ABS($Y$2:$Y$276-F56)),ABS($Y$2:$Y$276-F56),0)) -> 691 | H56: 179.6256 | I56: 179.019443 | J56: B | K56: 1 | L56: 24.85021645 | M56: 42.9895641 | N56: 171.9582564 | O56: 0.09262844682 | P56: 39.9168 | Q56: 24.92214182 | R56: 43.0380301 | S56: 172.1521204 | T56: 0.09252413605 | U56: 39.8707 | Y56: 257
A57: HEIGHT m | B57: HEIGHT cm | C57: PRIME height | D57: WIDTH cm | E57: PRIME width | F57: DEPTH cm | G57: PRIME depth | H57: VOLUME | I57: PRIME volume | J57: TABLE | K57: 1=Yes 0=NO | L57: F¹ | M57: F² | N57: F³ | O57: minimum RT60 | P57: Floor area | Q57: F¹ | R57: F² | S57: F³ | T57: minimum RT60 | U57: Floor area | Y57: 263
A58: =A42 -> 2.4 | B58: 240 | C58: =INDEX($Y$2:$Y$276,MATCH(MIN(ABS($Y$2:$Y$276-B58)),ABS($Y$2:$Y$276-B58),0)) -> 239 | D58: =B58*$D$6 -> 384 | E58: =INDEX($Y$2:$Y$276,MATCH(MIN(ABS($Y$2:$Y$276-D58)),ABS($Y$2:$Y$276-D58),0)) -> 383 | F58: =B58*$E$6 -> 559.2 | G58: =INDEX($Y$2:$Y$276,MATCH(MIN(ABS($Y$2:$Y$276-F58)),ABS($Y$2:$Y$276-F58),0)) -> 557 | H58: 51.535872 | I58: =(C58/100)*(E58/100)*(G58/100) -> 50.986109 | J58: C | K58: =IF(H58>$K$22,$N$21,$O$21) -> 1 | L58: =565/(F58*0.0328083989501312) -> 30.79613734 | M58: =(SQRT(O58/(H58*35.3146667214885))*11250) -> 65.18023309 | N58: 260.7209323 | O58: =0.25*(((0.028316846592*H58)/100)^(1/3)) -> 0.06109300878 | P58: =(D58/100)*(F58/100) -> 21.47328 | Q58: =565/(G58*0.0328083989501312) -> 30.91777379 | R58: =(SQRT(T58/(I58*35.3146667214885))*11250) -> 65.41366695 | S58: =4*R58 -> 261.6546678 | T58: =0.25*(((0.028316846592*I58)/100)^(1/3)) -> 0.06087499353 | U58: =(E58/100)*(G58/100) -> 21.3331 | Y58: 269
A59: 2.55 | B59: 255 | C59: =INDEX($Y$2:$Y$276,MATCH(MIN(ABS($Y$2:$Y$276-B59)),ABS($Y$2:$Y$276-B59),0)) -> 257 | D59: 408 | E59: =INDEX($Y$2:$Y$276,MATCH(MIN(ABS($Y$2:$Y$276-D59)),ABS($Y$2:$Y$276-D59),0)) -> 409 | F59: 594.15 | G59: =INDEX($Y$2:$Y$276,MATCH(MIN(ABS($Y$2:$Y$276-F59)),ABS($Y$2:$Y$276-F59),0)) -> 593 | H59: 61.815366 | I59: 62.332009 | J59: C | K59: 1 | L59: 28.98459985 | M59: 61.34610173 | N59: 245.3844069 | O59: 0.06491132183 | P59: 24.24132 | Q59: 29.04080944 | R59: 61.17614087 | S59: =4*R59 -> 244.7045635 | T59: 0.06509165984 | U59: 24.2537 | Y59: 271
A60: 2.7 | B60: 270 | C60: =INDEX($Y$2:$Y$276,MATCH(MIN(ABS($Y$2:$Y$276-B60)),ABS($Y$2:$Y$276-B60),0)) -> 269 | D60: 432 | E60: =INDEX($Y$2:$Y$276,MATCH(MIN(ABS($Y$2:$Y$276-D60)),ABS($Y$2:$Y$276-D60),0)) -> 431 | F60: 629.1 | G60: =INDEX($Y$2:$Y$276,MATCH(MIN(ABS($Y$2:$Y$276-F60)),ABS($Y$2:$Y$276-F60),0)) -> 631 | H60: 73.378224 | I60: 73.157509 | J60: C | K60: 1 | L60: 27.3743443 | M60: 57.93798497 | N60: 231.7519399 | O60: 0.06872963487 | P60: 27.17712 | Q60: 27.29191759 | R60: 57.99619245 | S60: 231.9847698 | T60: 0.06866065484 | U60: 27.1961 | Y60: 277
A61: 2.85 | B61: 285 | C61: =INDEX($Y$2:$Y$276,MATCH(MIN(ABS($Y$2:$Y$276-B61)),ABS($Y$2:$Y$276-B61),0)) -> 283 | D61: 456 | E61: =INDEX($Y$2:$Y$276,MATCH(MIN(ABS($Y$2:$Y$276-D61)),ABS($Y$2:$Y$276-D61),0)) -> 457 | F61: 664.05 | G61: =INDEX($Y$2:$Y$276,MATCH(MIN(ABS($Y$2:$Y$276-F61)),ABS($Y$2:$Y$276-F61),0)) -> 661 | H61: 86.299938 | I61: 85.487791 | J61: C | K61: 1 | L61: 25.93358934 | M61: 54.88861734 | N61: 219.5544693 | O61: 0.07254794792 | P61: 30.28068 | Q61: 26.05325265 | R61: 55.06188653 | S61: 220.2475461 | T61: 0.07231965345 | U61: 30.2077 | Y61: 281
A62: 3 | B62: 300 | C62: =INDEX($Y$2:$Y$276,MATCH(MIN(ABS($Y$2:$Y$276-B62)),ABS($Y$2:$Y$276-B62),0)) -> 293 | D62: 480 | E62: =INDEX($Y$2:$Y$276,MATCH(MIN(ABS($Y$2:$Y$276-D62)),ABS($Y$2:$Y$276-D62),0)) -> 479 | F62: 699 | G62: =INDEX($Y$2:$Y$276,MATCH(MIN(ABS($Y$2:$Y$276-F62)),ABS($Y$2:$Y$276-F62),0)) -> 701 | H62: 100.656 | I62: 98.383247 | J62: C | K62: 1 | L62: 24.63690987 | M62: 52.14418647 | N62: 208.5767459 | O62: 0.07636626097 | P62: 33.552 | Q62: 24.56661912 | R62: 52.54266155 | S62: 210.1706462 | T62: 0.07578711155 | U62: 33.5779 | Y62: 283
A63: 3.2 | B63: 320 | C63: =INDEX($Y$2:$Y$276,MATCH(MIN(ABS($Y$2:$Y$276-B63)),ABS($Y$2:$Y$276-B63),0)) -> 317 | D63: 512 | E63: =INDEX($Y$2:$Y$276,MATCH(MIN(ABS($Y$2:$Y$276-D63)),ABS($Y$2:$Y$276-D63),0)) -> 509 | F63: 745.6 | G63: =INDEX($Y$2:$Y$276,MATCH(MIN(ABS($Y$2:$Y$276-F63)),ABS($Y$2:$Y$276-F63),0)) -> 743 | H63: 122.159104 | I63: 119.885279 | J63: C | K63: 1 | L63: 23.097103 | M63: 48.88517481 | N63: 195.5406993 | O63: 0.08145734504 | P63: 38.17472 | Q63: 23.17792732 | R63: 49.19230424 | S63: 196.769217 | T63: 0.08094877062 | U63: 37.8187 | Y63: 293
A64: 3.3 | B64: 330 | C64: =INDEX($Y$2:$Y$276,MATCH(MIN(ABS($Y$2:$Y$276-B64)),ABS($Y$2:$Y$276-B64),0)) -> 331 | D64: 528 | E64: =INDEX($Y$2:$Y$276,MATCH(MIN(ABS($Y$2:$Y$276-D64)),ABS($Y$2:$Y$276-D64),0)) -> 523 | F64: 768.9 | G64: =INDEX($Y$2:$Y$276,MATCH(MIN(ABS($Y$2:$Y$276-F64)),ABS($Y$2:$Y$276-F64),0)) -> 769 | H64: 133.973136 | I64: 133.123897 | J64: C | K64: 1 | L64: 22.39719079 | M64: 47.40380588 | N64: 189.6152235 | O64: 0.08400288707 | P64: 40.59792 | Q64: 22.39427828 | R64: 47.50439353 | S64: 190.0175741 | T64: 0.08382501609 | U64: 40.2187 | Y64: 307
A65: 3.4 | B65: 340 | C65: =INDEX($Y$2:$Y$276,MATCH(MIN(ABS($Y$2:$Y$276-B65)),ABS($Y$2:$Y$276-B65),0)) -> 337 | D65: 544 | E65: =INDEX($Y$2:$Y$276,MATCH(MIN(ABS($Y$2:$Y$276-D65)),ABS($Y$2:$Y$276-D65),0)) -> 541 | F65: 792.2 | G65: =INDEX($Y$2:$Y$276,MATCH(MIN(ABS($Y$2:$Y$276-F65)),ABS($Y$2:$Y$276-F65),0)) -> 797 | H65: 146.525312 | I65: 145.306649 | J65: C | K65: 1 | L65: 21.73844989 | M65: 46.0095763 | N65: 184.0383052 | O65: 0.0865484291 | P65: 43.09568 | Q65: 21.60752823 | R65: 46.1378433 | S65: 184.5513732 | T65: 0.08630781735 | U65: 43.1177 | Y65: 311
A66: 3.6 | B66: 360 | C66: =INDEX($Y$2:$Y$276,MATCH(MIN(ABS($Y$2:$Y$276-B66)),ABS($Y$2:$Y$276-B66),0)) -> 359 | D66: 576 | E66: =INDEX($Y$2:$Y$276,MATCH(MIN(ABS($Y$2:$Y$276-D66)),ABS($Y$2:$Y$276-D66),0)) -> 577 | F66: 838.8 | G66: =INDEX($Y$2:$Y$276,MATCH(MIN(ABS($Y$2:$Y$276-F66)),ABS($Y$2:$Y$276-F66),0)) -> 839 | H66: 173.933568 | I66: 173.792977 | J66: C | K66: 1 | L66: 20.53075823 | M66: 43.45348872 | N66: 173.8139549 | O66: 0.09163951317 | P66: 48.31488 | Q66: 20.52586412 | R66: 43.4652029 | S66: 173.8608116 | T66: 0.09161481568 | U66: 48.4103 | Y66: 313
A67: 3.75 | B67: 375 | C67: =INDEX($Y$2:$Y$276,MATCH(MIN(ABS($Y$2:$Y$276-B67)),ABS($Y$2:$Y$276-B67),0)) -> 373 | D67: 600 | E67: =INDEX($Y$2:$Y$276,MATCH(MIN(ABS($Y$2:$Y$276-D67)),ABS($Y$2:$Y$276-D67),0)) -> 599 | F67: 873.75 | G67: =INDEX($Y$2:$Y$276,MATCH(MIN(ABS($Y$2:$Y$276-F67)),ABS($Y$2:$Y$276-F67),0)) -> 877 | H67: 196.59375 | I67: 195.945479 | J67: C | K67: 1 | L67: 19.7095279 | M67: 41.71534918 | N67: 166.8613967 | O67: 0.09545782621 | P67: 52.425 | Q67: 19.63648803 | R67: 41.76130257 | S67: 167.0452103 | T67: 0.09535278611 | U67: 52.5323 | Y67: 317
A68: 3.9 | B68: 390 | C68: =INDEX($Y$2:$Y$276,MATCH(MIN(ABS($Y$2:$Y$276-B68)),ABS($Y$2:$Y$276-B68),0)) -> 389 | D68: 624 | E68: =INDEX($Y$2:$Y$276,MATCH(MIN(ABS($Y$2:$Y$276-D68)),ABS($Y$2:$Y$276-D68),0)) -> 619 | F68: 908.7 | G68: =INDEX($Y$2:$Y$276,MATCH(MIN(ABS($Y$2:$Y$276-F68)),ABS($Y$2:$Y$276-F68),0)) -> 907 | H68: 221.141232 | I68: 218.397437 | J68: C | K68: 1 | L68: 18.95146913 | M68: 40.11091267 | N68: 160.4436507 | O68: 0.09927613926 | P68: 56.70288 | Q68: 18.98699008 | R68: 40.27818939 | S68: 161.1127576 | T68: 0.098863842 | U68: 56.1433 | Y68: 331
A69: 4.05 | B69: 405 | C69: =INDEX($Y$2:$Y$276,MATCH(MIN(ABS($Y$2:$Y$276-B69)),ABS($Y$2:$Y$276-B69),0)) -> 401 | D69: 648 | E69: =INDEX($Y$2:$Y$276,MATCH(MIN(ABS($Y$2:$Y$276-D69)),ABS($Y$2:$Y$276-D69),0)) -> 647 | F69: 943.65 | G69: =INDEX($Y$2:$Y$276,MATCH(MIN(ABS($Y$2:$Y$276-F69)),ABS($Y$2:$Y$276-F69),0)) -> 941 | H69: =(B69/100)*(D69/100)*(F69/100) -> 247.651506 | I69: =(C69/100)*(E69/100)*(G69/100) -> 244.139627 | J69: C | K69: 1 | L69: 18.24956287 | M69: 38.62532331 | N69: 154.5012932 | O69: 0.1030944523 | P69: 61.14852 | Q69: 18.30095643 | R69: 38.80964706 | S69: 155.2385882 | T69: 0.1026048123 | U69: 60.8827 | Y69: 337
A70: 4.2 | B70: 420 | C70: =INDEX($Y$2:$Y$276,MATCH(MIN(ABS($Y$2:$Y$276-B70)),ABS($Y$2:$Y$276-B70),0)) -> 419 | D70: 672 | E70: =INDEX($Y$2:$Y$276,MATCH(MIN(ABS($Y$2:$Y$276-D70)),ABS($Y$2:$Y$276-D70),0)) -> 673 | F70: 978.6 | G70: =INDEX($Y$2:$Y$276,MATCH(MIN(ABS($Y$2:$Y$276-F70)),ABS($Y$2:$Y$276-F70),0)) -> 977 | H70: =(B70/100)*(D70/100)*(F70/100) -> 276.200064 | I70: 275.501299 | J70: C | K70: 1 | L70: 17.59779277 | M70: 37.24584748 | N70: 148.9833899 | O70: 0.1069127654 | P70: 65.76192 | Q70: 17.62661208 | R70: 37.27731027 | S70: 149.1092411 | T70: 0.1068225289 | U70: 65.7521 | Y70: 347
A71: 4.35 | B71: 435 | C71: =INDEX($Y$2:$Y$276,MATCH(MIN(ABS($Y$2:$Y$276-B71)),ABS($Y$2:$Y$276-B71),0)) -> 433 | D71: 696 | E71: =INDEX($Y$2:$Y$276,MATCH(MIN(ABS($Y$2:$Y$276-D71)),ABS($Y$2:$Y$276-D71),0)) -> 691 | F71: 1013.55 | G71: =INDEX($Y$2:$Y$276,MATCH(MIN(ABS($Y$2:$Y$276-F71)),ABS($Y$2:$Y$276-F71),0)) -> 1013 | H71: =(B71/100)*(D71/100)*(F71/100) -> 306.862398 | I71: 303.092639 | J71: C | K71: 1 | L71: 16.99097232 | M71: 35.96150791 | N71: 143.8460316 | O71: 0.1107310784 | P71: 70.54308 | Q71: 17.00019743 | R71: 36.1099862 | S71: 144.4399448 | T71: 0.1102757705 | U71: 69.9983 | Y71: 349
A72: 4.5 | B72: 450 | C72: =INDEX($Y$2:$Y$276,MATCH(MIN(ABS($Y$2:$Y$276-B72)),ABS($Y$2:$Y$276-B72),0)) -> 449 | D72: 720 | E72: =INDEX($Y$2:$Y$276,MATCH(MIN(ABS($Y$2:$Y$276-D72)),ABS($Y$2:$Y$276-D72),0)) -> 719 | F72: 1048.5 | G72: =INDEX($Y$2:$Y$276,MATCH(MIN(ABS($Y$2:$Y$276-F72)),ABS($Y$2:$Y$276-F72),0)) -> 1049 | H72: =(B72/100)*(D72/100)*(F72/100) -> 339.714 | I72: 338.649719 | J72: C | K72: 1 | L72: 16.42460658 | M72: 34.76279098 | N72: 139.0511639 | O72: 0.1145493915 | P72: 75.492 | Q72: 16.41677788 | R72: 34.79916946 | S72: 139.1966778 | T72: 0.1144296434 | U72: 75.4231 | Y72: 353
A73: HEIGHT m | B73: HEIGHT cm | C73: PRIME height | D73: WIDTH cm | E73: PRIME width | F73: DEPTH cm | G73: PRIME depth | H73: VOLUME | I73: PRIME volume | J73: TABLE | K73: 1=Yes 0=NO | L73: F¹ | M73: F² | N73: F³ | O73: minimum RT60 | P73: Floor area | Q73: F¹ | R73: F² | S73: F³ | T73: minimum RT60 | U73: Floor area | Y73: 359
A74: =A58 -> 2.4 | B74: 240 | C74: =INDEX($Y$2:$Y$276,MATCH(MIN(ABS($Y$2:$Y$276-B74)),ABS($Y$2:$Y$276-B74),0)) -> 239 | D74: =B74*$D$7 -> 336 | E74: =INDEX($Y$2:$Y$276,MATCH(MIN(ABS($Y$2:$Y$276-D74)),ABS($Y$2:$Y$276-D74),0)) -> 337 | F74: =B74*$E$7 -> 456 | G74: =INDEX($Y$2:$Y$276,MATCH(MIN(ABS($Y$2:$Y$276-F74)),ABS($Y$2:$Y$276-F74),0)) -> 457 | H74: =(B74/100)*(D74/100)*(F74/100) -> 36.77184 | I74: =(C74/100)*(E74/100)*(G74/100) -> 36.808151 | J74: D | K74: =IF(H74>$K$22,$N$21,$O$21) -> 0 | L74: =565/(F74*0.0328083989501312) -> 37.76578947 | M74: =(SQRT(O74/(H74*35.3146667214885))*11250) -> 72.94250349 | N74: 291.770014 | O74: =0.25*(((0.028316846592*H74)/100)^(1/3)) -> 0.0545917176 | P74: =(D74/100)*(F74/100) -> 15.3216 | Q74: =565/(G74*0.0328083989501312) -> 37.68315098 | R74: =(SQRT(T74/(I74*35.3146667214885))*11250) -> 72.91850984 | S74: =4*R74 -> 291.6740393 | T74: =0.25*(((0.028316846592*I74)/100)^(1/3)) -> 0.05460968087 | U74: =(E74/100)*(G74/100) -> 15.4009 | Y74: 367
A75: 2.55 | B75: 255 | C75: =INDEX($Y$2:$Y$276,MATCH(MIN(ABS($Y$2:$Y$276-B75)),ABS($Y$2:$Y$276-B75),0)) -> 257 | D75: 357 | E75: =INDEX($Y$2:$Y$276,MATCH(MIN(ABS($Y$2:$Y$276-D75)),ABS($Y$2:$Y$276-D75),0)) -> 359 | F75: 484.5 | G75: =INDEX($Y$2:$Y$276,MATCH(MIN(ABS($Y$2:$Y$276-F75)),ABS($Y$2:$Y$276-F75),0)) -> 487 | H75: =(B75/100)*(D75/100)*(F75/100) -> 44.1064575 | I75: 44.932081 | J75: D | K75: 1 | L75: 35.54427245 | M75: 68.651768 | N75: 274.607072 | O75: 0.05800369995 | P75: 17.29665 | Q75: 35.36180698 | R75: 68.22867558 | S75: =4*R75 -> 272.9147023 | T75: 0.05836338633 | U75: 17.4833 | Y75: 373
A76: 2.7 | B76: 270 | C76: =INDEX($Y$2:$Y$276,MATCH(MIN(ABS($Y$2:$Y$276-B76)),ABS($Y$2:$Y$276-B76),0)) -> 269 | D76: 378 | E76: =INDEX($Y$2:$Y$276,MATCH(MIN(ABS($Y$2:$Y$276-D76)),ABS($Y$2:$Y$276-D76),0)) -> 379 | F76: 513 | G76: =INDEX($Y$2:$Y$276,MATCH(MIN(ABS($Y$2:$Y$276-F76)),ABS($Y$2:$Y$276-F76),0)) -> 509 | H76: 52.35678 | I76: 51.893059 | J76: D | K76: 1 | L76: 33.56959064 | M76: 64.83778088 | N76: 259.3511235 | O76: 0.0614156823 | P76: 19.3914 | Q76: 33.83339882 | R76: 65.0303405 | S76: 260.121362 | T76: 0.06123382595 | U76: 19.2911 | Y76: 379
A77: 2.85 | B77: 285 | C77: =INDEX($Y$2:$Y$276,MATCH(MIN(ABS($Y$2:$Y$276-B77)),ABS($Y$2:$Y$276-B77),0)) -> 283 | D77: 399 | E77: =INDEX($Y$2:$Y$276,MATCH(MIN(ABS($Y$2:$Y$276-D77)),ABS($Y$2:$Y$276-D77),0)) -> 397 | F77: 541.5 | G77: =INDEX($Y$2:$Y$276,MATCH(MIN(ABS($Y$2:$Y$276-F77)),ABS($Y$2:$Y$276-F77),0)) -> 541 | H77: 61.5766725 | I77: 60.781891 | J77: D | K77: 1 | L77: 31.80277008 | M77: 61.4252661 | N77: 245.7010644 | O77: 0.06482766465 | P77: 21.60585 | Q77: 31.83216266 | R77: 61.69183897 | S77: 246.7673559 | T77: 0.06454754176 | U77: 21.4777 | Y77: 383
A78: 3 | B78: 300 | C78: =INDEX($Y$2:$Y$276,MATCH(MIN(ABS($Y$2:$Y$276-B78)),ABS($Y$2:$Y$276-B78),0)) -> 293 | D78: 420 | E78: =INDEX($Y$2:$Y$276,MATCH(MIN(ABS($Y$2:$Y$276-D78)),ABS($Y$2:$Y$276-D78),0)) -> 419 | F78: 570 | G78: =INDEX($Y$2:$Y$276,MATCH(MIN(ABS($Y$2:$Y$276-F78)),ABS($Y$2:$Y$276-F78),0)) -> 569 | H78: 71.82 | I78: 69.854423 | J78: D | K78: 1 | L78: 30.21263158 | M78: 58.3540028 | N78: 233.4160112 | O78: 0.068239647 | P78: 23.94 | Q78: 30.26572935 | R78: 58.89627332 | S78: 235.5850933 | T78: 0.06761135005 | U78: 23.8411 | Y78: 389
A79: 3.2 | B79: 320 | C79: =INDEX($Y$2:$Y$276,MATCH(MIN(ABS($Y$2:$Y$276-B79)),ABS($Y$2:$Y$276-B79),0)) -> 317 | D79: 448 | E79: =INDEX($Y$2:$Y$276,MATCH(MIN(ABS($Y$2:$Y$276-D79)),ABS($Y$2:$Y$276-D79),0)) -> 449 | F79: 608 | G79: =INDEX($Y$2:$Y$276,MATCH(MIN(ABS($Y$2:$Y$276-F79)),ABS($Y$2:$Y$276-F79),0)) -> 607 | H79: 87.16288 | I79: 86.396131 | J79: D | K79: 1 | L79: 28.32434211 | M79: 54.70687762 | N79: 218.8275105 | O79: 0.0727889568 | P79: 27.2384 | Q79: 28.37100494 | R79: 54.86823887 | S79: 219.4729555 | T79: 0.07257489276 | U79: 27.2543 | Y79: 397
A80: 3.3 | B80: 330 | C80: =INDEX($Y$2:$Y$276,MATCH(MIN(ABS($Y$2:$Y$276-B80)),ABS($Y$2:$Y$276-B80),0)) -> 331 | D80: 462 | E80: =INDEX($Y$2:$Y$276,MATCH(MIN(ABS($Y$2:$Y$276-D80)),ABS($Y$2:$Y$276-D80),0)) -> 461 | F80: 627 | G80: =INDEX($Y$2:$Y$276,MATCH(MIN(ABS($Y$2:$Y$276-F80)),ABS($Y$2:$Y$276-F80),0)) -> 631 | H80: 95.59242 | I80: 96.284921 | J80: D | K80: 1 | L80: 27.46602871 | M80: 53.04909345 | N80: 212.1963738 | O80: 0.0750636117 | P80: 28.9674 | Q80: 27.29191759 | R80: 52.92160732 | S80: 211.6864293 | T80: 0.07524443708 | U80: 29.0891 | Y80: 401
A81: 3.4 | B81: 340 | C81: =INDEX($Y$2:$Y$276,MATCH(MIN(ABS($Y$2:$Y$276-B81)),ABS($Y$2:$Y$276-B81),0)) -> 337 | D81: 476 | E81: =INDEX($Y$2:$Y$276,MATCH(MIN(ABS($Y$2:$Y$276-D81)),ABS($Y$2:$Y$276-D81),0)) -> 479 | F81: 646 | G81: =INDEX($Y$2:$Y$276,MATCH(MIN(ABS($Y$2:$Y$276-F81)),ABS($Y$2:$Y$276-F81),0)) -> 647 | H81: 104.54864 | I81: 104.440681 | J81: D | K81: 1 | L81: 26.65820433 | M81: 51.488826 | N81: 205.955304 | O81: 0.0773382666 | P81: 30.7496 | Q81: 26.61700155 | R81: 51.506561 | S81: 206.026244 | T81: 0.07731163709 | U81: 30.9913 | Y81: 409
A82: 3.6 | B82: 360 | C82: =INDEX($Y$2:$Y$276,MATCH(MIN(ABS($Y$2:$Y$276-B82)),ABS($Y$2:$Y$276-B82),0)) -> 359 | D82: 504 | E82: =INDEX($Y$2:$Y$276,MATCH(MIN(ABS($Y$2:$Y$276-D82)),ABS($Y$2:$Y$276-D82),0)) -> 503 | F82: 684 | G82: =INDEX($Y$2:$Y$276,MATCH(MIN(ABS($Y$2:$Y$276-F82)),ABS($Y$2:$Y$276-F82),0)) -> 683 | H82: 124.10496 | I82: 123.334091 | J82: D | K82: 1 | L82: 25.17719298 | M82: 48.62833566 | N82: 194.5133427 | O82: 0.0818875764 | P82: 34.4736 | Q82: 25.21405564 | R82: 48.72943841 | S82: 194.9177537 | T82: 0.08171767789 | U82: 34.3549 | Y82: 419
A83: 3.75 | B83: 375 | C83: =INDEX($Y$2:$Y$276,MATCH(MIN(ABS($Y$2:$Y$276-B83)),ABS($Y$2:$Y$276-B83),0)) -> 373 | D83: 525 | E83: =INDEX($Y$2:$Y$276,MATCH(MIN(ABS($Y$2:$Y$276-D83)),ABS($Y$2:$Y$276-D83),0)) -> 523 | F83: 712.5 | G83: =INDEX($Y$2:$Y$276,MATCH(MIN(ABS($Y$2:$Y$276-F83)),ABS($Y$2:$Y$276-F83),0)) -> 709 | H83: 140.2734375 | I83: 138.311011 | J83: D | K83: 1 | L83: 24.17010526 | M83: 46.68320224 | N83: 186.7328089 | O83: 0.08529955875 | P83: 37.40625 | Q83: 24.28942172 | R83: 46.90295446 | S83: 187.6118178 | T83: 0.08489990872 | U83: 37.0807 | Y83: 421
A84: 3.9 | B84: 390 | C84: =INDEX($Y$2:$Y$276,MATCH(MIN(ABS($Y$2:$Y$276-B84)),ABS($Y$2:$Y$276-B84),0)) -> 389 | D84: 546 | E84: =INDEX($Y$2:$Y$276,MATCH(MIN(ABS($Y$2:$Y$276-D84)),ABS($Y$2:$Y$276-D84),0)) -> 547 | F84: 741 | G84: =INDEX($Y$2:$Y$276,MATCH(MIN(ABS($Y$2:$Y$276-F84)),ABS($Y$2:$Y$276-F84),0)) -> 739 | H84: 157.78854 | I84: 157.246637 | J84: D | K84: 1 | L84: 23.24048583 | M84: 44.88769446 | N84: 179.5507778 | O84: 0.0887115411 | P84: 40.4586 | Q84: 23.30338295 | R84: 44.93919929 | S84: 179.7567972 | T84: 0.08860986877 | U84: 40.4233 | Y84: 431
A85: 4.05 | B85: 405 | C85: =INDEX($Y$2:$Y$276,MATCH(MIN(ABS($Y$2:$Y$276-B85)),ABS($Y$2:$Y$276-B85),0)) -> 401 | D85: 567 | E85: =INDEX($Y$2:$Y$276,MATCH(MIN(ABS($Y$2:$Y$276-D85)),ABS($Y$2:$Y$276-D85),0)) -> 569 | F85: 769.5 | G85: =INDEX($Y$2:$Y$276,MATCH(MIN(ABS($Y$2:$Y$276-F85)),ABS($Y$2:$Y$276-F85),0)) -> 769 | H85: =(B85/100)*(D85/100)*(F85/100) -> 176.7041325 | I85: 175.461961 | J85: D | K85: 1 | L85: 22.3797271 | M85: 43.22518726 | N85: 172.900749 | O85: 0.09212352345 | P85: 43.63065 | Q85: 22.39427828 | R85: 43.32695079 | S85: 173.3078031 | T85: 0.0919071497 | U85: 43.7561 | Y85: 433
A86: 4.2 | B86: 420 | C86: =INDEX($Y$2:$Y$276,MATCH(MIN(ABS($Y$2:$Y$276-B86)),ABS($Y$2:$Y$276-B86),0)) -> 419 | D86: 588 | E86: =INDEX($Y$2:$Y$276,MATCH(MIN(ABS($Y$2:$Y$276-D86)),ABS($Y$2:$Y$276-D86),0)) -> 587 | F86: 798 | G86: =INDEX($Y$2:$Y$276,MATCH(MIN(ABS($Y$2:$Y$276-F86)),ABS($Y$2:$Y$276-F86),0)) -> 797 | H86: =(B86/100)*(D86/100)*(F86/100) -> 197.07408 | I86: 196.024541 | J86: D | K86: 1 | L86: 21.58045113 | M86: 41.68143057 | N86: 166.7257223 | O86: 0.0955355058 | P86: 46.9224 | Q86: 21.60752823 | R86: 41.75568733 | S86: 167.0227493 | T86: 0.09536560901 | U86: 46.7839 | Y86: 439
A87: 4.35 | B87: 435 | C87: =INDEX($Y$2:$Y$276,MATCH(MIN(ABS($Y$2:$Y$276-B87)),ABS($Y$2:$Y$276-B87),0)) -> 433 | D87: 609 | E87: =INDEX($Y$2:$Y$276,MATCH(MIN(ABS($Y$2:$Y$276-D87)),ABS($Y$2:$Y$276-D87),0)) -> 607 | F87: 826.5 | G87: =INDEX($Y$2:$Y$276,MATCH(MIN(ABS($Y$2:$Y$276-F87)),ABS($Y$2:$Y$276-F87),0)) -> 827 | H87: =(B87/100)*(D87/100)*(F87/100) -> 218.9522475 | I87: 217.361237 | J87: D | K87: 1 | L87: 20.83629764 | M87: 40.24413986 | N87: 160.9765594 | O87: 0.09894748815 | P87: 50.33385 | Q87: 20.82370012 | R87: 40.3420924 | S87: 161.3683696 | T87: 0.09870723889 | U87: 50.1989 | Y87: 443
A88: 4.5 | B88: 450 | C88: =INDEX($Y$2:$Y$276,MATCH(MIN(ABS($Y$2:$Y$276-B88)),ABS($Y$2:$Y$276-B88),0)) -> 449 | D88: 630 | E88: =INDEX($Y$2:$Y$276,MATCH(MIN(ABS($Y$2:$Y$276-D88)),ABS($Y$2:$Y$276-D88),0)) -> 631 | F88: 855 | G88: =INDEX($Y$2:$Y$276,MATCH(MIN(ABS($Y$2:$Y$276-F88)),ABS($Y$2:$Y$276-F88),0)) -> 853 | H88: =(B88/100)*(D88/100)*(F88/100) -> 242.3925 | I88: 241.671107 | J88: D | K88: 1 | L88: 20.14175439 | M88: 38.90266853 | N88: 155.6106741 | O88: 0.1023594705 | P88: 53.865 | Q88: 20.18898007 | R88: 38.94133849 | S88: 155.765354 | T88: 0.1022578244 | U88: 53.8243 | Y88: 449
A89: HEIGHT m | B89: HEIGHT cm | C89: PRIME height | D89: WIDTH cm | E89: PRIME width | F89: DEPTH cm | G89: PRIME depth | H89: VOLUME | I89: PRIME volume | J89: TABLE | K89: 1=Yes 0=NO | L89: F¹ | M89: F² | N89: F³ | O89: minimum RT60 | P89: Floor area | Q89: F¹ | R89: F² | S89: F³ | T89: minimum RT60 | U89: Floor area | Y89: 457
A90: =A74 -> 2.4 | B90: 240 | C90: =INDEX($Y$2:$Y$276,MATCH(MIN(ABS($Y$2:$Y$276-B90)),ABS($Y$2:$Y$276-B90),0)) -> 239 | D90: =B90*$D$8 -> 312 | E90: =INDEX($Y$2:$Y$276,MATCH(MIN(ABS($Y$2:$Y$276-D90)),ABS($Y$2:$Y$276-D90),0)) -> 311 | F90: =B90*$E$8 -> 456 | G90: =INDEX($Y$2:$Y$276,MATCH(MIN(ABS($Y$2:$Y$276-F90)),ABS($Y$2:$Y$276-F90),0)) -> 457 | H90: =(B90/100)*(D90/100)*(F90/100) -> 34.14528 | I90: =(C90/100)*(E90/100)*(G90/100) -> 33.968353 | J90: E | K90: =IF(H90>$K$22,$N$21,$O$21) -> 0 | L90: =565/(F90*0.0328083989501312) -> 37.76578947 | M90: =(SQRT(O90/(H90*35.3146667214885))*11250) -> 74.7668171 | N90: 299.0672684 | O90: =0.25*(((0.028316846592*H90)/100)^(1/3)) -> 0.05325967731 | P90: =(D90/100)*(F90/100) -> 14.2272 | Q90: =565/(G90*0.0328083989501312) -> 37.68315098 | R90: =(SQRT(T90/(I90*35.3146667214885))*11250) -> 74.89640211 | S90: =4*R90 -> 299.5856084 | T90: =0.25*(((0.028316846592*I90)/100)^(1/3)) -> 0.05316752795 | U90: =(E90/100)*(G90/100) -> 14.2127 | Y90: 461
A91: 2.55 | B91: =A91*100 -> 255 | C91: =INDEX($Y$2:$Y$276,MATCH(MIN(ABS($Y$2:$Y$276-B91)),ABS($Y$2:$Y$276-B91),0)) -> 257 | D91: 331.5 | E91: =INDEX($Y$2:$Y$276,MATCH(MIN(ABS($Y$2:$Y$276-D91)),ABS($Y$2:$Y$276-D91),0)) -> 331 | F91: 484.5 | G91: =INDEX($Y$2:$Y$276,MATCH(MIN(ABS($Y$2:$Y$276-F91)),ABS($Y$2:$Y$276-F91),0)) -> 487 | H91: =(B91/100)*(D91/100)*(F91/100) -> 40.95599625 | I91: 41.427629 | J91: E | K91: 0 | L91: 35.54427245 | M91: 70.36876903 | N91: =4*M91 -> 281.4750761 | O91: 0.05658840714 | P91: 16.061175 | Q91: 35.36180698 | R91: 70.10071151 | S91: =4*R91 -> 280.402846 | T91: 0.05680479507 | U91: 16.1197 | Y91: 463
A92: 2.7 | B92: 270 | C92: =INDEX($Y$2:$Y$276,MATCH(MIN(ABS($Y$2:$Y$276-B92)),ABS($Y$2:$Y$276-B92),0)) -> 269 | D92: 351 | E92: =INDEX($Y$2:$Y$276,MATCH(MIN(ABS($Y$2:$Y$276-D92)),ABS($Y$2:$Y$276-D92),0)) -> 349 | F92: 513 | G92: =INDEX($Y$2:$Y$276,MATCH(MIN(ABS($Y$2:$Y$276-F92)),ABS($Y$2:$Y$276-F92),0)) -> 509 | H92: 48.61701 | I92: 47.785429 | J92: E | K92: 1 | L92: 33.56959064 | M92: 66.45939297 | N92: 265.8375719 | O92: 0.05991713697 | P92: 18.0063 | Q92: 33.83339882 | R92: 66.84269561 | S92: 267.3707825 | T92: 0.05957354824 | U92: 17.7641 | Y92: 467
A93: 2.85 | B93: 285 | C93: =INDEX($Y$2:$Y$276,MATCH(MIN(ABS($Y$2:$Y$276-B93)),ABS($Y$2:$Y$276-B93),0)) -> 283 | D93: 370.5 | E93: =INDEX($Y$2:$Y$276,MATCH(MIN(ABS($Y$2:$Y$276-D93)),ABS($Y$2:$Y$276-D93),0)) -> 373 | F93: 541.5 | G93: =INDEX($Y$2:$Y$276,MATCH(MIN(ABS($Y$2:$Y$276-F93)),ABS($Y$2:$Y$276-F93),0)) -> 541 | H93: 57.17833875 | I93: 57.107419 | J93: E | K93: 1 | L93: 31.80277008 | M93: 62.96153019 | N93: 251.8461207 | O93: 0.06324586681 | P93: 20.062575 | Q93: 31.83216266 | R93: 62.98758266 | S93: 251.9503306 | T93: 0.0632197075 | U93: 20.1793 | Y93: 479
A94: 3 | B94: 300 | C94: =INDEX($Y$2:$Y$276,MATCH(MIN(ABS($Y$2:$Y$276-B94)),ABS($Y$2:$Y$276-B94),0)) -> 293 | D94: 390 | E94: =INDEX($Y$2:$Y$276,MATCH(MIN(ABS($Y$2:$Y$276-D94)),ABS($Y$2:$Y$276-D94),0)) -> 389 | F94: 570 | G94: =INDEX($Y$2:$Y$276,MATCH(MIN(ABS($Y$2:$Y$276-F94)),ABS($Y$2:$Y$276-F94),0)) -> 569 | H94: 66.69 | I94: 64.852913 | J94: E | K94: 1 | L94: 30.21263158 | M94: 59.81345368 | N94: 239.2538147 | O94: 0.06657459664 | P94: 22.23 | Q94: 30.26572935 | R94: 60.37298135 | S94: 241.4919254 | T94: 0.06595759334 | U94: 22.1341 | Y94: 487
A95: 3.2 | B95: 320 | C95: =INDEX($Y$2:$Y$276,MATCH(MIN(ABS($Y$2:$Y$276-B95)),ABS($Y$2:$Y$276-B95),0)) -> 317 | D95: 416 | E95: =INDEX($Y$2:$Y$276,MATCH(MIN(ABS($Y$2:$Y$276-D95)),ABS($Y$2:$Y$276-D95),0)) -> 419 | F95: 608 | G95: =INDEX($Y$2:$Y$276,MATCH(MIN(ABS($Y$2:$Y$276-F95)),ABS($Y$2:$Y$276-F95),0)) -> 607 | H95: 80.93696 | I95: 80.623561 | J95: E | K95: 1 | L95: 28.32434211 | M95: 56.07511282 | N95: 224.3004513 | O95: 0.07101290308 | P95: 25.2928 | Q95: 28.37100494 | R95: 56.14767706 | S95: 224.5907082 | T95: 0.07092112729 | U95: 25.4333 | Y95: 491
A96: 3.3 | B96: 330 | C96: =INDEX($Y$2:$Y$276,MATCH(MIN(ABS($Y$2:$Y$276-B96)),ABS($Y$2:$Y$276-B96),0)) -> 331 | D96: 429 | E96: =INDEX($Y$2:$Y$276,MATCH(MIN(ABS($Y$2:$Y$276-D96)),ABS($Y$2:$Y$276-D96),0)) -> 431 | F96: 627 | G96: =INDEX($Y$2:$Y$276,MATCH(MIN(ABS($Y$2:$Y$276-F96)),ABS($Y$2:$Y$276-F96),0)) -> 631 | H96: 88.76439 | I96: 90.019091 | J96: E | K96: 1 | L96: 27.46602871 | M96: 54.37586698 | N96: 217.5034679 | O96: 0.0732320563 | P96: 26.8983 | Q96: 27.29191759 | R96: 54.12205078 | S96: 216.4882031 | T96: 0.0735754927 | U96: 27.1961 | Y96: 499
A97: 3.4 | B97: 340 | C97: =INDEX($Y$2:$Y$276,MATCH(MIN(ABS($Y$2:$Y$276-B97)),ABS($Y$2:$Y$276-B97),0)) -> 337 | D97: 442 | E97: =INDEX($Y$2:$Y$276,MATCH(MIN(ABS($Y$2:$Y$276-D97)),ABS($Y$2:$Y$276-D97),0)) -> 443 | F97: 646 | G97: =INDEX($Y$2:$Y$276,MATCH(MIN(ABS($Y$2:$Y$276-F97)),ABS($Y$2:$Y$276-F97),0)) -> 647 | H97: 97.08088 | I97: 96.591277 | J97: E | K97: 1 | L97: 26.65820433 | M97: 52.77657677 | N97: 211.1063071 | O97: 0.07545120952 | P97: 28.5532 | Q97: 26.61700155 | R97: 52.86559804 | S97: 211.4623922 | T97: 0.07532415596 | U97: 28.6621 | Y97: 503
A98: 3.6 | B98: 360 | C98: =INDEX($Y$2:$Y$276,MATCH(MIN(ABS($Y$2:$Y$276-B98)),ABS($Y$2:$Y$276-B98),0)) -> 359 | D98: 468 | E98: =INDEX($Y$2:$Y$276,MATCH(MIN(ABS($Y$2:$Y$276-D98)),ABS($Y$2:$Y$276-D98),0)) -> 467 | F98: 684 | G98: =INDEX($Y$2:$Y$276,MATCH(MIN(ABS($Y$2:$Y$276-F98)),ABS($Y$2:$Y$276-F98),0)) -> 683 | H98: 115.24032 | I98: 114.506999 | J98: E | K98: 1 | L98: 25.17719298 | M98: 49.84454473 | N98: 199.3781789 | O98: 0.07988951596 | P98: 32.0112 | Q98: 25.21405564 | R98: 49.95072252 | S98: 199.8028901 | T98: 0.07971969876 | U98: 31.8961 | Y98: 509
A99: 3.75 | B99: 375 | C99: =INDEX($Y$2:$Y$276,MATCH(MIN(ABS($Y$2:$Y$276-B99)),ABS($Y$2:$Y$276-B99),0)) -> 373 | D99: 487.5 | E99: =INDEX($Y$2:$Y$276,MATCH(MIN(ABS($Y$2:$Y$276-D99)),ABS($Y$2:$Y$276-D99),0)) -> 487 | F99: 712.5 | G99: =INDEX($Y$2:$Y$276,MATCH(MIN(ABS($Y$2:$Y$276-F99)),ABS($Y$2:$Y$276-F99),0)) -> 709 | H99: 130.2539062 | I99: 128.790559 | J99: E | K99: 1 | L99: 24.17010526 | M99: 47.85076294 | N99: 191.4030518 | O99: 0.0832182458 | P99: 34.734375 | Q99: 24.28942172 | R99: 48.03131122 | S99: 192.1252449 | T99: 0.08290543087 | U99: 34.5283 | Y99: 521
A100: 3.9 | B100: 390 | C100: =INDEX($Y$2:$Y$276,MATCH(MIN(ABS($Y$2:$Y$276-B100)),ABS($Y$2:$Y$276-B100),0)) -> 389 | D100: 507 | E100: =INDEX($Y$2:$Y$276,MATCH(MIN(ABS($Y$2:$Y$276-D100)),ABS($Y$2:$Y$276-D100),0)) -> 509 | F100: 741 | G100: =INDEX($Y$2:$Y$276,MATCH(MIN(ABS($Y$2:$Y$276-F100)),ABS($Y$2:$Y$276-F100),0)) -> 739 | H100: 146.51793 | I100: 146.322739 | J100: E | K100: 1 | L100: 23.24048583 | M100: 46.01034898 | N100: 184.0413959 | O100: 0.08654697563 | P100: 37.5687 | Q100: 23.30338295 | R100: 46.03079879 | S100: 184.1231952 | T100: 0.08650852596 | U100: 37.6151 | Y100: 523
A101: 4.05 | B101: 405 | C101: =INDEX($Y$2:$Y$276,MATCH(MIN(ABS($Y$2:$Y$276-B101)),ABS($Y$2:$Y$276-B101),0)) -> 401 | D101: 526.5 | E101: =INDEX($Y$2:$Y$276,MATCH(MIN(ABS($Y$2:$Y$276-D101)),ABS($Y$2:$Y$276-D101),0)) -> 523 | F101: 769.5 | G101: =INDEX($Y$2:$Y$276,MATCH(MIN(ABS($Y$2:$Y$276-F101)),ABS($Y$2:$Y$276-F101),0)) -> 769 | H101: =(B101/100)*(D101/100)*(F101/100) -> 164.0824087 | I101: 161.276987 | J101: E | K101: 1 | L101: 22.3797271 | M101: 44.30626198 | N101: 177.2250479 | O101: 0.08987570546 | P101: 40.514175 | Q101: 22.39427828 | R101: 44.56168986 | S101: 178.2467594 | T101: 0.08936053737 | U101: 40.2187 | Y101: 541
A102: 4.2 | B102: 420 | C102: =INDEX($Y$2:$Y$276,MATCH(MIN(ABS($Y$2:$Y$276-B102)),ABS($Y$2:$Y$276-B102),0)) -> 419 | D102: 546 | E102: =INDEX($Y$2:$Y$276,MATCH(MIN(ABS($Y$2:$Y$276-D102)),ABS($Y$2:$Y$276-D102),0)) -> 547 | F102: 798 | G102: =INDEX($Y$2:$Y$276,MATCH(MIN(ABS($Y$2:$Y$276-F102)),ABS($Y$2:$Y$276-F102),0)) -> 797 | H102: =(B102/100)*(D102/100)*(F102/100) -> 182.99736 | I102: 182.666821 | J102: E | K102: 1 | L102: 21.58045113 | M102: 42.72389548 | N102: 170.8955819 | O102: 0.09320443529 | P102: 43.5708 | Q102: 21.60752823 | R102: 42.74964985 | S102: 170.9985994 | T102: 0.09314828463 | U102: 43.5959 | Y102: 547
A103: 4.35 | B103: 435 | C103: =INDEX($Y$2:$Y$276,MATCH(MIN(ABS($Y$2:$Y$276-B103)),ABS($Y$2:$Y$276-B103),0)) -> 433 | D103: 565.5 | E103: =INDEX($Y$2:$Y$276,MATCH(MIN(ABS($Y$2:$Y$276-D103)),ABS($Y$2:$Y$276-D103),0)) -> 563 | F103: 826.5 | G103: =INDEX($Y$2:$Y$276,MATCH(MIN(ABS($Y$2:$Y$276-F103)),ABS($Y$2:$Y$276-F103),0)) -> 827 | H103: =(B103/100)*(D103/100)*(F103/100) -> 203.3128012 | I103: 201.605233 | J103: E | K103: 1 | L103: 20.83629764 | M103: 41.25065771 | N103: 165.0026308 | O103: 0.09653316512 | P103: 46.738575 | Q103: 20.82370012 | R103: 41.36679288 | S103: 165.4671715 | T103: 0.09626215316 | U103: 46.5601 | Y103: 557
A104: 4.5 | B104: 450 | C104: =INDEX($Y$2:$Y$276,MATCH(MIN(ABS($Y$2:$Y$276-B104)),ABS($Y$2:$Y$276-B104),0)) -> 449 | D104: 585 | E104: =INDEX($Y$2:$Y$276,MATCH(MIN(ABS($Y$2:$Y$276-D104)),ABS($Y$2:$Y$276-D104),0)) -> 587 | F104: 855 | G104: =INDEX($Y$2:$Y$276,MATCH(MIN(ABS($Y$2:$Y$276-F104)),ABS($Y$2:$Y$276-F104),0)) -> 853 | H104: =(B104/100)*(D104/100)*(F104/100) -> 225.07875 | I104: 224.819239 | J104: E | K104: 1 | L104: 20.14175439 | M104: 39.87563578 | N104: 159.5025431 | O104: 0.09986189496 | P104: 50.0175 | Q104: 20.18898007 | R104: 39.89097283 | S104: 159.5638913 | T104: 0.09982350065 | U104: 50.0711 | Y104: 563
A105: HEIGHT m | B105: HEIGHT cm | C105: PRIME height | D105: WIDTH cm | E105: PRIME width | F105: DEPTH cm | G105: PRIME depth | H105: VOLUME | I105: PRIME volume | J105: TABLE | K105: 1=Yes 0=NO | L105: F¹ | M105: F² | N105: F³ | O105: minimum RT60 | P105: Floor area | Q105: F¹ | R105: F² | S105: F³ | T105: minimum RT60 | U105: Floor area | Y105: 569
A106: =A90 -> 2.4 | B106: 240 | C106: =INDEX($Y$2:$Y$276,MATCH(MIN(ABS($Y$2:$Y$276-B106)),ABS($Y$2:$Y$276-B106),0)) -> 239 | D106: =B106*$D$9 -> 360 | E106: =INDEX($Y$2:$Y$276,MATCH(MIN(ABS($Y$2:$Y$276-D106)),ABS($Y$2:$Y$276-D106),0)) -> 359 | F106: =B106*$E$9 -> 504 | G106: =INDEX($Y$2:$Y$276,MATCH(MIN(ABS($Y$2:$Y$276-F106)),ABS($Y$2:$Y$276-F106),0)) -> 503 | H106: =(B106/100)*(D106/100)*(F106/100) -> 43.5456 | I106: =(C106/100)*(E106/100)*(G106/100) -> 43.157903 | J106: F | K106: =IF(H106>$K$22,$N$21,$O$21) -> 1 | L106: =565/(F106*0.0328083989501312) -> 34.16904762 | M106: =(SQRT(O106/(H106*35.3146667214885))*11250) -> 68.94525134 | N106: 275.7810054 | O106: =0.25*(((0.028316846592*H106)/100)^(1/3)) -> 0.05775679216 | P106: =(D106/100)*(F106/100) -> 18.144 | Q106: =565/(G106*0.0328083989501312) -> 34.23697813 | R106: =(SQRT(T106/(I106*35.3146667214885))*11250) -> 69.15108636 | S106: =4*R106 -> 276.6043454 | T106: =0.25*(((0.028316846592*I106)/100)^(1/3)) -> 0.05758487338 | U106: =(E106/100)*(G106/100) -> 18.0577 | Y106: 571
A107: 2.55 | B107: 255 | C107: =INDEX($Y$2:$Y$276,MATCH(MIN(ABS($Y$2:$Y$276-B107)),ABS($Y$2:$Y$276-B107),0)) -> 257 | D107: 382.5 | E107: =INDEX($Y$2:$Y$276,MATCH(MIN(ABS($Y$2:$Y$276-D107)),ABS($Y$2:$Y$276-D107),0)) -> 383 | F107: 535.5 | G107: =INDEX($Y$2:$Y$276,MATCH(MIN(ABS($Y$2:$Y$276-F107)),ABS($Y$2:$Y$276-F107),0)) -> 541 | H107: =(B107/100)*(D107/100)*(F107/100) -> 52.23133125 | I107: 53.251171 | J107: F | K107: 1 | L107: 32.15910364 | M107: 64.88964832 | N107: 259.5585933 | O107: 0.06136659167 | P107: 20.482875 | Q107: 31.83216266 | R107: 64.47273067 | S107: =4*R107 -> 257.8909227 | T107: 0.06176342324 | U107: 20.7203 | Y107: 577
A108: 2.7 | B108: 270 | C108: =INDEX($Y$2:$Y$276,MATCH(MIN(ABS($Y$2:$Y$276-B108)),ABS($Y$2:$Y$276-B108),0)) -> 269 | D108: 405 | E108: =INDEX($Y$2:$Y$276,MATCH(MIN(ABS($Y$2:$Y$276-D108)),ABS($Y$2:$Y$276-D108),0)) -> 401 | F108: 567 | G108: =INDEX($Y$2:$Y$276,MATCH(MIN(ABS($Y$2:$Y$276-F108)),ABS($Y$2:$Y$276-F108),0)) -> 569 | H108: 62.00145 | I108: 61.377461 | J108: F | K108: 1 | L108: 30.37248677 | M108: 61.28466786 | N108: 245.1386714 | O108: 0.06497639118 | P108: 22.9635 | Q108: 30.26572935 | R108: 61.49164989 | S108: 245.9665995 | T108: 0.06475767945 | U108: 22.8169 | Y108: 587
A109: 2.85 | B109: 285 | C109: =INDEX($Y$2:$Y$276,MATCH(MIN(ABS($Y$2:$Y$276-B109)),ABS($Y$2:$Y$276-B109),0)) -> 283 | D109: 427.5 | E109: =INDEX($Y$2:$Y$276,MATCH(MIN(ABS($Y$2:$Y$276-D109)),ABS($Y$2:$Y$276-D109),0)) -> 431 | F109: 598.5 | G109: =INDEX($Y$2:$Y$276,MATCH(MIN(ABS($Y$2:$Y$276-F109)),ABS($Y$2:$Y$276-F109),0)) -> 599 | H109: 72.91974375 | I109: 73.061827 | J109: F | K109: 1 | L109: 28.77393484 | M109: 58.05915902 | N109: 232.2366361 | O109: 0.06858619069 | P109: 25.585875 | Q109: 28.74991653 | R109: 58.02149874 | S109: 232.085995 | T109: 0.06863070825 | U109: 25.8169 | Y109: 593
A110: 3 | B110: 300 | C110: =INDEX($Y$2:$Y$276,MATCH(MIN(ABS($Y$2:$Y$276-B110)),ABS($Y$2:$Y$276-B110),0)) -> 293 | D110: 450 | E110: =INDEX($Y$2:$Y$276,MATCH(MIN(ABS($Y$2:$Y$276-D110)),ABS($Y$2:$Y$276-D110),0)) -> 449 | F110: 630 | G110: =INDEX($Y$2:$Y$276,MATCH(MIN(ABS($Y$2:$Y$276-F110)),ABS($Y$2:$Y$276-F110),0)) -> 631 | H110: 85.05 | I110: 83.012467 | J110: F | K110: 1 | L110: 27.3352381 | M110: 55.15620107 | N110: 220.6248043 | O110: 0.0721959902 | P110: 28.35 | Q110: 27.29191759 | R110: 55.60382638 | S110: 222.4153055 | T110: 0.07161479365 | U110: 28.3319 | Y110: 599
A111: 3.2 | B111: 320 | C111: =INDEX($Y$2:$Y$276,MATCH(MIN(ABS($Y$2:$Y$276-B111)),ABS($Y$2:$Y$276-B111),0)) -> 317 | D111: 480 | E111: =INDEX($Y$2:$Y$276,MATCH(MIN(ABS($Y$2:$Y$276-D111)),ABS($Y$2:$Y$276-D111),0)) -> 479 | F111: 672 | G111: =INDEX($Y$2:$Y$276,MATCH(MIN(ABS($Y$2:$Y$276-F111)),ABS($Y$2:$Y$276-F111),0)) -> 673 | H111: 103.2192 | I111: 102.190339 | J111: F | K111: 1 | L111: 25.62678571 | M111: 51.7089385 | N111: 206.835754 | O111: 0.07700905621 | P111: 32.256 | Q111: 25.58870728 | R111: 51.881896 | S111: 207.527584 | T111: 0.07675233287 | U111: 32.2367 | Y111: 601
A112: 3.3 | B112: 330 | C112: =INDEX($Y$2:$Y$276,MATCH(MIN(ABS($Y$2:$Y$276-B112)),ABS($Y$2:$Y$276-B112),0)) -> 331 | D112: 495 | E112: =INDEX($Y$2:$Y$276,MATCH(MIN(ABS($Y$2:$Y$276-D112)),ABS($Y$2:$Y$276-D112),0)) -> 491 | F112: 693 | G112: =INDEX($Y$2:$Y$276,MATCH(MIN(ABS($Y$2:$Y$276-F112)),ABS($Y$2:$Y$276-F112),0)) -> 691 | H112: 113.20155 | I112: 112.302011 | J112: F | K112: 1 | L112: 24.85021645 | M112: 50.14200097 | N112: 200.5680039 | O112: 0.07941558922 | P112: 34.3035 | Q112: 24.92214182 | R112: 50.27552422 | S112: 201.1020969 | T112: 0.07920467491 | U112: 33.9281 | Y112: 607
A113: 3.4 | B113: 340 | C113: =INDEX($Y$2:$Y$276,MATCH(MIN(ABS($Y$2:$Y$276-B113)),ABS($Y$2:$Y$276-B113),0)) -> 337 | D113: 510 | E113: =INDEX($Y$2:$Y$276,MATCH(MIN(ABS($Y$2:$Y$276-D113)),ABS($Y$2:$Y$276-D113),0)) -> 509 | F113: 714 | G113: =INDEX($Y$2:$Y$276,MATCH(MIN(ABS($Y$2:$Y$276-F113)),ABS($Y$2:$Y$276-F113),0)) -> 709 | H113: 123.8076 | I113: 121.616897 | J113: F | K113: 1 | L113: 24.11932773 | M113: 48.66723624 | N113: 194.668945 | O113: 0.08182212223 | P113: 36.414 | Q113: 24.28942172 | R113: 48.9577157 | S113: 195.8308628 | T113: 0.0813366493 | U113: 36.0881 | Y113: 613
A114: 3.6 | B114: 360 | C114: =INDEX($Y$2:$Y$276,MATCH(MIN(ABS($Y$2:$Y$276-B114)),ABS($Y$2:$Y$276-B114),0)) -> 359 | D114: 540 | E114: =INDEX($Y$2:$Y$276,MATCH(MIN(ABS($Y$2:$Y$276-D114)),ABS($Y$2:$Y$276-D114),0)) -> 541 | F114: 756 | G114: =INDEX($Y$2:$Y$276,MATCH(MIN(ABS($Y$2:$Y$276-F114)),ABS($Y$2:$Y$276-F114),0)) -> 757 | H114: 146.9664 | I114: 147.023783 | J114: F | K114: 1 | L114: 22.77936508 | M114: 45.96350089 | N114: 183.8540036 | O114: 0.08663518824 | P114: 40.824 | Q114: 22.74927345 | R114: 45.9575203 | S114: 183.8300812 | T114: 0.08664646234 | U114: 40.9537 | Y114: 617
A115: 3.75 | B115: 375 | C115: =INDEX($Y$2:$Y$276,MATCH(MIN(ABS($Y$2:$Y$276-B115)),ABS($Y$2:$Y$276-B115),0)) -> 373 | D115: 562.5 | E115: =INDEX($Y$2:$Y$276,MATCH(MIN(ABS($Y$2:$Y$276-D115)),ABS($Y$2:$Y$276-D115),0)) -> 563 | F115: 787.5 | G115: =INDEX($Y$2:$Y$276,MATCH(MIN(ABS($Y$2:$Y$276-F115)),ABS($Y$2:$Y$276-F115),0)) -> 787 | H115: 166.1132812 | I115: 165.269213 | J115: F | K115: 1 | L115: 21.86819048 | M115: 44.12496086 | N115: 176.4998434 | O115: 0.09024498775 | P115: 44.296875 | Q115: 21.88208386 | R115: 44.19995214 | S115: 176.7998086 | T115: 0.09009187474 | U115: 44.3081 | Y115: 619
A116: 3.9 | B116: 390 | C116: =INDEX($Y$2:$Y$276,MATCH(MIN(ABS($Y$2:$Y$276-B116)),ABS($Y$2:$Y$276-B116),0)) -> 389 | D116: 585 | E116: =INDEX($Y$2:$Y$276,MATCH(MIN(ABS($Y$2:$Y$276-D116)),ABS($Y$2:$Y$276-D116),0)) -> 587 | F116: 819 | G116: =INDEX($Y$2:$Y$276,MATCH(MIN(ABS($Y$2:$Y$276-F116)),ABS($Y$2:$Y$276-F116),0)) -> 821 | H116: 186.85485 | I116: 187.469603 | J116: F | K116: 1 | L116: 21.02710623 | M116: 42.42784698 | N116: 169.7113879 | O116: 0.09385478726 | P116: 47.9115 | Q116: 20.97588307 | R116: 42.38141952 | S116: 169.5256781 | T116: 0.0939576021 | U116: 48.1927 | Y116: 631
A117: 4.05 | B117: 405 | C117: =INDEX($Y$2:$Y$276,MATCH(MIN(ABS($Y$2:$Y$276-B117)),ABS($Y$2:$Y$276-B117),0)) -> 401 | D117: 607.5 | E117: =INDEX($Y$2:$Y$276,MATCH(MIN(ABS($Y$2:$Y$276-D117)),ABS($Y$2:$Y$276-D117),0)) -> 607 | F117: 850.5 | G117: =INDEX($Y$2:$Y$276,MATCH(MIN(ABS($Y$2:$Y$276-F117)),ABS($Y$2:$Y$276-F117),0)) -> 853 | H117: =(B117/100)*(D117/100)*(F117/100) -> 209.2548938 | I117: 207.626171 | J117: F | K117: 1 | L117: 20.24832451 | M117: 40.85644524 | N117: 163.4257809 | O117: 0.09746458677 | P117: 51.667875 | Q117: 20.18898007 | R117: 40.96299984 | S117: 163.8519994 | T117: 0.09721105796 | U117: 51.7771 | Y117: 641
A118: 4.2 | B118: 420 | C118: =INDEX($Y$2:$Y$276,MATCH(MIN(ABS($Y$2:$Y$276-B118)),ABS($Y$2:$Y$276-B118),0)) -> 419 | D118: 630 | E118: =INDEX($Y$2:$Y$276,MATCH(MIN(ABS($Y$2:$Y$276-D118)),ABS($Y$2:$Y$276-D118),0)) -> 631 | F118: 882 | G118: =INDEX($Y$2:$Y$276,MATCH(MIN(ABS($Y$2:$Y$276-F118)),ABS($Y$2:$Y$276-F118),0)) -> 881 | H118: =(B118/100)*(D118/100)*(F118/100) -> 233.3772 | I118: 232.926709 | J118: F | K118: 1 | L118: 19.52517007 | M118: 39.39728648 | N118: 157.5891459 | O118: 0.1010743863 | P118: 55.566 | Q118: 19.54733258 | R118: 39.42266885 | S118: 157.6906754 | T118: 0.1010093093 | U118: 55.5911 | Y118: 643
A119: 4.35 | B119: 435 | C119: =INDEX($Y$2:$Y$276,MATCH(MIN(ABS($Y$2:$Y$276-B119)),ABS($Y$2:$Y$276-B119),0)) -> 433 | D119: 652.5 | E119: =INDEX($Y$2:$Y$276,MATCH(MIN(ABS($Y$2:$Y$276-D119)),ABS($Y$2:$Y$276-D119),0)) -> 653 | F119: 913.5 | G119: =INDEX($Y$2:$Y$276,MATCH(MIN(ABS($Y$2:$Y$276-F119)),ABS($Y$2:$Y$276-F119),0)) -> 911 | H119: =(B119/100)*(D119/100)*(F119/100) -> 259.2855562 | I119: 257.584339 | J119: F | K119: 1 | L119: 18.85188834 | M119: 38.03875936 | N119: 152.1550374 | O119: 0.1046841858 | P119: 59.605875 | Q119: 18.90362239 | R119: 38.12231807 | S119: 152.4892723 | T119: 0.1044547329 | U119: 59.4883 | Y119: 647
A120: 4.5 | B120: 450 | C120: =INDEX($Y$2:$Y$276,MATCH(MIN(ABS($Y$2:$Y$276-B120)),ABS($Y$2:$Y$276-B120),0)) -> 449 | D120: 675 | E120: =INDEX($Y$2:$Y$276,MATCH(MIN(ABS($Y$2:$Y$276-D120)),ABS($Y$2:$Y$276-D120),0)) -> 673 | F120: 945 | G120: =INDEX($Y$2:$Y$276,MATCH(MIN(ABS($Y$2:$Y$276-F120)),ABS($Y$2:$Y$276-F120),0)) -> 947 | H120: =(B120/100)*(D120/100)*(F120/100) -> 287.04375 | I120: 286.161619 | J120: F | K120: 1 | L120: 18.22349206 | M120: 36.77080071 | N120: 147.0832029 | O120: 0.1082939853 | P120: 63.7875 | Q120: 18.18500528 | R120: 36.80854557 | S120: 147.2341823 | T120: 0.1081829366 | U120: 63.7331 | Y120: 653
A121: HEIGHT m | B121: HEIGHT cm | C121: PRIME height | D121: WIDTH cm | E121: PRIME width | F121: DEPTH cm | G121: PRIME depth | H121: VOLUME | I121: PRIME volume | J121: TABLE | K121: 1=Yes 0=NO | L121: F¹ | M121: F² | N121: F³ | O121: minimum RT60 | P121: Floor area | Q121: F¹ | R121: F² | S121: F³ | T121: minimum RT60 | U121: Floor area | Y121: 659
A122: =A106 -> 2.4 | B122: 240 | C122: =INDEX($Y$2:$Y$276,MATCH(MIN(ABS($Y$2:$Y$276-B122)),ABS($Y$2:$Y$276-B122),0)) -> 239 | D122: =B122*$D$10 -> 360 | E122: =INDEX($Y$2:$Y$276,MATCH(MIN(ABS($Y$2:$Y$276-D122)),ABS($Y$2:$Y$276-D122),0)) -> 359 | F122: =B122*$E$10 -> 600 | G122: =INDEX($Y$2:$Y$276,MATCH(MIN(ABS($Y$2:$Y$276-F122)),ABS($Y$2:$Y$276-F122),0)) -> 599 | H122: =(B122/100)*(D122/100)*(F122/100) -> 51.84 | I122: =(C122/100)*(E122/100)*(G122/100) -> 51.394799 | J122: G | K122: =IF(H122>$K$22,$N$21,$O$21) -> 1 | L122: =565/(F122*0.0328083989501312) -> 28.702 | M122: =(SQRT(O122/(H122*35.3146667214885))*11250) -> 65.05251944 | N122: 260.2100778 | O122: =0.25*(((0.028316846592*H122)/100)^(1/3)) -> 0.06121294896 | P122: =(D122/100)*(F122/100) -> 21.6 | Q122: =565/(G122*0.0328083989501312) -> 28.74991653 | R122: =(SQRT(T122/(I122*35.3146667214885))*11250) -> 65.2398161 | S122: =4*R122 -> 260.9592644 | T122: =0.25*(((0.028316846592*I122)/100)^(1/3)) -> 0.06103721301 | U122: =(E122/100)*(G122/100) -> 21.5041 | Y122: 661
A123: 2.55 | B123: 255 | C123: =INDEX($Y$2:$Y$276,MATCH(MIN(ABS($Y$2:$Y$276-B123)),ABS($Y$2:$Y$276-B123),0)) -> 257 | D123: 382.5 | E123: =INDEX($Y$2:$Y$276,MATCH(MIN(ABS($Y$2:$Y$276-D123)),ABS($Y$2:$Y$276-D123),0)) -> 383 | F123: 637.5 | G123: =INDEX($Y$2:$Y$276,MATCH(MIN(ABS($Y$2:$Y$276-F123)),ABS($Y$2:$Y$276-F123),0)) -> 641 | H123: =(B123/100)*(D123/100)*(F123/100) -> 62.18015625 | I123: 63.094271 | J123: G | K123: 1 | L123: 27.01364706 | M123: 61.22590065 | N123: 244.9036026 | O123: 0.06503875827 | P123: 24.384375 | Q123: 26.86614665 | R123: 60.92877921 | S123: =4*R123 -> 243.7151168 | T123: 0.06535592217 | U123: 24.5503 | Y123: 673
A124: 2.7 | B124: 270 | C124: =INDEX($Y$2:$Y$276,MATCH(MIN(ABS($Y$2:$Y$276-B124)),ABS($Y$2:$Y$276-B124),0)) -> 269 | D124: 405 | E124: =INDEX($Y$2:$Y$276,MATCH(MIN(ABS($Y$2:$Y$276-D124)),ABS($Y$2:$Y$276-D124),0)) -> 401 | F124: 675 | G124: =INDEX($Y$2:$Y$276,MATCH(MIN(ABS($Y$2:$Y$276-F124)),ABS($Y$2:$Y$276-F124),0)) -> 673 | H124: 73.81125 | I124: 72.595837 | J124: G | K124: 1 | L124: 25.51288889 | M124: 57.82446173 | N124: 231.2978469 | O124: 0.06886456757 | P124: 27.3375 | Q124: 25.58870728 | R124: 58.14538001 | S124: 232.58152 | T124: 0.06848448753 | U124: 26.9873 | Y124: 677
A125: 2.85 | B125: 285 | C125: =INDEX($Y$2:$Y$276,MATCH(MIN(ABS($Y$2:$Y$276-B125)),ABS($Y$2:$Y$276-B125),0)) -> 283 | D125: 427.5 | E125: =INDEX($Y$2:$Y$276,MATCH(MIN(ABS($Y$2:$Y$276-D125)),ABS($Y$2:$Y$276-D125),0)) -> 431 | F125: 712.5 | G125: =INDEX($Y$2:$Y$276,MATCH(MIN(ABS($Y$2:$Y$276-F125)),ABS($Y$2:$Y$276-F125),0)) -> 709 | H125: 86.80921875 | I125: 86.478857 | J125: G | K125: 1 | L125: 24.17010526 | M125: 54.781069 | N125: 219.124276 | O125: 0.07269037688 | P125: 30.459375 | Q125: 24.28942172 | R125: 54.85073757 | S125: 219.4029503 | T125: 0.07259804933 | U125: 30.5579 | Y125: 683
A126: 3 | B126: 300 | C126: =INDEX($Y$2:$Y$276,MATCH(MIN(ABS($Y$2:$Y$276-B126)),ABS($Y$2:$Y$276-B126),0)) -> 293 | D126: 450 | E126: =INDEX($Y$2:$Y$276,MATCH(MIN(ABS($Y$2:$Y$276-D126)),ABS($Y$2:$Y$276-D126),0)) -> 449 | F126: 750 | G126: =INDEX($Y$2:$Y$276,MATCH(MIN(ABS($Y$2:$Y$276-F126)),ABS($Y$2:$Y$276-F126),0)) -> 751 | H126: 101.25 | I126: 98.799307 | J126: G | K126: 1 | L126: 22.9616 | M126: 52.04201555 | N126: 208.1680622 | O126: 0.07651618619 | P126: 33.75 | Q126: 22.9310253 | R126: 52.46880254 | S126: 209.8752101 | T126: 0.07589379516 | U126: 33.7199 | Y126: 691
A127: 3.2 | B127: 320 | C127: =INDEX($Y$2:$Y$276,MATCH(MIN(ABS($Y$2:$Y$276-B127)),ABS($Y$2:$Y$276-B127),0)) -> 317 | D127: 480 | E127: =INDEX($Y$2:$Y$276,MATCH(MIN(ABS($Y$2:$Y$276-D127)),ABS($Y$2:$Y$276-D127),0)) -> 479 | F127: 800 | G127: =INDEX($Y$2:$Y$276,MATCH(MIN(ABS($Y$2:$Y$276-F127)),ABS($Y$2:$Y$276-F127),0)) -> 797 | H127: 122.88 | I127: 121.018871 | J127: G | K127: 1 | L127: 21.5265 | M127: 48.78938958 | N127: 195.1575583 | O127: 0.08161726527 | P127: 38.4 | Q127: 21.60752823 | R127: 49.03822626 | S127: 196.152905 | T127: 0.08120311145 | U127: 38.1763 | Y127: 701
A128: 3.3 | B128: 330 | C128: =INDEX($Y$2:$Y$276,MATCH(MIN(ABS($Y$2:$Y$276-B128)),ABS($Y$2:$Y$276-B128),0)) -> 331 | D128: 495 | E128: =INDEX($Y$2:$Y$276,MATCH(MIN(ABS($Y$2:$Y$276-D128)),ABS($Y$2:$Y$276-D128),0)) -> 491 | F128: 825 | G128: =INDEX($Y$2:$Y$276,MATCH(MIN(ABS($Y$2:$Y$276-F128)),ABS($Y$2:$Y$276-F128),0)) -> 823 | H128: 134.76375 | I128: 133.754783 | J128: G | K128: 1 | L128: 20.87418182 | M128: 47.31092323 | N128: 189.2436929 | O128: 0.08416780481 | P128: 40.8375 | Q128: 20.92490887 | R128: 47.42958723 | S128: 189.7183489 | T128: 0.08395722553 | U128: 40.4093 | Y128: 709
A129: 3.4 | B129: 340 | C129: =INDEX($Y$2:$Y$276,MATCH(MIN(ABS($Y$2:$Y$276-B129)),ABS($Y$2:$Y$276-B129),0)) -> 337 | D129: 510 | E129: =INDEX($Y$2:$Y$276,MATCH(MIN(ABS($Y$2:$Y$276-D129)),ABS($Y$2:$Y$276-D129),0)) -> 509 | F129: 850 | G129: =INDEX($Y$2:$Y$276,MATCH(MIN(ABS($Y$2:$Y$276-F129)),ABS($Y$2:$Y$276-F129),0)) -> 853 | H129: 147.39 | I129: 146.317649 | J129: G | K129: 1 | L129: 20.26023529 | M129: 45.91942549 | N129: 183.677702 | O129: 0.08671834435 | P129: 43.35 | Q129: 20.18898007 | R129: 46.03133255 | S129: 184.1253302 | T129: 0.08650752285 | U129: 43.4177 | Y129: 719
A130: 3.6 | B130: 360 | C130: =INDEX($Y$2:$Y$276,MATCH(MIN(ABS($Y$2:$Y$276-B130)),ABS($Y$2:$Y$276-B130),0)) -> 359 | D130: 540 | E130: =INDEX($Y$2:$Y$276,MATCH(MIN(ABS($Y$2:$Y$276-D130)),ABS($Y$2:$Y$276-D130),0)) -> 541 | F130: 900 | G130: =INDEX($Y$2:$Y$276,MATCH(MIN(ABS($Y$2:$Y$276-F130)),ABS($Y$2:$Y$276-F130),0)) -> 907 | H130: 174.96 | I130: 176.156633 | J130: G | K130: 1 | L130: 19.13466667 | M130: 43.36834629 | N130: 173.4733852 | O130: 0.09181942343 | P130: 48.6 | Q130: 18.98699008 | R130: 43.26992262 | S130: 173.0796905 | T130: 0.09202827995 | U130: 49.0687 | Y130: 727
A131: 3.75 | B131: 375 | C131: =INDEX($Y$2:$Y$276,MATCH(MIN(ABS($Y$2:$Y$276-B131)),ABS($Y$2:$Y$276-B131),0)) -> 373 | D131: 562.5 | E131: =INDEX($Y$2:$Y$276,MATCH(MIN(ABS($Y$2:$Y$276-D131)),ABS($Y$2:$Y$276-D131),0)) -> 563 | F131: 937.5 | G131: =INDEX($Y$2:$Y$276,MATCH(MIN(ABS($Y$2:$Y$276-F131)),ABS($Y$2:$Y$276-F131),0)) -> 937 | H131: 197.7539062 | I131: 196.769063 | J131: G | K131: 1 | L131: 18.36928 | M131: 41.63361244 | N131: 166.5344498 | O131: 0.09564523274 | P131: 52.734375 | Q131: 18.37908218 | R131: 41.70295662 | S131: 166.8118265 | T131: 0.09548619271 | U131: 52.7531 | Y131: 733
A132: 3.9 | B132: 390 | C132: =INDEX($Y$2:$Y$276,MATCH(MIN(ABS($Y$2:$Y$276-B132)),ABS($Y$2:$Y$276-B132),0)) -> 389 | D132: 585 | E132: =INDEX($Y$2:$Y$276,MATCH(MIN(ABS($Y$2:$Y$276-D132)),ABS($Y$2:$Y$276-D132),0)) -> 587 | F132: 975 | G132: =INDEX($Y$2:$Y$276,MATCH(MIN(ABS($Y$2:$Y$276-F132)),ABS($Y$2:$Y$276-F132),0)) -> 977 | H132: 222.44625 | I132: 223.091111 | J132: G | K132: 1 | L132: 17.66276923 | M132: 40.03231966 | N132: 160.1292786 | O132: 0.09947104205 | P132: 57.0375 | Q132: 17.62661208 | R132: 39.99371033 | S132: 159.9748413 | T132: 0.09956706991 | U132: 57.3499 | Y132: 739
A133: 4.05 | B133: 405 | C133: =INDEX($Y$2:$Y$276,MATCH(MIN(ABS($Y$2:$Y$276-B133)),ABS($Y$2:$Y$276-B133),0)) -> 401 | D133: 607.5 | E133: =INDEX($Y$2:$Y$276,MATCH(MIN(ABS($Y$2:$Y$276-D133)),ABS($Y$2:$Y$276-D133),0)) -> 607 | F133: 1012.5 | G133: =INDEX($Y$2:$Y$276,MATCH(MIN(ABS($Y$2:$Y$276-F133)),ABS($Y$2:$Y$276-F133),0)) -> 1013 | H133: =(B133/100)*(D133/100)*(F133/100) -> 249.1129687 | I133: 246.571291 | J133: G | K133: 1 | L133: 17.00859259 | M133: 38.54964115 | N133: 154.1985646 | O133: 0.1032968514 | P133: 61.509375 | Q133: 17.00019743 | R133: 38.68164627 | S133: 154.7265851 | T133: 0.1029443402 | U133: 61.4891 | Y133: 743
A134: 4.2 | B134: 420 | C134: =INDEX($Y$2:$Y$276,MATCH(MIN(ABS($Y$2:$Y$276-B134)),ABS($Y$2:$Y$276-B134),0)) -> 419 | D134: 630 | E134: =INDEX($Y$2:$Y$276,MATCH(MIN(ABS($Y$2:$Y$276-D134)),ABS($Y$2:$Y$276-D134),0)) -> 631 | F134: 1050 | G134: =INDEX($Y$2:$Y$276,MATCH(MIN(ABS($Y$2:$Y$276-F134)),ABS($Y$2:$Y$276-F134),0)) -> 1049 | H134: =(B134/100)*(D134/100)*(F134/100) -> 277.83 | I134: 277.344061 | J134: G | K134: 1 | L134: 16.40114286 | M134: 37.17286825 | N134: 148.691473 | O134: 0.1071226607 | P134: 66.15 | Q134: 16.41677788 | R134: 37.19456598 | S134: 148.7782639 | T134: 0.1070601699 | U134: 66.1919 | Y134: 751
A135: 4.35 | B135: 435 | C135: =INDEX($Y$2:$Y$276,MATCH(MIN(ABS($Y$2:$Y$276-B135)),ABS($Y$2:$Y$276-B135),0)) -> 433 | D135: 652.5 | E135: =INDEX($Y$2:$Y$276,MATCH(MIN(ABS($Y$2:$Y$276-D135)),ABS($Y$2:$Y$276-D135),0)) -> 653 | F135: 1087.5 | G135: =INDEX($Y$2:$Y$276,MATCH(MIN(ABS($Y$2:$Y$276-F135)),ABS($Y$2:$Y$276-F135),0)) -> 1087 | H135: =(B135/100)*(D135/100)*(F135/100) -> 308.6732812 | I135: 307.348163 | J135: G | K135: 1 | L135: 15.83558621 | M135: 35.89104521 | N135: 143.5641808 | O135: 0.11094847 | P135: 70.959375 | Q135: 15.84287029 | R135: 35.94255215 | S135: 143.7702086 | T135: 0.1107894769 | U135: 70.9811 | Y135: 757
A136: 4.5 | B136: 450 | C136: =INDEX($Y$2:$Y$276,MATCH(MIN(ABS($Y$2:$Y$276-B136)),ABS($Y$2:$Y$276-B136),0)) -> 449 | D136: 675 | E136: =INDEX($Y$2:$Y$276,MATCH(MIN(ABS($Y$2:$Y$276-D136)),ABS($Y$2:$Y$276-D136),0)) -> 673 | F136: 1125 | G136: =INDEX($Y$2:$Y$276,MATCH(MIN(ABS($Y$2:$Y$276-F136)),ABS($Y$2:$Y$276-F136),0)) -> 1123 | H136: =(B136/100)*(D136/100)*(F136/100) -> 341.71875 | I136: 339.344771 | J136: G | K136: 1 | L136: 15.30773333 | M136: 34.69467704 | N136: 138.7787081 | O136: 0.1147742793 | P136: 75.9375 | Q136: 15.33499555 | R136: 34.77539446 | S136: 139.1015778 | T136: 0.1145078759 | U136: 75.5779 | Y136: 761
A137: HEIGHT m | B137: HEIGHT cm | C137: PRIME height | D137: WIDTH cm | E137: PRIME width | F137: DEPTH cm | G137: PRIME depth | H137: VOLUME | I137: PRIME volume | J137: TABLE | K137: 1=Yes 0=NO | L137: F¹ | M137: F² | N137: F³ | O137: minimum RT60 | P137: Floor area | Q137: F¹ | R137: F² | S137: F³ | T137: minimum RT60 | U137: Floor area | Y137: 769
A138: 2.4 | B138: =A138*100 -> 240 | C138: =INDEX($Y$2:$Y$276,MATCH(MIN(ABS($Y$2:$Y$276-B138)),ABS($Y$2:$Y$276-B138),0)) -> 239 | D138: =B138*$D$11 -> 302.4 | E138: =INDEX($Y$2:$Y$276,MATCH(MIN(ABS($Y$2:$Y$276-D138)),ABS($Y$2:$Y$276-D138),0)) -> 307 | F138: =B138*$E$11 -> 381.6 | G138: =INDEX($Y$2:$Y$276,MATCH(MIN(ABS($Y$2:$Y$276-F138)),ABS($Y$2:$Y$276-F138),0)) -> 383 | H138: =(B138/100)*(D138/100)*(F138/100) -> 27.6950016 | I138: =(C138/100)*(E138/100)*(G138/100) -> 28.101859 | J138: H | K138: =IF(H138>$K$22,$N$21,$O$21) -> 0 | L138: =565/(F138*0.0328083989501312) -> 45.12893082 | M138: =(SQRT(O138/(H138*35.3146667214885))*11250) -> 80.1712498 | N138: =4*M138 -> 320.6849992 | O138: =0.25*(((0.028316846592*H138)/100)^(1/3)) -> 0.0496693835 | P138: =(D138/100)*(F138/100) -> 11.539584 | Q138: =565/(G138*0.0328083989501312) -> 44.96396867 | R138: =(SQRT(T138/(I138*35.3146667214885))*11250) -> 79.78246224 | S138: =4*R138 -> 319.1298489 | T138: =0.25*(((0.028316846592*I138)/100)^(1/3)) -> 0.04991142715 | U138: =(E138/100)*(G138/100) -> 11.7581 | Y138: 773
A139: 2.55 | B139: 255 | C139: =INDEX($Y$2:$Y$276,MATCH(MIN(ABS($Y$2:$Y$276-B139)),ABS($Y$2:$Y$276-B139),0)) -> 257 | D139: 321.3 | E139: =INDEX($Y$2:$Y$276,MATCH(MIN(ABS($Y$2:$Y$276-D139)),ABS($Y$2:$Y$276-D139),0)) -> 317 | F139: 405.45 | G139: =INDEX($Y$2:$Y$276,MATCH(MIN(ABS($Y$2:$Y$276-F139)),ABS($Y$2:$Y$276-F139),0)) -> 409 | H139: =(B139/100)*(D139/100)*(F139/100) -> 33.21912667 | I139: 33.320821 | J139: H | K139: 0 | L139: 42.47428783 | M139: 75.45529393 | N139: 301.8211757 | O139: 0.05277371997 | P139: 13.0271085 | Q139: 42.10562347 | R139: 75.37845314 | S139: =4*R139 -> 301.5138126 | T139: 0.0528275175 | U139: 12.9653 | Y139: 787
A140: 2.7 | B140: 270 | C140: =INDEX($Y$2:$Y$276,MATCH(MIN(ABS($Y$2:$Y$276-B140)),ABS($Y$2:$Y$276-B140),0)) -> 269 | D140: 340.2 | E140: =INDEX($Y$2:$Y$276,MATCH(MIN(ABS($Y$2:$Y$276-D140)),ABS($Y$2:$Y$276-D140),0)) -> 337 | F140: 429.3 | G140: =INDEX($Y$2:$Y$276,MATCH(MIN(ABS($Y$2:$Y$276-F140)),ABS($Y$2:$Y$276-F140),0)) -> 431 | H140: 39.4329222 | I140: 39.071443 | J140: H | K140: 0 | L140: 40.11460517 | M140: 71.26333316 | N140: 285.0533326 | O140: 0.05587805644 | P140: 14.604786 | Q140: 39.95638051 | R140: 71.48242903 | S140: 285.9297161 | T140: 0.05570678845 | U140: 14.5247 | Y140: 797
A141: 2.85 | B141: 285 | C141: =INDEX($Y$2:$Y$276,MATCH(MIN(ABS($Y$2:$Y$276-B141)),ABS($Y$2:$Y$276-B141),0)) -> 283 | D141: 359.1 | E141: =INDEX($Y$2:$Y$276,MATCH(MIN(ABS($Y$2:$Y$276-D141)),ABS($Y$2:$Y$276-D141),0)) -> 359 | F141: 453.15 | G141: =INDEX($Y$2:$Y$276,MATCH(MIN(ABS($Y$2:$Y$276-F141)),ABS($Y$2:$Y$276-F141),0)) -> 457 | H141: 46.37695703 | I141: 46.429829 | J141: H | K141: 1 | L141: 38.00331016 | M141: 67.51263141 | N141: 270.0505256 | O141: 0.05898239291 | P141: 16.2726165 | Q141: 37.68315098 | R141: 67.486995 | S141: 269.94798 | T141: 0.05900479865 | U141: 16.4063 | Y141: 809
A142: 3 | B142: 300 | C142: =INDEX($Y$2:$Y$276,MATCH(MIN(ABS($Y$2:$Y$276-B142)),ABS($Y$2:$Y$276-B142),0)) -> 293 | D142: 378 | E142: =INDEX($Y$2:$Y$276,MATCH(MIN(ABS($Y$2:$Y$276-D142)),ABS($Y$2:$Y$276-D142),0)) -> 379 | F142: 477 | G142: =INDEX($Y$2:$Y$276,MATCH(MIN(ABS($Y$2:$Y$276-F142)),ABS($Y$2:$Y$276-F142),0)) -> 479 | H142: 54.0918 | I142: 53.191513 | J142: H | K142: 1 | L142: 36.10314465 | M142: 64.13699984 | N142: 256.5479994 | O142: 0.06208672937 | P142: 18.0306 | Q142: 35.95240084 | R142: 64.49682522 | S142: 257.9873009 | T142: 0.06174034983 | U142: 18.1541 | Y142: 811
A143: 3.2 | B143: 320 | C143: =INDEX($Y$2:$Y$276,MATCH(MIN(ABS($Y$2:$Y$276-B143)),ABS($Y$2:$Y$276-B143),0)) -> 317 | D143: 403.2 | E143: =INDEX($Y$2:$Y$276,MATCH(MIN(ABS($Y$2:$Y$276-D143)),ABS($Y$2:$Y$276-D143),0)) -> 401 | F143: 508.8 | G143: =INDEX($Y$2:$Y$276,MATCH(MIN(ABS($Y$2:$Y$276-F143)),ABS($Y$2:$Y$276-F143),0)) -> 509 | H143: 65.6474112 | I143: 64.702553 | J143: H | K143: 1 | L143: 33.84669811 | M143: 60.12843735 | N143: 240.5137494 | O143: 0.06622584467 | P143: 20.514816 | Q143: 33.83339882 | R143: 60.41971139 | S143: 241.6788455 | T143: 0.06590658017 | U143: 20.4109 | Y143: 821
A144: 3.3 | B144: 330 | C144: =INDEX($Y$2:$Y$276,MATCH(MIN(ABS($Y$2:$Y$276-B144)),ABS($Y$2:$Y$276-B144),0)) -> 331 | D144: 415.8 | E144: =INDEX($Y$2:$Y$276,MATCH(MIN(ABS($Y$2:$Y$276-D144)),ABS($Y$2:$Y$276-D144),0)) -> 419 | F144: 524.7 | G144: =INDEX($Y$2:$Y$276,MATCH(MIN(ABS($Y$2:$Y$276-F144)),ABS($Y$2:$Y$276-F144),0)) -> 523 | H144: 71.9961858 | I144: 72.534347 | J144: H | K144: 1 | L144: 32.82104059 | M144: 58.30636349 | N144: 233.225454 | O144: 0.06829540231 | P144: 21.817026 | Q144: 32.92772467 | R144: 58.16180601 | S144: 232.6472241 | T144: 0.0684651462 | U144: 21.9137 | Y144: 823
A145: 3.4 | B145: 340 | C145: =INDEX($Y$2:$Y$276,MATCH(MIN(ABS($Y$2:$Y$276-B145)),ABS($Y$2:$Y$276-B145),0)) -> 337 | D145: 428.4 | E145: =INDEX($Y$2:$Y$276,MATCH(MIN(ABS($Y$2:$Y$276-D145)),ABS($Y$2:$Y$276-D145),0)) -> 431 | F145: 540.6 | G145: =INDEX($Y$2:$Y$276,MATCH(MIN(ABS($Y$2:$Y$276-F145)),ABS($Y$2:$Y$276-F145),0)) -> 541 | H145: 78.7416336 | I145: 78.578627 | J145: H | K145: 1 | L145: 31.85571587 | M145: 56.59147045 | N145: 226.3658818 | O145: 0.07036495996 | P145: 23.159304 | Q145: 31.83216266 | R145: 56.63057528 | S145: 226.5223011 | T145: 0.07031637119 | U145: 23.3171 | Y145: 827
A146: 3.6 | B146: 360 | C146: =INDEX($Y$2:$Y$276,MATCH(MIN(ABS($Y$2:$Y$276-B146)),ABS($Y$2:$Y$276-B146),0)) -> 359 | D146: 453.6 | E146: =INDEX($Y$2:$Y$276,MATCH(MIN(ABS($Y$2:$Y$276-D146)),ABS($Y$2:$Y$276-D146),0)) -> 457 | F146: 572.4 | G146: =INDEX($Y$2:$Y$276,MATCH(MIN(ABS($Y$2:$Y$276-F146)),ABS($Y$2:$Y$276-F146),0)) -> 571 | H146: 93.4706304 | I146: 93.679973 | J146: H | K146: 1 | L146: 30.08595388 | M146: 53.44749987 | N146: 213.7899995 | O146: 0.07450407525 | P146: 25.964064 | Q146: 30.15971979 | R146: 53.4076579 | S146: 213.6306316 | T146: 0.07455965509 | U146: 26.0947 | Y146: 829
A147: 3.75 | B147: 375 | C147: =INDEX($Y$2:$Y$276,MATCH(MIN(ABS($Y$2:$Y$276-B147)),ABS($Y$2:$Y$276-B147),0)) -> 373 | D147: 472.5 | E147: =INDEX($Y$2:$Y$276,MATCH(MIN(ABS($Y$2:$Y$276-D147)),ABS($Y$2:$Y$276-D147),0)) -> 467 | F147: 596.25 | G147: =INDEX($Y$2:$Y$276,MATCH(MIN(ABS($Y$2:$Y$276-F147)),ABS($Y$2:$Y$276-F147),0)) -> 599 | H147: 105.6480469 | I147: 104.340409 | J147: H | K147: 1 | L147: 28.88251572 | M147: 51.30959987 | N147: 205.2383995 | O147: 0.07760841172 | P147: 28.1728125 | Q147: 28.74991653 | R147: 51.52305513 | S147: 206.0922205 | T147: 0.07728688724 | U147: 27.9733 | Y147: 839
A148: 3.9 | B148: 390 | C148: =INDEX($Y$2:$Y$276,MATCH(MIN(ABS($Y$2:$Y$276-B148)),ABS($Y$2:$Y$276-B148),0)) -> 389 | D148: 491.4 | E148: =INDEX($Y$2:$Y$276,MATCH(MIN(ABS($Y$2:$Y$276-D148)),ABS($Y$2:$Y$276-D148),0)) -> 491 | F148: 620.1 | G148: =INDEX($Y$2:$Y$276,MATCH(MIN(ABS($Y$2:$Y$276-F148)),ABS($Y$2:$Y$276-F148),0)) -> 619 | H148: 118.8396846 | I148: 118.228381 | J148: H | K148: 1 | L148: 27.77164973 | M148: 49.33615372 | N148: 197.3446149 | O148: 0.08071274819 | P148: 30.471714 | Q148: 27.82100162 | R148: 49.42103897 | S148: 197.6841559 | T148: 0.0805741165 | U148: 30.3929 | Y148: 853
A149: 4.05 | B149: 405 | C149: =INDEX($Y$2:$Y$276,MATCH(MIN(ABS($Y$2:$Y$276-B149)),ABS($Y$2:$Y$276-B149),0)) -> 401 | D149: 510.3 | E149: =INDEX($Y$2:$Y$276,MATCH(MIN(ABS($Y$2:$Y$276-D149)),ABS($Y$2:$Y$276-D149),0)) -> 509 | F149: 643.95 | G149: =INDEX($Y$2:$Y$276,MATCH(MIN(ABS($Y$2:$Y$276-F149)),ABS($Y$2:$Y$276-F149),0)) -> 643 | H149: =(B149/100)*(D149/100)*(F149/100) -> 133.0861124 | I149: 131.242087 | J149: H | K149: 1 | L149: 26.74307011 | M149: 47.50888877 | N149: 190.0355551 | O149: 0.08381708466 | P149: 32.8607685 | Q149: 26.78258165 | R149: 47.73036361 | S149: 190.9214544 | T149: 0.08342816293 | U149: 32.7287 | Y149: 857
A150: 4.2 | B150: 420 | C150: =INDEX($Y$2:$Y$276,MATCH(MIN(ABS($Y$2:$Y$276-B150)),ABS($Y$2:$Y$276-B150),0)) -> 419 | D150: 529.2 | E150: =INDEX($Y$2:$Y$276,MATCH(MIN(ABS($Y$2:$Y$276-D150)),ABS($Y$2:$Y$276-D150),0)) -> 523 | F150: 667.8 | G150: =INDEX($Y$2:$Y$276,MATCH(MIN(ABS($Y$2:$Y$276-F150)),ABS($Y$2:$Y$276-F150),0)) -> 673 | H150: =(B150/100)*(D150/100)*(F150/100) -> 148.4278992 | I150: 147.479201 | J150: H | K150: 1 | L150: 25.78796047 | M150: 45.81214274 | N150: 183.248571 | O150: 0.08692142112 | P150: 35.339976 | Q150: 25.58870728 | R150: 45.91016569 | S150: 183.6406627 | T150: 0.08673583492 | U150: 35.1979 | Y150: 859
A151: 4.35 | B151: 435 | C151: =INDEX($Y$2:$Y$276,MATCH(MIN(ABS($Y$2:$Y$276-B151)),ABS($Y$2:$Y$276-B151),0)) -> 433 | D151: 548.1 | E151: =INDEX($Y$2:$Y$276,MATCH(MIN(ABS($Y$2:$Y$276-D151)),ABS($Y$2:$Y$276-D151),0)) -> 547 | F151: 691.65 | G151: =INDEX($Y$2:$Y$276,MATCH(MIN(ABS($Y$2:$Y$276-F151)),ABS($Y$2:$Y$276-F151),0)) -> 691 | H151: =(B151/100)*(D151/100)*(F151/100) -> 164.9056138 | I151: 163.664041 | J151: H | K151: 1 | L151: 24.89872045 | M151: 44.23241368 | N151: 176.9296547 | O151: 0.09002575759 | P151: 37.9093365 | Q151: 24.92214182 | R151: 44.34398263 | S151: 177.3759305 | T151: 0.08979925384 | U151: 37.7977 | Y151: 863
A152: 4.5 | B152: 450 | C152: =INDEX($Y$2:$Y$276,MATCH(MIN(ABS($Y$2:$Y$276-B152)),ABS($Y$2:$Y$276-B152),0)) -> 449 | D152: 567 | E152: =INDEX($Y$2:$Y$276,MATCH(MIN(ABS($Y$2:$Y$276-D152)),ABS($Y$2:$Y$276-D152),0)) -> 569 | F152: 715.5 | G152: =INDEX($Y$2:$Y$276,MATCH(MIN(ABS($Y$2:$Y$276-F152)),ABS($Y$2:$Y$276-F152),0)) -> 719 | H152: =(B152/100)*(D152/100)*(F152/100) -> 182.559825 | I152: 183.690839 | J152: H | K152: 1 | L152: 24.0687631 | M152: 42.75799989 | N152: 171.0319996 | O152: 0.09313009406 | P152: 40.56885 | Q152: 23.95159944 | R152: 42.67006321 | S152: 170.6802528 | T152: 0.0933220214 | U152: 40.9111 | Y152: 877
A153: HEIGHT m | B153: HEIGHT cm | C153: PRIME height | D153: WIDTH cm | E153: PRIME width | F153: DEPTH cm | G153: PRIME depth | H153: VOLUME | I153: PRIME volume | J153: TABLE | K153: 1=Yes 0=NO | L153: F¹ | M153: F² | N153: F³ | O153: minimum RT60 | P153: Floor area | Q153: F¹ | R153: F² | S153: F³ | T153: minimum RT60 | U153: Floor area | Y153: 881
A154: 2.4 | B154: =A154*100 -> 240 | C154: =INDEX($Y$2:$Y$276,MATCH(MIN(ABS($Y$2:$Y$276-B154)),ABS($Y$2:$Y$276-B154),0)) -> 239 | D154: =B154*$D$12 -> 470.4 | E154: =INDEX($Y$2:$Y$276,MATCH(MIN(ABS($Y$2:$Y$276-D154)),ABS($Y$2:$Y$276-D154),0)) -> 467 | F154: =B154*$E$12 -> 621.6 | G154: =INDEX($Y$2:$Y$276,MATCH(MIN(ABS($Y$2:$Y$276-F154)),ABS($Y$2:$Y$276-F154),0)) -> 619 | H154: =(B154/100)*(D154/100)*(F154/100) -> 70.1761536 | I154: =(C154/100)*(E154/100)*(G154/100) -> 69.088447 | J154: I | K154: =IF(H154>$K$22,$N$21,$O$21) -> 1 | L154: =565/(F154*0.0328083989501312) -> 27.7046332 | M154: =(SQRT(O154/(H154*35.3146667214885))*11250) -> 58.80612986 | N154: =4*M154 -> 235.2245194 | O154: =0.25*(((0.028316846592*H154)/100)^(1/3)) -> 0.06771499097 | P154: =(D154/100)*(F154/100) -> 29.240064 | Q154: =565/(G154*0.0328083989501312) -> 27.82100162 | R154: =(SQRT(T154/(I154*35.3146667214885))*11250) -> 59.11313268 | S154: =4*R154 -> 236.4525307 | T154: =0.25*(((0.028316846592*I154)/100)^(1/3)) -> 0.06736331457 | U154: =(E154/100)*(G154/100) -> 28.9073 | Y154: 883
A155: 2.55 | B155: 255 | C155: =INDEX($Y$2:$Y$276,MATCH(MIN(ABS($Y$2:$Y$276-B155)),ABS($Y$2:$Y$276-B155),0)) -> 257 | D155: 499.8 | E155: =INDEX($Y$2:$Y$276,MATCH(MIN(ABS($Y$2:$Y$276-D155)),ABS($Y$2:$Y$276-D155),0)) -> 499 | F155: 660.45 | G155: =INDEX($Y$2:$Y$276,MATCH(MIN(ABS($Y$2:$Y$276-F155)),ABS($Y$2:$Y$276-F155),0)) -> 661 | H155: =(B155/100)*(D155/100)*(F155/100) -> 84.17369205 | I155: 84.768623 | J155: I | K155: 1 | L155: 26.0749489 | M155: 55.34694575 | N155: 221.387783 | O155: 0.0719471779 | P155: 33.009291 | Q155: 26.05325265 | R155: 55.21716131 | S155: =4*R155 -> 220.8686452 | T155: 0.07211628519 | U155: 32.9839 | Y155: 887
A156: 2.7 | B156: 270 | C156: =INDEX($Y$2:$Y$276,MATCH(MIN(ABS($Y$2:$Y$276-B156)),ABS($Y$2:$Y$276-B156),0)) -> 269 | D156: 529.2 | E156: =INDEX($Y$2:$Y$276,MATCH(MIN(ABS($Y$2:$Y$276-D156)),ABS($Y$2:$Y$276-D156),0)) -> 523 | F156: 699.3 | G156: =INDEX($Y$2:$Y$276,MATCH(MIN(ABS($Y$2:$Y$276-F156)),ABS($Y$2:$Y$276-F156),0)) -> 701 | H156: 99.9187812 | I156: 98.621587 | J156: I | K156: 1 | L156: 24.62634063 | M156: 52.27211543 | N156: 209.0884617 | O156: 0.07617936484 | P156: 37.006956 | Q156: 24.56661912 | R156: 52.50030058 | S156: 210.0012023 | T156: 0.07584826198 | U156: 36.6623 | Y156: 907
A157: 2.85 | B157: 285 | C157: =INDEX($Y$2:$Y$276,MATCH(MIN(ABS($Y$2:$Y$276-B157)),ABS($Y$2:$Y$276-B157),0)) -> 283 | D157: 558.6 | E157: =INDEX($Y$2:$Y$276,MATCH(MIN(ABS($Y$2:$Y$276-D157)),ABS($Y$2:$Y$276-D157),0)) -> 557 | F157: 738.15 | G157: =INDEX($Y$2:$Y$276,MATCH(MIN(ABS($Y$2:$Y$276-F157)),ABS($Y$2:$Y$276-F157),0)) -> 739 | H157: 117.5142182 | I157: 116.489309 | J157: I | K157: 1 | L157: 23.33021744 | M157: 49.52095146 | N157: 198.0838058 | O157: 0.08041155177 | P157: 41.233059 | Q157: 23.30338295 | R157: 49.66576117 | S157: 198.6630447 | T157: 0.08017709703 | U157: 41.1623 | Y157: 911
A158: 3 | B158: 300 | C158: =INDEX($Y$2:$Y$276,MATCH(MIN(ABS($Y$2:$Y$276-B158)),ABS($Y$2:$Y$276-B158),0)) -> 293 | D158: 588 | E158: =INDEX($Y$2:$Y$276,MATCH(MIN(ABS($Y$2:$Y$276-D158)),ABS($Y$2:$Y$276-D158),0)) -> 587 | F158: 777 | G158: =INDEX($Y$2:$Y$276,MATCH(MIN(ABS($Y$2:$Y$276-F158)),ABS($Y$2:$Y$276-F158),0)) -> 773 | H158: 137.0628 | I158: 132.949043 | J158: I | K158: 1 | L158: 22.16370656 | M158: 47.04490389 | N158: 188.1796155 | O158: 0.08464373871 | P158: 45.6876 | Q158: 22.27839586 | R158: 47.52521026 | S158: 190.100841 | T158: 0.08378829952 | U158: 45.3751 | Y158: 919
A159: 3.2 | B159: 320 | C159: =INDEX($Y$2:$Y$276,MATCH(MIN(ABS($Y$2:$Y$276-B159)),ABS($Y$2:$Y$276-B159),0)) -> 317 | D159: 627.2 | E159: =INDEX($Y$2:$Y$276,MATCH(MIN(ABS($Y$2:$Y$276-D159)),ABS($Y$2:$Y$276-D159),0)) -> 631 | F159: 828.8 | G159: =INDEX($Y$2:$Y$276,MATCH(MIN(ABS($Y$2:$Y$276-F159)),ABS($Y$2:$Y$276-F159),0)) -> 829 | H159: 166.3434752 | I159: 165.822383 | J159: I | K159: 1 | L159: 20.7784749 | M159: 44.10459739 | N159: 176.4183896 | O159: 0.09028665462 | P159: 51.982336 | Q159: 20.773462 | R159: 44.15074824 | S159: 176.602993 | T159: 0.09019227784 | U159: 52.3099 | Y159: 929
A160: 3.3 | B160: 330 | C160: =INDEX($Y$2:$Y$276,MATCH(MIN(ABS($Y$2:$Y$276-B160)),ABS($Y$2:$Y$276-B160),0)) -> 331 | D160: 646.8 | E160: =INDEX($Y$2:$Y$276,MATCH(MIN(ABS($Y$2:$Y$276-D160)),ABS($Y$2:$Y$276-D160),0)) -> 647 | F160: 854.7 | G160: =INDEX($Y$2:$Y$276,MATCH(MIN(ABS($Y$2:$Y$276-F160)),ABS($Y$2:$Y$276-F160),0)) -> 853 | H160: 182.4305868 | I160: 182.675921 | J160: I | K160: 1 | L160: 20.14882415 | M160: 42.76809444 | N160: 171.0723778 | O160: 0.09310811258 | P160: 55.281996 | Q160: 20.18898007 | R160: 42.74893998 | S160: 170.9957599 | T160: 0.09314983141 | U160: 55.1891 | Y160: 937
A161: 3.4 | B161: 340 | C161: =INDEX($Y$2:$Y$276,MATCH(MIN(ABS($Y$2:$Y$276-B161)),ABS($Y$2:$Y$276-B161),0)) -> 337 | D161: 666.4 | E161: =INDEX($Y$2:$Y$276,MATCH(MIN(ABS($Y$2:$Y$276-D161)),ABS($Y$2:$Y$276-D161),0)) -> 661 | F161: 880.6 | G161: =INDEX($Y$2:$Y$276,MATCH(MIN(ABS($Y$2:$Y$276-F161)),ABS($Y$2:$Y$276-F161),0)) -> 881 | H161: 199.5228256 | I161: 196.248917 | J161: I | K161: 1 | L161: 19.55621167 | M161: 41.51020931 | N161: 166.0408372 | O161: 0.09592957054 | P161: 58.683184 | Q161: 19.54733258 | R161: 41.73976784 | S161: 166.9590714 | T161: 0.09540198132 | U161: 58.2341 | Y161: 941
A162: 3.6 | B162: 360 | C162: =INDEX($Y$2:$Y$276,MATCH(MIN(ABS($Y$2:$Y$276-B162)),ABS($Y$2:$Y$276-B162),0)) -> 359 | D162: 705.6 | E162: =INDEX($Y$2:$Y$276,MATCH(MIN(ABS($Y$2:$Y$276-D162)),ABS($Y$2:$Y$276-D162),0)) -> 709 | F162: 932.4 | G162: =INDEX($Y$2:$Y$276,MATCH(MIN(ABS($Y$2:$Y$276-F162)),ABS($Y$2:$Y$276-F162),0)) -> 929 | H162: 236.8445184 | I162: 236.459299 | J162: I | K162: 1 | L162: 18.46975547 | M162: 39.20408657 | N162: 156.8163463 | O162: 0.1015724864 | P162: 65.790144 | Q162: 18.53735199 | R162: 39.22536434 | S162: 156.9014574 | T162: 0.1015173885 | U162: 65.8661 | Y162: 947
A163: 3.75 | B163: 375 | C163: =INDEX($Y$2:$Y$276,MATCH(MIN(ABS($Y$2:$Y$276-B163)),ABS($Y$2:$Y$276-B163),0)) -> 373 | D163: 735 | E163: =INDEX($Y$2:$Y$276,MATCH(MIN(ABS($Y$2:$Y$276-D163)),ABS($Y$2:$Y$276-D163),0)) -> 733 | F163: 971.25 | G163: =INDEX($Y$2:$Y$276,MATCH(MIN(ABS($Y$2:$Y$276-F163)),ABS($Y$2:$Y$276-F163),0)) -> 971 | H163: 267.7007813 | I163: 265.480139 | J163: I | K163: 1 | L163: 17.73096525 | M163: 37.63592311 | N163: 150.5436924 | O163: 0.1058046734 | P163: 71.386875 | Q163: 17.73553038 | R163: 37.74056869 | S163: 150.9622748 | T163: 0.1055113023 | U163: 71.1743 | Y163: 953
A164: 3.9 | B164: 390 | C164: =INDEX($Y$2:$Y$276,MATCH(MIN(ABS($Y$2:$Y$276-B164)),ABS($Y$2:$Y$276-B164),0)) -> 389 | D164: 764.4 | E164: =INDEX($Y$2:$Y$276,MATCH(MIN(ABS($Y$2:$Y$276-D164)),ABS($Y$2:$Y$276-D164),0)) -> 761 | F164: 1010.1 | G164: =INDEX($Y$2:$Y$276,MATCH(MIN(ABS($Y$2:$Y$276-F164)),ABS($Y$2:$Y$276-F164),0)) -> 1009 | H164: 301.1269716 | I164: 298.693261 | J164: I | K164: 1 | L164: 17.04900505 | M164: 36.1883876 | N164: 144.7535504 | O164: 0.1100368603 | P164: 77.212044 | Q164: 17.06759167 | R164: 36.28640783 | S164: 145.1456313 | T164: 0.1097396185 | U164: 76.7849 | Y164: 967
A165: 4.05 | B165: 405 | C165: =INDEX($Y$2:$Y$276,MATCH(MIN(ABS($Y$2:$Y$276-B165)),ABS($Y$2:$Y$276-B165),0)) -> 401 | D165: 793.8 | E165: =INDEX($Y$2:$Y$276,MATCH(MIN(ABS($Y$2:$Y$276-D165)),ABS($Y$2:$Y$276-D165),0)) -> 797 | F165: 1048.95 | G165: =INDEX($Y$2:$Y$276,MATCH(MIN(ABS($Y$2:$Y$276-F165)),ABS($Y$2:$Y$276-F165),0)) -> 1049 | H165: =(B165/100)*(D165/100)*(F165/100) -> 337.2258865 | I165: 335.257253 | J165: I | K165: 1 | L165: 16.41756042 | M165: 34.84807695 | N165: 139.3923078 | O165: 0.1142690473 | P165: 83.265651 | Q165: 16.41677788 | R165: 34.91615328 | S165: 139.6646131 | T165: 0.1140462559 | U165: 83.6053 | Y165: 971
A166: 4.2 | B166: 420 | C166: =INDEX($Y$2:$Y$276,MATCH(MIN(ABS($Y$2:$Y$276-B166)),ABS($Y$2:$Y$276-B166),0)) -> 419 | D166: 823.2 | E166: =INDEX($Y$2:$Y$276,MATCH(MIN(ABS($Y$2:$Y$276-D166)),ABS($Y$2:$Y$276-D166),0)) -> 823 | F166: 1087.8 | G166: =INDEX($Y$2:$Y$276,MATCH(MIN(ABS($Y$2:$Y$276-F166)),ABS($Y$2:$Y$276-F166),0)) -> 1087 | H166: =(B166/100)*(D166/100)*(F166/100) -> 376.1003232 | I166: 374.837819 | J166: I | K166: 1 | L166: 15.83121897 | M166: 33.60350278 | N166: 134.4140111 | O166: 0.1185012342 | P166: 89.547696 | Q166: 15.84287029 | R166: 33.64118754 | S166: 134.5647501 | T166: 0.1183684894 | U166: 89.4601 | Y166: 977
A167: 4.35 | B167: 435 | C167: =INDEX($Y$2:$Y$276,MATCH(MIN(ABS($Y$2:$Y$276-B167)),ABS($Y$2:$Y$276-B167),0)) -> 433 | D167: 852.6 | E167: =INDEX($Y$2:$Y$276,MATCH(MIN(ABS($Y$2:$Y$276-D167)),ABS($Y$2:$Y$276-D167),0)) -> 853 | F167: 1126.65 | G167: =INDEX($Y$2:$Y$276,MATCH(MIN(ABS($Y$2:$Y$276-F167)),ABS($Y$2:$Y$276-F167),0)) -> 1129 | H167: =(B167/100)*(D167/100)*(F167/100) -> 417.8530786 | I167: 416.995021 | J167: I | K167: 1 | L167: 15.28531487 | M167: 32.4447613 | N167: 129.7790452 | O167: 0.1227334211 | P167: 96.058179 | Q167: 15.25349867 | R167: 32.4670001 | S167: 129.8680004 | T167: 0.1226493529 | U167: 96.3037 | Y167: 983
A168: 4.5 | B168: 450 | C168: =INDEX($Y$2:$Y$276,MATCH(MIN(ABS($Y$2:$Y$276-B168)),ABS($Y$2:$Y$276-B168),0)) -> 449 | D168: 882 | E168: =INDEX($Y$2:$Y$276,MATCH(MIN(ABS($Y$2:$Y$276-D168)),ABS($Y$2:$Y$276-D168),0)) -> 881 | F168: 1165.5 | G168: =INDEX($Y$2:$Y$276,MATCH(MIN(ABS($Y$2:$Y$276-F168)),ABS($Y$2:$Y$276-F168),0)) -> 1163 | H168: =(B168/100)*(D168/100)*(F168/100) -> 462.58695 | I168: 460.046747 | J168: I | K168: 1 | L168: 14.77580438 | M168: 31.36326926 | N168: 125.453077 | O168: 0.1269656081 | P168: 102.7971 | Q168: 14.80756664 | R168: 31.42088868 | S168: 125.6835547 | T168: 0.1267327793 | U168: 102.4603 | Y168: 991
A169: HEIGHT m | B169: HEIGHT cm | C169: PRIME height | D169: WIDTH cm | E169: PRIME width | F169: DEPTH cm | G169: PRIME depth | H169: VOLUME | I169: PRIME volume | J169: TABLE | K169: 1=Yes 0=NO | L169: F¹ | M169: F² | N169: F³ | O169: minimum RT60 | P169: Floor area | Q169: F¹ | R169: F² | S169: F³ | T169: minimum RT60 | U169: Floor area | Y169: 997
A170: 2.4 | B170: =A170*100 -> 240 | C170: =INDEX($Y$2:$Y$276,MATCH(MIN(ABS($Y$2:$Y$276-B170)),ABS($Y$2:$Y$276-B170),0)) -> 239 | D170: =B170*$D$13 -> 388.8 | E170: =INDEX($Y$2:$Y$276,MATCH(MIN(ABS($Y$2:$Y$276-D170)),ABS($Y$2:$Y$276-D170),0)) -> 389 | F170: =B170*$E$13 -> 628.8 | G170: =INDEX($Y$2:$Y$276,MATCH(MIN(ABS($Y$2:$Y$276-F170)),ABS($Y$2:$Y$276-F170),0)) -> 631 | H170: =(B170/100)*(D170/100)*(F170/100) -> 58.6745856 | I170: =(C170/100)*(E170/100)*(G170/100) -> 58.664701 | J170: J | K170: =IF(H170>$K$22,$N$21,$O$21) -> 1 | L170: =565/(F170*0.0328083989501312) -> 27.38740458 | M170: =(SQRT(O170/(H170*35.3146667214885))*11250) -> 62.4217263 | N170: =4*M170 -> 249.6869052 | O170: =0.25*(((0.028316846592*H170)/100)^(1/3)) -> 0.0637927976 | P170: =(D170/100)*(F170/100) -> 24.447744 | Q170: =565/(G170*0.0328083989501312) -> 27.29191759 | R170: =(SQRT(T170/(I170*35.3146667214885))*11250) -> 62.42523198 | S170: =4*R170 -> 249.7009279 | T170: =0.25*(((0.028316846592*I170)/100)^(1/3)) -> 0.06378921512 | U170: =(E170/100)*(G170/100) -> 24.5459 | Y170: 1009
A171: 2.55 | B171: 255 | C171: =INDEX($Y$2:$Y$276,MATCH(MIN(ABS($Y$2:$Y$276-B171)),ABS($Y$2:$Y$276-B171),0)) -> 257 | D171: 413.1 | E171: =INDEX($Y$2:$Y$276,MATCH(MIN(ABS($Y$2:$Y$276-D171)),ABS($Y$2:$Y$276-D171),0)) -> 409 | F171: 668.1 | G171: =INDEX($Y$2:$Y$276,MATCH(MIN(ABS($Y$2:$Y$276-F171)),ABS($Y$2:$Y$276-F171),0)) -> 673 | H171: =(B171/100)*(D171/100)*(F171/100) -> 70.37798805 | I171: 70.741049 | J171: J | K171: 1 | L171: 25.77638078 | M171: 58.74986005 | N171: 234.9994402 | O171: 0.06777984745 | P171: 27.599211 | Q171: 25.58870728 | R171: 58.64918124 | S171: =4*R171 -> 234.596725 | T171: 0.06789620022 | U171: 27.5257 | Y171: 1013
A172: 2.7 | B172: 270 | C172: =INDEX($Y$2:$Y$276,MATCH(MIN(ABS($Y$2:$Y$276-B172)),ABS($Y$2:$Y$276-B172),0)) -> 269 | D172: 437.4 | E172: =INDEX($Y$2:$Y$276,MATCH(MIN(ABS($Y$2:$Y$276-D172)),ABS($Y$2:$Y$276-D172),0)) -> 439 | F172: 707.4 | G172: =INDEX($Y$2:$Y$276,MATCH(MIN(ABS($Y$2:$Y$276-F172)),ABS($Y$2:$Y$276-F172),0)) -> 709 | H172: 83.5425252 | I172: 83.726519 | J172: J | K172: 1 | L172: 24.34435963 | M172: 55.48597894 | N172: 221.9439157 | O172: 0.0717668973 | P172: 30.941676 | Q172: 24.28942172 | R172: 55.44530459 | S172: 221.7812184 | T172: 0.07181954507 | U172: 31.1251 | Y172: 1019
A173: 2.85 | B173: 285 | C173: =INDEX($Y$2:$Y$276,MATCH(MIN(ABS($Y$2:$Y$276-B173)),ABS($Y$2:$Y$276-B173),0)) -> 283 | D173: 461.7 | E173: =INDEX($Y$2:$Y$276,MATCH(MIN(ABS($Y$2:$Y$276-D173)),ABS($Y$2:$Y$276-D173),0)) -> 461 | F173: 746.7 | G173: =INDEX($Y$2:$Y$276,MATCH(MIN(ABS($Y$2:$Y$276-F173)),ABS($Y$2:$Y$276-F173),0)) -> 743 | H173: 98.25414615 | I173: 96.934009 | J173: J | K173: 1 | L173: 23.06307754 | M173: 52.56566426 | N173: 210.262657 | O173: 0.07575394715 | P173: 34.475139 | Q173: 23.17792732 | R173: 52.80321839 | S173: 211.2128736 | T173: 0.07541314096 | U173: 34.2523 | Y173: 1021
A174: 3 | B174: 300 | C174: =INDEX($Y$2:$Y$276,MATCH(MIN(ABS($Y$2:$Y$276-B174)),ABS($Y$2:$Y$276-B174),0)) -> 293 | D174: 486 | E174: =INDEX($Y$2:$Y$276,MATCH(MIN(ABS($Y$2:$Y$276-D174)),ABS($Y$2:$Y$276-D174),0)) -> 487 | F174: 786 | G174: =INDEX($Y$2:$Y$276,MATCH(MIN(ABS($Y$2:$Y$276-F174)),ABS($Y$2:$Y$276-F174),0)) -> 787 | H174: 114.5988 | I174: 112.297817 | J174: J | K174: 1 | L174: 21.90992366 | M174: 49.93738104 | N174: 199.7495242 | O174: 0.079740997 | P174: 38.1996 | Q174: 21.88208386 | R174: 50.2761501 | S174: 201.1046004 | T174: 0.07920368891 | U174: 38.3269 | Y174: 1031
A175: 3.2 | B175: 320 | C175: =INDEX($Y$2:$Y$276,MATCH(MIN(ABS($Y$2:$Y$276-B175)),ABS($Y$2:$Y$276-B175),0)) -> 317 | D175: 518.4 | E175: =INDEX($Y$2:$Y$276,MATCH(MIN(ABS($Y$2:$Y$276-D175)),ABS($Y$2:$Y$276-D175),0)) -> 521 | F175: 838.4 | G175: =INDEX($Y$2:$Y$276,MATCH(MIN(ABS($Y$2:$Y$276-F175)),ABS($Y$2:$Y$276-F175),0)) -> 839 | H175: 139.0804992 | I175: 138.566723 | J175: J | K175: 1 | L175: 20.54055344 | M175: 46.81629473 | N175: 187.2651789 | O175: 0.08505706347 | P175: 43.462656 | Q175: 20.52586412 | R175: 46.87408501 | S175: 187.49634 | T175: 0.08495219802 | U175: 43.7119 | Y175: 1033
A176: 3.3 | B176: 330 | C176: =INDEX($Y$2:$Y$276,MATCH(MIN(ABS($Y$2:$Y$276-B176)),ABS($Y$2:$Y$276-B176),0)) -> 331 | D176: 534.6 | E176: =INDEX($Y$2:$Y$276,MATCH(MIN(ABS($Y$2:$Y$276-D176)),ABS($Y$2:$Y$276-D176),0)) -> 541 | F176: 864.6 | G176: =INDEX($Y$2:$Y$276,MATCH(MIN(ABS($Y$2:$Y$276-F176)),ABS($Y$2:$Y$276-F176),0)) -> 863 | H176: 152.5310028 | I176: 154.538273 | J176: J | K176: 1 | L176: 19.91811242 | M176: 45.39761913 | N176: 181.5904765 | O176: 0.0877150967 | P176: 46.221516 | Q176: 19.95504056 | R176: 45.20020806 | S176: 180.8008322 | T176: 0.08809819076 | U176: 46.6883 | Y176: 1039
A177: 3.4 | B177: 340 | C177: =INDEX($Y$2:$Y$276,MATCH(MIN(ABS($Y$2:$Y$276-B177)),ABS($Y$2:$Y$276-B177),0)) -> 337 | D177: 550.8 | E177: =INDEX($Y$2:$Y$276,MATCH(MIN(ABS($Y$2:$Y$276-D177)),ABS($Y$2:$Y$276-D177),0)) -> 547 | F177: 890.8 | G177: =INDEX($Y$2:$Y$276,MATCH(MIN(ABS($Y$2:$Y$276-F177)),ABS($Y$2:$Y$276-F177),0)) -> 887 | H177: 166.8218976 | I177: 163.508693 | J177: J | K177: 1 | L177: 19.33228559 | M177: 44.06239504 | N177: 176.2495801 | O177: 0.09037312994 | P177: 49.065264 | Q177: 19.4151071 | R177: 44.35802178 | S177: 177.4320871 | T177: 0.08977083271 | U177: 48.5189 | Y177: 1049
A178: 3.6 | B178: 360 | C178: =INDEX($Y$2:$Y$276,MATCH(MIN(ABS($Y$2:$Y$276-B178)),ABS($Y$2:$Y$276-B178),0)) -> 359 | D178: 583.2 | E178: =INDEX($Y$2:$Y$276,MATCH(MIN(ABS($Y$2:$Y$276-D178)),ABS($Y$2:$Y$276-D178),0)) -> 587 | F178: 943.2 | G178: =INDEX($Y$2:$Y$276,MATCH(MIN(ABS($Y$2:$Y$276-F178)),ABS($Y$2:$Y$276-F178),0)) -> 941 | H178: 198.0267264 | I178: 198.299753 | J178: J | K178: 1 | L178: 18.25826972 | M178: 41.6144842 | N178: 166.4579368 | O178: 0.0956891964 | P178: 55.007424 | Q178: 18.30095643 | R178: 41.59537663 | S178: 166.3815065 | T178: 0.09573315292 | U178: 55.2367 | Y178: 1051
A179: 3.75 | B179: 375 | C179: =INDEX($Y$2:$Y$276,MATCH(MIN(ABS($Y$2:$Y$276-B179)),ABS($Y$2:$Y$276-B179),0)) -> 373 | D179: 607.5 | E179: =INDEX($Y$2:$Y$276,MATCH(MIN(ABS($Y$2:$Y$276-D179)),ABS($Y$2:$Y$276-D179),0)) -> 607 | F179: 982.5 | G179: =INDEX($Y$2:$Y$276,MATCH(MIN(ABS($Y$2:$Y$276-F179)),ABS($Y$2:$Y$276-F179),0)) -> 983 | H179: 223.8257812 | I179: 222.562013 | J179: J | K179: 1 | L179: 17.52793893 | M179: 39.94990483 | N179: 159.7996193 | O179: 0.09967624625 | P179: 59.686875 | Q179: 17.5190234 | R179: 40.02537767 | S179: 160.1015107 | T179: 0.09948829426 | U179: 59.6681 | Y179: 1061
A180: 3.9 | B180: 390 | C180: =INDEX($Y$2:$Y$276,MATCH(MIN(ABS($Y$2:$Y$276-B180)),ABS($Y$2:$Y$276-B180),0)) -> 389 | D180: 631.8 | E180: =INDEX($Y$2:$Y$276,MATCH(MIN(ABS($Y$2:$Y$276-D180)),ABS($Y$2:$Y$276-D180),0)) -> 631 | F180: 1021.8 | G180: =INDEX($Y$2:$Y$276,MATCH(MIN(ABS($Y$2:$Y$276-F180)),ABS($Y$2:$Y$276-F180),0)) -> 1021 | H180: 251.7735636 | I180: 250.613639 | J180: J | K180: 1 | L180: 16.85378743 | M180: 38.41337003 | N180: 153.6534801 | O180: 0.1036632961 | P180: 64.557324 | Q180: 16.86699314 | R180: 38.47254219 | S180: 153.8901688 | T180: 0.1035038582 | U180: 64.4251 | Y180: 1063
A181: 4.05 | B181: 405 | C181: =INDEX($Y$2:$Y$276,MATCH(MIN(ABS($Y$2:$Y$276-B181)),ABS($Y$2:$Y$276-B181),0)) -> 401 | D181: 656.1 | E181: =INDEX($Y$2:$Y$276,MATCH(MIN(ABS($Y$2:$Y$276-D181)),ABS($Y$2:$Y$276-D181),0)) -> 659 | F181: 1061.1 | G181: =INDEX($Y$2:$Y$276,MATCH(MIN(ABS($Y$2:$Y$276-F181)),ABS($Y$2:$Y$276-F181),0)) -> 1061 | H181: =(B181/100)*(D181/100)*(F181/100) -> 281.9560226 | I181: 280.378799 | J181: J | K181: 1 | L181: 16.22957308 | M181: 36.99065262 | N181: 147.9626105 | O181: 0.107650346 | P181: 69.618771 | Q181: 16.23110273 | R181: 37.05988452 | S181: 148.2395381 | T181: 0.1074492434 | U181: 69.9199 | Y181: 1069
A182: 4.2 | B182: 420 | C182: =INDEX($Y$2:$Y$276,MATCH(MIN(ABS($Y$2:$Y$276-B182)),ABS($Y$2:$Y$276-B182),0)) -> 419 | D182: 680.4 | E182: =INDEX($Y$2:$Y$276,MATCH(MIN(ABS($Y$2:$Y$276-D182)),ABS($Y$2:$Y$276-D182),0)) -> 683 | F182: 1100.4 | G182: =INDEX($Y$2:$Y$276,MATCH(MIN(ABS($Y$2:$Y$276-F182)),ABS($Y$2:$Y$276-F182),0)) -> 1103 | H182: =(B182/100)*(D182/100)*(F182/100) -> 314.4591072 | I182: 315.653231 | J182: J | K182: 1 | L182: 15.64994547 | M182: 35.66955789 | N182: 142.6782315 | O182: 0.1116373958 | P182: 74.871216 | Q182: 15.6130553 | R182: 35.62452145 | S182: 142.4980858 | T182: 0.1117785275 | U182: 75.3349 | Y182: 1087
A183: 4.35 | B183: 435 | C183: =INDEX($Y$2:$Y$276,MATCH(MIN(ABS($Y$2:$Y$276-B183)),ABS($Y$2:$Y$276-B183),0)) -> 433 | D183: 704.7 | E183: =INDEX($Y$2:$Y$276,MATCH(MIN(ABS($Y$2:$Y$276-D183)),ABS($Y$2:$Y$276-D183),0)) -> 701 | F183: 1139.7 | G183: =INDEX($Y$2:$Y$276,MATCH(MIN(ABS($Y$2:$Y$276-F183)),ABS($Y$2:$Y$276-F183),0)) -> 1129 | H183: =(B183/100)*(D183/100)*(F183/100) -> 349.3687666 | I183: 342.688757 | J183: J | K183: 1 | L183: 15.11029218 | M183: 34.43957313 | N183: 137.7582925 | O183: 0.1156244457 | P183: 80.314659 | Q183: 15.25349867 | R183: 34.66191078 | S183: 138.6476431 | T183: 0.1148827766 | U183: 79.1429 | Y183: 1091
A184: 4.5 | B184: 450 | C184: =INDEX($Y$2:$Y$276,MATCH(MIN(ABS($Y$2:$Y$276-B184)),ABS($Y$2:$Y$276-B184),0)) -> 449 | D184: 729 | E184: =INDEX($Y$2:$Y$276,MATCH(MIN(ABS($Y$2:$Y$276-D184)),ABS($Y$2:$Y$276-D184),0)) -> 727 | F184: 1179 | G184: =INDEX($Y$2:$Y$276,MATCH(MIN(ABS($Y$2:$Y$276-F184)),ABS($Y$2:$Y$276-F184),0)) -> 1181 | H184: =(B184/100)*(D184/100)*(F184/100) -> 386.77095 | I184: 385.505563 | J184: J | K184: 1 | L184: 14.60661578 | M184: 33.29158736 | N184: 133.1663494 | O184: 0.1196114955 | P184: 85.9491 | Q184: 14.58187976 | R184: 33.32797312 | S184: 133.3118925 | T184: 0.1194809099 | U184: 85.8587 | Y184: 1093
A185: HEIGHT m | B185: HEIGHT cm | C185: PRIME height | D185: WIDTH cm | E185: PRIME width | F185: DEPTH cm | G185: PRIME depth | H185: VOLUME | I185: PRIME volume | J185: TABLE | K185: 1=Yes 0=NO | L185: F¹ | M185: F² | N185: F³ | O185: minimum RT60 | P185: Floor area | Q185: F¹ | R185: F² | S185: F³ | T185: minimum RT60 | U185: Floor area | Y185: 1097
A186: =A170 -> 2.4 | B186: =A186*100 -> 240 | C186: =INDEX($Y$2:$Y$276,MATCH(MIN(ABS($Y$2:$Y$276-B186)),ABS($Y$2:$Y$276-B186),0)) -> 239 | D186: =B186*$D$14 -> 357.6 | E186: =INDEX($Y$2:$Y$276,MATCH(MIN(ABS($Y$2:$Y$276-D186)),ABS($Y$2:$Y$276-D186),0)) -> 359 | F186: =B186*$E$14 -> 554.4 | G186: =INDEX($Y$2:$Y$276,MATCH(MIN(ABS($Y$2:$Y$276-F186)),ABS($Y$2:$Y$276-F186),0)) -> 557 | H186: =(B186/100)*(D186/100)*(F186/100) -> 47.5808256 | I186: =(C186/100)*(E186/100)*(G186/100) -> 47.791157 | J186: K | K186: =IF(H186>$K$22,$N$21,$O$21) -> 1 | L186: =565/(F186*0.0328083989501312) -> 31.06277056 | M186: =(SQRT(O186/(H186*35.3146667214885))*11250) -> 66.93836921 | N186: =4*M186 -> 267.7534768 | O186: =0.25*(((0.028316846592*H186)/100)^(1/3)) -> 0.05948840103 | P186: =(D186/100)*(F186/100) -> 19.825344 | Q186: =565/(G186*0.0328083989501312) -> 30.91777379 | R186: =(SQRT(T186/(I186*35.3146667214885))*11250) -> 66.84002503 | S186: =4*R186 -> 267.3601001 | T186: =0.25*(((0.028316846592*I186)/100)^(1/3)) -> 0.05957592849 | U186: =(E186/100)*(G186/100) -> 19.9963 | Y186: 1103
A187: 2.55 | B187: 255 | C187: =INDEX($Y$2:$Y$276,MATCH(MIN(ABS($Y$2:$Y$276-B187)),ABS($Y$2:$Y$276-B187),0)) -> 257 | D187: 379.95 | E187: =INDEX($Y$2:$Y$276,MATCH(MIN(ABS($Y$2:$Y$276-D187)),ABS($Y$2:$Y$276-D187),0)) -> 379 | F187: 589.05 | G187: =INDEX($Y$2:$Y$276,MATCH(MIN(ABS($Y$2:$Y$276-F187)),ABS($Y$2:$Y$276-F187),0)) -> 587 | H187: =(B187/100)*(D187/100)*(F187/100) -> 57.07143461 | I187: 57.175561 | J187: K | K187: 1 | L187: 29.23554876 | M187: 63.00081808 | N187: 252.0032723 | O187: 0.06320642609 | P187: 22.38095475 | Q187: 29.33764906 | R187: 62.96254979 | S187: =4*R187 -> 251.8501991 | T187: 0.06324484262 | U187: 22.2473 | Y187: 1109
A188: 2.7 | B188: 270 | C188: =INDEX($Y$2:$Y$276,MATCH(MIN(ABS($Y$2:$Y$276-B188)),ABS($Y$2:$Y$276-B188),0)) -> 269 | D188: 402.3 | E188: =INDEX($Y$2:$Y$276,MATCH(MIN(ABS($Y$2:$Y$276-D188)),ABS($Y$2:$Y$276-D188),0)) -> 401 | F188: 623.7 | G188: =INDEX($Y$2:$Y$276,MATCH(MIN(ABS($Y$2:$Y$276-F188)),ABS($Y$2:$Y$276-F188),0)) -> 619 | H188: 67.7469177 | I188: 66.770911 | J188: K | K188: 1 | L188: 27.61135161 | M188: 59.50077263 | N188: 238.0030905 | O188: 0.06692445116 | P188: 25.091451 | Q188: 27.82100162 | R188: 59.78928386 | S188: 239.1571354 | T188: 0.06660150942 | U188: 24.8219 | Y188: 1117
A189: 2.85 | B189: 285 | C189: =INDEX($Y$2:$Y$276,MATCH(MIN(ABS($Y$2:$Y$276-B189)),ABS($Y$2:$Y$276-B189),0)) -> 283 | D189: 424.65 | E189: =INDEX($Y$2:$Y$276,MATCH(MIN(ABS($Y$2:$Y$276-D189)),ABS($Y$2:$Y$276-D189),0)) -> 421 | F189: 658.35 | G189: =INDEX($Y$2:$Y$276,MATCH(MIN(ABS($Y$2:$Y$276-F189)),ABS($Y$2:$Y$276-F189),0)) -> 659 | H189: 79.67697334 | I189: 78.515237 | J189: K | K189: 1 | L189: 26.15812258 | M189: 56.36915302 | N189: 225.4766121 | O189: 0.07064247622 | P189: 27.95683275 | Q189: 26.1323217 | R189: 56.64581158 | S189: 226.5832463 | T189: 0.07029745785 | U189: 27.7439 | Y189: 1123
A190: 3 | B190: 300 | C190: =INDEX($Y$2:$Y$276,MATCH(MIN(ABS($Y$2:$Y$276-B190)),ABS($Y$2:$Y$276-B190),0)) -> 293 | D190: 447 | E190: =INDEX($Y$2:$Y$276,MATCH(MIN(ABS($Y$2:$Y$276-D190)),ABS($Y$2:$Y$276-D190),0)) -> 449 | F190: 693 | G190: =INDEX($Y$2:$Y$276,MATCH(MIN(ABS($Y$2:$Y$276-F190)),ABS($Y$2:$Y$276-F190),0)) -> 691 | H190: 92.9313 | I190: 90.905887 | J190: K | K190: 1 | L190: 24.85021645 | M190: 53.55069537 | N190: 214.2027815 | O190: 0.07436050129 | P190: 30.9771 | Q190: 24.92214182 | R190: 53.94548672 | S190: 215.7819469 | T190: 0.07381630594 | U190: 31.0259 | Y190: 1129
A191: 3.2 | B191: 320 | C191: =INDEX($Y$2:$Y$276,MATCH(MIN(ABS($Y$2:$Y$276-B191)),ABS($Y$2:$Y$276-B191),0)) -> 317 | D191: 476.8 | E191: =INDEX($Y$2:$Y$276,MATCH(MIN(ABS($Y$2:$Y$276-D191)),ABS($Y$2:$Y$276-D191),0)) -> 479 | F191: 739.2 | G191: =INDEX($Y$2:$Y$276,MATCH(MIN(ABS($Y$2:$Y$276-F191)),ABS($Y$2:$Y$276-F191),0)) -> 739 | H191: 112.7841792 | I191: 112.211977 | J191: K | K191: 1 | L191: 23.29707792 | M191: 50.20377691 | N191: 200.8151076 | O191: 0.07931786804 | P191: 35.245056 | Q191: 23.30338295 | R191: 50.28896693 | S191: 201.1558677 | T191: 0.07918350277 | U191: 35.3981 | Y191: 1151
A192: 3.3 | B192: 330 | C192: =INDEX($Y$2:$Y$276,MATCH(MIN(ABS($Y$2:$Y$276-B192)),ABS($Y$2:$Y$276-B192),0)) -> 331 | D192: 491.7 | E192: =INDEX($Y$2:$Y$276,MATCH(MIN(ABS($Y$2:$Y$276-D192)),ABS($Y$2:$Y$276-D192),0)) -> 491 | F192: 762.3 | G192: =INDEX($Y$2:$Y$276,MATCH(MIN(ABS($Y$2:$Y$276-F192)),ABS($Y$2:$Y$276-F192),0)) -> 761 | H192: 123.6915603 | I192: 123.678481 | J192: K | K192: 1 | L192: 22.59110586 | M192: 48.68245034 | N192: 194.7298013 | O192: 0.08179655142 | P192: 37.482291 | Q192: 22.62969777 | R192: 48.68416637 | S192: 194.7366655 | T192: 0.08179366823 | U192: 37.3651 | Y192: 1153
A193: 3.4 | B193: 340 | C193: =INDEX($Y$2:$Y$276,MATCH(MIN(ABS($Y$2:$Y$276-B193)),ABS($Y$2:$Y$276-B193),0)) -> 337 | D193: 506.6 | E193: =INDEX($Y$2:$Y$276,MATCH(MIN(ABS($Y$2:$Y$276-D193)),ABS($Y$2:$Y$276-D193),0)) -> 509 | F193: 785.4 | G193: =INDEX($Y$2:$Y$276,MATCH(MIN(ABS($Y$2:$Y$276-F193)),ABS($Y$2:$Y$276-F193),0)) -> 787 | H193: 135.2804376 | I193: 134.996471 | J193: K | K193: 1 | L193: 21.92666157 | M193: 47.25061356 | N193: 189.0024542 | O193: 0.08427523479 | P193: 39.788364 | Q193: 21.88208386 | R193: 47.28372109 | S193: 189.1348844 | T193: 0.08421622622 | U193: 40.0583 | Y193: 1163
A194: 3.6 | B194: 360 | C194: =INDEX($Y$2:$Y$276,MATCH(MIN(ABS($Y$2:$Y$276-B194)),ABS($Y$2:$Y$276-B194),0)) -> 359 | D194: 536.4 | E194: =INDEX($Y$2:$Y$276,MATCH(MIN(ABS($Y$2:$Y$276-D194)),ABS($Y$2:$Y$276-D194),0)) -> 541 | F194: 831.6 | G194: =INDEX($Y$2:$Y$276,MATCH(MIN(ABS($Y$2:$Y$276-F194)),ABS($Y$2:$Y$276-F194),0)) -> 829 | H194: 160.5852864 | I194: 161.007551 | J194: K | K194: 1 | L194: 20.70851371 | M194: 44.62557947 | N194: 178.5023179 | O194: 0.08923260155 | P194: 44.607024 | Q194: 20.773462 | R194: 44.58653307 | S194: 178.3461323 | T194: 0.0893107465 | U194: 44.8489 | Y194: 1171
A195: 3.75 | B195: 375 | C195: =INDEX($Y$2:$Y$276,MATCH(MIN(ABS($Y$2:$Y$276-B195)),ABS($Y$2:$Y$276-B195),0)) -> 373 | D195: 558.75 | E195: =INDEX($Y$2:$Y$276,MATCH(MIN(ABS($Y$2:$Y$276-D195)),ABS($Y$2:$Y$276-D195),0)) -> 557 | F195: 866.25 | G195: =INDEX($Y$2:$Y$276,MATCH(MIN(ABS($Y$2:$Y$276-F195)),ABS($Y$2:$Y$276-F195),0)) -> 863 | H195: 181.5064453 | I195: 179.297743 | J195: K | K195: 1 | L195: 19.88017316 | M195: 42.8405563 | N195: 171.3622252 | O195: 0.09295062661 | P195: 48.40171875 | Q195: 19.95504056 | R195: 43.01575117 | S195: 172.0630047 | T195: 0.09257205661 | U195: 48.0691 | Y195: 1181
A196: 3.9 | B196: 390 | C196: =INDEX($Y$2:$Y$276,MATCH(MIN(ABS($Y$2:$Y$276-B196)),ABS($Y$2:$Y$276-B196),0)) -> 389 | D196: 581.1 | E196: =INDEX($Y$2:$Y$276,MATCH(MIN(ABS($Y$2:$Y$276-D196)),ABS($Y$2:$Y$276-D196),0)) -> 577 | F196: 900.9 | G196: =INDEX($Y$2:$Y$276,MATCH(MIN(ABS($Y$2:$Y$276-F196)),ABS($Y$2:$Y$276-F196),0)) -> 907 | H196: 204.1700661 | I196: 203.578871 | J196: K | K196: 1 | L196: 19.11555112 | M196: 41.19284259 | N196: 164.7713704 | O196: 0.09666865167 | P196: 52.351299 | Q196: 18.98699008 | R196: 41.23267887 | S196: 164.9307155 | T196: 0.09657525685 | U196: 52.3339 | Y196: 1187
A197: 4.05 | B197: 405 | C197: =INDEX($Y$2:$Y$276,MATCH(MIN(ABS($Y$2:$Y$276-B197)),ABS($Y$2:$Y$276-B197),0)) -> 401 | D197: 603.45 | E197: =INDEX($Y$2:$Y$276,MATCH(MIN(ABS($Y$2:$Y$276-D197)),ABS($Y$2:$Y$276-D197),0)) -> 601 | F197: 935.55 | G197: =INDEX($Y$2:$Y$276,MATCH(MIN(ABS($Y$2:$Y$276-F197)),ABS($Y$2:$Y$276-F197),0)) -> 937 | H197: =(B197/100)*(D197/100)*(F197/100) -> 228.6458472 | I197: 225.817937 | J197: K | K197: 1 | L197: 18.40756774 | M197: 39.66718176 | N197: 158.668727 | O197: 0.1003866767 | P197: 56.45576475 | Q197: 18.37908218 | R197: 39.83207891 | S197: 159.3283156 | T197: 0.09997109519 | U197: 56.3137 | Y197: 1193
A198: 4.2 | B198: 420 | C198: =INDEX($Y$2:$Y$276,MATCH(MIN(ABS($Y$2:$Y$276-B198)),ABS($Y$2:$Y$276-B198),0)) -> 419 | D198: 625.8 | E198: =INDEX($Y$2:$Y$276,MATCH(MIN(ABS($Y$2:$Y$276-D198)),ABS($Y$2:$Y$276-D198),0)) -> 631 | F198: 970.2 | G198: =INDEX($Y$2:$Y$276,MATCH(MIN(ABS($Y$2:$Y$276-F198)),ABS($Y$2:$Y$276-F198),0)) -> 971 | H198: =(B198/100)*(D198/100)*(F198/100) -> 255.0034872 | I198: 256.721719 | J198: K | K198: 1 | L198: 17.75015461 | M198: 38.25049669 | N198: 153.0019868 | O198: 0.1041047018 | P198: 60.715116 | Q198: 17.73553038 | R198: 38.16496907 | S198: 152.6598763 | T198: 0.1043380002 | U198: 61.2701 | Y198: 1201
A199: 4.35 | B199: 435 | C199: =INDEX($Y$2:$Y$276,MATCH(MIN(ABS($Y$2:$Y$276-B199)),ABS($Y$2:$Y$276-B199),0)) -> 433 | D199: 648.15 | E199: =INDEX($Y$2:$Y$276,MATCH(MIN(ABS($Y$2:$Y$276-D199)),ABS($Y$2:$Y$276-D199),0)) -> 647 | F199: 1004.85 | G199: =INDEX($Y$2:$Y$276,MATCH(MIN(ABS($Y$2:$Y$276-F199)),ABS($Y$2:$Y$276-F199),0)) -> 1009 | H199: =(B199/100)*(D199/100)*(F199/100) -> 283.3126845 | I199: 282.672359 | J199: K | K199: 1 | L199: 17.13808031 | M199: 36.93151405 | N199: 147.7260562 | O199: 0.1078227269 | P199: 65.12935275 | Q199: 17.06759167 | R199: 36.95937947 | S199: 147.8375179 | T199: 0.1077414342 | U199: 65.2823 | Y199: 1213
A200: 4.5 | B200: 450 | C200: =INDEX($Y$2:$Y$276,MATCH(MIN(ABS($Y$2:$Y$276-B200)),ABS($Y$2:$Y$276-B200),0)) -> 449 | D200: 670.5 | E200: =INDEX($Y$2:$Y$276,MATCH(MIN(ABS($Y$2:$Y$276-D200)),ABS($Y$2:$Y$276-D200),0)) -> 673 | F200: 1039.5 | G200: =INDEX($Y$2:$Y$276,MATCH(MIN(ABS($Y$2:$Y$276-F200)),ABS($Y$2:$Y$276-F200),0)) -> 1039 | H200: =(B200/100)*(D200/100)*(F200/100) -> 313.6431375 | I200: 313.961903 | J200: K | K200: 1 | L200: 16.56681097 | M200: 35.70046358 | N200: 142.8018543 | O200: 0.1115407519 | P200: 69.698475 | Q200: 16.57478345 | R200: 35.68837726 | S200: 142.753509 | T200: 0.1115785266 | U200: 69.9247 | Y200: 1217
... 233 more rows

Sheet RATIOS
A1: BOLT 1 | E1: BOLT 2 | I1: SEPMEYER 1 | M1: SEPMEYER 2 | Q1: SEPMEYER 3 | U1: LOUDEN 1 | Y1: LOUDEN 2 | AC1: LOUDEN 3
A2: HEIGHT | B2: WIDTH | C2: DEPTH | E2: HEIGHT | F2: WIDTH | G2: DEPTH | I2: HEIGHT | J2: WIDTH | K2: DEPTH | M2: HEIGHT | N2: WIDTH | O2: DEPTH | Q2: HEIGHT | R2: WIDTH | S2: DEPTH | U2: HEIGHT | V2: WIDTH | W2: DEPTH | Y2: HEIGHT | Z2: WIDTH | AA2: DEPTH | AC2: HEIGHT | AD2: WIDTH | AE2: DEPTH
A3: 1 | B3: 1.5 | C3: 2.5 | E3: 1 | F3: 1.26 | G3: 1.59 | I3: 1 | J3: 1.14 | K3: 1.39 | M3: 1 | N3: 1.28 | O3: 1.54 | Q3: 1 | R3: 1.6 | S3: 2.33 | U3: 1 | V3: 1.4 | W3: 1.9 | Y3: 1 | Z3: 1.3 | AA3: 1.9 | AC3: 1 | AD3: 1.5 | AE3: 2.1
A6: HEIGHT | B6: 337 | E6: HEIGHT | F6: =B6 -> 337 | I6: HEIGHT | J6: =F6 -> 337 | M6: HEIGHT | N6: =J6 -> 337 | Q6: HEIGHT | R6: =N6 -> 337 | U6: HEIGHT | V6: =R6 -> 337 | Y6: HEIGHT | Z6: =V6 -> 337 | AC6: HEIGHT | AD6: =Z6 -> 337
A7: WIDTH | B7: =B6*$B$3 -> 505.5 | E7: WIDTH | F7: =F6*$F$3 -> 424.62 | I7: WIDTH | J7: =J6*$J$3 -> 384.18 | M7: WIDTH | N7: =N6*$N$3 -> 431.36 | Q7: WIDTH | R7: =R6*$R$3 -> 539.2 | U7: WIDTH | V7: =V6*$V$3 -> 471.8 | Y7: WIDTH | Z7: =Z6*$Z$3 -> 438.1 | AC7: WIDTH | AD7: =AD6*$AD$3 -> 505.5
A8: DEPTH | B8: =B6*$C$3 -> 842.5 | E8: DEPTH | F8: =F6*$G$3 -> 535.83 | I8: DEPTH | J8: =J6*$K$3 -> 468.43 | M8: DEPTH | N8: =N6*$O$3 -> 518.98 | Q8: DEPTH | R8: =R6*$S$3 -> 785.21 | U8: DEPTH | V8: =V6*$W$3 -> 640.3 | Y8: DEPTH | Z8: =Z6*$AA$3 -> 640.3 | AC8: DEPTH | AD8: =AD6*$AE$3 -> 707.7
A9: Area | B9: =(B7)/100*(B8)/100 -> 42.588375 | E9: Area | F9: =(F7/100)*(F8/100) -> 22.75241346 | I9: Area | J9: =(J7/100)*(J8/100) -> 17.99614374 | M9: Area | N9: =(N7/100)*(N8/100) -> 22.38672128 | Q9: Area | R9: =(R7/100)*(R8/100) -> 42.3385232 | U9: Area | V9: =(V7/100)*(V8/100) -> 30.209354 | Y9: Area | Z9: =(Z7/100)*(Z8/100) -> 28.051543 | AC9: Area | AD9: =(AD7/100)*(AD8/100) -> 35.774235
A10: Volume | B10: =(B6/100)*(B7/100)*(B8/100) -> 143.5228238 | E10: Volume | F10: =(F6/100)*(F7/100)*(F8/100) -> 76.67563336 | I10: Volume | J10: =(J6/100)*(J7/100)*(J8/100) -> 60.6470044 | M10: Volume | N10: =(N6/100)*(N7/100)*(N8/100) -> 75.44325071 | Q10: Volume | R10: =(R6/100)*(R7/100)*(R8/100) -> 142.6808232 | U10: Volume | V10: =(V6/100)*(V7/100)*(V8/100) -> 101.805523 | Y10: Volume | Z10: =(Z6/100)*(Z7/100)*(Z8/100) -> 94.53369991 | AC10: Volume | AD10: =(AD6/100)*(AD7/100)*(AD8/100) -> 120.559172
A12: HEIGHT | B12: =B13/B3 -> 198.6666667 | E12: HEIGHT | F12: =F13/F3 -> 236.5079365 | I12: HEIGHT | J12: =J13/J3 -> 261.4035088 | M12: HEIGHT | N12: =N13/N3 -> 232.8125 | Q12: HEIGHT | R12: =R13/R3 -> 186.25 | U12: HEIGHT | V12: =V13/V3 -> 212.8571429 | Y12: HEIGHT | Z12: =Z13/Z3 -> 229.2307692 | AC12: HEIGHT | AD12: =AD13/AD3 -> 198.6666667
A13: WIDTH | B13: 298 | E13: WIDTH | F13: =B13 -> 298 | I13: WIDTH | J13: =F13 -> 298 | M13: WIDTH | N13: =J13 -> 298 | Q13: WIDTH | R13: =N13 -> 298 | U13: WIDTH | V13: =R13 -> 298 | Y13: WIDTH | Z13: =V13 -> 298 | AC13: WIDTH | AD13: =Z13 -> 298
A14: DEPTH | B14: =B12*C3 -> 496.6666667 | E14: DEPTH | F14: =F12*G3 -> 376.047619 | I14: DEPTH | J14: =J12*K3 -> 363.3508772 | M14: DEPTH | N14: =N12*O3 -> 358.53125 | Q14: DEPTH | R14: =R12*S3 -> 433.9625 | U14: DEPTH | V14: =V12*W3 -> 404.4285714 | Y14: DEPTH | Z14: =Z12*AA3 -> 435.5384615 | AC14: DEPTH | AD14: =AD12*AE3 -> 417.2
A15: Area | B15: =(B13/100)*(B14/100) -> 14.80066667 | E15: Area | F15: =(F13/100)*(F14/100) -> 11.20621905 | I15: Area | J15: =(J13/100)*(J14/100) -> 10.82785614 | M15: Area | N15: =(N13/100)*(N14/100) -> 10.68423125 | Q15: Area | R15: =(R13/100)*(R14/100) -> 12.9320825 | U15: Area | V15: =(V13/100)*(V14/100) -> 12.05197143 | Y15: Area | Z15: =(Z13/100)*(Z14/100) -> 12.97904615 | AC15: Area | AD15: =(AD13/100)*(AD14/100) -> 12.43256
A16: Volume | B16: =(B12/100)*(B13/100)*(B14/100) -> 29.40399111 | E16: Volume | F16: =(F12/100)*(F13/100)*(F14/100) -> 26.50359743 | I16: Volume | J16: =(J12/100)*(J13/100)*(J14/100) -> 28.30439588 | M16: Volume | N16: =(N12/100)*(N13/100)*(N14/100) -> 24.87422588 | Q16: Volume | R16: =(R12/100)*(R13/100)*(R14/100) -> 24.08600366 | U16: Volume | V16: =(V12/100)*(V13/100)*(V14/100) -> 25.65348204 | Y16: Volume | Z16: =(Z12/100)*(Z13/100)*(Z14/100) -> 29.75196734 | AC16: Volume | AD16: =(AD12/100)*(AD13/100)*(AD14/100) -> 24.69935253
A18: HEIGHT | B18: =B20/C3 -> 237.2 | E18: HEIGHT | F18: =F20/G3 -> 372.9559748 | I18: HEIGHT | J18: =J20/K3 -> 426.618705 | M18: HEIGHT | N18: =N20/O3 -> 385.0649351 | Q18: HEIGHT | R18: =R20/S3 -> 254.5064378 | U18: HEIGHT | V18: =V20/W3 -> 312.1052632 | Y18: HEIGHT | Z18: =Z20/AA3 -> 312.1052632 | AC18: HEIGHT | AD18: =AD20/AE3 -> 282.3809524
A19: WIDTH | B19: =B18*B3 -> 355.8 | E19: WIDTH | F19: =F18*F3 -> 469.9245283 | I19: WIDTH | J19: =J18*J3 -> 486.3453237 | M19: WIDTH | N19: =N18*N3 -> 492.8831169 | Q19: WIDTH | R19: =R18*R3 -> 407.2103004 | U19: WIDTH | V19: =V18*V3 -> 436.9473684 | Y19: WIDTH | Z19: =Z18*Z3 -> 405.7368421 | AC19: WIDTH | AD19: =AD18*AD3 -> 423.5714286
A20: DEPTH | B20: 593 | E20: DEPTH | F20: =B20 -> 593 | I20: DEPTH | J20: =F20 -> 593 | M20: DEPTH | N20: =J20 -> 593 | Q20: DEPTH | R20: =N20 -> 593 | U20: DEPTH | V20: =R20 -> 593 | Y20: DEPTH | Z20: =V20 -> 593 | AC20: DEPTH | AD20: =Z20 -> 593
A21: Area | B21: =(B19/100)*(B20/100) -> 21.09894 | E21: Area | F21: =(F19/100)*(F20/100) -> 27.86652453 | I21: Area | J21: =(J19/100)*(J20/100) -> 28.8402777 | M21: Area | N21: =(N19/100)*(N20/100) -> 29.22796883 | Q21: Area | R21: =(R19/100)*(R20/100) -> 24.14757082 | U21: Area | V21: =(V19/100)*(V20/100) -> 25.91097895 | Y21: Area | Z21: =(Z19/100)*(Z20/100) -> 24.06019474 | AC21: Area | AD21: =(AD19/100)*(AD20/100) -> 25.11778571
A22: Volume | B22: =(B18/100)*(B19/100)*(B20/100) -> 50.04668568 | E22: Volume | F22: =(F18/100)*(F19/100)*(F20/100) -> 103.9298682 | I22: Volume | J22: =(J18/100)*(J19/100)*(J20/100) -> 123.0380192 | M22: Volume | N22: =(N18/100)*(N19/100)*(N20/100) -> 112.5466592 | Q22: Volume | R22: =(R18/100)*(R19/100)*(R20/100) -> 61.45712229 | U22: Volume | V22: =(V18/100)*(V19/100)*(V20/100) -> 80.86952903 | Y22: Volume | Z22: =(Z18/100)*(Z19/100)*(Z20/100) -> 75.0931341 | AC22: Volume | AD22: =(AD18/100)*(AD19/100)*(AD20/100) -> 70.92784252
A25: HEIGHT | B25: 347 | E25: HEIGHT | F25: =B25 -> 347 | I25: HEIGHT | J25: =F25 -> 347 | M25: HEIGHT | N25: =J25 -> 347 | Q25: HEIGHT | R25: =N25 -> 347 | U25: HEIGHT | V25: =R25 -> 347 | Y25: HEIGHT | Z25: =V25 -> 347 | AC25: HEIGHT | AD25: =Z25 -> 347
A26: WIDTH | B26: =B25*$B$3 -> 520.5 | E26: WIDTH | F26: =F25*$F$3 -> 437.22 | I26: WIDTH | J26: =J25*$J$3 -> 395.58 | M26: WIDTH | N26: =N25*$N$3 -> 444.16 | Q26: WIDTH | R26: =R25*$R$3 -> 555.2 | U26: WIDTH | V26: =V25*$V$3 -> 485.8 | Y26: WIDTH | Z26: =Z25*$Z$3 -> 451.1 | AC26: WIDTH | AD26: =AD25*$AD$3 -> 520.5
A27: DEPTH | B27: =B25*$C$3 -> 867.5 | E27: DEPTH | F27: =F25*$G$3 -> 551.73 | I27: DEPTH | J27: =J25*$K$3 -> 482.33 | M27: DEPTH | N27: =N25*$O$3 -> 534.38 | Q27: DEPTH | R27: =R25*$S$3 -> 808.51 | U27: DEPTH | V27: =V25*$W$3 -> 659.3 | Y27: DEPTH | Z27: =Z25*$AA$3 -> 659.3 | AC27: DEPTH | AD27: =AD25*$AE$3 -> 728.7
A28: Area | B28: =(B26)/100*(B27)/100 -> 45.153375 | E28: Area | F28: =(F26/100)*(F27/100) -> 24.12273906 | I28: Area | J28: =(J26/100)*(J27/100) -> 19.08001014 | M28: Area | N28: =(N26/100)*(N27/100) -> 23.73502208 | Q28: Area | R28: =(R26/100)*(R27/100) -> 44.8884752 | U28: Area | V28: =(V26/100)*(V27/100) -> 32.028794 | Y28: Area | Z28: =(Z26/100)*(Z27/100) -> 29.741023 | AC28: Area | AD28: =(AD26/100)*(AD27/100) -> 37.928835
A29: Volume | B29: =(B25/100)*(B26/100)*(B27/100) -> 156.6822113 | E29: Volume | F29: =(F25/100)*(F26/100)*(F27/100) -> 83.70590454 | I29: Volume | J29: =(J25/100)*(J26/100)*(J27/100) -> 66.20763519 | M29: Volume | N29: =(N25/100)*(N26/100)*(N27/100) -> 82.36052662 | Q29: Volume | R29: =(R25/100)*(R26/100)*(R27/100) -> 155.7630089 | U29: Volume | V29: =(V25/100)*(V26/100)*(V27/100) -> 111.1399152 | Y29: Volume | Z29: =(Z25/100)*(Z26/100)*(Z27/100) -> 103.2013498 | AC29: Volume | AD29: =(AD25/100)*(AD26/100)*(AD27/100) -> 131.6130575
A31: HEIGHT | B31: 349 | E31: HEIGHT | F31: =B31 -> 349 | I31: HEIGHT | J31: =F31 -> 349 | M31: HEIGHT | N31: =J31 -> 349 | Q31: HEIGHT | R31: =N31 -> 349 | U31: HEIGHT | V31: =R31 -> 349 | Y31: HEIGHT | Z31: =V31 -> 349 | AC31: HEIGHT | AD31: =Z31 -> 349
A32: WIDTH | B32: =B31*$B$3 -> 523.5 | E32: WIDTH | F32: =F31*$F$3 -> 439.74 | I32: WIDTH | J32: =J31*$J$3 -> 397.86 | M32: WIDTH | N32: =N31*$N$3 -> 446.72 | Q32: WIDTH | R32: =R31*$R$3 -> 558.4 | U32: WIDTH | V32: =V31*$V$3 -> 488.6 | Y32: WIDTH | Z32: =Z31*$Z$3 -> 453.7 | AC32: WIDTH | AD32: =AD31*$AD$3 -> 523.5
A33: DEPTH | B33: =B31*$C$3 -> 872.5 | E33: DEPTH | F33: =F31*$G$3 -> 554.91 | I33: DEPTH | J33: =J31*$K$3 -> 485.11 | M33: DEPTH | N33: =N31*$O$3 -> 537.46 | Q33: DEPTH | R33: =R31*$S$3 -> 813.17 | U33: DEPTH | V33: =V31*$W$3 -> 663.1 | Y33: DEPTH | Z33: =Z31*$AA$3 -> 663.1 | AC33: DEPTH | AD33: =AD31*$AE$3 -> 732.9
A34: Area | B34: =(B32)/100*(B33)/100 -> 45.675375 | E34: Area | F34: =(F32/100)*(F33/100) -> 24.40161234 | I34: Area | J34: =(J32/100)*(J33/100) -> 19.30058646 | M34: Area | N34: =(N32/100)*(N33/100) -> 24.00941312 | Q34: Area | R34: =(R32/100)*(R33/100) -> 45.4074128 | U34: Area | V34: =(V32/100)*(V33/100) -> 32.399066 | Y34: Area | Z34: =(Z32/100)*(Z33/100) -> 30.084847 | AC34: Area | AD34: =(AD32/100)*(AD33/100) -> 38.367315
A35: Volume | B35: =(B31/100)*(B32/100)*(B33/100) -> 159.4070588 | E35: Volume | F35: =(F31/100)*(F32/100)*(F33/100) -> 85.16162707 | I35: Volume | J35: =(J31/100)*(J32/100)*(J33/100) -> 67.35904675 | M35: Volume | N35: =(N31/100)*(N32/100)*(N33/100) -> 83.79285179 | Q35: Volume | R35: =(R31/100)*(R32/100)*(R33/100) -> 158.4718707 | U35: Volume | V35: =(V31/100)*(V32/100)*(V33/100) -> 113.0727403 | Y35: Volume | Z35: =(Z31/100)*(Z32/100)*(Z33/100) -> 104.996116 | AC35: Volume | AD35: =(AD31/100)*(AD32/100)*(AD33/100) -> 133.9019293
A37: HEIGHT | B37: 353 | E37: HEIGHT | F37: =B37 -> 353 | I37: HEIGHT | J37: =F37 -> 353 | M37: HEIGHT | N37: =J37 -> 353 | Q37: HEIGHT | R37: =N37 -> 353 | U37: HEIGHT | V37: =R37 -> 353 | Y37: HEIGHT | Z37: =V37 -> 353 | AC37: HEIGHT | AD37: =Z37 -> 353
A38: WIDTH | B38: =B37*$B$3 -> 529.5 | E38: WIDTH | F38: =F37*$F$3 -> 444.78 | I38: WIDTH | J38: =J37*$J$3 -> 402.42 | M38: WIDTH | N38: =N37*$N$3 -> 451.84 | Q38: WIDTH | R38: =R37*$R$3 -> 564.8 | U38: WIDTH | V38: =V37*$V$3 -> 494.2 | Y38: WIDTH | Z38: =Z37*$Z$3 -> 458.9 | AC38: WIDTH | AD38: =AD37*$AD$3 -> 529.5
A39: DEPTH | B39: =B37*$C$3 -> 882.5 | E39: DEPTH | F39: =F37*$G$3 -> 561.27 | I39: DEPTH | J39: =J37*$K$3 -> 490.67 | M39: DEPTH | N39: =N37*$O$3 -> 543.62 | Q39: DEPTH | R39: =R37*$S$3 -> 822.49 | U39: DEPTH | V39: =V37*$W$3 -> 670.7 | Y39: DEPTH | Z39: =Z37*$AA$3 -> 670.7 | AC39: DEPTH | AD39: =AD37*$AE$3 -> 741.3
A40: Area | B40: =(B38)/100*(B39)/100 -> 46.728375 | E40: Area | F40: =(F38/100)*(F39/100) -> 24.96416706 | I40: Area | J40: =(J38/100)*(J39/100) -> 19.74554214 | M40: Area | N40: =(N38/100)*(N39/100) -> 24.56292608 | Q40: Area | R40: =(R38/100)*(R39/100) -> 46.4542352 | U40: Area | V40: =(V38/100)*(V39/100) -> 33.145994 | Y40: Area | Z40: =(Z38/100)*(Z39/100) -> 30.778423 | AC40: Area | AD40: =(AD38/100)*(AD39/100) -> 39.251835
A41: Volume | B41: =(B37/100)*(B38/100)*(B39/100) -> 164.9511637 | E41: Volume | F41: =(F37/100)*(F38/100)*(F39/100) -> 88.12350972 | I41: Volume | J41: =(J37/100)*(J38/100)*(J39/100) -> 69.70176375 | M41: Volume | N41: =(N37/100)*(N38/100)*(N39/100) -> 86.70712906 | Q41: Volume | R41: =(R37/100)*(R38/100)*(R39/100) -> 163.9834503 | U41: Volume | V41: =(V37/100)*(V38/100)*(V39/100) -> 117.0053588 | Y41: Volume | Z41: =(Z37/100)*(Z38/100)*(Z39/100) -> 108.6478332 | AC41: Volume | AD41: =(AD37/100)*(AD38/100)*(AD39/100) -> 138.5589776
